{"text_format":"1","workbook":"xlsx","n_sheets":24,"sheets":["Menu","Bareme","Situations","Bilan","EP1","EP2.1_01","EP2.1","EP2.2","EP1_A","EP1_B","EP1_C","EP1_D","EP1_E","EP1_F","EP1_G","EP1_H","EP2.1_A","EP2.1_B","EP2.1_C","EP2.1_D","EP2.1_E","EP2.1_F","EP2.1_G","EP2.1_H"],"not_rendered":{"charts":1,"images":5,"macros":1,"external_links":0,"defined_names":42,"comments":0,"pivot_tables":0},"unopened":[],"bounds":{"document_bytes":16777216,"sheet_cells":100000,"rows_first":2000,"rows_last":500,"rows_between":2000,"halvings":0,"cell_chars":16384,"cell_head_chars":4096},"cells_cut":0,"cells_raw":0,"read":"whole","date_system":"1900"}

{"sheet":"Menu","index":0,"n_rows":0,"n_cols":0,"rows_kept":0,"cut":false,"hidden":false,"merged":[]}

{"sheet":"Bareme","index":1,"n_rows":284,"n_cols":32,"rows_kept":284,"cut":false,"hidden":false,"merged":[[95,0,98,2],[128,31,129,31],[130,30,131,30],[174,13,175,29],[140,31,141,31],[168,31,169,31],[144,0,147,2],[144,3,147,12],[148,0,151,2],[148,3,151,12],[152,0,157,2],[152,3,157,12],[170,30,171,30],[172,13,173,29],[172,30,173,30],[174,30,175,30],[136,0,137,2],[136,3,137,12],[138,0,139,2],[138,3,139,12],[140,0,141,29],[142,0,143,2],[142,3,143,12],[168,0,169,29],[29,13,30,29],[130,0,131,2],[130,3,131,12],[132,0,135,2],[132,3,135,12],[75,30,76,30],[77,30,78,30],[91,13,92,29],[95,13,96,29],[97,13,98,29],[85,13,86,29],[87,13,88,29],[83,13,84,29],[99,13,100,29],[126,0,127,29],[128,30,129,30],[130,13,131,29],[81,0,86,2],[81,3,86,12],[117,0,120,2],[117,3,120,12],[117,30,118,30],[119,13,120,29],[119,30,120,30],[73,30,74,30],[39,30,40,30],[49,30,50,30],[5,0,6,2],[5,3,6,12],[11,30,12,30],[23,30,24,30],[25,13,26,29],[25,30,26,30],[13,13,14,29],[13,30,14,30],[15,30,16,30],[17,13,18,29],[17,30,18,30],[19,30,20,30],[21,30,22,30],[23,13,24,29],[41,30,42,30],[43,13,44,29],[43,30,44,30],[15,13,16,29],[11,13,12,29],[11,0,18,2],[11,3,18,12],[61,30,62,30],[63,30,64,30],[65,30,66,30],[132,30,133,30],[93,0,94,29],[73,0,74,2],[3,31,4,31],[5,13,6,29],[5,30,6,30],[7,13,8,29],[7,30,8,30],[9,13,10,29],[9,30,10,30],[3,0,4,29],[3,30,4,30],[7,0,10,2],[7,3,10,12],[59,30,60,30],[87,30,88,30],[79,30,80,30],[81,30,82,30],[83,30,84,30],[85,30,86,30],[71,30,72,30],[47,30,48,30],[53,13,54,29],[35,13,36,29],[35,30,36,30],[37,13,38,29],[37,30,38,30],[39,13,40,29],[49,13,50,29],[51,30,52,30],[53,30,54,30],[1,30,2,30],[1,0,2,29],[126,30,127,30],[144,30,145,30],[146,13,147,29],[146,30,147,30],[148,13,149,29],[148,30,149,30],[150,30,151,30],[150,13,151,29],[134,13,135,29],[134,30,135,30],[136,30,137,30],[138,13,139,29],[138,30,139,30],[140,30,141,30],[128,0,129,29],[29,30,30,30],[31,13,32,29],[31,30,32,30],[132,13,133,29],[33,30,34,30],[45,13,46,29],[45,30,46,30],[183,31,184,31],[245,30,246,30],[191,13,192,29],[191,30,192,30],[193,30,194,30],[237,30,238,30],[231,30,232,30],[207,13,208,29],[207,30,208,30],[209,13,210,29],[209,30,210,30],[225,13,226,29],[225,30,226,30],[199,13,200,29],[199,30,200,30],[201,30,202,30],[203,30,204,30],[205,30,206,30],[197,30,198,30],[231,13,232,29],[239,30,240,30],[241,13,242,29],[241,30,242,30],[193,13,194,29],[158,13,159,29],[158,30,159,30],[142,13,143,29],[144,13,145,29],[152,13,153,29],[277,13,278,29],[279,13,280,29],[267,0,270,2],[267,3,270,12],[261,13,262,29],[277,30,278,30],[279,30,280,30],[271,0,276,2],[271,3,276,12],[277,0,280,2],[277,3,280,12],[267,30,268,30],[269,30,270,30],[265,13,266,29],[267,13,268,29],[269,13,270,29],[259,0,264,2],[259,3,264,12],[271,13,272,29],[136,13,137,29],[166,30,167,30],[168,30,169,30],[158,0,159,2],[158,3,159,12],[160,0,161,2],[160,3,161,12],[162,0,165,2],[162,3,165,12],[166,0,167,2],[166,3,167,12],[160,30,161,30],[162,30,163,30],[164,13,165,29],[164,30,165,30],[162,13,163,29],[166,13,167,29],[160,13,161,29],[142,30,143,30],[152,30,153,30],[154,13,155,29],[154,30,155,30],[156,13,157,29],[156,30,157,30],[172,3,173,12],[170,3,171,12],[172,0,173,2],[183,0,184,29],[183,30,184,30],[185,13,186,29],[185,30,186,30],[174,0,179,2],[174,3,179,12],[181,0,182,29],[181,30,182,30],[170,13,171,29],[170,0,171,2],[176,13,177,29],[176,30,177,30],[178,13,179,29],[178,30,179,30],[185,0,186,2],[185,3,186,12],[235,30,236,30],[233,0,234,29],[227,13,228,29],[227,30,228,30],[229,13,230,29],[229,30,230,30],[227,3,232,12],[187,13,188,29],[187,30,188,30],[189,13,190,29],[189,30,190,30],[233,30,234,30],[195,13,196,29],[195,30,196,30],[187,0,192,2],[187,3,192,12],[193,0,196,2],[193,3,196,12],[197,13,198,29],[197,0,200,2],[197,3,200,12],[213,30,214,30],[215,30,216,30],[201,31,202,31],[233,31,234,31],[257,30,258,30],[257,31,258,31],[221,13,222,29],[221,30,222,30],[223,13,224,29],[223,30,224,30],[235,13,236,29],[237,13,238,29],[247,13,248,29],[217,13,218,29],[217,30,218,30],[219,13,220,29],[219,30,220,30],[243,30,244,30],[243,13,244,29],[239,13,240,29],[211,30,212,30],[257,0,258,29],[235,0,236,2],[235,3,236,12],[237,0,242,2],[237,3,242,12],[281,0,284,2],[281,3,284,12],[265,0,266,2],[265,3,266,12],[271,30,272,30],[273,30,274,30],[275,13,276,29],[275,30,276,30],[281,30,282,30],[265,30,266,30],[283,13,284,29],[283,30,284,30],[273,13,274,29],[281,13,282,29],[247,3,252,12],[253,0,256,2],[201,0,202,29],[203,0,206,2],[203,3,206,12],[203,13,204,29],[207,0,216,2],[207,3,216,12],[211,13,212,29],[227,0,232,2],[243,0,246,2],[243,3,246,12],[253,3,256,12],[245,13,246,29],[205,13,206,29],[213,13,214,29],[215,13,216,29],[217,0,226,2],[217,3,226,12],[247,0,252,2],[263,13,264,29],[263,30,264,30],[247,30,248,30],[249,30,250,30],[251,30,252,30],[253,13,254,29],[253,30,254,30],[255,13,256,29],[255,30,256,30],[259,13,260,29],[259,30,260,30],[249,13,250,29],[251,13,252,29],[261,30,262,30],[39,0,40,2],[39,3,40,12],[41,0,42,2],[41,3,42,12],[43,0,44,2],[43,3,44,12],[31,0,32,2],[31,3,32,12],[33,0,34,29],[35,0,38,2],[35,3,38,12],[41,13,42,29],[45,0,54,2],[45,3,54,12],[55,0,62,2],[55,3,62,12],[61,13,62,29],[63,13,64,29],[65,13,66,29],[67,13,68,29],[55,13,56,29],[57,13,58,29],[59,13,60,29],[47,13,48,29],[79,3,80,12],[79,13,80,29],[89,13,90,29],[87,0,92,2],[87,3,92,12],[63,0,68,2],[63,3,68,12],[69,0,70,29],[71,0,72,2],[71,3,72,12],[81,13,82,29],[71,13,72,29],[75,13,76,29],[77,13,78,29],[95,3,98,12],[99,0,104,2],[99,3,104,12],[95,30,96,30],[97,30,98,30],[99,30,100,30],[121,0,124,2],[121,3,124,12],[21,13,22,29],[51,13,52,29],[73,13,74,29],[101,13,102,29],[101,30,102,30],[103,13,104,29],[103,30,104,30],[105,13,106,29],[105,30,106,30],[107,13,108,29],[107,30,108,30],[109,13,110,29],[109,30,110,30],[111,13,112,29],[111,30,112,30],[113,13,114,29],[113,30,114,30],[115,13,116,29],[115,30,116,30],[117,13,118,29],[105,0,116,2],[105,3,116,12],[121,13,122,29],[121,30,122,30],[123,13,124,29],[123,30,124,30],[19,31,20,31],[33,31,34,31],[69,30,70,30],[69,31,70,31],[93,30,94,30],[93,31,94,31],[19,0,20,29],[21,0,24,2],[21,3,24,12],[25,0,26,2],[25,3,26,12],[27,13,28,29],[27,30,28,30],[27,0,30,2],[27,3,30,12],[67,30,68,30],[55,30,56,30],[57,30,58,30],[89,30,90,30],[91,30,92,30],[73,3,74,12],[75,0,78,2],[75,3,78,12],[79,0,80,2]]}
[]
["Brevet d’Etudes Professionnelles «Maintenance des produits et équipements industriels »  – EP1",null,null,null,null,null,null,null,null,null,null,null,null,null,null,null,null,null,null,null,null,null,null,null,null,null,null,null,null,null,{"$f":"AE4+AE20+AE34+AE70+AE94","v":100}]
[]
["CP1.4 : Transmettre à l’écrit ou à l’oral des informations et des données techniques.",null,null,null,null,null,null,null,null,null,null,null,null,null,null,null,null,null,null,null,null,null,null,null,null,null,null,null,null,null,10,{"$f":"SUM(AE6:AE19)","v":100}]
[]
["C 141",null,null,"Renseigner les documents techniques relatifs à son activité de maintenance.\nRenseigner les fichiers informatiques.",null,null,null,null,null,null,null,null,null,"Les informations sont exploitables, suffisantes et sans excès, elles permettent en particulier :\n• la mise à jour de la GMAO,\n• la gestion des documents d’intervention.",null,null,null,null,null,null,null,null,null,null,null,null,null,null,null,null,15]
[]
["C 142",null,null,"Réaliser un croquis de forme, de dimensions, d’implantation.\nNotifier sous forme d’un schéma ou d’une nomenclature les écarts constatés.",null,null,null,null,null,null,null,null,null,"Le croquis comporte toutes les informations nécessaires.",null,null,null,null,null,null,null,null,null,null,null,null,null,null,null,null,15]
[]
[null,null,null,null,null,null,null,null,null,null,null,null,null,"Le schéma ou la nomenclature permet l’identification des écarts.",null,null,null,null,null,null,null,null,null,null,null,null,null,null,null,null,15]
[]
["C 143",null,null,"Dialoguer dans un langage technique.\nEchanger au sein d’une équipe, d’un groupe de travail.\n",null,null,null,null,null,null,null,null,null,"Le langage technique utilisé est adapté au message à transmettre.",null,null,null,null,null,null,null,null,null,null,null,null,null,null,null,null,15]
[]
[null,null,null,null,null,null,null,null,null,null,null,null,null,"Les informations échangées sont pertinentes. ",null,null,null,null,null,null,null,null,null,null,null,null,null,null,null,null,15]
[]
[null,null,null,null,null,null,null,null,null,null,null,null,null,"L’intervention des membres du groupe est respectée.",null,null,null,null,null,null,null,null,null,null,null,null,null,null,null,null,10]
[]
[null,null,null,null,null,null,null,null,null,null,null,null,null,"La participation est active.",null,null,null,null,null,null,null,null,null,null,null,null,null,null,null,null,15]
[]
["CP1.5 : Analyser son intervention et l’environnement",null,null,null,null,null,null,null,null,null,null,null,null,null,null,null,null,null,null,null,null,null,null,null,null,null,null,null,null,null,15,{"$f":"SUM(AE22:AE33)","v":100}]
[]
["C 151",null,null,"Observer l’environnement de son intervention et relever les anomalies en rapport avec :\n- l’accessibilité,\n- l’éclairage,\n- le bruit, la chaleur,\n- la pollution, le rayonnement,\n- l’incompatibilité chimique,\n- la maintenabilité.",null,null,null,null,null,null,null,null,null,"Les éléments relatifs à l’environnement de son intervention, décrits dans le dossier de préparation sont assimilés.",null,null,null,null,null,null,null,null,null,null,null,null,null,null,null,null,15]
[]
[null,null,null,null,null,null,null,null,null,null,null,null,null,"Les manquements ou difficultés rencontrées sont relevés",null,null,null,null,null,null,null,null,null,null,null,null,null,null,null,null,15]
[]
["C 152",null,null,"S’interroger sur son intervention et constater le besoin d’amélioration en rapport avec :\n- la mise en œuvre des outillages, des appareils de mesure,…,\n- le respect des procédures prescrites,\n- le contenu de la documentation technique, du dossier de maintenance,…,\n- les conditions de travail et de sécurité,\n- la maintenabilité du bien.",null,null,null,null,null,null,null,null,null,"Le besoin est clairement identifié et correspond à une véritable problématique.",null,null,null,null,null,null,null,null,null,null,null,null,null,null,null,null,30]
[]
["C 153",null,null,"Signaler à l’oral et/ou à l’écrit :\n- les écarts et dérives du composant, du bien, ou de son environnement ;\n- toutes nouvelles situations dangereuses.",null,null,null,null,null,null,null,null,null,"Toutes les situations dangereuses, les écarts et les dérives sont clairement signalés.",null,null,null,null,null,null,null,null,null,null,null,null,null,null,null,null,15]
[]
[null,null,null,null,null,null,null,null,null,null,null,null,null,"Le choix de l’interlocuteur et le mode de signalement permettent une réaction rapide et efficace.",null,null,null,null,null,null,null,null,null,null,null,null,null,null,null,null,15]
[]
["C 154",null,null,"Proposer à l’oral et/ou à l’écrit les éléments nécessaires à la mise en œuvre d’améliorations.",null,null,null,null,null,null,null,null,null,"Les propositions sont pertinentes. ",null,null,null,null,null,null,null,null,null,null,null,null,null,null,null,null,10]
[]
["CP2.1 : Remplacer ou installer un sous ensemble, un composant.",null,null,null,null,null,null,null,null,null,null,null,null,null,null,null,null,null,null,null,null,null,null,null,null,null,null,null,null,null,30,{"$f":"SUM(AE36:AE69)","v":100}]
[]
["C 211",null,null,"Vérifier le bon état et la conformité des matériels rassemblés selon le dossier de préparation ",null,null,null,null,null,null,null,null,null,"Les outillages, les consommables, les moyens de manutention, le sous ensemble ou le composant sont rassemblés et vérifiés.",null,null,null,null,null,null,null,null,null,null,null,null,null,null,null,null,5]
[]
[null,null,null,null,null,null,null,null,null,null,null,null,null,"Toutes indisponibilités sont signalées et expliquées.",null,null,null,null,null,null,null,null,null,null,null,null,null,null,null,null,5]
[]
["C 212",null,null,"Localiser le sous ensemble ou le composant.",null,null,null,null,null,null,null,null,null,"Le sous ensemble et ses frontières sont situés sur le bien sans erreur.",null,null,null,null,null,null,null,null,null,null,null,null,null,null,null,null,5]
[]
["C 213",null,null,"Localiser les éléments d’assemblage et de liaison du sous-ensemble du bien.",null,null,null,null,null,null,null,null,null,"Les éléments d’assemblage et de liaison relatifs à la dépose sont :\n- tous identifiés ;\n- situés sur le bien. ",null,null,null,null,null,null,null,null,null,null,null,null,null,null,null,null,5]
[]
["C 214",null,null,"Effectuer les repérages nécessaires (positions, réglages…)",null,null,null,null,null,null,null,null,null,"Le repérage effectué :\n- optimise la durée de l’intervention,\n- évite les erreurs,\n- facilite les réglages.",null,null,null,null,null,null,null,null,null,null,null,null,null,null,null,null,5]
[]
["C 215",null,null,"Déposer le sous ensemble ou le composant :\n- étayer, élinguer, …le sous ensemble,\n- déconnecter,\n- désolidariser,\n- manutentionner,\n- inspecter, nettoyer, ranger.",null,null,null,null,null,null,null,null,null,"Les consignes et procédures sont respectées.",null,null,null,null,null,null,null,null,null,null,null,null,null,null,null,null,5]
[]
[null,null,null,null,null,null,null,null,null,null,null,null,null,"Les outillages choisis parmi les matériels préparés et vérifiés, sont adaptés et correctement utilisés.",null,null,null,null,null,null,null,null,null,null,null,null,null,null,null,null,5]
[]
[null,null,null,null,null,null,null,null,null,null,null,null,null,"Les moyens de manutention sont correctement mis en œuvre.",null,null,null,null,null,null,null,null,null,null,null,null,null,null,null,null,5]
[]
[null,null,null,null,null,null,null,null,null,null,null,null,null,"Les éléments d’assemblage et les pièces sont :\n- nettoyés,\n- contrôlés,\n- échangés si nécessaire,\n- rangés et ordonnancés en préparation de l’activité de repose.",null,null,null,null,null,null,null,null,null,null,null,null,null,null,null,null,10]
[]
[null,null,null,null,null,null,null,null,null,null,null,null,null,"Le sous-ensemble ou le composant est déposé sans détérioration du bien.",null,null,null,null,null,null,null,null,null,null,null,null,null,null,null,null,10]
[]
["C 216",null,null,"Installer sur le bien le sous ensemble ou le composant neuf ou réparé :\n- manutentionner,\n- fixer, connecter,\n- régler.",null,null,null,null,null,null,null,null,null,"Le bon état du sous-ensemble ou du composant est vérifié.",null,null,null,null,null,null,null,null,null,null,null,null,null,null,null,null,5]
[]
[null,null,null,null,null,null,null,null,null,null,null,null,null,"Le sous-ensemble ou le composant est installé et raccordé :\n- sans erreur\n- sans risque pour les personnes et le bien.",null,null,null,null,null,null,null,null,null,null,null,null,null,null,null,null,10]
[]
[null,null,null,null,null,null,null,null,null,null,null,null,null,"Le sous-ensemble ou le composant est réglé selon les procédures.",null,null,null,null,null,null,null,null,null,null,null,null,null,null,null,null,10]
[]
[null,null,null,null,null,null,null,null,null,null,null,null,null,"Le fonctionnement du sous-ensemble ou du composant sur le bien est :\n- vérifié,\n- conforme aux résultats attendus.",null,null,null,null,null,null,null,null,null,null,null,null,null,null,null,null,5]
[]
["C 217",null,null,"Maîtriser les risques tout au long de l’intervention.",null,null,null,null,null,null,null,null,null,"Les activités liées à l’intervention (déplacement de charges, manipulation de produits…) n’interfèrent pas sur la sécurité des personnes et des biens.",null,null,null,null,null,null,null,null,null,null,null,null,null,null,null,null,2.5]
[]
[null,null,null,null,null,null,null,null,null,null,null,null,null,"Les risques sont identifiés et les mesures de prévention respectées.",null,null,null,null,null,null,null,null,null,null,null,null,null,null,null,null,5]
[]
[null,null,null,null,null,null,null,null,null,null,null,null,null,"Le plan de prévention est compris et appliqué.",null,null,null,null,null,null,null,null,null,null,null,null,null,null,null,null,2.5]
[]
["CP2.5 : Organiser sa zone de travail.",null,null,null,null,null,null,null,null,null,null,null,null,null,null,null,null,null,null,null,null,null,null,null,null,null,null,null,null,null,15,{"$f":"SUM(AE72:AE93)","v":100}]
[]
["C 251",null,null,"Délimiter sa zone d’intervention.",null,null,null,null,null,null,null,null,null,"La signalisation et le balisage : garantissent la sécurité des personnes et des biens, n’altèrent pas l’accessibilité de la zone par l’exécutant.",null,null,null,null,null,null,null,null,null,null,null,null,null,null,null,null,10]
[]
["C 252",null,null,"Classer l’outillage et les composants nécessaires à l’intervention.",null,null,null,null,null,null,null,null,null,"Les composants et les outillages sont rangés et disposés de façon à : ne pas être dégradés, ne pas altérer la prévention des risques, optimiser le temps d’intervention.",null,null,null,null,null,null,null,null,null,null,null,null,null,null,null,null,15]
[]
["C 253",null,null,"Nettoyer la zone d’intervention.",null,null,null,null,null,null,null,null,null,"Pendant l’intervention l’état de propreté : facilite l’exécution, n’altère pas la prévention des risques.",null,null,null,null,null,null,null,null,null,null,null,null,null,null,null,null,10]
[]
[null,null,null,null,null,null,null,null,null,null,null,null,null,"A la fin de l’intervention l’état de propreté de la zone respecte les critères de qualité de l’exploitation du bien.",null,null,null,null,null,null,null,null,null,null,null,null,null,null,null,null,10]
[]
["C 254",null,null,"Trier, éliminer les déchets.",null,null,null,null,null,null,null,null,null,"Les déchets sont éliminés dans le respect de l’environnement : tri sélectif, stockage dans les containers appropriés.",null,null,null,null,null,null,null,null,null,null,null,null,null,null,null,null,10]
[]
["C 255",null,null,"Restituer les outillages, les pièces et les consommables non utilisés.",null,null,null,null,null,null,null,null,null,"La totalité des outillages est contrôlée et réintégrée.",null,null,null,null,null,null,null,null,null,null,null,null,null,null,null,null,10]
[]
[null,null,null,null,null,null,null,null,null,null,null,null,null,"Les consommables et pièces non utilisées sont restituées.",null,null,null,null,null,null,null,null,null,null,null,null,null,null,null,null,10]
[]
[null,null,null,null,null,null,null,null,null,null,null,null,null,"Tous les éléments défectueux ou endommagés sont repérés et signalés.",null,null,null,null,null,null,null,null,null,null,null,null,null,null,null,null,10]
[]
["C 256",null,null,"Maîtriser les risques tout au long de l’intervention.",null,null,null,null,null,null,null,null,null,"Les risques sont identifiés et les mesures de prévention respectées.",null,null,null,null,null,null,null,null,null,null,null,null,null,null,null,null,5]
[]
[null,null,null,null,null,null,null,null,null,null,null,null,null,"Le plan de prévention est compris et appliqué.",null,null,null,null,null,null,null,null,null,null,null,null,null,null,null,null,5]
[]
[null,null,null,null,null,null,null,null,null,null,null,null,null,"Le cas échéant les zones à accès réglementés sont identifiées, les protocoles d’accès sont respectés en lien avec les autorisations et habilitations  nécessaires. ",null,null,null,null,null,null,null,null,null,null,null,null,null,null,null,null,5]
[]
["CP2.7 : Exécuter des opérations de surveillance et/ou de contrôle",null,null,null,null,null,null,null,null,null,null,null,null,null,null,null,null,null,null,null,null,null,null,null,null,null,null,null,null,null,30,{"$f":"SUM(AE96:AE125)","v":100}]
[]
["C 271",null,null,"Rassembler et vérifier les appareils de contrôle, les outillages, les équipements de protection",null,null,null,null,null,null,null,null,null,"Les appareils de contrôle choisis et vérifiés permettent d’effectuer les mesures.",null,null,null,null,null,null,null,null,null,null,null,null,null,null,null,null,5]
[]
[null,null,null,null,null,null,null,null,null,null,null,null,null,"Les outillages, les équipements de protection sont adaptés et en bon état.",null,null,null,null,null,null,null,null,null,null,null,null,null,null,null,null,5]
[]
["C 272",null,null,"Surveiller un bien :\n- vérifier le fonctionnement (bruit, chaleur, cadence...)\n- vérifier les données de contrôle (indicateurs, voyants…).",null,null,null,null,null,null,null,null,null,"La procédure de surveillance est respectée.",null,null,null,null,null,null,null,null,null,null,null,null,null,null,null,null,10]
[]
[null,null,null,null,null,null,null,null,null,null,null,null,null,"La prise en compte de tous les indicateurs permet : de qualifier le fonctionnement du bien, de relever les anomalies ou le dérives.",null,null,null,null,null,null,null,null,null,null,null,null,null,null,null,null,5]
[]
[null,null,null,null,null,null,null,null,null,null,null,null,null,"Les sens auditifs, visuels, olfactifs sont mobilisés.",null,null,null,null,null,null,null,null,null,null,null,null,null,null,null,null,5]
[]
["C 273",null,null,"Effectuer des relevés :\n- Localiser les points de contrôle ou de mesures sur le bien\n-  régler, calibrer les appareils ou matériels de contrôle,\n- collecter et reporter les résultats des mesures et des contrôles",null,null,null,null,null,null,null,null,null,"Les points de contrôles ou de mesures sont localisés.",null,null,null,null,null,null,null,null,null,null,null,null,null,null,null,null,10]
[]
[null,null,null,null,null,null,null,null,null,null,null,null,null,"Les appareils de mesure, de contrôle sont correctement calibrés.",null,null,null,null,null,null,null,null,null,null,null,null,null,null,null,null,10]
[]
[null,null,null,null,null,null,null,null,null,null,null,null,null,"Toutes les mesures des grandeurs sont effectuées dans le respect des procédures et des matériels.",null,null,null,null,null,null,null,null,null,null,null,null,null,null,null,null,10]
[]
[null,null,null,null,null,null,null,null,null,null,null,null,null,"Les résultats sont conformes à l’existant et exploitables.",null,null,null,null,null,null,null,null,null,null,null,null,null,null,null,null,10]
[]
[null,null,null,null,null,null,null,null,null,null,null,null,null,"Les données numériques sont mémorisées.",null,null,null,null,null,null,null,null,null,null,null,null,null,null,null,null,5]
[]
[null,null,null,null,null,null,null,null,null,null,null,null,null,"Les valeurs lues sont reportées sur les fiches de contrôle.",null,null,null,null,null,null,null,null,null,null,null,null,null,null,null,null,5]
[]
["C 274",null,null,"Transmettre :\n- les résultats de la surveillance,\n- les anomalies, les dérives,\n- les relevés des mesures ou contrôles,\n- les données numériques.",null,null,null,null,null,null,null,null,null,"Les fiches de contrôle ou les données numériques sont transmises au service chargé de l’analyse des résultats.",null,null,null,null,null,null,null,null,null,null,null,null,null,null,null,null,5]
[]
[null,null,null,null,null,null,null,null,null,null,null,null,null,"Les anomalies et les dérives flagrantes sont signalées.",null,null,null,null,null,null,null,null,null,null,null,null,null,null,null,null,5]
[]
["C 275",null,null,"Maîtriser les risques tout au long de l’intervention.",null,null,null,null,null,null,null,null,null,"Les risques sont identifiés et les mesures de prévention respectées.",null,null,null,null,null,null,null,null,null,null,null,null,null,null,null,null,5]
[]
[null,null,null,null,null,null,null,null,null,null,null,null,null,"Le plan de prévention est compris et appliqué.",null,null,null,null,null,null,null,null,null,null,null,null,null,null,null,null,5]
[]
[]
["Brevet d’Etudes Professionnelles «Maintenance des produits et équipements industriels »  – EP2.1",null,null,null,null,null,null,null,null,null,null,null,null,null,null,null,null,null,null,null,null,null,null,null,null,null,null,null,null,null,{"$f":"AE129+AE141+AE169","v":100}]
[]
["CP1.1 : Collecter des informations, exploiter des documents ",null,null,null,null,null,null,null,null,null,null,null,null,null,null,null,null,null,null,null,null,null,null,null,null,null,null,null,null,null,22.5,{"$f":"SUM(AE131:AE140)","v":100}]
[]
["C 111",null,null,"Prendre en compte et s’approprier un bon de travail, une consigne, une demande déclenchant une intervention.",null,null,null,null,null,null,null,null,null,"Les éléments techniques du bon, de la consigne, de la demande sont interprétés sans déformation.",null,null,null,null,null,null,null,null,null,null,null,null,null,null,null,null,20]
[]
["C 112",null,null,"Questionner  la hiérarchie, les membres de l’équipe de maintenance, l’exploitant du bien, pour obtenir les informations utiles à l’intervention ",null,null,null,null,null,null,null,null,null,"Les questions posées sont pertinentes par  rapport à la problématique de maintenance.",null,null,null,null,null,null,null,null,null,null,null,null,null,null,null,null,15]
[]
[null,null,null,null,null,null,null,null,null,null,null,null,null,"Les réponses retenues sont cohérentes avec la problématique.",null,null,null,null,null,null,null,null,null,null,null,null,null,null,null,null,15]
[]
["C 113",null,null,"Collecter sur le bien les informations (grandeurs, états, messages...), les anomalies (bruit, vibration, odeur...)",null,null,null,null,null,null,null,null,null,"Toutes les informations sont collectées.",null,null,null,null,null,null,null,null,null,null,null,null,null,null,null,null,20]
[]
["C 114",null,null,"Extraire des documents et ressources informationnelles, les informations techniques (grandeurs, dérives...) utiles à l’intervention.",null,null,null,null,null,null,null,null,null,"Les informations techniques retenues sont pertinentes et exploitables en vue de l’intervention à réaliser.",null,null,null,null,null,null,null,null,null,null,null,null,null,null,null,null,30]
[]
["CP1.2 : Préparer son intervention et/ou la logistique associée.",null,null,null,null,null,null,null,null,null,null,null,null,null,null,null,null,null,null,null,null,null,null,null,null,null,null,null,null,null,12.5,{"$f":"SUM(AE143:AE168)","v":100}]
[]
["C 121",null,null,"Lire et compléter si nécessaire les documents du dossier de préparation.",null,null,null,null,null,null,null,null,null,"Sont assimilés : le bon de travail, la gamme, les consignes, les procédures de réglage, de contrôle, de mesure,…",null,null,null,null,null,null,null,null,null,null,null,null,null,null,null,null,10]
[]
["C 122",null,null,"Identifier, localiser sur la documentation technique les équipements concernés par son intervention.",null,null,null,null,null,null,null,null,null,"Les équipements concernés sont tous localisés.",null,null,null,null,null,null,null,null,null,null,null,null,null,null,null,null,10]
[]
[null,null,null,null,null,null,null,null,null,null,null,null,null,"Le fonctionnement et le rôle des équipements sont identifiés.",null,null,null,null,null,null,null,null,null,null,null,null,null,null,null,null,10]
[]
["C 123",null,null,"Lister et vérifier les autorisations d’accès et de travail.",null,null,null,null,null,null,null,null,null,"Le périmètre d’intervention est délimité par écrit.",null,null,null,null,null,null,null,null,null,null,null,null,null,null,null,null,5]
[]
[null,null,null,null,null,null,null,null,null,null,null,null,null,"Les autorisations sont assimilées.",null,null,null,null,null,null,null,null,null,null,null,null,null,null,null,null,5]
[]
["C 124",null,null,"Apprécier la masse des charges à manutentionner\nIdentifier :\n-les points d’ancrage, de calage, \n-la position du centre de gravité,\n-l’angle d’élingage",null,null,null,null,null,null,null,null,null,"Les apparaux de levage retenus sont adaptés.",null,null,null,null,null,null,null,null,null,null,null,null,null,null,null,null,5]
[]
[null,null,null,null,null,null,null,null,null,null,null,null,null,"Les points d’ancrage et/ou le centre de gravité sont localisés.",null,null,null,null,null,null,null,null,null,null,null,null,null,null,null,null,5]
[]
[null,null,null,null,null,null,null,null,null,null,null,null,null,"L’angle d’élingage est déterminé.",null,null,null,null,null,null,null,null,null,null,null,null,null,null,null,null,5]
[]
["C 125",null,null,"Choisir et désigner les outillages et matériels nécessaires",null,null,null,null,null,null,null,null,null,"A partir de familles d’outillage définies dans le dossier de préparation les outils choisis et désignés sont adaptés à l’intervention.",null,null,null,null,null,null,null,null,null,null,null,null,null,null,null,null,10]
[]
["C 126",null,null,"S’assurer de la disponibilité des consommables, des outillages, des pièces de rechange.",null,null,null,null,null,null,null,null,null,"Les matériels indisponibles sont listés.",null,null,null,null,null,null,null,null,null,null,null,null,null,null,null,null,10]
[]
["C 127",null,null,"Signaler les indisponibilités.",null,null,null,null,null,null,null,null,null,"La liste des indisponibilités est transmise.",null,null,null,null,null,null,null,null,null,null,null,null,null,null,null,null,10]
[]
[null,null,null,null,null,null,null,null,null,null,null,null,null,"En fonction des indisponibilités le signalement d’impossibilité de réaliser de son intervention est justifié.",null,null,null,null,null,null,null,null,null,null,null,null,null,null,null,null,5]
[]
["C 128",null,null,"Fournir les références des éléments manquants.",null,null,null,null,null,null,null,null,null,"Les références et la quantité permettent d’établir la commande. ",null,null,null,null,null,null,null,null,null,null,null,null,null,null,null,null,10]
[]
["CP1.3 : Identifier les risques et s’approprier les procédures prescrites.",null,null,null,null,null,null,null,null,null,null,null,null,null,null,null,null,null,null,null,null,null,null,null,null,null,null,null,null,null,65,{"$f":"SUM(AE171:AE180)","v":100}]
[]
["C 131",null,null,"Identifier les phénomènes dangereux et les situations dangereuses liés:\n- au bien et à son environnement,\n- à son activité de maintenance.",null,null,null,null,null,null,null,null,null,"Sont répertoriés les risques liés :\n-au bien (énergies présentes et résiduelles, chimiques,…),\n-à l’environnement (chimiques, thermiques, bruit, rayonnement,  projection,…)\nà l’activité (coupure, chute, écrasement....) ",null,null,null,null,null,null,null,null,null,null,null,null,null,null,null,null,35]
[]
["C 132",null,null,"S’approprier les mesures de prévention prescrites dans le dossier de préparation en regard des situations dangereuses identifiées.\n\nAppliquer ou respecter le protocole de sécurité  (restrictions d’accès, habilitations ou autorisations,…)",null,null,null,null,null,null,null,null,null,"La mise en œuvre des mesures de prévention définies est comprise et décrite :\n-équipements de protection individuelle (E.P.I.)*,\n-équipements individuels de sécurité (EIS)*,\n-équipements de protection collective (EPC)*,\n-consignation (énergies, accès…).",null,null,null,null,null,null,null,null,null,null,null,null,null,null,null,null,35]
[]
["C 133",null,null,"Signaler les manques, les difficultés de lecture et d’appropriation des mesures de prévention définies.",null,null,null,null,null,null,null,null,null,"Les difficultés signalées sont justifiées et pertinentes.",null,null,null,null,null,null,null,null,null,null,null,null,null,null,null,null,10]
[]
[null,null,null,null,null,null,null,null,null,null,null,null,null,"Elles permettront de faciliter l’analyse des mesures de prévention définies.",null,null,null,null,null,null,null,null,null,null,null,null,null,null,null,null,10]
[]
[null,null,null,null,null,null,null,null,null,null,null,null,null,"En cas d’absence de prévention par rapport à un risque, le droit de retrait est justifié.",null,null,null,null,null,null,null,null,null,null,null,null,null,null,null,null,10]
[]
[]
["Brevet d’Etudes Professionnelles «Maintenance des produits et équipements industriels »  – EP2.2",null,null,null,null,null,null,null,null,null,null,null,null,null,null,null,null,null,null,null,null,null,null,null,null,null,null,null,null,null,{"$f":"AE184+AE202+AE234+AE258","v":100}]
[]
["CP2.6 : Mettre en œuvre les mesures de prévention et de protection.",null,null,null,null,null,null,null,null,null,null,null,null,null,null,null,null,null,null,null,null,null,null,null,null,null,null,null,null,null,15,{"$f":"SUM(AE186:AE201)","v":100}]
[]
["C 261",null,null,"Choisir et rassembler les équipements de protection",null,null,null,null,null,null,null,null,null,"Tous les équipements sont choisis et rassemblés au regard du dossier de préparation",null,null,null,null,null,null,null,null,null,null,null,null,null,null,null,null,10]
[]
["C 262",null,null,"Vérifier le bon état :\n- des équipements de protection individuelle (E.P.I.)\n- des équipements individuels de sécurité (EIS)\n- des équipements de protection collective (EPC)",null,null,null,null,null,null,null,null,null,"L’état est vérifié.",null,null,null,null,null,null,null,null,null,null,null,null,null,null,null,null,15]
[]
[null,null,null,null,null,null,null,null,null,null,null,null,null,"Les défauts sont signalés.",null,null,null,null,null,null,null,null,null,null,null,null,null,null,null,null,15]
[]
[null,null,null,null,null,null,null,null,null,null,null,null,null,"Le remplacement est demandé si nécessaire.",null,null,null,null,null,null,null,null,null,null,null,null,null,null,null,null,10]
[]
["C 263",null,null,"Appliquer les mesures définies :\n- mettre en œuvre des équipements de protection individuelle (E.P.I.),\n- utiliser des équipements individuels de sécurité (EIS),\n- mettre en œuvre des équipements de protection collective (EPC).",null,null,null,null,null,null,null,null,null,"Les procédures sont respectées",null,null,null,null,null,null,null,null,null,null,null,null,null,null,null,null,15]
[]
[null,null,null,null,null,null,null,null,null,null,null,null,null,"La mise en œuvre est correcte.",null,null,null,null,null,null,null,null,null,null,null,null,null,null,null,null,15]
[]
["C 264",null,null,"Contrôler et ranger les équipements de protection.",null,null,null,null,null,null,null,null,null,"Les équipements de protection sont remis dans les étuis, mobiliers et locaux réservés à ces éléments de sécurité.",null,null,null,null,null,null,null,null,null,null,null,null,null,null,null,null,10]
[]
[null,null,null,null,null,null,null,null,null,null,null,null,null,"Les équipements défectueux sont triés et proposés à leur remplacement",null,null,null,null,null,null,null,null,null,null,null,null,null,null,null,null,10]
[]
["CP2.2 : Réparer un sous ensemble, un composant déposé",null,null,null,null,null,null,null,null,null,null,null,null,null,null,null,null,null,null,null,null,null,null,null,null,null,null,null,null,null,45,{"$f":"SUM(AE204:AE233)","v":100}]
[]
["C 221",null,null,"Vérifier le bon état et la conformité des matériels rassemblés selon le dossier de préparation ",null,null,null,null,null,null,null,null,null,"Les outillages, les consommables, les moyens de manutention, le sous ensemble ou le composant sont rassemblés et vérifiés.",null,null,null,null,null,null,null,null,null,null,null,null,null,null,null,null,5]
[]
[null,null,null,null,null,null,null,null,null,null,null,null,null,"Tout défaut d’approvisionnement ou d’indisponibilité est signalé.",null,null,null,null,null,null,null,null,null,null,null,null,null,null,null,null,5]
[]
["C 222",null,null,"Démonter le sous ensemble, le composant afin d’accéder à l’élément à remplacer :\n- manutentionner, caler, \n- désolidariser,\n- inspecter, nettoyer, ranger.",null,null,null,null,null,null,null,null,null,"Les consignes et la gamme sont respectées.",null,null,null,null,null,null,null,null,null,null,null,null,null,null,null,null,5]
[]
[null,null,null,null,null,null,null,null,null,null,null,null,null,"Les outillages choisis parmi les matériels préparés et vérifiés, sont adaptés et correctement utilisés.",null,null,null,null,null,null,null,null,null,null,null,null,null,null,null,null,5]
[]
[null,null,null,null,null,null,null,null,null,null,null,null,null,"Les moyens de manutention sont correctement mis en œuvre.",null,null,null,null,null,null,null,null,null,null,null,null,null,null,null,null,5]
[]
[null,null,null,null,null,null,null,null,null,null,null,null,null,"Les éléments d’assemblage et les pièces sont : nettoyés, contrôlés, échangés si nécessaire, rangés et ordonnancés en préparation de l’activité de remontage.",null,null,null,null,null,null,null,null,null,null,null,null,null,null,null,null,10]
[]
[null,null,null,null,null,null,null,null,null,null,null,null,null,"Le sous-ensemble, le composant est démonté sans détérioration.",null,null,null,null,null,null,null,null,null,null,null,null,null,null,null,null,15]
[]
["C 223",null,null,"Remonter le sous ensemble, le composant avec les pièces de rechange (neuves ou réparées) :\n- manutentionner,\n- assembler,\n- régler.",null,null,null,null,null,null,null,null,null,"Les consignes et la gamme sont respectées.",null,null,null,null,null,null,null,null,null,null,null,null,null,null,null,null,5]
[]
[null,null,null,null,null,null,null,null,null,null,null,null,null,"Les outillages choisis parmi les matériels préparés et vérifiés, sont adaptés et correctement utilisés.",null,null,null,null,null,null,null,null,null,null,null,null,null,null,null,null,5]
[]
[null,null,null,null,null,null,null,null,null,null,null,null,null,"Les moyens de manutention sont correctement mis en œuvre.",null,null,null,null,null,null,null,null,null,null,null,null,null,null,null,null,5]
[]
[null,null,null,null,null,null,null,null,null,null,null,null,null,"Le composant est remonté : sans erreur, sans détérioration",null,null,null,null,null,null,null,null,null,null,null,null,null,null,null,null,15]
[]
[null,null,null,null,null,null,null,null,null,null,null,null,null,"Le composant est réglé selon procédures.",null,null,null,null,null,null,null,null,null,null,null,null,null,null,null,null,10]
[]
["C 224",null,null,"Maîtriser les risques tout au long de l’intervention.",null,null,null,null,null,null,null,null,null,"Les activités liées à l’intervention (déplacement de charges, manipulation de produits,…) n’interfèrent pas sur la sécurité des personnes et des biens.",null,null,null,null,null,null,null,null,null,null,null,null,null,null,null,null,5]
[]
[null,null,null,null,null,null,null,null,null,null,null,null,null,"Les risques sont identifiés et les mesures de prévention respectées.",null,null,null,null,null,null,null,null,null,null,null,null,null,null,null,null,3]
[]
[null,null,null,null,null,null,null,null,null,null,null,null,null,"Le plan de prévention est compris et appliqué.",null,null,null,null,null,null,null,null,null,null,null,null,null,null,null,null,2]
[]
["CP2.4 : Adapter un composant, un sous ensemble.",null,null,null,null,null,null,null,null,null,null,null,null,null,null,null,null,null,null,null,null,null,null,null,null,null,null,null,null,null,15,{"$f":"SUM(AE236:AE257)","v":100}]
[]
["C 241",null,null,"Situer le composant, le sous ensemble.",null,null,null,null,null,null,null,null,null,"La localisation est sans erreur.",null,null,null,null,null,null,null,null,null,null,null,null,null,null,null,null,10]
[]
["C 242",null,null,"Rassembler et vérifier les outillages et matériels prescrits.",null,null,null,null,null,null,null,null,null,"Les outillages sont vérifiés.",null,null,null,null,null,null,null,null,null,null,null,null,null,null,null,null,5]
[]
[null,null,null,null,null,null,null,null,null,null,null,null,null,"Les consommables, les pièces de rechanges sont rassemblés.",null,null,null,null,null,null,null,null,null,null,null,null,null,null,null,null,10]
[]
[null,null,null,null,null,null,null,null,null,null,null,null,null,"Les moyens de manutention sont vérifiés.",null,null,null,null,null,null,null,null,null,null,null,null,null,null,null,null,5]
[]
["C 243",null,null,"Analyser l’état du composant :\n- contrôle visuel,\n- contrôle dimensionnel,\n- contrôle géométrique.",null,null,null,null,null,null,null,null,null,"L’anomalie est identifiée.",null,null,null,null,null,null,null,null,null,null,null,null,null,null,null,null,10]
[]
[null,null,null,null,null,null,null,null,null,null,null,null,null,"Si besoin est :\n-l’opération de réparation complémentaire est proposée ou définie,\n-les limites de ses compétences sont prises en compte.",null,null,null,null,null,null,null,null,null,null,null,null,null,null,null,null,5]
[]
["C 244",null,null,"Réaliser les opérations élémentaires d’adaptation et d’assemblage : tracer, scier, percer, tarauder, cintrer, cisailler, meuler, ajuster, piétage, collage, soudage à plat.\nCes opérations restent simples et résolvent obligatoirement une problématique de maintenance",null,null,null,null,null,null,null,null,null,"Les pièces s’assemblent dans le respect des jeux fonctionnels.",null,null,null,null,null,null,null,null,null,null,null,null,null,null,null,null,20]
[]
[null,null,null,null,null,null,null,null,null,null,null,null,null,"Les opérations sont effectuées dans le respect de mise en œuvre des outillages et des moyens de production.",null,null,null,null,null,null,null,null,null,null,null,null,null,null,null,null,20]
[]
[null,null,null,null,null,null,null,null,null,null,null,null,null,"Les limites de ses compétences sont prises en compte.",null,null,null,null,null,null,null,null,null,null,null,null,null,null,null,null,5]
[]
["C 245",null,null,"Maîtriser les risques tout au long de l’intervention.",null,null,null,null,null,null,null,null,null,"Les risques sont identifiés et les mesures de prévention respectées.",null,null,null,null,null,null,null,null,null,null,null,null,null,null,null,null,5]
[]
[null,null,null,null,null,null,null,null,null,null,null,null,null,"Le plan de prévention est compris et appliqué.",null,null,null,null,null,null,null,null,null,null,null,null,null,null,null,null,5]
[]
["CP2.3 : Qualifier ses actions au sein de son intervention.",null,null,null,null,null,null,null,null,null,null,null,null,null,null,null,null,null,null,null,null,null,null,null,null,null,null,null,null,null,25,{"$f":"SUM(AE260:AE285)","v":100}]
[]
["C 231",null,null,"Identifier dans le dossier de préparation les critères d'acceptabilité de la réparation effectuée sur le composant ou le sous ensemble.",null,null,null,null,null,null,null,null,null,"Les grandeurs à vérifier sont identifiées.",null,null,null,null,null,null,null,null,null,null,null,null,null,null,null,null,10]
[]
[null,null,null,null,null,null,null,null,null,null,null,null,null,"Les valeurs attendues sont connues.",null,null,null,null,null,null,null,null,null,null,null,null,null,null,null,null,10]
[]
[null,null,null,null,null,null,null,null,null,null,null,null,null,"Leurs valeurs limites d’acceptabilité sont connues.",null,null,null,null,null,null,null,null,null,null,null,null,null,null,null,null,10]
[]
["C 232",null,null,"Localiser sur le composant ou le sous ensemble les points de mesure.",null,null,null,null,null,null,null,null,null,"Les points de mesure sont localisés sans erreur et  permettent de définir :\n- tension, continuité,…,\n- pression, température,\n- jeux, dimensions, couples, forces, vitesses, …,",null,null,null,null,null,null,null,null,null,null,null,null,null,null,null,null,10]
[]
["C 233",null,null,"Vérifier le bon état et la conformité des matériels et des outillages préparés pour la qualification de l’intervention.",null,null,null,null,null,null,null,null,null,"Les outillages et les matériels, sont rassemblés et vérifiés.",null,null,null,null,null,null,null,null,null,null,null,null,null,null,null,null,10]
[]
[null,null,null,null,null,null,null,null,null,null,null,null,null,"Toute indisponibilité est signalée.",null,null,null,null,null,null,null,null,null,null,null,null,null,null,null,null,5]
[]
["C 234",null,null,"Mettre en œuvre les procédures de qualification.\n\nEffectuer la mesure des grandeurs",null,null,null,null,null,null,null,null,null,"Les appareils de mesure, de contrôle sont correctement calibrés.",null,null,null,null,null,null,null,null,null,null,null,null,null,null,null,null,10]
[]
[null,null,null,null,null,null,null,null,null,null,null,null,null,"Toutes les mesures des grandeurs sont effectuées dans le respect des procédures et des matériels.",null,null,null,null,null,null,null,null,null,null,null,null,null,null,null,null,10]
[]
[null,null,null,null,null,null,null,null,null,null,null,null,null,"Les résultats sont conformes à l’existant et exploitables.",null,null,null,null,null,null,null,null,null,null,null,null,null,null,null,null,5]
[]
["C 235",null,null,"Valider son intervention ou effectuer les réglages complémentaires.",null,null,null,null,null,null,null,null,null,"L’avis de qualification ou de réglage complémentaire est conforme en comparaison des résultats attendus et des mesures effectuées.",null,null,null,null,null,null,null,null,null,null,null,null,null,null,null,null,5]
[]
[null,null,null,null,null,null,null,null,null,null,null,null,null,"Les limites de ses compétences sont prises en compte.",null,null,null,null,null,null,null,null,null,null,null,null,null,null,null,null,5]
[]
["C 236",null,null,"Maîtriser les risques tout au long de l’intervention.",null,null,null,null,null,null,null,null,null,"Les risques sont identifiés et les mesures de prévention respectées.",null,null,null,null,null,null,null,null,null,null,null,null,null,null,null,null,5]
[]
[null,null,null,null,null,null,null,null,null,null,null,null,null,"Le plan de prévention est compris et appliqué.",null,null,null,null,null,null,null,null,null,null,null,null,null,null,null,null,5]

{"sheet":"Situations","index":2,"n_rows":34,"n_cols":2,"rows_kept":34,"cut":false,"hidden":false,"merged":[[0,11,0,12],[31,0,32,0],[31,1,32,12],[33,0,34,0],[33,1,34,12],[14,0,15,0],[14,1,15,12],[27,0,28,0],[27,1,28,12],[29,0,30,0],[29,1,30,12],[21,0,22,0],[21,1,22,12],[23,0,24,0],[23,1,24,12],[25,0,26,0],[25,1,26,12],[18,0,18,12],[19,0,20,0],[19,1,20,12],[16,0,17,0],[16,1,17,12],[12,0,13,0],[12,1,13,12],[10,1,11,12],[1,0,1,12],[2,0,3,0],[2,1,3,12],[4,0,5,0],[4,1,5,12],[6,0,7,0],[6,1,7,12],[8,0,9,0],[8,1,9,12],[10,0,11,0]]}
["Double-cliquer pour créer vos situations"]
["Situations d'évaluation EP1"]
["EP1_A",{"$f":"IF(EP1_A!$A$11=\"\",\"\",EP1_A!$A$11)","v":""}]
[]
["EP1_B",{"$f":"IF(EP1_B!$A$11=\"\",\"\",EP1_B!$A$11)","v":""}]
[]
["EP1_C",{"$f":"IF(EP1_C!$A$11=\"\",\"\",EP1_C!$A$11)","v":""}]
[]
["EP1_D",{"$f":"IF(EP1_D!$A$11=\"\",\"\",EP1_D!$A$11)","v":""}]
[]
["EP1_E",{"$f":"IF(EP1_E!$A$11=\"\",\"\",EP1_E!$A$11)","v":""}]
[]
["EP1_F",{"$f":"IF(EP1_F!$A$11=\"\",\"\",EP1_F!$A$11)","v":""}]
[]
["EP1_G",{"$f":"IF(EP1_G!$A$11=\"\",\"\",EP1_G!$A$11)","v":""}]
[]
["EP1_H",{"$f":"IF(EP1_H!$A$11=\"\",\"\",EP1_H!$A$11)","v":""}]
[]
["Sitations d'évaluation EP2.1"]
["EP2.1_A",{"$f":"IF(EP2.1_A!$A$11=\"\",\"\",EP2.1_A!$A$11)","v":""}]
[]
["EP2.1_B",{"$f":"IF(EP2.1_B!$A$11=\"\",\"\",EP2.1_B!$A$11)","v":""}]
[]
["EP2.1_C",{"$f":"IF(EP2.1_C!$A$11=\"\",\"\",EP2.1_C!$A$11)","v":""}]
[]
["EP2.1_D",{"$f":"IF(EP2.1_D!$A$11=\"\",\"\",EP2.1_D!$A$11)","v":""}]
[]
["EP2.1_E",{"$f":"IF(EP2.1_E!$A$11=\"\",\"\",EP2.1_E!$A$11)","v":""}]
[]
["EP2.1_F",{"$f":"IF(EP2.1_F!$A$11=\"\",\"\",EP2.1_F!$A$11)","v":""}]
[]
["EP2.1_G",{"$f":"IF(EP2.1_G!$A$11=\"\",\"\",EP2.1_G!$A$11)","v":""}]
[]
["EP2.1_H",{"$f":"IF(EP2.1_H!$A$11=\"\",\"\",EP2.1_H!$A$11)","v":""}]

{"sheet":"Bilan","index":3,"n_rows":35,"n_cols":10,"rows_kept":35,"cut":false,"hidden":false,"merged":[[3,2,3,3],[2,2,2,6],[34,2,34,6],[3,4,3,5]]}
[]
["Session"]
["Lycée",null,"Accès fiches (Double cliquer sans modifier les écritures)",null,null,null,null,"/20","/20","/20"]
["N°","Noms & Prénoms","EP1",null,"EP2.1",null,"EP2.2","EP1","EP2.1","EP2,2"]
[1,null,"EP1_01",null,"EP2.1_01","A","EP2.2_01"]
[2,null,"EP1_02",null,"EP2.1_02",null,"EP2.2_02"]
[3,null,"EP1_03",null,"EP2.1_03",null,"EP2.2_03"]
[4,null,"EP1_04",null,"EP2.1_04",null,"EP2.2_04"]
[5,null,"EP1_05",null,"EP2.1_05",null,"EP2.2_05"]
[6,null,"EP1_06",null,"EP2.1_06",null,"EP2.2_06"]
[7,null,"EP1_07",null,"EP2.1_07",null,"EP2.2_07"]
[8,null,"EP1_08",null,"EP2.1_08",null,"EP2.2_08"]
[9,null,"EP1_09",null,"EP2.1_09",null,"EP2.2_09"]
[10,null,"EP1_10",null,"EP2.1_10",null,"EP2.2_10"]
[11,null,"EP1_11",null,"EP2.1_11",null,"EP2.2_11"]
[12,null,"EP1_12",null,"EP2.1_12",null,"EP2.2_12"]
[13,null,"EP1_13",null,"EP2.1_13",null,"EP2.2_13"]
[14,null,"EP1_14",null,"EP2.1_14",null,"EP2.2_14"]
[15,null,"EP1_15",null,"EP2.1_15",null,"EP2.2_15"]
[16,null,"EP1_16",null,"EP2.1_16",null,"EP2.2_16"]
[17,null,"EP1_17",null,"EP2.1_17",null,"EP2.2_17"]
[18,null,"EP1_18",null,"EP2.1_18",null,"EP2.2_18"]
[19,null,"EP1_19",null,"EP2.1_19",null,"EP2.2_19"]
[20,null,"EP1_20",null,"EP2.1_20",null,"EP2.2_20"]
[21,null,"EP1_21",null,"EP2.1_21",null,"EP2.2_21"]
[22,null,"EP1_22",null,"EP2.1_22",null,"EP2.2_22"]
[23,null,"EP1_23",null,"EP2.1_23",null,"EP2.2_23"]
[24,null,"EP1_24",null,"EP2.1_24",null,"EP2.2_24"]
[25,null,"EP1_25",null,"EP2.1_25",null,"EP2.2_25"]
[26,null,"EP1_26",null,"EP2.1_26",null,"EP2.2_26"]
[27,null,"EP1_27",null,"EP2.1_27",null,"EP2.2_27"]
[28,null,"EP1_28",null,"EP2.1_28",null,"EP2.2_28"]
[29,null,"EP1_29",null,"EP2.1_29",null,"EP2.2_29"]
[30,null,"EP1_30",null,"EP2.1_30",null,"EP2.2_30"]
[null,null,"Moyenne",null,null,null,null,{"$f":"IF(SUM(H5:H34)=0,\"\",AVERAGE(H5:H34))","v":""},{"$f":"IF(SUM(I5:I34)=0,\"\",AVERAGE(I5:I34))","v":""},{"$f":"IF(SUM(J5:J34)=0,\"\",AVERAGE(J5:J34))","v":""}]

{"sheet":"EP1","index":4,"n_rows":208,"n_cols":48,"rows_kept":208,"cut":false,"hidden":true,"merged":[[155,13,156,33],[155,34,156,37],[157,13,158,33],[157,34,158,37],[159,13,160,33],[159,34,160,37],[137,0,140,2],[141,0,146,2],[147,0,158,2],[143,34,144,37],[145,13,146,33],[145,34,146,37],[147,13,148,33],[147,34,148,37],[163,0,166,2],[137,3,140,12],[141,3,146,12],[147,3,158,12],[149,13,150,33],[149,34,150,37],[151,13,152,33],[151,34,152,37],[161,13,162,33],[161,34,162,37],[163,13,164,33],[163,34,164,37],[163,3,166,12],[159,0,162,2],[159,3,162,12],[165,13,166,33],[165,34,166,37],[153,13,154,33],[153,34,154,37],[139,13,140,33],[139,34,140,37],[141,13,142,33],[141,34,142,37],[143,13,144,33],[89,34,90,37],[91,13,92,33],[91,34,92,37],[93,13,94,33],[135,0,136,29],[135,30,136,33],[135,47,136,49],[137,13,138,33],[137,34,138,37],[109,0,110,33],[109,38,109,45],[110,38,110,45],[117,0,120,2],[121,0,122,2],[123,0,128,2],[113,3,114,12],[115,3,116,12],[117,3,120,12],[121,3,122,12],[123,3,128,12],[129,0,134,2],[129,3,134,12],[125,34,126,37],[101,13,102,33],[79,0,80,2],[81,0,82,2],[83,0,84,2],[85,0,94,2],[95,0,102,2],[103,0,108,2],[75,3,78,12],[79,3,80,12],[81,3,82,12],[83,3,84,12],[85,3,94,12],[95,3,102,12],[103,3,108,12],[5,47,5,48],[6,47,7,48],[6,0,6,45],[7,0,7,45],[8,0,8,45],[9,0,9,45],[10,0,10,45],[19,1,19,22],[19,24,19,45],[20,1,20,22],[20,24,20,45],[21,1,21,22],[21,24,21,45],[16,1,16,22],[16,24,16,45],[17,1,17,22],[99,13,100,33],[99,34,100,37],[17,24,17,45],[25,1,25,22],[25,24,25,45],[27,0,27,45],[28,1,28,2],[28,3,28,22],[28,24,28,25],[28,26,28,45],[22,1,22,22],[22,24,22,45],[23,1,23,22],[23,24,23,45],[24,1,24,22],[24,24,24,45],[31,1,31,2],[101,34,102,37],[103,13,104,33],[103,34,104,37],[75,0,78,2],[0,0,0,45],[1,0,1,45],[2,0,2,22],[2,23,2,29],[2,30,2,45],[3,0,5,22],[3,23,3,29],[3,30,4,45],[4,23,4,29],[5,23,5,29],[5,30,5,45],[18,1,18,22],[18,24,18,45],[12,0,12,45],[13,1,13,22],[13,24,13,45],[14,1,14,22],[14,24,14,45],[15,1,15,22],[15,24,15,45],[31,3,31,22],[31,24,31,25],[31,26,31,45],[32,1,32,2],[32,3,32,22],[32,24,32,25],[32,26,32,45],[29,1,29,2],[29,3,29,22],[29,24,29,25],[29,26,29,45],[30,1,30,2],[30,3,30,22],[30,24,30,25],[30,26,30,45],[33,0,33,45],[35,0,35,45],[36,0,36,45],[37,0,38,34],[37,35,37,39],[37,40,37,42],[37,43,37,45],[38,35,38,39],[38,40,38,42],[38,43,38,45],[69,0,70,2],[41,47,42,49],[57,47,58,49],[47,13,48,33],[47,34,48,37],[41,30,42,33],[111,0,112,29],[111,30,112,33],[111,47,112,49],[43,13,44,33],[57,0,58,29],[77,13,78,33],[77,34,78,37],[79,13,80,33],[79,34,80,37],[81,13,82,33],[81,34,82,37],[83,13,84,33],[83,34,84,37],[105,13,106,33],[105,34,106,37],[107,13,108,33],[73,47,74,49],[93,34,94,37],[39,0,40,33],[39,34,40,37],[39,38,39,45],[40,38,40,45],[43,34,44,37],[59,13,60,33],[59,34,60,37],[45,13,46,33],[45,34,46,37],[49,13,50,33],[49,34,50,37],[51,13,52,33],[51,34,52,37],[53,13,54,33],[53,34,54,37],[55,13,56,33],[55,34,56,37],[43,0,44,2],[43,3,44,12],[45,3,48,12],[45,0,48,2],[199,14,199,20],[57,30,58,33],[41,0,42,29],[190,4,192,39],[113,34,114,37],[115,13,116,33],[115,34,116,37],[117,13,118,33],[117,34,118,37],[119,13,120,33],[119,34,120,37],[121,13,122,33],[121,34,122,37],[131,13,132,33],[131,34,132,37],[129,13,130,33],[129,34,130,37],[123,13,124,33],[123,34,124,37],[125,13,126,33],[71,0,72,33],[71,34,72,37],[73,0,74,29],[73,30,74,33],[65,3,68,12],[69,3,70,12],[85,13,86,33],[71,38,71,45],[72,38,72,45],[193,4,195,33],[193,34,195,39],[75,13,76,33],[107,34,108,37],[109,34,110,37],[75,34,76,37],[127,13,128,33],[133,13,134,33],[133,34,134,37],[87,13,88,33],[87,34,88,37],[89,13,90,33],[113,13,114,33],[95,13,96,33],[95,34,96,37],[97,13,98,33],[97,34,98,37],[127,34,128,37],[116,38,134,45],[113,0,114,2],[115,0,116,2],[44,38,56,45],[61,38,70,45],[83,38,108,45],[147,38,166,45],[59,0,62,2],[63,0,64,2],[65,0,68,2],[69,13,70,33],[69,34,70,37],[49,3,56,12],[49,0,56,2],[85,34,86,37],[65,13,66,33],[65,34,66,37],[67,13,68,33],[59,3,62,12],[67,34,68,37],[61,13,62,33],[61,34,62,37],[63,13,64,33],[63,34,64,37],[63,3,64,12]]}
["Brevet d’Etudes Professionnelles «Maintenance des produits et équipements industriels » "]
["EP1 : Intervention sur un bien"]
["Établissement : (tampon)",null,null,null,null,null,null,null,null,null,null,null,null,null,null,null,null,null,null,null,null,null,null,"Session : ",null,null,null,null,null,null,{"$f":"IF(Bilan!B2=\"\",\"\",Bilan!B2)","v":""}]
[{"$f":"IF(Bilan!B3=\"\",\"\",Bilan!B3)","v":""},null,null,null,null,null,null,null,null,null,null,null,null,null,null,null,null,null,null,null,null,null,null,"Nom du candidat:",null,null,null,null,null,null,{"$f":"IF(INDEX((Bilan!B5:B34),(MATCH(RIGHT(CELL(\"nomfichier\",A1),LEN(CELL(\"nomfichier\",A1))-FIND(\"]\",CELL(\"nomfichier\",A1))),Bilan!C5:C34,0)))=\"\",\"\",INDEX((Bilan!B5:B34),(MATCH(RIGHT(CELL(\"nomfichier\",A1),LEN(CELL(\"nomfichier\",A1))-FIND(\"]\",CELL(\"nomfichier\",A1))),Bilan!C5:C34,0))))","v":{"$error":"#N/A"}}]
[null,null,null,null,null,null,null,null,null,null,null,null,null,null,null,null,null,null,null,null,null,null,null,"Prénom : "]
[null,null,null,null,null,null,null,null,null,null,null,null,null,null,null,null,null,null,null,null,null,null,null,"Date de l'évaluation:",null,null,null,null,null,null,null,null,null,null,null,null,null,null,null,null,null,null,null,null,null,null,null,"Choisisser votre situation"]
["Lieu d’évaluation :"]
["      Etablissement"]
["      Entreprise :       "]
["Description sommaire du travail demandé :"]
[{"$f":"IF($AV$7=\"\",\"\",IF($AV$7=\"A\",IF(EP1_A!A11=\"\",\"\",EP1_A!A11),IF($AV$7=\"B\",IF(EP1_B!A11=\"\",\"\",EP1_B!A11),IF($AV$7=\"C\",IF(EP1_C!A11=\"\",\"\",EP1_C!A11),IF($AV$7=\"D\",IF(EP1_D!A11=\"\",\"\",EP1_D!A11),IF($AV$7=\"E\",IF(EP1_E!A11=\"\",\"\",EP1_E!A11),IF($AV$7=\"F\",IF(EP1_F!A11=\"\",\"\",EP1_F!A11),IF($AV$7=\"G\",IF(EP1_G!A11=\"\",\"\",EP1_G!A11),IF($AV$7=\"H\",IF(EP1_H!A11=\"\",\"\",EP1_H!A11),\"\")))))))))","v":""},{"$f":"IF($AV$7=\"\",\"\",IF($AV$7=\"A\",IF(EP1_A!B11=\"\",\"\",EP1_A!B11),IF($AV$7=\"B\",IF(EP1_B!B11=\"\",\"\",EP1_B!B11),IF($AV$7=\"C\",IF(EP1_C!B11=\"\",\"\",EP1_C!B11),IF($AV$7=\"D\",IF(EP1_D!B11=\"\",\"\",EP1_D!B11),IF($AV$7=\"E\",IF(EP1_E!B11=\"\",\"\",EP1_E!B11),IF($AV$7=\"F\",IF(EP1_F!B11=\"\",\"\",EP1_F!B11),IF($AV$7=\"G\",IF(EP1_G!B11=\"\",\"\",EP1_G!B11),IF($AV$7=\"H\",IF(EP1_H!B11=\"\",\"\",EP1_H!B11),\"\")))))))))","v":""},{"$f":"IF($AV$7=\"\",\"\",IF($AV$7=\"A\",IF(EP1_A!C11=\"\",\"\",EP1_A!C11),IF($AV$7=\"B\",IF(EP1_B!C11=\"\",\"\",EP1_B!C11),IF($AV$7=\"C\",IF(EP1_C!C11=\"\",\"\",EP1_C!C11),IF($AV$7=\"D\",IF(EP1_D!C11=\"\",\"\",EP1_D!C11),IF($AV$7=\"E\",IF(EP1_E!C11=\"\",\"\",EP1_E!C11),IF($AV$7=\"F\",IF(EP1_F!C11=\"\",\"\",EP1_F!C11),IF($AV$7=\"G\",IF(EP1_G!C11=\"\",\"\",EP1_G!C11),IF($AV$7=\"H\",IF(EP1_H!C11=\"\",\"\",EP1_H!C11),\"\")))))))))","v":""},{"$f":"IF($AV$7=\"\",\"\",IF($AV$7=\"A\",IF(EP1_A!D11=\"\",\"\",EP1_A!D11),IF($AV$7=\"B\",IF(EP1_B!D11=\"\",\"\",EP1_B!D11),IF($AV$7=\"C\",IF(EP1_C!D11=\"\",\"\",EP1_C!D11),IF($AV$7=\"D\",IF(EP1_D!D11=\"\",\"\",EP1_D!D11),IF($AV$7=\"E\",IF(EP1_E!D11=\"\",\"\",EP1_E!D11),IF($AV$7=\"F\",IF(EP1_F!D11=\"\",\"\",EP1_F!D11),IF($AV$7=\"G\",IF(EP1_G!D11=\"\",\"\",EP1_G!D11),IF($AV$7=\"H\",IF(EP1_H!D11=\"\",\"\",EP1_H!D11),\"\")))))))))","v":""},{"$f":"IF($AV$7=\"\",\"\",IF($AV$7=\"A\",IF(EP1_A!E11=\"\",\"\",EP1_A!E11),IF($AV$7=\"B\",IF(EP1_B!E11=\"\",\"\",EP1_B!E11),IF($AV$7=\"C\",IF(EP1_C!E11=\"\",\"\",EP1_C!E11),IF($AV$7=\"D\",IF(EP1_D!E11=\"\",\"\",EP1_D!E11),IF($AV$7=\"E\",IF(EP1_E!E11=\"\",\"\",EP1_E!E11),IF($AV$7=\"F\",IF(EP1_F!E11=\"\",\"\",EP1_F!E11),IF($AV$7=\"G\",IF(EP1_G!E11=\"\",\"\",EP1_G!E11),IF($AV$7=\"H\",IF(EP1_H!E11=\"\",\"\",EP1_H!E11),\"\")))))))))","v":""},{"$f":"IF($AV$7=\"\",\"\",IF($AV$7=\"A\",IF(EP1_A!F11=\"\",\"\",EP1_A!F11),IF($AV$7=\"B\",IF(EP1_B!F11=\"\",\"\",EP1_B!F11),IF($AV$7=\"C\",IF(EP1_C!F11=\"\",\"\",EP1_C!F11),IF($AV$7=\"D\",IF(EP1_D!F11=\"\",\"\",EP1_D!F11),IF($AV$7=\"E\",IF(EP1_E!F11=\"\",\"\",EP1_E!F11),IF($AV$7=\"F\",IF(EP1_F!F11=\"\",\"\",EP1_F!F11),IF($AV$7=\"G\",IF(EP1_G!F11=\"\",\"\",EP1_G!F11),IF($AV$7=\"H\",IF(EP1_H!F11=\"\",\"\",EP1_H!F11),\"\")))))))))","v":""},{"$f":"IF($AV$7=\"\",\"\",IF($AV$7=\"A\",IF(EP1_A!G11=\"\",\"\",EP1_A!G11),IF($AV$7=\"B\",IF(EP1_B!G11=\"\",\"\",EP1_B!G11),IF($AV$7=\"C\",IF(EP1_C!G11=\"\",\"\",EP1_C!G11),IF($AV$7=\"D\",IF(EP1_D!G11=\"\",\"\",EP1_D!G11),IF($AV$7=\"E\",IF(EP1_E!G11=\"\",\"\",EP1_E!G11),IF($AV$7=\"F\",IF(EP1_F!G11=\"\",\"\",EP1_F!G11),IF($AV$7=\"G\",IF(EP1_G!G11=\"\",\"\",EP1_G!G11),IF($AV$7=\"H\",IF(EP1_H!G11=\"\",\"\",EP1_H!G11),\"\")))))))))","v":""},{"$f":"IF($AV$7=\"\",\"\",IF($AV$7=\"A\",IF(EP1_A!H11=\"\",\"\",EP1_A!H11),IF($AV$7=\"B\",IF(EP1_B!H11=\"\",\"\",EP1_B!H11),IF($AV$7=\"C\",IF(EP1_C!H11=\"\",\"\",EP1_C!H11),IF($AV$7=\"D\",IF(EP1_D!H11=\"\",\"\",EP1_D!H11),IF($AV$7=\"E\",IF(EP1_E!H11=\"\",\"\",EP1_E!H11),IF($AV$7=\"F\",IF(EP1_F!H11=\"\",\"\",EP1_F!H11),IF($AV$7=\"G\",IF(EP1_G!H11=\"\",\"\",EP1_G!H11),IF($AV$7=\"H\",IF(EP1_H!H11=\"\",\"\",EP1_H!H11),\"\")))))))))","v":""},{"$f":"IF($AV$7=\"\",\"\",IF($AV$7=\"A\",IF(EP1_A!I11=\"\",\"\",EP1_A!I11),IF($AV$7=\"B\",IF(EP1_B!I11=\"\",\"\",EP1_B!I11),IF($AV$7=\"C\",IF(EP1_C!I11=\"\",\"\",EP1_C!I11),IF($AV$7=\"D\",IF(EP1_D!I11=\"\",\"\",EP1_D!I11),IF($AV$7=\"E\",IF(EP1_E!I11=\"\",\"\",EP1_E!I11),IF($AV$7=\"F\",IF(EP1_F!I11=\"\",\"\",EP1_F!I11),IF($AV$7=\"G\",IF(EP1_G!I11=\"\",\"\",EP1_G!I11),IF($AV$7=\"H\",IF(EP1_H!I11=\"\",\"\",EP1_H!I11),\"\")))))))))","v":""},{"$f":"IF($AV$7=\"\",\"\",IF($AV$7=\"A\",IF(EP1_A!J11=\"\",\"\",EP1_A!J11),IF($AV$7=\"B\",IF(EP1_B!J11=\"\",\"\",EP1_B!J11),IF($AV$7=\"C\",IF(EP1_C!J11=\"\",\"\",EP1_C!J11),IF($AV$7=\"D\",IF(EP1_D!J11=\"\",\"\",EP1_D!J11),IF($AV$7=\"E\",IF(EP1_E!J11=\"\",\"\",EP1_E!J11),IF($AV$7=\"F\",IF(EP1_F!J11=\"\",\"\",EP1_F!J11),IF($AV$7=\"G\",IF(EP1_G!J11=\"\",\"\",EP1_G!J11),IF($AV$7=\"H\",IF(EP1_H!J11=\"\",\"\",EP1_H!J11),\"\")))))))))","v":""},{"$f":"IF($AV$7=\"\",\"\",IF($AV$7=\"A\",IF(EP1_A!K11=\"\",\"\",EP1_A!K11),IF($AV$7=\"B\",IF(EP1_B!K11=\"\",\"\",EP1_B!K11),IF($AV$7=\"C\",IF(EP1_C!K11=\"\",\"\",EP1_C!K11),IF($AV$7=\"D\",IF(EP1_D!K11=\"\",\"\",EP1_D!K11),IF($AV$7=\"E\",IF(EP1_E!K11=\"\",\"\",EP1_E!K11),IF($AV$7=\"F\",IF(EP1_F!K11=\"\",\"\",EP1_F!K11),IF($AV$7=\"G\",IF(EP1_G!K11=\"\",\"\",EP1_G!K11),IF($AV$7=\"H\",IF(EP1_H!K11=\"\",\"\",EP1_H!K11),\"\")))))))))","v":""},{"$f":"IF($AV$7=\"\",\"\",IF($AV$7=\"A\",IF(EP1_A!L11=\"\",\"\",EP1_A!L11),IF($AV$7=\"B\",IF(EP1_B!L11=\"\",\"\",EP1_B!L11),IF($AV$7=\"C\",IF(EP1_C!L11=\"\",\"\",EP1_C!L11),IF($AV$7=\"D\",IF(EP1_D!L11=\"\",\"\",EP1_D!L11),IF($AV$7=\"E\",IF(EP1_E!L11=\"\",\"\",EP1_E!L11),IF($AV$7=\"F\",IF(EP1_F!L11=\"\",\"\",EP1_F!L11),IF($AV$7=\"G\",IF(EP1_G!L11=\"\",\"\",EP1_G!L11),IF($AV$7=\"H\",IF(EP1_H!L11=\"\",\"\",EP1_H!L11),\"\")))))))))","v":""},{"$f":"IF($AV$7=\"\",\"\",IF($AV$7=\"A\",IF(EP1_A!M11=\"\",\"\",EP1_A!M11),IF($AV$7=\"B\",IF(EP1_B!M11=\"\",\"\",EP1_B!M11),IF($AV$7=\"C\",IF(EP1_C!M11=\"\",\"\",EP1_C!M11),IF($AV$7=\"D\",IF(EP1_D!M11=\"\",\"\",EP1_D!M11),IF($AV$7=\"E\",IF(EP1_E!M11=\"\",\"\",EP1_E!M11),IF($AV$7=\"F\",IF(EP1_F!M11=\"\",\"\",EP1_F!M11),IF($AV$7=\"G\",IF(EP1_G!M11=\"\",\"\",EP1_G!M11),IF($AV$7=\"H\",IF(EP1_H!M11=\"\",\"\",EP1_H!M11),\"\")))))))))","v":""},{"$f":"IF($AV$7=\"\",\"\",IF($AV$7=\"A\",IF(EP1_A!N11=\"\",\"\",EP1_A!N11),IF($AV$7=\"B\",IF(EP1_B!N11=\"\",\"\",EP1_B!N11),IF($AV$7=\"C\",IF(EP1_C!N11=\"\",\"\",EP1_C!N11),IF($AV$7=\"D\",IF(EP1_D!N11=\"\",\"\",EP1_D!N11),IF($AV$7=\"E\",IF(EP1_E!N11=\"\",\"\",EP1_E!N11),IF($AV$7=\"F\",IF(EP1_F!N11=\"\",\"\",EP1_F!N11),IF($AV$7=\"G\",IF(EP1_G!N11=\"\",\"\",EP1_G!N11),IF($AV$7=\"H\",IF(EP1_H!N11=\"\",\"\",EP1_H!N11),\"\")))))))))","v":""},{"$f":"IF($AV$7=\"\",\"\",IF($AV$7=\"A\",IF(EP1_A!O11=\"\",\"\",EP1_A!O11),IF($AV$7=\"B\",IF(EP1_B!O11=\"\",\"\",EP1_B!O11),IF($AV$7=\"C\",IF(EP1_C!O11=\"\",\"\",EP1_C!O11),IF($AV$7=\"D\",IF(EP1_D!O11=\"\",\"\",EP1_D!O11),IF($AV$7=\"E\",IF(EP1_E!O11=\"\",\"\",EP1_E!O11),IF($AV$7=\"F\",IF(EP1_F!O11=\"\",\"\",EP1_F!O11),IF($AV$7=\"G\",IF(EP1_G!O11=\"\",\"\",EP1_G!O11),IF($AV$7=\"H\",IF(EP1_H!O11=\"\",\"\",EP1_H!O11),\"\")))))))))","v":""},{"$f":"IF($AV$7=\"\",\"\",IF($AV$7=\"A\",IF(EP1_A!P11=\"\",\"\",EP1_A!P11),IF($AV$7=\"B\",IF(EP1_B!P11=\"\",\"\",EP1_B!P11),IF($AV$7=\"C\",IF(EP1_C!P11=\"\",\"\",EP1_C!P11),IF($AV$7=\"D\",IF(EP1_D!P11=\"\",\"\",EP1_D!P11),IF($AV$7=\"E\",IF(EP1_E!P11=\"\",\"\",EP1_E!P11),IF($AV$7=\"F\",IF(EP1_F!P11=\"\",\"\",EP1_F!P11),IF($AV$7=\"G\",IF(EP1_G!P11=\"\",\"\",EP1_G!P11),IF($AV$7=\"H\",IF(EP1_H!P11=\"\",\"\",EP1_H!P11),\"\")))))))))","v":""},{"$f":"IF($AV$7=\"\",\"\",IF($AV$7=\"A\",IF(EP1_A!Q11=\"\",\"\",EP1_A!Q11),IF($AV$7=\"B\",IF(EP1_B!Q11=\"\",\"\",EP1_B!Q11),IF($AV$7=\"C\",IF(EP1_C!Q11=\"\",\"\",EP1_C!Q11),IF($AV$7=\"D\",IF(EP1_D!Q11=\"\",\"\",EP1_D!Q11),IF($AV$7=\"E\",IF(EP1_E!Q11=\"\",\"\",EP1_E!Q11),IF($AV$7=\"F\",IF(EP1_F!Q11=\"\",\"\",EP1_F!Q11),IF($AV$7=\"G\",IF(EP1_G!Q11=\"\",\"\",EP1_G!Q11),IF($AV$7=\"H\",IF(EP1_H!Q11=\"\",\"\",EP1_H!Q11),\"\")))))))))","v":""},{"$f":"IF($AV$7=\"\",\"\",IF($AV$7=\"A\",IF(EP1_A!R11=\"\",\"\",EP1_A!R11),IF($AV$7=\"B\",IF(EP1_B!R11=\"\",\"\",EP1_B!R11),IF($AV$7=\"C\",IF(EP1_C!R11=\"\",\"\",EP1_C!R11),IF($AV$7=\"D\",IF(EP1_D!R11=\"\",\"\",EP1_D!R11),IF($AV$7=\"E\",IF(EP1_E!R11=\"\",\"\",EP1_E!R11),IF($AV$7=\"F\",IF(EP1_F!R11=\"\",\"\",EP1_F!R11),IF($AV$7=\"G\",IF(EP1_G!R11=\"\",\"\",EP1_G!R11),IF($AV$7=\"H\",IF(EP1_H!R11=\"\",\"\",EP1_H!R11),\"\")))))))))","v":""},{"$f":"IF($AV$7=\"\",\"\",IF($AV$7=\"A\",IF(EP1_A!S11=\"\",\"\",EP1_A!S11),IF($AV$7=\"B\",IF(EP1_B!S11=\"\",\"\",EP1_B!S11),IF($AV$7=\"C\",IF(EP1_C!S11=\"\",\"\",EP1_C!S11),IF($AV$7=\"D\",IF(EP1_D!S11=\"\",\"\",EP1_D!S11),IF($AV$7=\"E\",IF(EP1_E!S11=\"\",\"\",EP1_E!S11),IF($AV$7=\"F\",IF(EP1_F!S11=\"\",\"\",EP1_F!S11),IF($AV$7=\"G\",IF(EP1_G!S11=\"\",\"\",EP1_G!S11),IF($AV$7=\"H\",IF(EP1_H!S11=\"\",\"\",EP1_H!S11),\"\")))))))))","v":""},{"$f":"IF($AV$7=\"\",\"\",IF($AV$7=\"A\",IF(EP1_A!T11=\"\",\"\",EP1_A!T11),IF($AV$7=\"B\",IF(EP1_B!T11=\"\",\"\",EP1_B!T11),IF($AV$7=\"C\",IF(EP1_C!T11=\"\",\"\",EP1_C!T11),IF($AV$7=\"D\",IF(EP1_D!T11=\"\",\"\",EP1_D!T11),IF($AV$7=\"E\",IF(EP1_E!T11=\"\",\"\",EP1_E!T11),IF($AV$7=\"F\",IF(EP1_F!T11=\"\",\"\",EP1_F!T11),IF($AV$7=\"G\",IF(EP1_G!T11=\"\",\"\",EP1_G!T11),IF($AV$7=\"H\",IF(EP1_H!T11=\"\",\"\",EP1_H!T11),\"\")))))))))","v":""},{"$f":"IF($AV$7=\"\",\"\",IF($AV$7=\"A\",IF(EP1_A!U11=\"\",\"\",EP1_A!U11),IF($AV$7=\"B\",IF(EP1_B!U11=\"\",\"\",EP1_B!U11),IF($AV$7=\"C\",IF(EP1_C!U11=\"\",\"\",EP1_C!U11),IF($AV$7=\"D\",IF(EP1_D!U11=\"\",\"\",EP1_D!U11),IF($AV$7=\"E\",IF(EP1_E!U11=\"\",\"\",EP1_E!U11),IF($AV$7=\"F\",IF(EP1_F!U11=\"\",\"\",EP1_F!U11),IF($AV$7=\"G\",IF(EP1_G!U11=\"\",\"\",EP1_G!U11),IF($AV$7=\"H\",IF(EP1_H!U11=\"\",\"\",EP1_H!U11),\"\")))))))))","v":""},{"$f":"IF($AV$7=\"\",\"\",IF($AV$7=\"A\",IF(EP1_A!V11=\"\",\"\",EP1_A!V11),IF($AV$7=\"B\",IF(EP1_B!V11=\"\",\"\",EP1_B!V11),IF($AV$7=\"C\",IF(EP1_C!V11=\"\",\"\",EP1_C!V11),IF($AV$7=\"D\",IF(EP1_D!V11=\"\",\"\",EP1_D!V11),IF($AV$7=\"E\",IF(EP1_E!V11=\"\",\"\",EP1_E!V11),IF($AV$7=\"F\",IF(EP1_F!V11=\"\",\"\",EP1_F!V11),IF($AV$7=\"G\",IF(EP1_G!V11=\"\",\"\",EP1_G!V11),IF($AV$7=\"H\",IF(EP1_H!V11=\"\",\"\",EP1_H!V11),\"\")))))))))","v":""},{"$f":"IF($AV$7=\"\",\"\",IF($AV$7=\"A\",IF(EP1_A!W11=\"\",\"\",EP1_A!W11),IF($AV$7=\"B\",IF(EP1_B!W11=\"\",\"\",EP1_B!W11),IF($AV$7=\"C\",IF(EP1_C!W11=\"\",\"\",EP1_C!W11),IF($AV$7=\"D\",IF(EP1_D!W11=\"\",\"\",EP1_D!W11),IF($AV$7=\"E\",IF(EP1_E!W11=\"\",\"\",EP1_E!W11),IF($AV$7=\"F\",IF(EP1_F!W11=\"\",\"\",EP1_F!W11),IF($AV$7=\"G\",IF(EP1_G!W11=\"\",\"\",EP1_G!W11),IF($AV$7=\"H\",IF(EP1_H!W11=\"\",\"\",EP1_H!W11),\"\")))))))))","v":""},{"$f":"IF($AV$7=\"\",\"\",IF($AV$7=\"A\",IF(EP1_A!X11=\"\",\"\",EP1_A!X11),IF($AV$7=\"B\",IF(EP1_B!X11=\"\",\"\",EP1_B!X11),IF($AV$7=\"C\",IF(EP1_C!X11=\"\",\"\",EP1_C!X11),IF($AV$7=\"D\",IF(EP1_D!X11=\"\",\"\",EP1_D!X11),IF($AV$7=\"E\",IF(EP1_E!X11=\"\",\"\",EP1_E!X11),IF($AV$7=\"F\",IF(EP1_F!X11=\"\",\"\",EP1_F!X11),IF($AV$7=\"G\",IF(EP1_G!X11=\"\",\"\",EP1_G!X11),IF($AV$7=\"H\",IF(EP1_H!X11=\"\",\"\",EP1_H!X11),\"\")))))))))","v":""},{"$f":"IF($AV$7=\"\",\"\",IF($AV$7=\"A\",IF(EP1_A!Y11=\"\",\"\",EP1_A!Y11),IF($AV$7=\"B\",IF(EP1_B!Y11=\"\",\"\",EP1_B!Y11),IF($AV$7=\"C\",IF(EP1_C!Y11=\"\",\"\",EP1_C!Y11),IF($AV$7=\"D\",IF(EP1_D!Y11=\"\",\"\",EP1_D!Y11),IF($AV$7=\"E\",IF(EP1_E!Y11=\"\",\"\",EP1_E!Y11),IF($AV$7=\"F\",IF(EP1_F!Y11=\"\",\"\",EP1_F!Y11),IF($AV$7=\"G\",IF(EP1_G!Y11=\"\",\"\",EP1_G!Y11),IF($AV$7=\"H\",IF(EP1_H!Y11=\"\",\"\",EP1_H!Y11),\"\")))))))))","v":""},{"$f":"IF($AV$7=\"\",\"\",IF($AV$7=\"A\",IF(EP1_A!Z11=\"\",\"\",EP1_A!Z11),IF($AV$7=\"B\",IF(EP1_B!Z11=\"\",\"\",EP1_B!Z11),IF($AV$7=\"C\",IF(EP1_C!Z11=\"\",\"\",EP1_C!Z11),IF($AV$7=\"D\",IF(EP1_D!Z11=\"\",\"\",EP1_D!Z11),IF($AV$7=\"E\",IF(EP1_E!Z11=\"\",\"\",EP1_E!Z11),IF($AV$7=\"F\",IF(EP1_F!Z11=\"\",\"\",EP1_F!Z11),IF($AV$7=\"G\",IF(EP1_G!Z11=\"\",\"\",EP1_G!Z11),IF($AV$7=\"H\",IF(EP1_H!Z11=\"\",\"\",EP1_H!Z11),\"\")))))))))","v":""},{"$f":"IF($AV$7=\"\",\"\",IF($AV$7=\"A\",IF(EP1_A!AA11=\"\",\"\",EP1_A!AA11),IF($AV$7=\"B\",IF(EP1_B!AA11=\"\",\"\",EP1_B!AA11),IF($AV$7=\"C\",IF(EP1_C!AA11=\"\",\"\",EP1_C!AA11),IF($AV$7=\"D\",IF(EP1_D!AA11=\"\",\"\",EP1_D!AA11),IF($AV$7=\"E\",IF(EP1_E!AA11=\"\",\"\",EP1_E!AA11),IF($AV$7=\"F\",IF(EP1_F!AA11=\"\",\"\",EP1_F!AA11),IF($AV$7=\"G\",IF(EP1_G!AA11=\"\",\"\",EP1_G!AA11),IF($AV$7=\"H\",IF(EP1_H!AA11=\"\",\"\",EP1_H!AA11),\"\")))))))))","v":""},{"$f":"IF($AV$7=\"\",\"\",IF($AV$7=\"A\",IF(EP1_A!AB11=\"\",\"\",EP1_A!AB11),IF($AV$7=\"B\",IF(EP1_B!AB11=\"\",\"\",EP1_B!AB11),IF($AV$7=\"C\",IF(EP1_C!AB11=\"\",\"\",EP1_C!AB11),IF($AV$7=\"D\",IF(EP1_D!AB11=\"\",\"\",EP1_D!AB11),IF($AV$7=\"E\",IF(EP1_E!AB11=\"\",\"\",EP1_E!AB11),IF($AV$7=\"F\",IF(EP1_F!AB11=\"\",\"\",EP1_F!AB11),IF($AV$7=\"G\",IF(EP1_G!AB11=\"\",\"\",EP1_G!AB11),IF($AV$7=\"H\",IF(EP1_H!AB11=\"\",\"\",EP1_H!AB11),\"\")))))))))","v":""},{"$f":"IF($AV$7=\"\",\"\",IF($AV$7=\"A\",IF(EP1_A!AC11=\"\",\"\",EP1_A!AC11),IF($AV$7=\"B\",IF(EP1_B!AC11=\"\",\"\",EP1_B!AC11),IF($AV$7=\"C\",IF(EP1_C!AC11=\"\",\"\",EP1_C!AC11),IF($AV$7=\"D\",IF(EP1_D!AC11=\"\",\"\",EP1_D!AC11),IF($AV$7=\"E\",IF(EP1_E!AC11=\"\",\"\",EP1_E!AC11),IF($AV$7=\"F\",IF(EP1_F!AC11=\"\",\"\",EP1_F!AC11),IF($AV$7=\"G\",IF(EP1_G!AC11=\"\",\"\",EP1_G!AC11),IF($AV$7=\"H\",IF(EP1_H!AC11=\"\",\"\",EP1_H!AC11),\"\")))))))))","v":""},{"$f":"IF($AV$7=\"\",\"\",IF($AV$7=\"A\",IF(EP1_A!AD11=\"\",\"\",EP1_A!AD11),IF($AV$7=\"B\",IF(EP1_B!AD11=\"\",\"\",EP1_B!AD11),IF($AV$7=\"C\",IF(EP1_C!AD11=\"\",\"\",EP1_C!AD11),IF($AV$7=\"D\",IF(EP1_D!AD11=\"\",\"\",EP1_D!AD11),IF($AV$7=\"E\",IF(EP1_E!AD11=\"\",\"\",EP1_E!AD11),IF($AV$7=\"F\",IF(EP1_F!AD11=\"\",\"\",EP1_F!AD11),IF($AV$7=\"G\",IF(EP1_G!AD11=\"\",\"\",EP1_G!AD11),IF($AV$7=\"H\",IF(EP1_H!AD11=\"\",\"\",EP1_H!AD11),\"\")))))))))","v":""},{"$f":"IF($AV$7=\"\",\"\",IF($AV$7=\"A\",IF(EP1_A!AE11=\"\",\"\",EP1_A!AE11),IF($AV$7=\"B\",IF(EP1_B!AE11=\"\",\"\",EP1_B!AE11),IF($AV$7=\"C\",IF(EP1_C!AE11=\"\",\"\",EP1_C!AE11),IF($AV$7=\"D\",IF(EP1_D!AE11=\"\",\"\",EP1_D!AE11),IF($AV$7=\"E\",IF(EP1_E!AE11=\"\",\"\",EP1_E!AE11),IF($AV$7=\"F\",IF(EP1_F!AE11=\"\",\"\",EP1_F!AE11),IF($AV$7=\"G\",IF(EP1_G!AE11=\"\",\"\",EP1_G!AE11),IF($AV$7=\"H\",IF(EP1_H!AE11=\"\",\"\",EP1_H!AE11),\"\")))))))))","v":""},{"$f":"IF($AV$7=\"\",\"\",IF($AV$7=\"A\",IF(EP1_A!AF11=\"\",\"\",EP1_A!AF11),IF($AV$7=\"B\",IF(EP1_B!AF11=\"\",\"\",EP1_B!AF11),IF($AV$7=\"C\",IF(EP1_C!AF11=\"\",\"\",EP1_C!AF11),IF($AV$7=\"D\",IF(EP1_D!AF11=\"\",\"\",EP1_D!AF11),IF($AV$7=\"E\",IF(EP1_E!AF11=\"\",\"\",EP1_E!AF11),IF($AV$7=\"F\",IF(EP1_F!AF11=\"\",\"\",EP1_F!AF11),IF($AV$7=\"G\",IF(EP1_G!AF11=\"\",\"\",EP1_G!AF11),IF($AV$7=\"H\",IF(EP1_H!AF11=\"\",\"\",EP1_H!AF11),\"\")))))))))","v":""},{"$f":"IF($AV$7=\"\",\"\",IF($AV$7=\"A\",IF(EP1_A!AG11=\"\",\"\",EP1_A!AG11),IF($AV$7=\"B\",IF(EP1_B!AG11=\"\",\"\",EP1_B!AG11),IF($AV$7=\"C\",IF(EP1_C!AG11=\"\",\"\",EP1_C!AG11),IF($AV$7=\"D\",IF(EP1_D!AG11=\"\",\"\",EP1_D!AG11),IF($AV$7=\"E\",IF(EP1_E!AG11=\"\",\"\",EP1_E!AG11),IF($AV$7=\"F\",IF(EP1_F!AG11=\"\",\"\",EP1_F!AG11),IF($AV$7=\"G\",IF(EP1_G!AG11=\"\",\"\",EP1_G!AG11),IF($AV$7=\"H\",IF(EP1_H!AG11=\"\",\"\",EP1_H!AG11),\"\")))))))))","v":""},{"$f":"IF($AV$7=\"\",\"\",IF($AV$7=\"A\",IF(EP1_A!AH11=\"\",\"\",EP1_A!AH11),IF($AV$7=\"B\",IF(EP1_B!AH11=\"\",\"\",EP1_B!AH11),IF($AV$7=\"C\",IF(EP1_C!AH11=\"\",\"\",EP1_C!AH11),IF($AV$7=\"D\",IF(EP1_D!AH11=\"\",\"\",EP1_D!AH11),IF($AV$7=\"E\",IF(EP1_E!AH11=\"\",\"\",EP1_E!AH11),IF($AV$7=\"F\",IF(EP1_F!AH11=\"\",\"\",EP1_F!AH11),IF($AV$7=\"G\",IF(EP1_G!AH11=\"\",\"\",EP1_G!AH11),IF($AV$7=\"H\",IF(EP1_H!AH11=\"\",\"\",EP1_H!AH11),\"\")))))))))","v":""},{"$f":"IF($AV$7=\"\",\"\",IF($AV$7=\"A\",IF(EP1_A!AI11=\"\",\"\",EP1_A!AI11),IF($AV$7=\"B\",IF(EP1_B!AI11=\"\",\"\",EP1_B!AI11),IF($AV$7=\"C\",IF(EP1_C!AI11=\"\",\"\",EP1_C!AI11),IF($AV$7=\"D\",IF(EP1_D!AI11=\"\",\"\",EP1_D!AI11),IF($AV$7=\"E\",IF(EP1_E!AI11=\"\",\"\",EP1_E!AI11),IF($AV$7=\"F\",IF(EP1_F!AI11=\"\",\"\",EP1_F!AI11),IF($AV$7=\"G\",IF(EP1_G!AI11=\"\",\"\",EP1_G!AI11),IF($AV$7=\"H\",IF(EP1_H!AI11=\"\",\"\",EP1_H!AI11),\"\")))))))))","v":""},{"$f":"IF($AV$7=\"\",\"\",IF($AV$7=\"A\",IF(EP1_A!AJ11=\"\",\"\",EP1_A!AJ11),IF($AV$7=\"B\",IF(EP1_B!AJ11=\"\",\"\",EP1_B!AJ11),IF($AV$7=\"C\",IF(EP1_C!AJ11=\"\",\"\",EP1_C!AJ11),IF($AV$7=\"D\",IF(EP1_D!AJ11=\"\",\"\",EP1_D!AJ11),IF($AV$7=\"E\",IF(EP1_E!AJ11=\"\",\"\",EP1_E!AJ11),IF($AV$7=\"F\",IF(EP1_F!AJ11=\"\",\"\",EP1_F!AJ11),IF($AV$7=\"G\",IF(EP1_G!AJ11=\"\",\"\",EP1_G!AJ11),IF($AV$7=\"H\",IF(EP1_H!AJ11=\"\",\"\",EP1_H!AJ11),\"\")))))))))","v":""},{"$f":"IF($AV$7=\"\",\"\",IF($AV$7=\"A\",IF(EP1_A!AK11=\"\",\"\",EP1_A!AK11),IF($AV$7=\"B\",IF(EP1_B!AK11=\"\",\"\",EP1_B!AK11),IF($AV$7=\"C\",IF(EP1_C!AK11=\"\",\"\",EP1_C!AK11),IF($AV$7=\"D\",IF(EP1_D!AK11=\"\",\"\",EP1_D!AK11),IF($AV$7=\"E\",IF(EP1_E!AK11=\"\",\"\",EP1_E!AK11),IF($AV$7=\"F\",IF(EP1_F!AK11=\"\",\"\",EP1_F!AK11),IF($AV$7=\"G\",IF(EP1_G!AK11=\"\",\"\",EP1_G!AK11),IF($AV$7=\"H\",IF(EP1_H!AK11=\"\",\"\",EP1_H!AK11),\"\")))))))))","v":""},{"$f":"IF($AV$7=\"\",\"\",IF($AV$7=\"A\",IF(EP1_A!AL11=\"\",\"\",EP1_A!AL11),IF($AV$7=\"B\",IF(EP1_B!AL11=\"\",\"\",EP1_B!AL11),IF($AV$7=\"C\",IF(EP1_C!AL11=\"\",\"\",EP1_C!AL11),IF($AV$7=\"D\",IF(EP1_D!AL11=\"\",\"\",EP1_D!AL11),IF($AV$7=\"E\",IF(EP1_E!AL11=\"\",\"\",EP1_E!AL11),IF($AV$7=\"F\",IF(EP1_F!AL11=\"\",\"\",EP1_F!AL11),IF($AV$7=\"G\",IF(EP1_G!AL11=\"\",\"\",EP1_G!AL11),IF($AV$7=\"H\",IF(EP1_H!AL11=\"\",\"\",EP1_H!AL11),\"\")))))))))","v":""},{"$f":"IF($AV$7=\"\",\"\",IF($AV$7=\"A\",IF(EP1_A!AM11=\"\",\"\",EP1_A!AM11),IF($AV$7=\"B\",IF(EP1_B!AM11=\"\",\"\",EP1_B!AM11),IF($AV$7=\"C\",IF(EP1_C!AM11=\"\",\"\",EP1_C!AM11),IF($AV$7=\"D\",IF(EP1_D!AM11=\"\",\"\",EP1_D!AM11),IF($AV$7=\"E\",IF(EP1_E!AM11=\"\",\"\",EP1_E!AM11),IF($AV$7=\"F\",IF(EP1_F!AM11=\"\",\"\",EP1_F!AM11),IF($AV$7=\"G\",IF(EP1_G!AM11=\"\",\"\",EP1_G!AM11),IF($AV$7=\"H\",IF(EP1_H!AM11=\"\",\"\",EP1_H!AM11),\"\")))))))))","v":""},{"$f":"IF($AV$7=\"\",\"\",IF($AV$7=\"A\",IF(EP1_A!AN11=\"\",\"\",EP1_A!AN11),IF($AV$7=\"B\",IF(EP1_B!AN11=\"\",\"\",EP1_B!AN11),IF($AV$7=\"C\",IF(EP1_C!AN11=\"\",\"\",EP1_C!AN11),IF($AV$7=\"D\",IF(EP1_D!AN11=\"\",\"\",EP1_D!AN11),IF($AV$7=\"E\",IF(EP1_E!AN11=\"\",\"\",EP1_E!AN11),IF($AV$7=\"F\",IF(EP1_F!AN11=\"\",\"\",EP1_F!AN11),IF($AV$7=\"G\",IF(EP1_G!AN11=\"\",\"\",EP1_G!AN11),IF($AV$7=\"H\",IF(EP1_H!AN11=\"\",\"\",EP1_H!AN11),\"\")))))))))","v":""},{"$f":"IF($AV$7=\"\",\"\",IF($AV$7=\"A\",IF(EP1_A!AO11=\"\",\"\",EP1_A!AO11),IF($AV$7=\"B\",IF(EP1_B!AO11=\"\",\"\",EP1_B!AO11),IF($AV$7=\"C\",IF(EP1_C!AO11=\"\",\"\",EP1_C!AO11),IF($AV$7=\"D\",IF(EP1_D!AO11=\"\",\"\",EP1_D!AO11),IF($AV$7=\"E\",IF(EP1_E!AO11=\"\",\"\",EP1_E!AO11),IF($AV$7=\"F\",IF(EP1_F!AO11=\"\",\"\",EP1_F!AO11),IF($AV$7=\"G\",IF(EP1_G!AO11=\"\",\"\",EP1_G!AO11),IF($AV$7=\"H\",IF(EP1_H!AO11=\"\",\"\",EP1_H!AO11),\"\")))))))))","v":""},{"$f":"IF($AV$7=\"\",\"\",IF($AV$7=\"A\",IF(EP1_A!AP11=\"\",\"\",EP1_A!AP11),IF($AV$7=\"B\",IF(EP1_B!AP11=\"\",\"\",EP1_B!AP11),IF($AV$7=\"C\",IF(EP1_C!AP11=\"\",\"\",EP1_C!AP11),IF($AV$7=\"D\",IF(EP1_D!AP11=\"\",\"\",EP1_D!AP11),IF($AV$7=\"E\",IF(EP1_E!AP11=\"\",\"\",EP1_E!AP11),IF($AV$7=\"F\",IF(EP1_F!AP11=\"\",\"\",EP1_F!AP11),IF($AV$7=\"G\",IF(EP1_G!AP11=\"\",\"\",EP1_G!AP11),IF($AV$7=\"H\",IF(EP1_H!AP11=\"\",\"\",EP1_H!AP11),\"\")))))))))","v":""},{"$f":"IF($AV$7=\"\",\"\",IF($AV$7=\"A\",IF(EP1_A!AQ11=\"\",\"\",EP1_A!AQ11),IF($AV$7=\"B\",IF(EP1_B!AQ11=\"\",\"\",EP1_B!AQ11),IF($AV$7=\"C\",IF(EP1_C!AQ11=\"\",\"\",EP1_C!AQ11),IF($AV$7=\"D\",IF(EP1_D!AQ11=\"\",\"\",EP1_D!AQ11),IF($AV$7=\"E\",IF(EP1_E!AQ11=\"\",\"\",EP1_E!AQ11),IF($AV$7=\"F\",IF(EP1_F!AQ11=\"\",\"\",EP1_F!AQ11),IF($AV$7=\"G\",IF(EP1_G!AQ11=\"\",\"\",EP1_G!AQ11),IF($AV$7=\"H\",IF(EP1_H!AQ11=\"\",\"\",EP1_H!AQ11),\"\")))))))))","v":""},{"$f":"IF($AV$7=\"\",\"\",IF($AV$7=\"A\",IF(EP1_A!AR11=\"\",\"\",EP1_A!AR11),IF($AV$7=\"B\",IF(EP1_B!AR11=\"\",\"\",EP1_B!AR11),IF($AV$7=\"C\",IF(EP1_C!AR11=\"\",\"\",EP1_C!AR11),IF($AV$7=\"D\",IF(EP1_D!AR11=\"\",\"\",EP1_D!AR11),IF($AV$7=\"E\",IF(EP1_E!AR11=\"\",\"\",EP1_E!AR11),IF($AV$7=\"F\",IF(EP1_F!AR11=\"\",\"\",EP1_F!AR11),IF($AV$7=\"G\",IF(EP1_G!AR11=\"\",\"\",EP1_G!AR11),IF($AV$7=\"H\",IF(EP1_H!AR11=\"\",\"\",EP1_H!AR11),\"\")))))))))","v":""},{"$f":"IF($AV$7=\"\",\"\",IF($AV$7=\"A\",IF(EP1_A!AS11=\"\",\"\",EP1_A!AS11),IF($AV$7=\"B\",IF(EP1_B!AS11=\"\",\"\",EP1_B!AS11),IF($AV$7=\"C\",IF(EP1_C!AS11=\"\",\"\",EP1_C!AS11),IF($AV$7=\"D\",IF(EP1_D!AS11=\"\",\"\",EP1_D!AS11),IF($AV$7=\"E\",IF(EP1_E!AS11=\"\",\"\",EP1_E!AS11),IF($AV$7=\"F\",IF(EP1_F!AS11=\"\",\"\",EP1_F!AS11),IF($AV$7=\"G\",IF(EP1_G!AS11=\"\",\"\",EP1_G!AS11),IF($AV$7=\"H\",IF(EP1_H!AS11=\"\",\"\",EP1_H!AS11),\"\")))))))))","v":""},{"$f":"IF($AV$7=\"\",\"\",IF($AV$7=\"A\",IF(EP1_A!AT11=\"\",\"\",EP1_A!AT11),IF($AV$7=\"B\",IF(EP1_B!AT11=\"\",\"\",EP1_B!AT11),IF($AV$7=\"C\",IF(EP1_C!AT11=\"\",\"\",EP1_C!AT11),IF($AV$7=\"D\",IF(EP1_D!AT11=\"\",\"\",EP1_D!AT11),IF($AV$7=\"E\",IF(EP1_E!AT11=\"\",\"\",EP1_E!AT11),IF($AV$7=\"F\",IF(EP1_F!AT11=\"\",\"\",EP1_F!AT11),IF($AV$7=\"G\",IF(EP1_G!AT11=\"\",\"\",EP1_G!AT11),IF($AV$7=\"H\",IF(EP1_H!AT11=\"\",\"\",EP1_H!AT11),\"\")))))))))","v":""}]
[]
["Données fournies au candidat"]
[{"$f":"IF($AV$7=\"\",\"\",IF($AV$7=\"A\",IF(EP1_A!A14=\"\",\"\",EP1_A!A14),IF($AV$7=\"B\",IF(EP1_B!A14=\"\",\"\",EP1_B!A14),IF($AV$7=\"C\",IF(EP1_C!A14=\"\",\"\",EP1_C!A14),IF($AV$7=\"D\",IF(EP1_D!A14=\"\",\"\",EP1_D!A14),IF($AV$7=\"E\",IF(EP1_E!A14=\"\",\"\",EP1_E!A14),IF($AV$7=\"F\",IF(EP1_F!A14=\"\",\"\",EP1_F!A14),IF($AV$7=\"G\",IF(EP1_G!A14=\"\",\"\",EP1_G!A14),IF($AV$7=\"H\",IF(EP1_H!A14=\"\",\"\",EP1_H!A14),\"\")))))))))","v":""},"Le dossier technique du bien sur supports papiers ou supports numériques",null,null,null,null,null,null,null,null,null,null,null,null,null,null,null,null,null,null,null,null,null,{"$f":"IF($AV$7=\"\",\"\",IF($AV$7=\"A\",IF(EP1_A!X14=\"\",\"\",EP1_A!X14),IF($AV$7=\"B\",IF(EP1_B!X14=\"\",\"\",EP1_B!X14),IF($AV$7=\"C\",IF(EP1_C!X14=\"\",\"\",EP1_C!X14),IF($AV$7=\"D\",IF(EP1_D!X14=\"\",\"\",EP1_D!X14),IF($AV$7=\"E\",IF(EP1_E!X14=\"\",\"\",EP1_E!X14),IF($AV$7=\"F\",IF(EP1_F!X14=\"\",\"\",EP1_F!X14),IF($AV$7=\"G\",IF(EP1_G!X14=\"\",\"\",EP1_G!X14),IF($AV$7=\"H\",IF(EP1_H!X14=\"\",\"\",EP1_H!X14),\"\")))))))))","v":""},"L’équipement informatique"]
[{"$f":"IF($AV$7=\"\",\"\",IF($AV$7=\"A\",IF(EP1_A!A15=\"\",\"\",EP1_A!A15),IF($AV$7=\"B\",IF(EP1_B!A15=\"\",\"\",EP1_B!A15),IF($AV$7=\"C\",IF(EP1_C!A15=\"\",\"\",EP1_C!A15),IF($AV$7=\"D\",IF(EP1_D!A15=\"\",\"\",EP1_D!A15),IF($AV$7=\"E\",IF(EP1_E!A15=\"\",\"\",EP1_E!A15),IF($AV$7=\"F\",IF(EP1_F!A15=\"\",\"\",EP1_F!A15),IF($AV$7=\"G\",IF(EP1_G!A15=\"\",\"\",EP1_G!A15),IF($AV$7=\"H\",IF(EP1_H!A15=\"\",\"\",EP1_H!A15),\"\")))))))))","v":""},"Le bien et les conditions de son environnement",null,null,null,null,null,null,null,null,null,null,null,null,null,null,null,null,null,null,null,null,null,{"$f":"IF($AV$7=\"\",\"\",IF($AV$7=\"A\",IF(EP1_A!X15=\"\",\"\",EP1_A!X15),IF($AV$7=\"B\",IF(EP1_B!X15=\"\",\"\",EP1_B!X15),IF($AV$7=\"C\",IF(EP1_C!X15=\"\",\"\",EP1_C!X15),IF($AV$7=\"D\",IF(EP1_D!X15=\"\",\"\",EP1_D!X15),IF($AV$7=\"E\",IF(EP1_E!X15=\"\",\"\",EP1_E!X15),IF($AV$7=\"F\",IF(EP1_F!X15=\"\",\"\",EP1_F!X15),IF($AV$7=\"G\",IF(EP1_G!X15=\"\",\"\",EP1_G!X15),IF($AV$7=\"H\",IF(EP1_H!X15=\"\",\"\",EP1_H!X15),\"\")))))))))","v":""},"Les logiciels"]
[{"$f":"IF($AV$7=\"\",\"\",IF($AV$7=\"A\",IF(EP1_A!A16=\"\",\"\",EP1_A!A16),IF($AV$7=\"B\",IF(EP1_B!A16=\"\",\"\",EP1_B!A16),IF($AV$7=\"C\",IF(EP1_C!A16=\"\",\"\",EP1_C!A16),IF($AV$7=\"D\",IF(EP1_D!A16=\"\",\"\",EP1_D!A16),IF($AV$7=\"E\",IF(EP1_E!A16=\"\",\"\",EP1_E!A16),IF($AV$7=\"F\",IF(EP1_F!A16=\"\",\"\",EP1_F!A16),IF($AV$7=\"G\",IF(EP1_G!A16=\"\",\"\",EP1_G!A16),IF($AV$7=\"H\",IF(EP1_H!A16=\"\",\"\",EP1_H!A16),\"\")))))))))","v":""},"Les normes",null,null,null,null,null,null,null,null,null,null,null,null,null,null,null,null,null,null,null,null,null,{"$f":"IF($AV$7=\"\",\"\",IF($AV$7=\"A\",IF(EP1_A!X16=\"\",\"\",EP1_A!X16),IF($AV$7=\"B\",IF(EP1_B!X16=\"\",\"\",EP1_B!X16),IF($AV$7=\"C\",IF(EP1_C!X16=\"\",\"\",EP1_C!X16),IF($AV$7=\"D\",IF(EP1_D!X16=\"\",\"\",EP1_D!X16),IF($AV$7=\"E\",IF(EP1_E!X16=\"\",\"\",EP1_E!X16),IF($AV$7=\"F\",IF(EP1_F!X16=\"\",\"\",EP1_F!X16),IF($AV$7=\"G\",IF(EP1_G!X16=\"\",\"\",EP1_G!X16),IF($AV$7=\"H\",IF(EP1_H!X16=\"\",\"\",EP1_H!X16),\"\")))))))))","v":""},"Les outils descripteurs (grafcet, chronogramme…)"]
[{"$f":"IF($AV$7=\"\",\"\",IF($AV$7=\"A\",IF(EP1_A!A17=\"\",\"\",EP1_A!A17),IF($AV$7=\"B\",IF(EP1_B!A17=\"\",\"\",EP1_B!A17),IF($AV$7=\"C\",IF(EP1_C!A17=\"\",\"\",EP1_C!A17),IF($AV$7=\"D\",IF(EP1_D!A17=\"\",\"\",EP1_D!A17),IF($AV$7=\"E\",IF(EP1_E!A17=\"\",\"\",EP1_E!A17),IF($AV$7=\"F\",IF(EP1_F!A17=\"\",\"\",EP1_F!A17),IF($AV$7=\"G\",IF(EP1_G!A17=\"\",\"\",EP1_G!A17),IF($AV$7=\"H\",IF(EP1_H!A17=\"\",\"\",EP1_H!A17),\"\")))))))))","v":""},"Toutes documentations techniques",null,null,null,null,null,null,null,null,null,null,null,null,null,null,null,null,null,null,null,null,null,{"$f":"IF($AV$7=\"\",\"\",IF($AV$7=\"A\",IF(EP1_A!X17=\"\",\"\",EP1_A!X17),IF($AV$7=\"B\",IF(EP1_B!X17=\"\",\"\",EP1_B!X17),IF($AV$7=\"C\",IF(EP1_C!X17=\"\",\"\",EP1_C!X17),IF($AV$7=\"D\",IF(EP1_D!X17=\"\",\"\",EP1_D!X17),IF($AV$7=\"E\",IF(EP1_E!X17=\"\",\"\",EP1_E!X17),IF($AV$7=\"F\",IF(EP1_F!X17=\"\",\"\",EP1_F!X17),IF($AV$7=\"G\",IF(EP1_G!X17=\"\",\"\",EP1_G!X17),IF($AV$7=\"H\",IF(EP1_H!X17=\"\",\"\",EP1_H!X17),\"\")))))))))","v":""},"Tous documents nouveaux nécessaires à la compréhension de l’information : Nouvelle notice technique, compte-rendu d’intervention, documents de modification."]
[{"$f":"IF($AV$7=\"\",\"\",IF($AV$7=\"A\",IF(EP1_A!A18=\"\",\"\",EP1_A!A18),IF($AV$7=\"B\",IF(EP1_B!A18=\"\",\"\",EP1_B!A18),IF($AV$7=\"C\",IF(EP1_C!A18=\"\",\"\",EP1_C!A18),IF($AV$7=\"D\",IF(EP1_D!A18=\"\",\"\",EP1_D!A18),IF($AV$7=\"E\",IF(EP1_E!A18=\"\",\"\",EP1_E!A18),IF($AV$7=\"F\",IF(EP1_F!A18=\"\",\"\",EP1_F!A18),IF($AV$7=\"G\",IF(EP1_G!A18=\"\",\"\",EP1_G!A18),IF($AV$7=\"H\",IF(EP1_H!A18=\"\",\"\",EP1_H!A18),\"\")))))))))","v":""},"Le document unique d’évaluation des risques",null,null,null,null,null,null,null,null,null,null,null,null,null,null,null,null,null,null,null,null,null,{"$f":"IF($AV$7=\"\",\"\",IF($AV$7=\"A\",IF(EP1_A!X18=\"\",\"\",EP1_A!X18),IF($AV$7=\"B\",IF(EP1_B!X18=\"\",\"\",EP1_B!X18),IF($AV$7=\"C\",IF(EP1_C!X18=\"\",\"\",EP1_C!X18),IF($AV$7=\"D\",IF(EP1_D!X18=\"\",\"\",EP1_D!X18),IF($AV$7=\"E\",IF(EP1_E!X18=\"\",\"\",EP1_E!X18),IF($AV$7=\"F\",IF(EP1_F!X18=\"\",\"\",EP1_F!X18),IF($AV$7=\"G\",IF(EP1_G!X18=\"\",\"\",EP1_G!X18),IF($AV$7=\"H\",IF(EP1_H!X18=\"\",\"\",EP1_H!X18),\"\")))))))))","v":""},"Les moyens de communication"]
[{"$f":"IF($AV$7=\"\",\"\",IF($AV$7=\"A\",IF(EP1_A!A19=\"\",\"\",EP1_A!A19),IF($AV$7=\"B\",IF(EP1_B!A19=\"\",\"\",EP1_B!A19),IF($AV$7=\"C\",IF(EP1_C!A19=\"\",\"\",EP1_C!A19),IF($AV$7=\"D\",IF(EP1_D!A19=\"\",\"\",EP1_D!A19),IF($AV$7=\"E\",IF(EP1_E!A19=\"\",\"\",EP1_E!A19),IF($AV$7=\"F\",IF(EP1_F!A19=\"\",\"\",EP1_F!A19),IF($AV$7=\"G\",IF(EP1_G!A19=\"\",\"\",EP1_G!A19),IF($AV$7=\"H\",IF(EP1_H!A19=\"\",\"\",EP1_H!A19),\"\")))))))))","v":""},"Toutes informations en provenance de l’utilisateur",null,null,null,null,null,null,null,null,null,null,null,null,null,null,null,null,null,null,null,null,null,{"$f":"IF($AV$7=\"\",\"\",IF($AV$7=\"A\",IF(EP1_A!X19=\"\",\"\",EP1_A!X19),IF($AV$7=\"B\",IF(EP1_B!X19=\"\",\"\",EP1_B!X19),IF($AV$7=\"C\",IF(EP1_C!X19=\"\",\"\",EP1_C!X19),IF($AV$7=\"D\",IF(EP1_D!X19=\"\",\"\",EP1_D!X19),IF($AV$7=\"E\",IF(EP1_E!X19=\"\",\"\",EP1_E!X19),IF($AV$7=\"F\",IF(EP1_F!X19=\"\",\"\",EP1_F!X19),IF($AV$7=\"G\",IF(EP1_G!X19=\"\",\"\",EP1_G!X19),IF($AV$7=\"H\",IF(EP1_H!X19=\"\",\"\",EP1_H!X19),\"\")))))))))","v":""},"La demande d’intervention ou le bon de travail."]
[{"$f":"IF($AV$7=\"\",\"\",IF($AV$7=\"A\",IF(EP1_A!A20=\"\",\"\",EP1_A!A20),IF($AV$7=\"B\",IF(EP1_B!A20=\"\",\"\",EP1_B!A20),IF($AV$7=\"C\",IF(EP1_C!A20=\"\",\"\",EP1_C!A20),IF($AV$7=\"D\",IF(EP1_D!A20=\"\",\"\",EP1_D!A20),IF($AV$7=\"E\",IF(EP1_E!A20=\"\",\"\",EP1_E!A20),IF($AV$7=\"F\",IF(EP1_F!A20=\"\",\"\",EP1_F!A20),IF($AV$7=\"G\",IF(EP1_G!A20=\"\",\"\",EP1_G!A20),IF($AV$7=\"H\",IF(EP1_H!A20=\"\",\"\",EP1_H!A20),\"\")))))))))","v":""},"Les contraintes dans l’environnement",null,null,null,null,null,null,null,null,null,null,null,null,null,null,null,null,null,null,null,null,null,{"$f":"IF($AV$7=\"\",\"\",IF($AV$7=\"A\",IF(EP1_A!X20=\"\",\"\",EP1_A!X20),IF($AV$7=\"B\",IF(EP1_B!X20=\"\",\"\",EP1_B!X20),IF($AV$7=\"C\",IF(EP1_C!X20=\"\",\"\",EP1_C!X20),IF($AV$7=\"D\",IF(EP1_D!X20=\"\",\"\",EP1_D!X20),IF($AV$7=\"E\",IF(EP1_E!X20=\"\",\"\",EP1_E!X20),IF($AV$7=\"F\",IF(EP1_F!X20=\"\",\"\",EP1_F!X20),IF($AV$7=\"G\",IF(EP1_G!X20=\"\",\"\",EP1_G!X20),IF($AV$7=\"H\",IF(EP1_H!X20=\"\",\"\",EP1_H!X20),\"\")))))))))","v":""},"Les consignes d’exploitation"]
[{"$f":"IF($AV$7=\"\",\"\",IF($AV$7=\"A\",IF(EP1_A!A21=\"\",\"\",EP1_A!A21),IF($AV$7=\"B\",IF(EP1_B!A21=\"\",\"\",EP1_B!A21),IF($AV$7=\"C\",IF(EP1_C!A21=\"\",\"\",EP1_C!A21),IF($AV$7=\"D\",IF(EP1_D!A21=\"\",\"\",EP1_D!A21),IF($AV$7=\"E\",IF(EP1_E!A21=\"\",\"\",EP1_E!A21),IF($AV$7=\"F\",IF(EP1_F!A21=\"\",\"\",EP1_F!A21),IF($AV$7=\"G\",IF(EP1_G!A21=\"\",\"\",EP1_G!A21),IF($AV$7=\"H\",IF(EP1_H!A21=\"\",\"\",EP1_H!A21),\"\")))))))))","v":""},"Les délais d’interventions",null,null,null,null,null,null,null,null,null,null,null,null,null,null,null,null,null,null,null,null,null,{"$f":"IF($AV$7=\"\",\"\",IF($AV$7=\"A\",IF(EP1_A!X21=\"\",\"\",EP1_A!X21),IF($AV$7=\"B\",IF(EP1_B!X21=\"\",\"\",EP1_B!X21),IF($AV$7=\"C\",IF(EP1_C!X21=\"\",\"\",EP1_C!X21),IF($AV$7=\"D\",IF(EP1_D!X21=\"\",\"\",EP1_D!X21),IF($AV$7=\"E\",IF(EP1_E!X21=\"\",\"\",EP1_E!X21),IF($AV$7=\"F\",IF(EP1_F!X21=\"\",\"\",EP1_F!X21),IF($AV$7=\"G\",IF(EP1_G!X21=\"\",\"\",EP1_G!X21),IF($AV$7=\"H\",IF(EP1_H!X21=\"\",\"\",EP1_H!X21),\"\")))))))))","v":""},"Le bon de travail"]
[{"$f":"IF($AV$7=\"\",\"\",IF($AV$7=\"A\",IF(EP1_A!A22=\"\",\"\",EP1_A!A22),IF($AV$7=\"B\",IF(EP1_B!A22=\"\",\"\",EP1_B!A22),IF($AV$7=\"C\",IF(EP1_C!A22=\"\",\"\",EP1_C!A22),IF($AV$7=\"D\",IF(EP1_D!A22=\"\",\"\",EP1_D!A22),IF($AV$7=\"E\",IF(EP1_E!A22=\"\",\"\",EP1_E!A22),IF($AV$7=\"F\",IF(EP1_F!A22=\"\",\"\",EP1_F!A22),IF($AV$7=\"G\",IF(EP1_G!A22=\"\",\"\",EP1_G!A22),IF($AV$7=\"H\",IF(EP1_H!A22=\"\",\"\",EP1_H!A22),\"\")))))))))","v":""},"Un groupe de travail.",null,null,null,null,null,null,null,null,null,null,null,null,null,null,null,null,null,null,null,null,null,{"$f":"IF($AV$7=\"\",\"\",IF($AV$7=\"A\",IF(EP1_A!X22=\"\",\"\",EP1_A!X22),IF($AV$7=\"B\",IF(EP1_B!X22=\"\",\"\",EP1_B!X22),IF($AV$7=\"C\",IF(EP1_C!X22=\"\",\"\",EP1_C!X22),IF($AV$7=\"D\",IF(EP1_D!X22=\"\",\"\",EP1_D!X22),IF($AV$7=\"E\",IF(EP1_E!X22=\"\",\"\",EP1_E!X22),IF($AV$7=\"F\",IF(EP1_F!X22=\"\",\"\",EP1_F!X22),IF($AV$7=\"G\",IF(EP1_G!X22=\"\",\"\",EP1_G!X22),IF($AV$7=\"H\",IF(EP1_H!X22=\"\",\"\",EP1_H!X22),\"\")))))))))","v":""},"Le carnet de prescription de sécurité électrique"]
[{"$f":"IF($AV$7=\"\",\"\",IF($AV$7=\"A\",IF(EP1_A!A23=\"\",\"\",EP1_A!A23),IF($AV$7=\"B\",IF(EP1_B!A23=\"\",\"\",EP1_B!A23),IF($AV$7=\"C\",IF(EP1_C!A23=\"\",\"\",EP1_C!A23),IF($AV$7=\"D\",IF(EP1_D!A23=\"\",\"\",EP1_D!A23),IF($AV$7=\"E\",IF(EP1_E!A23=\"\",\"\",EP1_E!A23),IF($AV$7=\"F\",IF(EP1_F!A23=\"\",\"\",EP1_F!A23),IF($AV$7=\"G\",IF(EP1_G!A23=\"\",\"\",EP1_G!A23),IF($AV$7=\"H\",IF(EP1_H!A23=\"\",\"\",EP1_H!A23),\"\")))))))))","v":""},"La fiche de procédures",null,null,null,null,null,null,null,null,null,null,null,null,null,null,null,null,null,null,null,null,null,{"$f":"IF($AV$7=\"\",\"\",IF($AV$7=\"A\",IF(EP1_A!X23=\"\",\"\",EP1_A!X23),IF($AV$7=\"B\",IF(EP1_B!X23=\"\",\"\",EP1_B!X23),IF($AV$7=\"C\",IF(EP1_C!X23=\"\",\"\",EP1_C!X23),IF($AV$7=\"D\",IF(EP1_D!X23=\"\",\"\",EP1_D!X23),IF($AV$7=\"E\",IF(EP1_E!X23=\"\",\"\",EP1_E!X23),IF($AV$7=\"F\",IF(EP1_F!X23=\"\",\"\",EP1_F!X23),IF($AV$7=\"G\",IF(EP1_G!X23=\"\",\"\",EP1_G!X23),IF($AV$7=\"H\",IF(EP1_H!X23=\"\",\"\",EP1_H!X23),\"\")))))))))","v":""},"Les pièces de rechange, les consommables"]
[{"$f":"IF($AV$7=\"\",\"\",IF($AV$7=\"A\",IF(EP1_A!A24=\"\",\"\",EP1_A!A24),IF($AV$7=\"B\",IF(EP1_B!A24=\"\",\"\",EP1_B!A24),IF($AV$7=\"C\",IF(EP1_C!A24=\"\",\"\",EP1_C!A24),IF($AV$7=\"D\",IF(EP1_D!A24=\"\",\"\",EP1_D!A24),IF($AV$7=\"E\",IF(EP1_E!A24=\"\",\"\",EP1_E!A24),IF($AV$7=\"F\",IF(EP1_F!A24=\"\",\"\",EP1_F!A24),IF($AV$7=\"G\",IF(EP1_G!A24=\"\",\"\",EP1_G!A24),IF($AV$7=\"H\",IF(EP1_H!A24=\"\",\"\",EP1_H!A24),\"\")))))))))","v":""},"Le cahier des charges fonctionnel",null,null,null,null,null,null,null,null,null,null,null,null,null,null,null,null,null,null,null,null,null,{"$f":"IF($AV$7=\"\",\"\",IF($AV$7=\"A\",IF(EP1_A!X24=\"\",\"\",EP1_A!X24),IF($AV$7=\"B\",IF(EP1_B!X24=\"\",\"\",EP1_B!X24),IF($AV$7=\"C\",IF(EP1_C!X24=\"\",\"\",EP1_C!X24),IF($AV$7=\"D\",IF(EP1_D!X24=\"\",\"\",EP1_D!X24),IF($AV$7=\"E\",IF(EP1_E!X24=\"\",\"\",EP1_E!X24),IF($AV$7=\"F\",IF(EP1_F!X24=\"\",\"\",EP1_F!X24),IF($AV$7=\"G\",IF(EP1_G!X24=\"\",\"\",EP1_G!X24),IF($AV$7=\"H\",IF(EP1_H!X24=\"\",\"\",EP1_H!X24),\"\")))))))))","v":""},"Les équipements de protection individuels et collectifs"]
[{"$f":"IF($AV$7=\"\",\"\",IF($AV$7=\"A\",IF(EP1_A!A25=\"\",\"\",EP1_A!A25),IF($AV$7=\"B\",IF(EP1_B!A25=\"\",\"\",EP1_B!A25),IF($AV$7=\"C\",IF(EP1_C!A25=\"\",\"\",EP1_C!A25),IF($AV$7=\"D\",IF(EP1_D!A25=\"\",\"\",EP1_D!A25),IF($AV$7=\"E\",IF(EP1_E!A25=\"\",\"\",EP1_E!A25),IF($AV$7=\"F\",IF(EP1_F!A25=\"\",\"\",EP1_F!A25),IF($AV$7=\"G\",IF(EP1_G!A25=\"\",\"\",EP1_G!A25),IF($AV$7=\"H\",IF(EP1_H!A25=\"\",\"\",EP1_H!A25),\"\")))))))))","v":""},"Le plan de prévention",null,null,null,null,null,null,null,null,null,null,null,null,null,null,null,null,null,null,null,null,null,{"$f":"IF($AV$7=\"\",\"\",IF($AV$7=\"A\",IF(EP1_A!X25=\"\",\"\",EP1_A!X25),IF($AV$7=\"B\",IF(EP1_B!X25=\"\",\"\",EP1_B!X25),IF($AV$7=\"C\",IF(EP1_C!X25=\"\",\"\",EP1_C!X25),IF($AV$7=\"D\",IF(EP1_D!X25=\"\",\"\",EP1_D!X25),IF($AV$7=\"E\",IF(EP1_E!X25=\"\",\"\",EP1_E!X25),IF($AV$7=\"F\",IF(EP1_F!X25=\"\",\"\",EP1_F!X25),IF($AV$7=\"G\",IF(EP1_G!X25=\"\",\"\",EP1_G!X25),IF($AV$7=\"H\",IF(EP1_H!X25=\"\",\"\",EP1_H!X25),\"\")))))))))","v":""},"Les outillages, matériels de contrôle, de mesure, moyens de manutention."]
[{"$f":"IF($AV$7=\"\",\"\",IF($AV$7=\"A\",IF(EP1_A!A26=\"\",\"\",EP1_A!A26),IF($AV$7=\"B\",IF(EP1_B!A26=\"\",\"\",EP1_B!A26),IF($AV$7=\"C\",IF(EP1_C!A26=\"\",\"\",EP1_C!A26),IF($AV$7=\"D\",IF(EP1_D!A26=\"\",\"\",EP1_D!A26),IF($AV$7=\"E\",IF(EP1_E!A26=\"\",\"\",EP1_E!A26),IF($AV$7=\"F\",IF(EP1_F!A26=\"\",\"\",EP1_F!A26),IF($AV$7=\"G\",IF(EP1_G!A26=\"\",\"\",EP1_G!A26),IF($AV$7=\"H\",IF(EP1_H!A26=\"\",\"\",EP1_H!A26),\"\")))))))))","v":""},"Le constat de défaillance.",null,null,null,null,null,null,null,null,null,null,null,null,null,null,null,null,null,null,null,null,null,{"$f":"IF($AV$7=\"\",\"\",IF($AV$7=\"A\",IF(EP1_A!X26=\"\",\"\",EP1_A!X26),IF($AV$7=\"B\",IF(EP1_B!X26=\"\",\"\",EP1_B!X26),IF($AV$7=\"C\",IF(EP1_C!X26=\"\",\"\",EP1_C!X26),IF($AV$7=\"D\",IF(EP1_D!X26=\"\",\"\",EP1_D!X26),IF($AV$7=\"E\",IF(EP1_E!X26=\"\",\"\",EP1_E!X26),IF($AV$7=\"F\",IF(EP1_F!X26=\"\",\"\",EP1_F!X26),IF($AV$7=\"G\",IF(EP1_G!X26=\"\",\"\",EP1_G!X26),IF($AV$7=\"H\",IF(EP1_H!X26=\"\",\"\",EP1_H!X26),\"\")))))))))","v":""},"Les impératifs de production."]
["     ÇRepérer les données fournies",null,null,null,null,null,null,null,null,null,null,null,null,null,null,null,null,null,null,null,null,null,null,null,"ÇRepérer les données fournies"]
["Travail demandé"]
[{"$f":"IF($AV$7=\"\",\"\",IF($AV$7=\"A\",IF(EP1_A!A29=\"\",\"\",EP1_A!A29),IF($AV$7=\"B\",IF(EP1_B!A29=\"\",\"\",EP1_B!A29),IF($AV$7=\"C\",IF(EP1_C!A29=\"\",\"\",EP1_C!A29),IF($AV$7=\"D\",IF(EP1_D!A29=\"\",\"\",EP1_D!A29),IF($AV$7=\"E\",IF(EP1_E!A29=\"\",\"\",EP1_E!A29),IF($AV$7=\"F\",IF(EP1_F!A29=\"\",\"\",EP1_F!A29),IF($AV$7=\"G\",IF(EP1_G!A29=\"\",\"\",EP1_G!A29),IF($AV$7=\"H\",IF(EP1_H!A29=\"\",\"\",EP1_H!A29),\"\")))))))))","v":""},"A1T1",null,"Préparer son intervention et/ou la logistique associée.",null,null,null,null,null,null,null,null,null,null,null,null,null,null,null,null,null,null,null,{"$f":"IF($AV$7=\"\",\"\",IF($AV$7=\"A\",IF(EP1_A!X29=\"\",\"\",EP1_A!X29),IF($AV$7=\"B\",IF(EP1_B!X29=\"\",\"\",EP1_B!X29),IF($AV$7=\"C\",IF(EP1_C!X29=\"\",\"\",EP1_C!X29),IF($AV$7=\"D\",IF(EP1_D!X29=\"\",\"\",EP1_D!X29),IF($AV$7=\"E\",IF(EP1_E!X29=\"\",\"\",EP1_E!X29),IF($AV$7=\"F\",IF(EP1_F!X29=\"\",\"\",EP1_F!X29),IF($AV$7=\"G\",IF(EP1_G!X29=\"\",\"\",EP1_G!X29),IF($AV$7=\"H\",IF(EP1_H!X29=\"\",\"\",EP1_H!X29),\"\")))))))))","v":""},"A3T1",null,"Réaliser des opérations prescrites de contrôle et/ou de surveillance."]
[{"$f":"IF($AV$7=\"\",\"\",IF($AV$7=\"A\",IF(EP1_A!A30=\"\",\"\",EP1_A!A30),IF($AV$7=\"B\",IF(EP1_B!A30=\"\",\"\",EP1_B!A30),IF($AV$7=\"C\",IF(EP1_C!A30=\"\",\"\",EP1_C!A30),IF($AV$7=\"D\",IF(EP1_D!A30=\"\",\"\",EP1_D!A30),IF($AV$7=\"E\",IF(EP1_E!A30=\"\",\"\",EP1_E!A30),IF($AV$7=\"F\",IF(EP1_F!A30=\"\",\"\",EP1_F!A30),IF($AV$7=\"G\",IF(EP1_G!A30=\"\",\"\",EP1_G!A30),IF($AV$7=\"H\",IF(EP1_H!A30=\"\",\"\",EP1_H!A30),\"\")))))))))","v":""},"A1T2",null,"Rendre compte de son intervention.",null,null,null,null,null,null,null,null,null,null,null,null,null,null,null,null,null,null,null,{"$f":"IF($AV$7=\"\",\"\",IF($AV$7=\"A\",IF(EP1_A!X30=\"\",\"\",EP1_A!X30),IF($AV$7=\"B\",IF(EP1_B!X30=\"\",\"\",EP1_B!X30),IF($AV$7=\"C\",IF(EP1_C!X30=\"\",\"\",EP1_C!X30),IF($AV$7=\"D\",IF(EP1_D!X30=\"\",\"\",EP1_D!X30),IF($AV$7=\"E\",IF(EP1_E!X30=\"\",\"\",EP1_E!X30),IF($AV$7=\"F\",IF(EP1_F!X30=\"\",\"\",EP1_F!X30),IF($AV$7=\"G\",IF(EP1_G!X30=\"\",\"\",EP1_G!X30),IF($AV$7=\"H\",IF(EP1_H!X30=\"\",\"\",EP1_H!X30),\"\")))))))))","v":""},"A3T2",null,"Réaliser des opérations planifiées."]
[{"$f":"IF($AV$7=\"\",\"\",IF($AV$7=\"A\",IF(EP1_A!A31=\"\",\"\",EP1_A!A31),IF($AV$7=\"B\",IF(EP1_B!A31=\"\",\"\",EP1_B!A31),IF($AV$7=\"C\",IF(EP1_C!A31=\"\",\"\",EP1_C!A31),IF($AV$7=\"D\",IF(EP1_D!A31=\"\",\"\",EP1_D!A31),IF($AV$7=\"E\",IF(EP1_E!A31=\"\",\"\",EP1_E!A31),IF($AV$7=\"F\",IF(EP1_F!A31=\"\",\"\",EP1_F!A31),IF($AV$7=\"G\",IF(EP1_G!A31=\"\",\"\",EP1_G!A31),IF($AV$7=\"H\",IF(EP1_H!A31=\"\",\"\",EP1_H!A31),\"\")))))))))","v":""},"A1T3",null,"Proposer des améliorations sur l’environnement de son intervention.",null,null,null,null,null,null,null,null,null,null,null,null,null,null,null,null,null,null,null,{"$f":"IF($AV$7=\"\",\"\",IF($AV$7=\"A\",IF(EP1_A!X31=\"\",\"\",EP1_A!X31),IF($AV$7=\"B\",IF(EP1_B!X31=\"\",\"\",EP1_B!X31),IF($AV$7=\"C\",IF(EP1_C!X31=\"\",\"\",EP1_C!X31),IF($AV$7=\"D\",IF(EP1_D!X31=\"\",\"\",EP1_D!X31),IF($AV$7=\"E\",IF(EP1_E!X31=\"\",\"\",EP1_E!X31),IF($AV$7=\"F\",IF(EP1_F!X31=\"\",\"\",EP1_F!X31),IF($AV$7=\"G\",IF(EP1_G!X31=\"\",\"\",EP1_G!X31),IF($AV$7=\"H\",IF(EP1_H!X31=\"\",\"\",EP1_H!X31),\"\")))))))))","v":""},"A4T1",null,"Réaliser une amélioration validée."]
[{"$f":"IF($AV$7=\"\",\"\",IF($AV$7=\"A\",IF(EP1_A!A32=\"\",\"\",EP1_A!A32),IF($AV$7=\"B\",IF(EP1_B!A32=\"\",\"\",EP1_B!A32),IF($AV$7=\"C\",IF(EP1_C!A32=\"\",\"\",EP1_C!A32),IF($AV$7=\"D\",IF(EP1_D!A32=\"\",\"\",EP1_D!A32),IF($AV$7=\"E\",IF(EP1_E!A32=\"\",\"\",EP1_E!A32),IF($AV$7=\"F\",IF(EP1_F!A32=\"\",\"\",EP1_F!A32),IF($AV$7=\"G\",IF(EP1_G!A32=\"\",\"\",EP1_G!A32),IF($AV$7=\"H\",IF(EP1_H!A32=\"\",\"\",EP1_H!A32),\"\")))))))))","v":""},"A2T1",null,"Réparer un bien par remplacement de composants.",null,null,null,null,null,null,null,null,null,null,null,null,null,null,null,null,null,null,null,{"$f":"IF($AV$7=\"\",\"\",IF($AV$7=\"A\",IF(EP1_A!X32=\"\",\"\",EP1_A!X32),IF($AV$7=\"B\",IF(EP1_B!X32=\"\",\"\",EP1_B!X32),IF($AV$7=\"C\",IF(EP1_C!X32=\"\",\"\",EP1_C!X32),IF($AV$7=\"D\",IF(EP1_D!X32=\"\",\"\",EP1_D!X32),IF($AV$7=\"E\",IF(EP1_E!X32=\"\",\"\",EP1_E!X32),IF($AV$7=\"F\",IF(EP1_F!X32=\"\",\"\",EP1_F!X32),IF($AV$7=\"G\",IF(EP1_G!X32=\"\",\"\",EP1_G!X32),IF($AV$7=\"H\",IF(EP1_H!X32=\"\",\"\",EP1_H!X32),\"\")))))))))","v":""}]
[{"$f":"IF($AV$7=\"\",\"\",IF($AV$7=\"A\",IF(EP1_A!A33=\"\",\"\",EP1_A!A33),IF($AV$7=\"B\",IF(EP1_B!A33=\"\",\"\",EP1_B!A33),IF($AV$7=\"C\",IF(EP1_C!A33=\"\",\"\",EP1_C!A33),IF($AV$7=\"D\",IF(EP1_D!A33=\"\",\"\",EP1_D!A33),IF($AV$7=\"E\",IF(EP1_E!A33=\"\",\"\",EP1_E!A33),IF($AV$7=\"F\",IF(EP1_F!A33=\"\",\"\",EP1_F!A33),IF($AV$7=\"G\",IF(EP1_G!A33=\"\",\"\",EP1_G!A33),IF($AV$7=\"H\",IF(EP1_H!A33=\"\",\"\",EP1_H!A33),\"\")))))))))","v":""},"A2T2",null,"Réparer un bien par adaptation d’une pièce mécanique.",null,null,null,null,null,null,null,null,null,null,null,null,null,null,null,null,null,null,null,{"$f":"IF($AV$7=\"\",\"\",IF($AV$7=\"A\",IF(EP1_A!X33=\"\",\"\",EP1_A!X33),IF($AV$7=\"B\",IF(EP1_B!X33=\"\",\"\",EP1_B!X33),IF($AV$7=\"C\",IF(EP1_C!X33=\"\",\"\",EP1_C!X33),IF($AV$7=\"D\",IF(EP1_D!X33=\"\",\"\",EP1_D!X33),IF($AV$7=\"E\",IF(EP1_E!X33=\"\",\"\",EP1_E!X33),IF($AV$7=\"F\",IF(EP1_F!X33=\"\",\"\",EP1_F!X33),IF($AV$7=\"G\",IF(EP1_G!X33=\"\",\"\",EP1_G!X33),IF($AV$7=\"H\",IF(EP1_H!X33=\"\",\"\",EP1_H!X33),\"\")))))))))","v":""}]
["Consulter le référentiel des activités professionnelles pour obtenir le détail des tâches."]
["Ç Repérer les tâches demandées (ce sont celles qui correspondent à l’unité dans le référentiel de certification, à l’exclusion de toute autre)"]
["Appréciation globale et proposition de note : "]
[]
["Noms et signatures des évaluateurs :\n\n\n",null,null,null,null,null,null,null,null,null,null,null,null,null,null,null,null,null,null,null,null,null,null,null,null,null,null,null,null,null,null,null,null,null,null,"Note proposée :          ",null,null,null,null,{"$f":"IF(AI194=\"\",\"\",AI194)","v":""},null,null,"/20"]
[null,null,null,null,null,null,null,null,null,null,null,null,null,null,null,null,null,null,null,null,null,null,null,null,null,null,null,null,null,null,null,null,null,null,null,"Note affectée de son coefficient :",null,null,null,null,{"$f":"IF(AO38=\"\",\"\",AO38*5)","v":""},null,null,"/100"]
["Brevet d’Etudes Professionnelles «Maintenance des produits et équipements industriels »  – EP1",null,null,null,null,null,null,null,null,null,null,null,null,null,null,null,null,null,null,null,null,null,null,null,null,null,null,null,null,null,null,null,null,null,"Validé",null,null,null,"-       Synthèse    +"]
[]
["CP1.4 : Transmettre à l’écrit ou à l’oral des informations et des données techniques.",null,null,null,null,null,null,null,null,null,null,null,null,null,null,null,null,null,null,null,null,null,null,null,null,null,null,null,null,null,"Evalué",null,null,null,{"$f":"IF(AE42=\"Non Evalué\",\"NE\",IF(AE42=\"Evalué\",\"E\",\"\"))","v":"E"},{"$f":"COUNTIF(AI44:AL57,\"Validé\")","v":0},{"$f":"COUNTIF(AI44:AL57,\"Non Validé\")","v":0},{"$f":"COUNTIF(AI44:AL57,\"Non Evalué\")","v":0},null,null,null,null,null,null,null,null,null,{"$f":"IF(AE42=\"\",\"Souhaitez-vous évaluer la compétence ?\",IF(AND(AE42=\"Non Evalué\",OR(AJ42<>0,AK42<>0)),\"Vous avez choisi de ne pas évaluer la compétence. Ne rien indiquez dans la colonne Validé.\",IF(AND(AE42=\"Evalué\",OR(AI44=\"\",AI46=\"\",AI48=\"\",AI50=\"\",AI52=\"\",AI54=\"\",AI56=\"\",)),\"Vous avez choisi d'évaluer la compétence. Indiquez pour chaques actions : Validé, Non Validé ou Non Evalué.\",IF(OR(AE42=\"Non Evalué\",(AJ42+AK42)=0),\"\",CONCATENATE(ROUND((100*AJ43/(AJ43+AK43)),0),\" % d'actions validées. \",AJ42,\" validée(s) sur \",AJ42+AK42,\" . Conseil: Au maximum , grisez \",ROUND((100*AJ43/(AJ43+AK43))*8/100,0),\" colonnes\")))))","v":"Vous avez choisi d'évaluer la compétence. Indiquez pour chaques actions : Validé, Non Validé ou Non Evalué."}]
[null,null,null,null,null,null,null,null,null,null,null,null,null,null,null,null,null,null,null,null,null,null,null,null,null,null,null,null,null,null,null,null,null,null,null,{"$f":"SUMPRODUCT((AI44:AL57=\"Validé\")*(Bareme!AE6:AE19))","v":0},{"$f":"SUMPRODUCT((AI44:AL57=\"Non Validé\")*(Bareme!AE6:AE19))","v":0}]
["C 141",null,null,"Renseigner les documents techniques relatifs à son activité de maintenance.\nRenseigner les fichiers informatiques.",null,null,null,null,null,null,null,null,null,"Les informations sont exploitables, suffisantes et sans excès, elles permettent en particulier :\n• la mise à jour de la GMAO,\n• la gestion des documents d’intervention.",null,null,null,null,null,null,null,null,null,null,null,null,null,null,null,null,null,null,null,null,null,null,null,null,null,null,null,null,null,null,null,null,null,0]
[null,null,null,null,null,null,null,null,null,null,null,null,null,null,null,null,null,null,null,null,null,null,null,null,null,null,null,null,null,null,null,null,null,null,null,null,null,null,"Commentaires:\n"]
["C 142",null,null,"Réaliser un croquis de forme, de dimensions, d’implantation.\nNotifier sous forme d’un schéma ou d’une nomenclature les écarts constatés.",null,null,null,null,null,null,null,null,null,"Le croquis comporte toutes les informations nécessaires."]
[]
[null,null,null,null,null,null,null,null,null,null,null,null,null,"Le schéma ou la nomenclature permet l’identification des écarts."]
[]
["C 143",null,null,"Dialoguer dans un langage technique.\nEchanger au sein d’une équipe, d’un groupe de travail.\n",null,null,null,null,null,null,null,null,null,"Le langage technique utilisé est adapté au message à transmettre."]
[]
[null,null,null,null,null,null,null,null,null,null,null,null,null,"Les informations échangées sont pertinentes. "]
[]
[null,null,null,null,null,null,null,null,null,null,null,null,null,"L’intervention des membres du groupe est respectée."]
[]
[null,null,null,null,null,null,null,null,null,null,null,null,null,"La participation est active."]
[]
["CP1.5 : Analyser son intervention et l’environnement",null,null,null,null,null,null,null,null,null,null,null,null,null,null,null,null,null,null,null,null,null,null,null,null,null,null,null,null,null,"Evalué",null,null,null,{"$f":"IF(AE58=\"Non Evalué\",\"NE\",IF(AE58=\"Evalué\",\"E\",\"\"))","v":"E"},{"$f":"COUNTIF(AI60:AL71,\"Validé\")","v":0},{"$f":"COUNTIF(AI60:AL71,\"Non Validé\")","v":0},{"$f":"COUNTIF(AI60:AL71,\"Non Evalué\")","v":0},null,null,null,null,null,null,null,null,null,{"$f":"IF(AE58=\"\",\"Souhaitez-vous évaluer la compétence ?\",IF(AND(AE58=\"Non Evalué\",OR(AJ58<>0,AK58<>0)),\"Vous avez choisi de ne pas évaluer la compétence. Ne rien indiquez dans la colonne Validé.\",IF(AND(AE58=\"Evalué\",OR(AI60=\"\",AI62=\"\",AI64=\"\",AI66=\"\",AI68=\"\",AI70=\"\")),\"Vous avez choisi d'évaluer la compétence. Indiquez pour chaques actions : Validé, Non Validé ou Non Evalué.\",IF(OR(AE58=\"Non Evalué\",(AJ58+AK58)=0),\"\",CONCATENATE(ROUND((100*AJ59/(AJ59+AK59)),0),\" % d'actions validées. \",AJ58,\" validée(s) sur \",AJ58+AK58,\" . Conseil: Au maximum , grisez \",ROUND((100*AJ59/(AJ59+AK59))*8/100,0),\" colonnes\")))))","v":"Vous avez choisi d'évaluer la compétence. Indiquez pour chaques actions : Validé, Non Validé ou Non Evalué."}]
[null,null,null,null,null,null,null,null,null,null,null,null,null,null,null,null,null,null,null,null,null,null,null,null,null,null,null,null,null,null,null,null,null,null,null,{"$f":"SUMPRODUCT((AI60:AL71=\"Validé\")*(Bareme!AE22:AE33))","v":0},{"$f":"SUMPRODUCT((AI60:AL71=\"Non Validé\")*(Bareme!AE22:AE33))","v":0}]
["C 151",null,null,"Observer l’environnement de son intervention et relever les anomalies en rapport avec :\n- l’accessibilité,\n- l’éclairage,\n- le bruit, la chaleur,\n- la pollution, le rayonnement,\n- l’incompatibilité chimique,\n- la maintenabilité.",null,null,null,null,null,null,null,null,null,"Les éléments relatifs à l’environnement de son intervention, décrits dans le dossier de préparation sont assimilés.",null,null,null,null,null,null,null,null,null,null,null,null,null,null,null,null,null,null,null,null,null,null,null,null,null,null,null,null,null,null,null,null,null,0]
[]
[null,null,null,null,null,null,null,null,null,null,null,null,null,"Les manquements ou difficultés rencontrées sont relevés",null,null,null,null,null,null,null,null,null,null,null,null,null,null,null,null,null,null,null,null,null,null,null,null,"Commentaires:\n"]
[]
["C 152",null,null,"S’interroger sur son intervention et constater le besoin d’amélioration en rapport avec :\n- la mise en œuvre des outillages, des appareils de mesure,…,\n- le respect des procédures prescrites,\n- le contenu de la documentation technique, du dossier de maintenance,…,\n- les conditions de travail et de sécurité,\n- la maintenabilité du bien.",null,null,null,null,null,null,null,null,null,"Le besoin est clairement identifié et correspond à une véritable problématique."]
[]
["C 153",null,null,"Signaler à l’oral et/ou à l’écrit :\n- les écarts et dérives du composant, du bien, ou de son environnement ;\n- toutes nouvelles situations dangereuses.",null,null,null,null,null,null,null,null,null,"Toutes les situations dangereuses, les écarts et les dérives sont clairement signalés."]
[]
[null,null,null,null,null,null,null,null,null,null,null,null,null,"Le choix de l’interlocuteur et le mode de signalement permettent une réaction rapide et efficace."]
[]
["C 154",null,null,"Proposer à l’oral et/ou à l’écrit les éléments nécessaires à la mise en œuvre d’améliorations.",null,null,null,null,null,null,null,null,null,"Les propositions sont pertinentes. "]
[]
["Brevet d’Etudes Professionnelles «Maintenance des produits et équipements industriels »  – EP1",null,null,null,null,null,null,null,null,null,null,null,null,null,null,null,null,null,null,null,null,null,null,null,null,null,null,null,null,null,null,null,null,null,"Validé",null,null,null,"-       Synthèse    +"]
[]
["CP2.1 : Remplacer ou installer un sous ensemble, un composant.",null,null,null,null,null,null,null,null,null,null,null,null,null,null,null,null,null,null,null,null,null,null,null,null,null,null,null,null,null,"Evalué",null,null,null,{"$f":"IF(AE74=\"Non Evalué\",\"NE\",IF(AE74=\"Evalué\",\"E\",\"\"))","v":"E"},{"$f":"COUNTIF(AI76:AL109,\"Validé\")","v":0},{"$f":"COUNTIF(AI76:AL109,\"Non Validé\")","v":0},{"$f":"COUNTIF(AI76:AL109,\"Non Evalué\")","v":0},null,null,null,null,null,null,null,null,null,{"$f":"IF(AE74=\"\",\"Souhaitez-vous évaluer la compétence ?\",IF(AND(AE74=\"Non Evalué\",OR(AJ74<>0,AK74<>0)),\"Vous avez choisi de ne pas évaluer la compétence. Ne rien indiquez dans la colonne Validé.\",IF(AND(AE74=\"Evalué\",OR(AI76=\"\",AI78=\"\",AI80=\"\",AI82=\"\",AI84=\"\",AI86=\"\",AI88=\"\",AI90=\"\",AI92=\"\",AI94=\"\",AI96=\"\",AI98=\"\",AI100=\"\",AI102=\"\",AI104=\"\",AI106=\"\",AI108=\"\")),\"Vous avez choisi d'évaluer la compétence. Indiquez pour chaques actions : Validé, Non Validé ou Non Evalué.\",IF(OR(AE74=\"Non Evalué\",(AJ74+AK74)=0),\"\",CONCATENATE(ROUND((100*AJ75/(AJ75+AK75)),0),\" % d'actions validées. \",AJ74,\" validée(s) sur \",AJ74+AK74,\" . Conseil: Au maximum , grisez \",ROUND((100*AJ75/(AJ75+AK75))*8/100,0),\" colonnes\")))))","v":"Vous avez choisi d'évaluer la compétence. Indiquez pour chaques actions : Validé, Non Validé ou Non Evalué."}]
[null,null,null,null,null,null,null,null,null,null,null,null,null,null,null,null,null,null,null,null,null,null,null,null,null,null,null,null,null,null,null,null,null,null,null,{"$f":"SUMPRODUCT((AI76:AL109=\"Validé\")*(Bareme!AE36:AE69))","v":0},{"$f":"SUMPRODUCT((AI76:AL109=\"Non Validé\")*(Bareme!AE36:AE69))","v":0}]
["C 211",null,null,"Vérifier le bon état et la conformité des matériels rassemblés selon le dossier de préparation ",null,null,null,null,null,null,null,null,null,"Les outillages, les consommables, les moyens de manutention, le sous ensemble ou le composant sont rassemblés et vérifiés.",null,null,null,null,null,null,null,null,null,null,null,null,null,null,null,null,null,null,null,null,null,null,null,null,null,null,null,null,null,null,null,null,null,0]
[]
[null,null,null,null,null,null,null,null,null,null,null,null,null,"Toutes indisponibilités sont signalées et expliquées."]
[]
["C 212",null,null,"Localiser le sous ensemble ou le composant.",null,null,null,null,null,null,null,null,null,"Le sous ensemble et ses frontières sont situés sur le bien sans erreur."]
[]
["C 213",null,null,"Localiser les éléments d’assemblage et de liaison du sous-ensemble du bien.",null,null,null,null,null,null,null,null,null,"Les éléments d’assemblage et de liaison relatifs à la dépose sont :\n- tous identifiés ;\n- situés sur le bien. "]
[]
["C 214",null,null,"Effectuer les repérages nécessaires (positions, réglages…)",null,null,null,null,null,null,null,null,null,"Le repérage effectué :\n- optimise la durée de l’intervention,\n- évite les erreurs,\n- facilite les réglages.",null,null,null,null,null,null,null,null,null,null,null,null,null,null,null,null,null,null,null,null,null,null,null,null,"Commentaires:\n"]
[]
["C 215",null,null,"Déposer le sous ensemble ou le composant :\n- étayer, élinguer, …le sous ensemble,\n- déconnecter,\n- désolidariser,\n- manutentionner,\n- inspecter, nettoyer, ranger.",null,null,null,null,null,null,null,null,null,"Les consignes et procédures sont respectées."]
[]
[null,null,null,null,null,null,null,null,null,null,null,null,null,"Les outillages choisis parmi les matériels préparés et vérifiés, sont adaptés et correctement utilisés."]
[]
[null,null,null,null,null,null,null,null,null,null,null,null,null,"Les moyens de manutention sont correctement mis en œuvre."]
[]
[null,null,null,null,null,null,null,null,null,null,null,null,null,"Les éléments d’assemblage et les pièces sont :\n- nettoyés,\n- contrôlés,\n- échangés si nécessaire,\n- rangés et ordonnancés en préparation de l’activité de repose."]
[]
[null,null,null,null,null,null,null,null,null,null,null,null,null,"Le sous-ensemble ou le composant est déposé sans détérioration du bien."]
[]
["C 216",null,null,"Installer sur le bien le sous ensemble ou le composant neuf ou réparé :\n- manutentionner,\n- fixer, connecter,\n- régler.",null,null,null,null,null,null,null,null,null,"Le bon état du sous-ensemble ou du composant est vérifié."]
[]
[null,null,null,null,null,null,null,null,null,null,null,null,null,"Le sous-ensemble ou le composant est installé et raccordé :\n- sans erreur\n- sans risque pour les personnes et le bien."]
[]
[null,null,null,null,null,null,null,null,null,null,null,null,null,"Le sous-ensemble ou le composant est réglé selon les procédures."]
[]
[null,null,null,null,null,null,null,null,null,null,null,null,null,"Le fonctionnement du sous-ensemble ou du composant sur le bien est :\n- vérifié,\n- conforme aux résultats attendus."]
[]
["C 217",null,null,"Maîtriser les risques tout au long de l’intervention.",null,null,null,null,null,null,null,null,null,"Les activités liées à l’intervention (déplacement de charges, manipulation de produits…) n’interfèrent pas sur la sécurité des personnes et des biens."]
[]
[null,null,null,null,null,null,null,null,null,null,null,null,null,"Les risques sont identifiés et les mesures de prévention respectées."]
[]
[null,null,null,null,null,null,null,null,null,null,null,null,null,"Le plan de prévention est compris et appliqué."]
[]
["Brevet d’Etudes Professionnelles «Maintenance des produits et équipements industriels »  – EP1",null,null,null,null,null,null,null,null,null,null,null,null,null,null,null,null,null,null,null,null,null,null,null,null,null,null,null,null,null,null,null,null,null,"Validé",null,null,null,"-       Synthèse    +"]
[]
["CP2.5 : Organiser sa zone de travail.",null,null,null,null,null,null,null,null,null,null,null,null,null,null,null,null,null,null,null,null,null,null,null,null,null,null,null,null,null,"Evalué",null,null,null,{"$f":"IF(AE112=\"Non Evalué\",\"NE\",IF(AE112=\"Evalué\",\"E\",\"\"))","v":"E"},{"$f":"COUNTIF(AI114:AL135,\"Validé\")","v":0},{"$f":"COUNTIF(AI114:AL135,\"Non Validé\")","v":0},{"$f":"COUNTIF(AI114:AL135,\"Non Evalué\")","v":0},null,null,null,null,null,null,null,null,null,{"$f":"IF(AE112=\"\",\"Souhaitez-vous évaluer la compétence ?\",IF(AND(AE112=\"Non Evalué\",OR(AJ112<>0,AK112<>0)),\"Vous avez choisi de ne pas évaluer la compétence. Ne rien indiquez dans la colonne Validé.\",IF(AND(AE112=\"Evalué\",OR(AI114=\"\",AI116=\"\",AI118=\"\",AI120=\"\",AI122=\"\",AI124=\"\",AI126=\"\",AI128=\"\",AI130=\"\",AI132=\"\",AI134=\"\")),\"Vous avez choisi d'évaluer la compétence. Indiquez pour chaques actions : Validé, Non Validé ou Non Evalué.\",IF(OR(AE112=\"Non Evalué\",(AJ112+AK112)=0),\"\",CONCATENATE(ROUND((100*AJ113/(AJ113+AK113)),0),\" % d'actions validées. \",AJ112,\" validée(s) sur \",AJ112+AK112,\" . Conseil: Au maximum , grisez \",ROUND((100*AJ113/(AJ113+AK113))*8/100,0),\" colonnes\")))))","v":"Vous avez choisi d'évaluer la compétence. Indiquez pour chaques actions : Validé, Non Validé ou Non Evalué."}]
[null,null,null,null,null,null,null,null,null,null,null,null,null,null,null,null,null,null,null,null,null,null,null,null,null,null,null,null,null,null,null,null,null,null,null,{"$f":"SUMPRODUCT((AI114:AL135=\"Validé\")*(Bareme!AE72:AE93))","v":0},{"$f":"SUMPRODUCT((AI114:AL135=\"Non Validé\")*(Bareme!AE72:AE93))","v":0}]
["C 251",null,null,"Délimiter sa zone d’intervention.",null,null,null,null,null,null,null,null,null,"La signalisation et le balisage : garantissent la sécurité des personnes et des biens, n’altèrent pas l’accessibilité de la zone par l’exécutant.",null,null,null,null,null,null,null,null,null,null,null,null,null,null,null,null,null,null,null,null,null,null,null,null,null,null,null,null,null,null,null,null,null,0]
[]
["C 252",null,null,"Classer l’outillage et les composants nécessaires à l’intervention.",null,null,null,null,null,null,null,null,null,"Les composants et les outillages sont rangés et disposés de façon à : ne pas être dégradés, ne pas altérer la prévention des risques, optimiser le temps d’intervention."]
[null,null,null,null,null,null,null,null,null,null,null,null,null,null,null,null,null,null,null,null,null,null,null,null,null,null,null,null,null,null,null,null,null,null,null,null,null,null,"Commentaires:\n"]
["C 253",null,null,"Nettoyer la zone d’intervention.",null,null,null,null,null,null,null,null,null,"Pendant l’intervention l’état de propreté : facilite l’exécution, n’altère pas la prévention des risques."]
[]
[null,null,null,null,null,null,null,null,null,null,null,null,null,"A la fin de l’intervention l’état de propreté de la zone respecte les critères de qualité de l’exploitation du bien."]
[]
["C 254",null,null,"Trier, éliminer les déchets.",null,null,null,null,null,null,null,null,null,"Les déchets sont éliminés dans le respect de l’environnement : tri sélectif, stockage dans les containers appropriés."]
[]
["C 255",null,null,"Restituer les outillages, les pièces et les consommables non utilisés.",null,null,null,null,null,null,null,null,null,"La totalité des outillages est contrôlée et réintégrée."]
[]
[null,null,null,null,null,null,null,null,null,null,null,null,null,"Les consommables et pièces non utilisées sont restituées."]
[]
[null,null,null,null,null,null,null,null,null,null,null,null,null,"Tous les éléments défectueux ou endommagés sont repérés et signalés."]
[]
["C 256",null,null,"Maîtriser les risques tout au long de l’intervention.",null,null,null,null,null,null,null,null,null,"Les risques sont identifiés et les mesures de prévention respectées."]
[]
[null,null,null,null,null,null,null,null,null,null,null,null,null,"Le plan de prévention est compris et appliqué."]
[]
[null,null,null,null,null,null,null,null,null,null,null,null,null,"Le cas échéant les zones à accès réglementés sont identifiées, les protocoles d’accès sont respectés en lien avec les autorisations et habilitations  nécessaires. "]
[]
["CP2.7 : Exécuter des opérations de surveillance et/ou de contrôle",null,null,null,null,null,null,null,null,null,null,null,null,null,null,null,null,null,null,null,null,null,null,null,null,null,null,null,null,null,"Evalué",null,null,null,{"$f":"IF(AE136=\"Non Evalué\",\"NE\",IF(AE136=\"Evalué\",\"E\",\"\"))","v":"E"},{"$f":"COUNTIF(AI138:AL167,\"Validé\")","v":0},{"$f":"COUNTIF(AI138:AL167,\"Non Validé\")","v":0},{"$f":"COUNTIF(AI138:AL167,\"Non Evalué\")","v":0},null,null,null,null,null,null,null,null,null,{"$f":"IF(AE136=\"\",\"Souhaitez-vous évaluer la compétence ?\",IF(AND(AE136=\"Non Evalué\",OR(AJ136<>0,AK136<>0)),\"Vous avez choisi de ne pas évaluer la compétence. Ne rien indiquez dans la colonne Validé.\",IF(AND(AE136=\"Evalué\",OR(AI138=\"\",AI140=\"\",AI142=\"\",AI144=\"\",AI146=\"\",AI148=\"\",AI150=\"\",AI152=\"\",AI154=\"\",AI156=\"\",AI158=\"\",AI160=\"\",AI162=\"\",AI164=\"\",AI166=\"\")),\"Vous avez choisi d'évaluer la compétence. Indiquez pour chaques actions : Validé, Non Validé ou Non Evalué.\",IF(OR(AE136=\"Non Evalué\",(AJ136+AK136)=0),\"\",CONCATENATE(ROUND((100*AJ137/(AJ137+AK137)),0),\" % d'actions validées. \",AJ136,\" validée(s) sur \",AJ136+AK136,\" . Conseil: Au maximum , grisez \",ROUND((100*AJ137/(AJ137+AK137))*8/100,0),\" colonnes\")))))","v":"Vous avez choisi d'évaluer la compétence. Indiquez pour chaques actions : Validé, Non Validé ou Non Evalué."}]
[null,null,null,null,null,null,null,null,null,null,null,null,null,null,null,null,null,null,null,null,null,null,null,null,null,null,null,null,null,null,null,null,null,null,null,{"$f":"SUMPRODUCT((AI138:AL167=\"Validé\")*(Bareme!AE96:AE125))","v":0},{"$f":"SUMPRODUCT((AI138:AL167=\"Non Validé\")*(Bareme!AE96:AE125))","v":0}]
["C 271",null,null,"Rassembler et vérifier les appareils de contrôle, les outillages, les équipements de protection",null,null,null,null,null,null,null,null,null,"Les appareils de contrôle choisis et vérifiés permettent d’effectuer les mesures.",null,null,null,null,null,null,null,null,null,null,null,null,null,null,null,null,null,null,null,null,null,null,null,null,null,null,null,null,null,null,null,null,null,0]
[]
[null,null,null,null,null,null,null,null,null,null,null,null,null,"Les outillages, les équipements de protection sont adaptés et en bon état."]
[]
["C 272",null,null,"Surveiller un bien :\n- vérifier le fonctionnement (bruit, chaleur, cadence...)\n- vérifier les données de contrôle (indicateurs, voyants…).",null,null,null,null,null,null,null,null,null,"La procédure de surveillance est respectée."]
[]
[null,null,null,null,null,null,null,null,null,null,null,null,null,"La prise en compte de tous les indicateurs permet : de qualifier le fonctionnement du bien, de relever les anomalies ou le dérives."]
[]
[null,null,null,null,null,null,null,null,null,null,null,null,null,"Les sens auditifs, visuels, olfactifs sont mobilisés."]
[]
["C 273",null,null,"Effectuer des relevés :\n- Localiser les points de contrôle ou de mesures sur le bien\n-  régler, calibrer les appareils ou matériels de contrôle,\n- collecter et reporter les résultats des mesures et des contrôles",null,null,null,null,null,null,null,null,null,"Les points de contrôles ou de mesures sont localisés.",null,null,null,null,null,null,null,null,null,null,null,null,null,null,null,null,null,null,null,null,null,null,null,null,"Commentaires:\n"]
[]
[null,null,null,null,null,null,null,null,null,null,null,null,null,"Les appareils de mesure, de contrôle sont correctement calibrés."]
[]
[null,null,null,null,null,null,null,null,null,null,null,null,null,"Toutes les mesures des grandeurs sont effectuées dans le respect des procédures et des matériels."]
[]
[null,null,null,null,null,null,null,null,null,null,null,null,null,"Les résultats sont conformes à l’existant et exploitables."]
[]
[null,null,null,null,null,null,null,null,null,null,null,null,null,"Les données numériques sont mémorisées."]
[]
[null,null,null,null,null,null,null,null,null,null,null,null,null,"Les valeurs lues sont reportées sur les fiches de contrôle."]
[]
["C 274",null,null,"Transmettre :\n- les résultats de la surveillance,\n- les anomalies, les dérives,\n- les relevés des mesures ou contrôles,\n- les données numériques.",null,null,null,null,null,null,null,null,null,"Les fiches de contrôle ou les données numériques sont transmises au service chargé de l’analyse des résultats."]
[]
[null,null,null,null,null,null,null,null,null,null,null,null,null,"Les anomalies et les dérives flagrantes sont signalées."]
[]
["C 275",null,null,"Maîtriser les risques tout au long de l’intervention.",null,null,null,null,null,null,null,null,null,"Les risques sont identifiés et les mesures de prévention respectées."]
[]
[null,null,null,null,null,null,null,null,null,null,null,null,null,"Le plan de prévention est compris et appliqué."]
[]
[]
[]
[]
[]
[]
[]
[]
[]
[]
[]
[]
[]
[]
[]
[]
[]
[]
[]
[]
[]
[]
[]
[]
[null,null,null,null,{"$f":"IF(OR(I203=\"\",(AND(AE42=\"\",AE58=\"\",AE74=\"\",AE112=\"\"))=0),\"\",CONCATENATE(\"PROPOSITION: \",CEILING(I203,0.5),\"/20 (\",ROUND(100*COUNTIF(U202:U206,\"E\")/(COUNTIF(U202:U206,\"E\")+COUNTIF(U202:U206,\"NE\")),0),\"% des compétences évaluées).\"))","v":"PROPOSITION: 0/20 (100% des compétences évaluées)."}]
[]
[]
[null,null,null,null,"Proposition des évaluateurs:"]
[]
[]
[]
[]
[null,null,"Ne pas effacer"]
[null,null,null,null,null,null,null,null,null,null,null,null,null,null,{"$f":"CONCATENATE(\"Statistique EP1 de \",$AE$4)","v":{"$error":"#N/A"}}]
[null,null,null,null,null,null,null,null,null,null,null,null,null,null,"Compétences",{"$f":"IF(AE4=\"\",\"\",AE4)","v":{"$error":"#N/A"}},"Satisfaction maximale","Satisfaction moyenne",{"$f":"CONCATENATE(\"Statistique EP1 de \",$AE$4)","v":{"$error":"#N/A"}},"Coefficients","Validée ou Non Validée"]
[null,null,"Somme",null,null,null,null,null,{"$f":"SUMPRODUCT((P202:P206))","v":0},null,{"$f":"SUM(Q202:Q206)","v":800},null,null,null,{"$f":"A42","v":"CP1.4 : Transmettre à l’écrit ou à l’oral des informations et des données techniques."},{"$f":"IF(OR(U202=\"NE\",U202=\"\"),\"\",S202*T202)","v":0},{"$f":"IF(OR(U202=\"NE\",U202=\"\"),\"\",T202*8)","v":80},{"$f":"IF(OR(U202=\"NE\",U202=\"\"),\"\",Q202/2)","v":40},{"$f":"IF($AV$44=\"\",\"\",$AV$44)","v":0},{"$f":"Bareme!AE4","v":10},{"$f":"IF(AI42=\"\",\"\",AI42)","v":"E"}]
[null,null,"Moyenne /20",null,null,null,null,null,{"$f":"IF($K$202=0,\"\",K203*$I$202/$K$202)","v":0},null,20,null,null,null,{"$f":"A58","v":"CP1.5 : Analyser son intervention et l’environnement"},0,120,60,{"$f":"IF($AV$60=\"\",\"\",$AV$60)","v":0},{"$f":"Bareme!AE20","v":15},{"$f":"IF(AI58=\"\",\"\",AI58)","v":"E"}]
[null,null,null,null,null,null,null,null,null,null,null,null,null,null,{"$f":"A74","v":"CP2.1 : Remplacer ou installer un sous ensemble, un composant."},0,240,120,{"$f":"IF($AV$76=\"\",\"\",$AV$76)","v":0},{"$f":"Bareme!AE34","v":30},{"$f":"IF(AI74=\"\",\"\",AI74)","v":"E"}]
[null,null,null,null,null,null,null,null,null,null,null,null,null,null,{"$f":"A112","v":"CP2.5 : Organiser sa zone de travail."},0,120,60,{"$f":"IF($AV$114=\"\",\"\",$AV$114)","v":0},{"$f":"Bareme!AE70","v":15},{"$f":"IF(AI112=\"\",\"\",AI112)","v":"E"}]
[null,null,null,null,null,null,null,null,null,null,null,null,null,null,{"$f":"A136","v":"CP2.7 : Exécuter des opérations de surveillance et/ou de contrôle"},{"$f":"IF(OR(U206=\"NE\",U206=\"\"),\"\",S206*T206)","v":0},{"$f":"IF(OR(U206=\"NE\",U206=\"\"),\"\",T206*8)","v":240},{"$f":"IF(OR(U206=\"NE\",U206=\"\"),\"\",Q206/2)","v":120},{"$f":"IF($AV$138=\"\",\"\",$AV$138)","v":0},{"$f":"Bareme!AE94","v":30},{"$f":"IF(AI136=\"\",\"\",AI136)","v":"E"}]
[]
[null,null,"Ne pas effacer"]

{"sheet":"EP2.1_01","index":5,"n_rows":111,"n_cols":48,"rows_kept":111,"cut":false,"hidden":true,"merged":[[100,4,102,33],[100,34,102,39],[105,14,105,27],[89,38,94,45],[91,13,92,33],[91,34,92,37],[93,13,94,33],[93,34,94,37],[97,4,99,39],[87,0,88,2],[87,3,88,12],[87,13,88,33],[87,34,88,37],[89,0,94,2],[89,3,94,12],[89,13,90,33],[89,34,90,37],[81,38,81,45],[82,38,82,45],[83,0,84,29],[83,30,84,33],[71,13,72,33],[71,34,72,37],[73,0,74,2],[73,3,74,12],[73,13,74,33],[73,34,74,37],[83,47,84,49],[85,0,86,2],[85,3,86,12],[85,13,86,33],[85,34,86,37],[79,0,80,2],[79,3,80,12],[79,13,80,33],[79,34,80,37],[81,0,82,33],[81,34,82,37],[65,13,66,33],[65,34,66,37],[67,13,68,33],[67,34,68,37],[69,13,70,33],[69,34,70,37],[59,34,60,37],[59,38,80,45],[61,0,64,2],[61,3,64,12],[61,13,62,33],[61,34,62,37],[63,13,64,33],[63,34,64,37],[65,0,70,2],[65,3,70,12],[75,0,78,2],[75,3,78,12],[75,13,76,33],[75,34,76,37],[77,13,78,33],[77,34,78,37],[71,0,72,2],[71,3,72,12],[55,0,56,2],[55,3,56,12],[55,13,56,33],[55,34,56,37],[57,0,60,2],[57,3,60,12],[57,13,58,33],[57,34,58,37],[59,13,60,33],[53,0,54,29],[53,30,54,33],[47,13,48,33],[47,34,48,37],[49,0,50,2],[49,3,50,12],[49,13,50,33],[49,34,50,37],[53,47,54,49],[41,47,42,49],[43,0,44,2],[43,3,44,12],[43,13,44,33],[43,34,44,37],[45,0,48,2],[45,3,48,12],[45,13,46,33],[45,34,46,37],[45,38,52,45],[51,0,52,2],[51,3,52,12],[51,13,52,33],[51,34,52,37],[39,0,40,33],[39,34,40,37],[39,38,39,45],[40,38,40,45],[41,0,42,29],[41,30,42,33],[33,0,33,45],[35,0,35,45],[36,0,36,45],[37,0,38,34],[37,35,37,39],[37,40,37,42],[37,43,37,45],[38,35,38,39],[38,40,38,42],[38,43,38,45],[31,1,31,2],[31,3,31,22],[31,24,31,25],[31,26,31,45],[32,1,32,2],[32,3,32,22],[32,24,32,25],[32,26,32,45],[29,1,29,2],[29,3,29,22],[29,24,29,25],[29,26,29,45],[30,1,30,2],[30,3,30,22],[30,24,30,25],[30,26,30,45],[24,1,24,22],[24,24,24,45],[25,1,25,22],[25,24,25,45],[27,0,27,45],[28,1,28,2],[28,3,28,22],[28,24,28,25],[28,26,28,45],[21,1,21,22],[21,24,21,45],[22,1,22,22],[22,24,22,45],[23,1,23,22],[23,24,23,45],[18,1,18,22],[18,24,18,45],[19,1,19,22],[19,24,19,45],[20,1,20,22],[20,24,20,45],[15,1,15,22],[15,24,15,45],[16,1,16,22],[16,24,16,45],[17,1,17,22],[17,24,17,45],[9,0,9,45],[10,0,10,45],[12,0,12,45],[13,1,13,22],[13,24,13,45],[14,1,14,22],[14,24,14,45],[5,30,5,45],[5,47,5,48],[6,0,6,45],[6,47,7,48],[7,0,7,45],[8,0,8,45],[0,0,0,45],[1,0,1,45],[2,0,2,22],[2,23,2,29],[2,30,2,45],[3,0,5,22],[3,23,3,29],[3,30,4,45],[4,23,4,29],[5,23,5,29]]}
["Brevet d’Etudes Professionnelles «Maintenance des produits et équipements industriels » "]
["EP2.1 : Préparation de son intervention"]
["Établissement : (tampon)",null,null,null,null,null,null,null,null,null,null,null,null,null,null,null,null,null,null,null,null,null,null,"Session : ",null,null,null,null,null,null,{"$f":"IF(Bilan!B2=\"\",\"\",Bilan!B2)","v":""}]
[{"$f":"IF(Bilan!B3=\"\",\"\",Bilan!B3)","v":""},null,null,null,null,null,null,null,null,null,null,null,null,null,null,null,null,null,null,null,null,null,null,"Nom du candidat:",null,null,null,null,null,null,{"$f":"IF(INDEX((Bilan!B5:B34),(MATCH(RIGHT(CELL(\"nomfichier\",A1),LEN(CELL(\"nomfichier\",A1))-FIND(\"]\",CELL(\"nomfichier\",A1))),Bilan!E5:E34,0)))=\"\",\"\",INDEX((Bilan!B5:B34),(MATCH(RIGHT(CELL(\"nomfichier\",A1),LEN(CELL(\"nomfichier\",A1))-FIND(\"]\",CELL(\"nomfichier\",A1))),Bilan!E5:E34,0))))","v":""}]
[null,null,null,null,null,null,null,null,null,null,null,null,null,null,null,null,null,null,null,null,null,null,null,"Prénom : "]
[null,null,null,null,null,null,null,null,null,null,null,null,null,null,null,null,null,null,null,null,null,null,null,"Date de l'évaluation:",null,null,null,null,null,null,null,null,null,null,null,null,null,null,null,null,null,null,null,null,null,null,null,"Choisisser votre situation"]
["Lieu d’évaluation :",null,null,null,null,null,null,null,null,null,null,null,null,null,null,null,null,null,null,null,null,null,null,null,null,null,null,null,null,null,null,null,null,null,null,null,null,null,null,null,null,null,null,null,null,null,null,"A"]
["      Etablissement"]
["      Entreprise :       "]
["Description sommaire du travail demandé :"]
[{"$f":"IF(AV7=\"\",\"\",IF(AV7=\"A\",IF(EP2.1_A!A11=\"\",\"\",EP2.1_A!A11),IF(AV7=\"B\",IF(EP2.1_B!A11=\"\",\"\",EP2.1_B!A11),IF(AV7=\"C\",IF(EP2.1_C!A11=\"\",\"\",EP2.1_C!A11),IF(AV7=\"D\",IF(EP2.1_D!A11=\"\",\"\",EP2.1_D!A11),IF(AV7=\"E\",IF(EP2.1_E!A11=\"\",\"\",EP2.1_E!A11),IF(AV7=\"F\",IF(EP2.1_F!A11=\"\",\"\",EP2.1_F!A11),IF(AV7=\"G\",IF(EP2.1_G!A11=\"\",\"\",EP2.1_G!A11),IF(AV7=\"H\",IF(EP2.1_H!A11=\"\",\"\",EP2.1_H!A11),\"\")))))))))","v":""},{"$f":"IF(#REF!=\"\",\"\",IF(#REF!=\"A\",IF(EP2.1_A!B11=\"\",\"\",EP2.1_A!B11),IF(#REF!=\"B\",IF(EP2.1_B!B11=\"\",\"\",EP2.1_B!B11),IF(#REF!=\"C\",IF(EP2.1_C!B11=\"\",\"\",EP2.1_C!B11),IF(#REF!=\"D\",IF(EP2.1_D!B11=\"\",\"\",EP2.1_D!B11),IF(#REF!=\"E\",IF(EP2.1_E!B11=\"\",\"\",EP2.1_E!B11),IF(#REF!=\"F\",IF(EP2.1_F!B11=\"\",\"\",EP2.1_F!B11),IF(#REF!=\"G\",IF(EP2.1_G!B11=\"\",\"\",EP2.1_G!B11),IF(#REF!=\"H\",IF(EP2.1_H!B11=\"\",\"\",EP2.1_H!B11),\"\")))))))))","v":{"$error":"#REF!"}},{"$f":"IF(#REF!=\"\",\"\",IF(#REF!=\"A\",IF(EP2.1_A!C11=\"\",\"\",EP2.1_A!C11),IF(#REF!=\"B\",IF(EP2.1_B!C11=\"\",\"\",EP2.1_B!C11),IF(#REF!=\"C\",IF(EP2.1_C!C11=\"\",\"\",EP2.1_C!C11),IF(#REF!=\"D\",IF(EP2.1_D!C11=\"\",\"\",EP2.1_D!C11),IF(#REF!=\"E\",IF(EP2.1_E!C11=\"\",\"\",EP2.1_E!C11),IF(#REF!=\"F\",IF(EP2.1_F!C11=\"\",\"\",EP2.1_F!C11),IF(#REF!=\"G\",IF(EP2.1_G!C11=\"\",\"\",EP2.1_G!C11),IF(#REF!=\"H\",IF(EP2.1_H!C11=\"\",\"\",EP2.1_H!C11),\"\")))))))))","v":{"$error":"#REF!"}},{"$f":"IF(#REF!=\"\",\"\",IF(#REF!=\"A\",IF(EP2.1_A!D11=\"\",\"\",EP2.1_A!D11),IF(#REF!=\"B\",IF(EP2.1_B!D11=\"\",\"\",EP2.1_B!D11),IF(#REF!=\"C\",IF(EP2.1_C!D11=\"\",\"\",EP2.1_C!D11),IF(#REF!=\"D\",IF(EP2.1_D!D11=\"\",\"\",EP2.1_D!D11),IF(#REF!=\"E\",IF(EP2.1_E!D11=\"\",\"\",EP2.1_E!D11),IF(#REF!=\"F\",IF(EP2.1_F!D11=\"\",\"\",EP2.1_F!D11),IF(#REF!=\"G\",IF(EP2.1_G!D11=\"\",\"\",EP2.1_G!D11),IF(#REF!=\"H\",IF(EP2.1_H!D11=\"\",\"\",EP2.1_H!D11),\"\")))))))))","v":{"$error":"#REF!"}},{"$f":"IF(#REF!=\"\",\"\",IF(#REF!=\"A\",IF(EP2.1_A!E11=\"\",\"\",EP2.1_A!E11),IF(#REF!=\"B\",IF(EP2.1_B!E11=\"\",\"\",EP2.1_B!E11),IF(#REF!=\"C\",IF(EP2.1_C!E11=\"\",\"\",EP2.1_C!E11),IF(#REF!=\"D\",IF(EP2.1_D!E11=\"\",\"\",EP2.1_D!E11),IF(#REF!=\"E\",IF(EP2.1_E!E11=\"\",\"\",EP2.1_E!E11),IF(#REF!=\"F\",IF(EP2.1_F!E11=\"\",\"\",EP2.1_F!E11),IF(#REF!=\"G\",IF(EP2.1_G!E11=\"\",\"\",EP2.1_G!E11),IF(#REF!=\"H\",IF(EP2.1_H!E11=\"\",\"\",EP2.1_H!E11),\"\")))))))))","v":{"$error":"#REF!"}},{"$f":"IF(#REF!=\"\",\"\",IF(#REF!=\"A\",IF(EP2.1_A!F11=\"\",\"\",EP2.1_A!F11),IF(#REF!=\"B\",IF(EP2.1_B!F11=\"\",\"\",EP2.1_B!F11),IF(#REF!=\"C\",IF(EP2.1_C!F11=\"\",\"\",EP2.1_C!F11),IF(#REF!=\"D\",IF(EP2.1_D!F11=\"\",\"\",EP2.1_D!F11),IF(#REF!=\"E\",IF(EP2.1_E!F11=\"\",\"\",EP2.1_E!F11),IF(#REF!=\"F\",IF(EP2.1_F!F11=\"\",\"\",EP2.1_F!F11),IF(#REF!=\"G\",IF(EP2.1_G!F11=\"\",\"\",EP2.1_G!F11),IF(#REF!=\"H\",IF(EP2.1_H!F11=\"\",\"\",EP2.1_H!F11),\"\")))))))))","v":{"$error":"#REF!"}},{"$f":"IF(#REF!=\"\",\"\",IF(#REF!=\"A\",IF(EP2.1_A!G11=\"\",\"\",EP2.1_A!G11),IF(#REF!=\"B\",IF(EP2.1_B!G11=\"\",\"\",EP2.1_B!G11),IF(#REF!=\"C\",IF(EP2.1_C!G11=\"\",\"\",EP2.1_C!G11),IF(#REF!=\"D\",IF(EP2.1_D!G11=\"\",\"\",EP2.1_D!G11),IF(#REF!=\"E\",IF(EP2.1_E!G11=\"\",\"\",EP2.1_E!G11),IF(#REF!=\"F\",IF(EP2.1_F!G11=\"\",\"\",EP2.1_F!G11),IF(#REF!=\"G\",IF(EP2.1_G!G11=\"\",\"\",EP2.1_G!G11),IF(#REF!=\"H\",IF(EP2.1_H!G11=\"\",\"\",EP2.1_H!G11),\"\")))))))))","v":{"$error":"#REF!"}},{"$f":"IF(#REF!=\"\",\"\",IF(#REF!=\"A\",IF(EP2.1_A!H11=\"\",\"\",EP2.1_A!H11),IF(#REF!=\"B\",IF(EP2.1_B!H11=\"\",\"\",EP2.1_B!H11),IF(#REF!=\"C\",IF(EP2.1_C!H11=\"\",\"\",EP2.1_C!H11),IF(#REF!=\"D\",IF(EP2.1_D!H11=\"\",\"\",EP2.1_D!H11),IF(#REF!=\"E\",IF(EP2.1_E!H11=\"\",\"\",EP2.1_E!H11),IF(#REF!=\"F\",IF(EP2.1_F!H11=\"\",\"\",EP2.1_F!H11),IF(#REF!=\"G\",IF(EP2.1_G!H11=\"\",\"\",EP2.1_G!H11),IF(#REF!=\"H\",IF(EP2.1_H!H11=\"\",\"\",EP2.1_H!H11),\"\")))))))))","v":{"$error":"#REF!"}},{"$f":"IF(#REF!=\"\",\"\",IF(#REF!=\"A\",IF(EP2.1_A!I11=\"\",\"\",EP2.1_A!I11),IF(#REF!=\"B\",IF(EP2.1_B!I11=\"\",\"\",EP2.1_B!I11),IF(#REF!=\"C\",IF(EP2.1_C!I11=\"\",\"\",EP2.1_C!I11),IF(#REF!=\"D\",IF(EP2.1_D!I11=\"\",\"\",EP2.1_D!I11),IF(#REF!=\"E\",IF(EP2.1_E!I11=\"\",\"\",EP2.1_E!I11),IF(#REF!=\"F\",IF(EP2.1_F!I11=\"\",\"\",EP2.1_F!I11),IF(#REF!=\"G\",IF(EP2.1_G!I11=\"\",\"\",EP2.1_G!I11),IF(#REF!=\"H\",IF(EP2.1_H!I11=\"\",\"\",EP2.1_H!I11),\"\")))))))))","v":{"$error":"#REF!"}},{"$f":"IF(#REF!=\"\",\"\",IF(#REF!=\"A\",IF(EP2.1_A!J11=\"\",\"\",EP2.1_A!J11),IF(#REF!=\"B\",IF(EP2.1_B!J11=\"\",\"\",EP2.1_B!J11),IF(#REF!=\"C\",IF(EP2.1_C!J11=\"\",\"\",EP2.1_C!J11),IF(#REF!=\"D\",IF(EP2.1_D!J11=\"\",\"\",EP2.1_D!J11),IF(#REF!=\"E\",IF(EP2.1_E!J11=\"\",\"\",EP2.1_E!J11),IF(#REF!=\"F\",IF(EP2.1_F!J11=\"\",\"\",EP2.1_F!J11),IF(#REF!=\"G\",IF(EP2.1_G!J11=\"\",\"\",EP2.1_G!J11),IF(#REF!=\"H\",IF(EP2.1_H!J11=\"\",\"\",EP2.1_H!J11),\"\")))))))))","v":{"$error":"#REF!"}},{"$f":"IF(#REF!=\"\",\"\",IF(#REF!=\"A\",IF(EP2.1_A!K11=\"\",\"\",EP2.1_A!K11),IF(#REF!=\"B\",IF(EP2.1_B!K11=\"\",\"\",EP2.1_B!K11),IF(#REF!=\"C\",IF(EP2.1_C!K11=\"\",\"\",EP2.1_C!K11),IF(#REF!=\"D\",IF(EP2.1_D!K11=\"\",\"\",EP2.1_D!K11),IF(#REF!=\"E\",IF(EP2.1_E!K11=\"\",\"\",EP2.1_E!K11),IF(#REF!=\"F\",IF(EP2.1_F!K11=\"\",\"\",EP2.1_F!K11),IF(#REF!=\"G\",IF(EP2.1_G!K11=\"\",\"\",EP2.1_G!K11),IF(#REF!=\"H\",IF(EP2.1_H!K11=\"\",\"\",EP2.1_H!K11),\"\")))))))))","v":{"$error":"#REF!"}},{"$f":"IF(#REF!=\"\",\"\",IF(#REF!=\"A\",IF(EP2.1_A!L11=\"\",\"\",EP2.1_A!L11),IF(#REF!=\"B\",IF(EP2.1_B!L11=\"\",\"\",EP2.1_B!L11),IF(#REF!=\"C\",IF(EP2.1_C!L11=\"\",\"\",EP2.1_C!L11),IF(#REF!=\"D\",IF(EP2.1_D!L11=\"\",\"\",EP2.1_D!L11),IF(#REF!=\"E\",IF(EP2.1_E!L11=\"\",\"\",EP2.1_E!L11),IF(#REF!=\"F\",IF(EP2.1_F!L11=\"\",\"\",EP2.1_F!L11),IF(#REF!=\"G\",IF(EP2.1_G!L11=\"\",\"\",EP2.1_G!L11),IF(#REF!=\"H\",IF(EP2.1_H!L11=\"\",\"\",EP2.1_H!L11),\"\")))))))))","v":{"$error":"#REF!"}},{"$f":"IF(#REF!=\"\",\"\",IF(#REF!=\"A\",IF(EP2.1_A!M11=\"\",\"\",EP2.1_A!M11),IF(#REF!=\"B\",IF(EP2.1_B!M11=\"\",\"\",EP2.1_B!M11),IF(#REF!=\"C\",IF(EP2.1_C!M11=\"\",\"\",EP2.1_C!M11),IF(#REF!=\"D\",IF(EP2.1_D!M11=\"\",\"\",EP2.1_D!M11),IF(#REF!=\"E\",IF(EP2.1_E!M11=\"\",\"\",EP2.1_E!M11),IF(#REF!=\"F\",IF(EP2.1_F!M11=\"\",\"\",EP2.1_F!M11),IF(#REF!=\"G\",IF(EP2.1_G!M11=\"\",\"\",EP2.1_G!M11),IF(#REF!=\"H\",IF(EP2.1_H!M11=\"\",\"\",EP2.1_H!M11),\"\")))))))))","v":{"$error":"#REF!"}},{"$f":"IF(#REF!=\"\",\"\",IF(#REF!=\"A\",IF(EP2.1_A!N11=\"\",\"\",EP2.1_A!N11),IF(#REF!=\"B\",IF(EP2.1_B!N11=\"\",\"\",EP2.1_B!N11),IF(#REF!=\"C\",IF(EP2.1_C!N11=\"\",\"\",EP2.1_C!N11),IF(#REF!=\"D\",IF(EP2.1_D!N11=\"\",\"\",EP2.1_D!N11),IF(#REF!=\"E\",IF(EP2.1_E!N11=\"\",\"\",EP2.1_E!N11),IF(#REF!=\"F\",IF(EP2.1_F!N11=\"\",\"\",EP2.1_F!N11),IF(#REF!=\"G\",IF(EP2.1_G!N11=\"\",\"\",EP2.1_G!N11),IF(#REF!=\"H\",IF(EP2.1_H!N11=\"\",\"\",EP2.1_H!N11),\"\")))))))))","v":{"$error":"#REF!"}},{"$f":"IF(#REF!=\"\",\"\",IF(#REF!=\"A\",IF(EP2.1_A!O11=\"\",\"\",EP2.1_A!O11),IF(#REF!=\"B\",IF(EP2.1_B!O11=\"\",\"\",EP2.1_B!O11),IF(#REF!=\"C\",IF(EP2.1_C!O11=\"\",\"\",EP2.1_C!O11),IF(#REF!=\"D\",IF(EP2.1_D!O11=\"\",\"\",EP2.1_D!O11),IF(#REF!=\"E\",IF(EP2.1_E!O11=\"\",\"\",EP2.1_E!O11),IF(#REF!=\"F\",IF(EP2.1_F!O11=\"\",\"\",EP2.1_F!O11),IF(#REF!=\"G\",IF(EP2.1_G!O11=\"\",\"\",EP2.1_G!O11),IF(#REF!=\"H\",IF(EP2.1_H!O11=\"\",\"\",EP2.1_H!O11),\"\")))))))))","v":{"$error":"#REF!"}},{"$f":"IF(#REF!=\"\",\"\",IF(#REF!=\"A\",IF(EP2.1_A!P11=\"\",\"\",EP2.1_A!P11),IF(#REF!=\"B\",IF(EP2.1_B!P11=\"\",\"\",EP2.1_B!P11),IF(#REF!=\"C\",IF(EP2.1_C!P11=\"\",\"\",EP2.1_C!P11),IF(#REF!=\"D\",IF(EP2.1_D!P11=\"\",\"\",EP2.1_D!P11),IF(#REF!=\"E\",IF(EP2.1_E!P11=\"\",\"\",EP2.1_E!P11),IF(#REF!=\"F\",IF(EP2.1_F!P11=\"\",\"\",EP2.1_F!P11),IF(#REF!=\"G\",IF(EP2.1_G!P11=\"\",\"\",EP2.1_G!P11),IF(#REF!=\"H\",IF(EP2.1_H!P11=\"\",\"\",EP2.1_H!P11),\"\")))))))))","v":{"$error":"#REF!"}},{"$f":"IF(#REF!=\"\",\"\",IF(#REF!=\"A\",IF(EP2.1_A!Q11=\"\",\"\",EP2.1_A!Q11),IF(#REF!=\"B\",IF(EP2.1_B!Q11=\"\",\"\",EP2.1_B!Q11),IF(#REF!=\"C\",IF(EP2.1_C!Q11=\"\",\"\",EP2.1_C!Q11),IF(#REF!=\"D\",IF(EP2.1_D!Q11=\"\",\"\",EP2.1_D!Q11),IF(#REF!=\"E\",IF(EP2.1_E!Q11=\"\",\"\",EP2.1_E!Q11),IF(#REF!=\"F\",IF(EP2.1_F!Q11=\"\",\"\",EP2.1_F!Q11),IF(#REF!=\"G\",IF(EP2.1_G!Q11=\"\",\"\",EP2.1_G!Q11),IF(#REF!=\"H\",IF(EP2.1_H!Q11=\"\",\"\",EP2.1_H!Q11),\"\")))))))))","v":{"$error":"#REF!"}},{"$f":"IF(#REF!=\"\",\"\",IF(#REF!=\"A\",IF(EP2.1_A!R11=\"\",\"\",EP2.1_A!R11),IF(#REF!=\"B\",IF(EP2.1_B!R11=\"\",\"\",EP2.1_B!R11),IF(#REF!=\"C\",IF(EP2.1_C!R11=\"\",\"\",EP2.1_C!R11),IF(#REF!=\"D\",IF(EP2.1_D!R11=\"\",\"\",EP2.1_D!R11),IF(#REF!=\"E\",IF(EP2.1_E!R11=\"\",\"\",EP2.1_E!R11),IF(#REF!=\"F\",IF(EP2.1_F!R11=\"\",\"\",EP2.1_F!R11),IF(#REF!=\"G\",IF(EP2.1_G!R11=\"\",\"\",EP2.1_G!R11),IF(#REF!=\"H\",IF(EP2.1_H!R11=\"\",\"\",EP2.1_H!R11),\"\")))))))))","v":{"$error":"#REF!"}},{"$f":"IF(#REF!=\"\",\"\",IF(#REF!=\"A\",IF(EP2.1_A!S11=\"\",\"\",EP2.1_A!S11),IF(#REF!=\"B\",IF(EP2.1_B!S11=\"\",\"\",EP2.1_B!S11),IF(#REF!=\"C\",IF(EP2.1_C!S11=\"\",\"\",EP2.1_C!S11),IF(#REF!=\"D\",IF(EP2.1_D!S11=\"\",\"\",EP2.1_D!S11),IF(#REF!=\"E\",IF(EP2.1_E!S11=\"\",\"\",EP2.1_E!S11),IF(#REF!=\"F\",IF(EP2.1_F!S11=\"\",\"\",EP2.1_F!S11),IF(#REF!=\"G\",IF(EP2.1_G!S11=\"\",\"\",EP2.1_G!S11),IF(#REF!=\"H\",IF(EP2.1_H!S11=\"\",\"\",EP2.1_H!S11),\"\")))))))))","v":{"$error":"#REF!"}},{"$f":"IF(#REF!=\"\",\"\",IF(#REF!=\"A\",IF(EP2.1_A!T11=\"\",\"\",EP2.1_A!T11),IF(#REF!=\"B\",IF(EP2.1_B!T11=\"\",\"\",EP2.1_B!T11),IF(#REF!=\"C\",IF(EP2.1_C!T11=\"\",\"\",EP2.1_C!T11),IF(#REF!=\"D\",IF(EP2.1_D!T11=\"\",\"\",EP2.1_D!T11),IF(#REF!=\"E\",IF(EP2.1_E!T11=\"\",\"\",EP2.1_E!T11),IF(#REF!=\"F\",IF(EP2.1_F!T11=\"\",\"\",EP2.1_F!T11),IF(#REF!=\"G\",IF(EP2.1_G!T11=\"\",\"\",EP2.1_G!T11),IF(#REF!=\"H\",IF(EP2.1_H!T11=\"\",\"\",EP2.1_H!T11),\"\")))))))))","v":{"$error":"#REF!"}},{"$f":"IF(#REF!=\"\",\"\",IF(#REF!=\"A\",IF(EP2.1_A!U11=\"\",\"\",EP2.1_A!U11),IF(#REF!=\"B\",IF(EP2.1_B!U11=\"\",\"\",EP2.1_B!U11),IF(#REF!=\"C\",IF(EP2.1_C!U11=\"\",\"\",EP2.1_C!U11),IF(#REF!=\"D\",IF(EP2.1_D!U11=\"\",\"\",EP2.1_D!U11),IF(#REF!=\"E\",IF(EP2.1_E!U11=\"\",\"\",EP2.1_E!U11),IF(#REF!=\"F\",IF(EP2.1_F!U11=\"\",\"\",EP2.1_F!U11),IF(#REF!=\"G\",IF(EP2.1_G!U11=\"\",\"\",EP2.1_G!U11),IF(#REF!=\"H\",IF(EP2.1_H!U11=\"\",\"\",EP2.1_H!U11),\"\")))))))))","v":{"$error":"#REF!"}},{"$f":"IF(#REF!=\"\",\"\",IF(#REF!=\"A\",IF(EP2.1_A!V11=\"\",\"\",EP2.1_A!V11),IF(#REF!=\"B\",IF(EP2.1_B!V11=\"\",\"\",EP2.1_B!V11),IF(#REF!=\"C\",IF(EP2.1_C!V11=\"\",\"\",EP2.1_C!V11),IF(#REF!=\"D\",IF(EP2.1_D!V11=\"\",\"\",EP2.1_D!V11),IF(#REF!=\"E\",IF(EP2.1_E!V11=\"\",\"\",EP2.1_E!V11),IF(#REF!=\"F\",IF(EP2.1_F!V11=\"\",\"\",EP2.1_F!V11),IF(#REF!=\"G\",IF(EP2.1_G!V11=\"\",\"\",EP2.1_G!V11),IF(#REF!=\"H\",IF(EP2.1_H!V11=\"\",\"\",EP2.1_H!V11),\"\")))))))))","v":{"$error":"#REF!"}},{"$f":"IF(#REF!=\"\",\"\",IF(#REF!=\"A\",IF(EP2.1_A!W11=\"\",\"\",EP2.1_A!W11),IF(#REF!=\"B\",IF(EP2.1_B!W11=\"\",\"\",EP2.1_B!W11),IF(#REF!=\"C\",IF(EP2.1_C!W11=\"\",\"\",EP2.1_C!W11),IF(#REF!=\"D\",IF(EP2.1_D!W11=\"\",\"\",EP2.1_D!W11),IF(#REF!=\"E\",IF(EP2.1_E!W11=\"\",\"\",EP2.1_E!W11),IF(#REF!=\"F\",IF(EP2.1_F!W11=\"\",\"\",EP2.1_F!W11),IF(#REF!=\"G\",IF(EP2.1_G!W11=\"\",\"\",EP2.1_G!W11),IF(#REF!=\"H\",IF(EP2.1_H!W11=\"\",\"\",EP2.1_H!W11),\"\")))))))))","v":{"$error":"#REF!"}},{"$f":"IF(#REF!=\"\",\"\",IF(#REF!=\"A\",IF(EP2.1_A!X11=\"\",\"\",EP2.1_A!X11),IF(#REF!=\"B\",IF(EP2.1_B!X11=\"\",\"\",EP2.1_B!X11),IF(#REF!=\"C\",IF(EP2.1_C!X11=\"\",\"\",EP2.1_C!X11),IF(#REF!=\"D\",IF(EP2.1_D!X11=\"\",\"\",EP2.1_D!X11),IF(#REF!=\"E\",IF(EP2.1_E!X11=\"\",\"\",EP2.1_E!X11),IF(#REF!=\"F\",IF(EP2.1_F!X11=\"\",\"\",EP2.1_F!X11),IF(#REF!=\"G\",IF(EP2.1_G!X11=\"\",\"\",EP2.1_G!X11),IF(#REF!=\"H\",IF(EP2.1_H!X11=\"\",\"\",EP2.1_H!X11),\"\")))))))))","v":{"$error":"#REF!"}},{"$f":"IF(#REF!=\"\",\"\",IF(#REF!=\"A\",IF(EP2.1_A!Y11=\"\",\"\",EP2.1_A!Y11),IF(#REF!=\"B\",IF(EP2.1_B!Y11=\"\",\"\",EP2.1_B!Y11),IF(#REF!=\"C\",IF(EP2.1_C!Y11=\"\",\"\",EP2.1_C!Y11),IF(#REF!=\"D\",IF(EP2.1_D!Y11=\"\",\"\",EP2.1_D!Y11),IF(#REF!=\"E\",IF(EP2.1_E!Y11=\"\",\"\",EP2.1_E!Y11),IF(#REF!=\"F\",IF(EP2.1_F!Y11=\"\",\"\",EP2.1_F!Y11),IF(#REF!=\"G\",IF(EP2.1_G!Y11=\"\",\"\",EP2.1_G!Y11),IF(#REF!=\"H\",IF(EP2.1_H!Y11=\"\",\"\",EP2.1_H!Y11),\"\")))))))))","v":{"$error":"#REF!"}},{"$f":"IF(#REF!=\"\",\"\",IF(#REF!=\"A\",IF(EP2.1_A!Z11=\"\",\"\",EP2.1_A!Z11),IF(#REF!=\"B\",IF(EP2.1_B!Z11=\"\",\"\",EP2.1_B!Z11),IF(#REF!=\"C\",IF(EP2.1_C!Z11=\"\",\"\",EP2.1_C!Z11),IF(#REF!=\"D\",IF(EP2.1_D!Z11=\"\",\"\",EP2.1_D!Z11),IF(#REF!=\"E\",IF(EP2.1_E!Z11=\"\",\"\",EP2.1_E!Z11),IF(#REF!=\"F\",IF(EP2.1_F!Z11=\"\",\"\",EP2.1_F!Z11),IF(#REF!=\"G\",IF(EP2.1_G!Z11=\"\",\"\",EP2.1_G!Z11),IF(#REF!=\"H\",IF(EP2.1_H!Z11=\"\",\"\",EP2.1_H!Z11),\"\")))))))))","v":{"$error":"#REF!"}},{"$f":"IF(#REF!=\"\",\"\",IF(#REF!=\"A\",IF(EP2.1_A!AA11=\"\",\"\",EP2.1_A!AA11),IF(#REF!=\"B\",IF(EP2.1_B!AA11=\"\",\"\",EP2.1_B!AA11),IF(#REF!=\"C\",IF(EP2.1_C!AA11=\"\",\"\",EP2.1_C!AA11),IF(#REF!=\"D\",IF(EP2.1_D!AA11=\"\",\"\",EP2.1_D!AA11),IF(#REF!=\"E\",IF(EP2.1_E!AA11=\"\",\"\",EP2.1_E!AA11),IF(#REF!=\"F\",IF(EP2.1_F!AA11=\"\",\"\",EP2.1_F!AA11),IF(#REF!=\"G\",IF(EP2.1_G!AA11=\"\",\"\",EP2.1_G!AA11),IF(#REF!=\"H\",IF(EP2.1_H!AA11=\"\",\"\",EP2.1_H!AA11),\"\")))))))))","v":{"$error":"#REF!"}},{"$f":"IF(#REF!=\"\",\"\",IF(#REF!=\"A\",IF(EP2.1_A!AB11=\"\",\"\",EP2.1_A!AB11),IF(#REF!=\"B\",IF(EP2.1_B!AB11=\"\",\"\",EP2.1_B!AB11),IF(#REF!=\"C\",IF(EP2.1_C!AB11=\"\",\"\",EP2.1_C!AB11),IF(#REF!=\"D\",IF(EP2.1_D!AB11=\"\",\"\",EP2.1_D!AB11),IF(#REF!=\"E\",IF(EP2.1_E!AB11=\"\",\"\",EP2.1_E!AB11),IF(#REF!=\"F\",IF(EP2.1_F!AB11=\"\",\"\",EP2.1_F!AB11),IF(#REF!=\"G\",IF(EP2.1_G!AB11=\"\",\"\",EP2.1_G!AB11),IF(#REF!=\"H\",IF(EP2.1_H!AB11=\"\",\"\",EP2.1_H!AB11),\"\")))))))))","v":{"$error":"#REF!"}},{"$f":"IF(#REF!=\"\",\"\",IF(#REF!=\"A\",IF(EP2.1_A!AC11=\"\",\"\",EP2.1_A!AC11),IF(#REF!=\"B\",IF(EP2.1_B!AC11=\"\",\"\",EP2.1_B!AC11),IF(#REF!=\"C\",IF(EP2.1_C!AC11=\"\",\"\",EP2.1_C!AC11),IF(#REF!=\"D\",IF(EP2.1_D!AC11=\"\",\"\",EP2.1_D!AC11),IF(#REF!=\"E\",IF(EP2.1_E!AC11=\"\",\"\",EP2.1_E!AC11),IF(#REF!=\"F\",IF(EP2.1_F!AC11=\"\",\"\",EP2.1_F!AC11),IF(#REF!=\"G\",IF(EP2.1_G!AC11=\"\",\"\",EP2.1_G!AC11),IF(#REF!=\"H\",IF(EP2.1_H!AC11=\"\",\"\",EP2.1_H!AC11),\"\")))))))))","v":{"$error":"#REF!"}},{"$f":"IF(#REF!=\"\",\"\",IF(#REF!=\"A\",IF(EP2.1_A!AD11=\"\",\"\",EP2.1_A!AD11),IF(#REF!=\"B\",IF(EP2.1_B!AD11=\"\",\"\",EP2.1_B!AD11),IF(#REF!=\"C\",IF(EP2.1_C!AD11=\"\",\"\",EP2.1_C!AD11),IF(#REF!=\"D\",IF(EP2.1_D!AD11=\"\",\"\",EP2.1_D!AD11),IF(#REF!=\"E\",IF(EP2.1_E!AD11=\"\",\"\",EP2.1_E!AD11),IF(#REF!=\"F\",IF(EP2.1_F!AD11=\"\",\"\",EP2.1_F!AD11),IF(#REF!=\"G\",IF(EP2.1_G!AD11=\"\",\"\",EP2.1_G!AD11),IF(#REF!=\"H\",IF(EP2.1_H!AD11=\"\",\"\",EP2.1_H!AD11),\"\")))))))))","v":{"$error":"#REF!"}},{"$f":"IF(#REF!=\"\",\"\",IF(#REF!=\"A\",IF(EP2.1_A!AE11=\"\",\"\",EP2.1_A!AE11),IF(#REF!=\"B\",IF(EP2.1_B!AE11=\"\",\"\",EP2.1_B!AE11),IF(#REF!=\"C\",IF(EP2.1_C!AE11=\"\",\"\",EP2.1_C!AE11),IF(#REF!=\"D\",IF(EP2.1_D!AE11=\"\",\"\",EP2.1_D!AE11),IF(#REF!=\"E\",IF(EP2.1_E!AE11=\"\",\"\",EP2.1_E!AE11),IF(#REF!=\"F\",IF(EP2.1_F!AE11=\"\",\"\",EP2.1_F!AE11),IF(#REF!=\"G\",IF(EP2.1_G!AE11=\"\",\"\",EP2.1_G!AE11),IF(#REF!=\"H\",IF(EP2.1_H!AE11=\"\",\"\",EP2.1_H!AE11),\"\")))))))))","v":{"$error":"#REF!"}},{"$f":"IF(#REF!=\"\",\"\",IF(#REF!=\"A\",IF(EP2.1_A!AF11=\"\",\"\",EP2.1_A!AF11),IF(#REF!=\"B\",IF(EP2.1_B!AF11=\"\",\"\",EP2.1_B!AF11),IF(#REF!=\"C\",IF(EP2.1_C!AF11=\"\",\"\",EP2.1_C!AF11),IF(#REF!=\"D\",IF(EP2.1_D!AF11=\"\",\"\",EP2.1_D!AF11),IF(#REF!=\"E\",IF(EP2.1_E!AF11=\"\",\"\",EP2.1_E!AF11),IF(#REF!=\"F\",IF(EP2.1_F!AF11=\"\",\"\",EP2.1_F!AF11),IF(#REF!=\"G\",IF(EP2.1_G!AF11=\"\",\"\",EP2.1_G!AF11),IF(#REF!=\"H\",IF(EP2.1_H!AF11=\"\",\"\",EP2.1_H!AF11),\"\")))))))))","v":{"$error":"#REF!"}},{"$f":"IF(#REF!=\"\",\"\",IF(#REF!=\"A\",IF(EP2.1_A!AG11=\"\",\"\",EP2.1_A!AG11),IF(#REF!=\"B\",IF(EP2.1_B!AG11=\"\",\"\",EP2.1_B!AG11),IF(#REF!=\"C\",IF(EP2.1_C!AG11=\"\",\"\",EP2.1_C!AG11),IF(#REF!=\"D\",IF(EP2.1_D!AG11=\"\",\"\",EP2.1_D!AG11),IF(#REF!=\"E\",IF(EP2.1_E!AG11=\"\",\"\",EP2.1_E!AG11),IF(#REF!=\"F\",IF(EP2.1_F!AG11=\"\",\"\",EP2.1_F!AG11),IF(#REF!=\"G\",IF(EP2.1_G!AG11=\"\",\"\",EP2.1_G!AG11),IF(#REF!=\"H\",IF(EP2.1_H!AG11=\"\",\"\",EP2.1_H!AG11),\"\")))))))))","v":{"$error":"#REF!"}},{"$f":"IF(#REF!=\"\",\"\",IF(#REF!=\"A\",IF(EP2.1_A!AH11=\"\",\"\",EP2.1_A!AH11),IF(#REF!=\"B\",IF(EP2.1_B!AH11=\"\",\"\",EP2.1_B!AH11),IF(#REF!=\"C\",IF(EP2.1_C!AH11=\"\",\"\",EP2.1_C!AH11),IF(#REF!=\"D\",IF(EP2.1_D!AH11=\"\",\"\",EP2.1_D!AH11),IF(#REF!=\"E\",IF(EP2.1_E!AH11=\"\",\"\",EP2.1_E!AH11),IF(#REF!=\"F\",IF(EP2.1_F!AH11=\"\",\"\",EP2.1_F!AH11),IF(#REF!=\"G\",IF(EP2.1_G!AH11=\"\",\"\",EP2.1_G!AH11),IF(#REF!=\"H\",IF(EP2.1_H!AH11=\"\",\"\",EP2.1_H!AH11),\"\")))))))))","v":{"$error":"#REF!"}},{"$f":"IF(#REF!=\"\",\"\",IF(#REF!=\"A\",IF(EP2.1_A!AI11=\"\",\"\",EP2.1_A!AI11),IF(#REF!=\"B\",IF(EP2.1_B!AI11=\"\",\"\",EP2.1_B!AI11),IF(#REF!=\"C\",IF(EP2.1_C!AI11=\"\",\"\",EP2.1_C!AI11),IF(#REF!=\"D\",IF(EP2.1_D!AI11=\"\",\"\",EP2.1_D!AI11),IF(#REF!=\"E\",IF(EP2.1_E!AI11=\"\",\"\",EP2.1_E!AI11),IF(#REF!=\"F\",IF(EP2.1_F!AI11=\"\",\"\",EP2.1_F!AI11),IF(#REF!=\"G\",IF(EP2.1_G!AI11=\"\",\"\",EP2.1_G!AI11),IF(#REF!=\"H\",IF(EP2.1_H!AI11=\"\",\"\",EP2.1_H!AI11),\"\")))))))))","v":{"$error":"#REF!"}},{"$f":"IF(#REF!=\"\",\"\",IF(#REF!=\"A\",IF(EP2.1_A!AJ11=\"\",\"\",EP2.1_A!AJ11),IF(#REF!=\"B\",IF(EP2.1_B!AJ11=\"\",\"\",EP2.1_B!AJ11),IF(#REF!=\"C\",IF(EP2.1_C!AJ11=\"\",\"\",EP2.1_C!AJ11),IF(#REF!=\"D\",IF(EP2.1_D!AJ11=\"\",\"\",EP2.1_D!AJ11),IF(#REF!=\"E\",IF(EP2.1_E!AJ11=\"\",\"\",EP2.1_E!AJ11),IF(#REF!=\"F\",IF(EP2.1_F!AJ11=\"\",\"\",EP2.1_F!AJ11),IF(#REF!=\"G\",IF(EP2.1_G!AJ11=\"\",\"\",EP2.1_G!AJ11),IF(#REF!=\"H\",IF(EP2.1_H!AJ11=\"\",\"\",EP2.1_H!AJ11),\"\")))))))))","v":{"$error":"#REF!"}},{"$f":"IF(#REF!=\"\",\"\",IF(#REF!=\"A\",IF(EP2.1_A!AK11=\"\",\"\",EP2.1_A!AK11),IF(#REF!=\"B\",IF(EP2.1_B!AK11=\"\",\"\",EP2.1_B!AK11),IF(#REF!=\"C\",IF(EP2.1_C!AK11=\"\",\"\",EP2.1_C!AK11),IF(#REF!=\"D\",IF(EP2.1_D!AK11=\"\",\"\",EP2.1_D!AK11),IF(#REF!=\"E\",IF(EP2.1_E!AK11=\"\",\"\",EP2.1_E!AK11),IF(#REF!=\"F\",IF(EP2.1_F!AK11=\"\",\"\",EP2.1_F!AK11),IF(#REF!=\"G\",IF(EP2.1_G!AK11=\"\",\"\",EP2.1_G!AK11),IF(#REF!=\"H\",IF(EP2.1_H!AK11=\"\",\"\",EP2.1_H!AK11),\"\")))))))))","v":{"$error":"#REF!"}},{"$f":"IF(#REF!=\"\",\"\",IF(#REF!=\"A\",IF(EP2.1_A!AL11=\"\",\"\",EP2.1_A!AL11),IF(#REF!=\"B\",IF(EP2.1_B!AL11=\"\",\"\",EP2.1_B!AL11),IF(#REF!=\"C\",IF(EP2.1_C!AL11=\"\",\"\",EP2.1_C!AL11),IF(#REF!=\"D\",IF(EP2.1_D!AL11=\"\",\"\",EP2.1_D!AL11),IF(#REF!=\"E\",IF(EP2.1_E!AL11=\"\",\"\",EP2.1_E!AL11),IF(#REF!=\"F\",IF(EP2.1_F!AL11=\"\",\"\",EP2.1_F!AL11),IF(#REF!=\"G\",IF(EP2.1_G!AL11=\"\",\"\",EP2.1_G!AL11),IF(#REF!=\"H\",IF(EP2.1_H!AL11=\"\",\"\",EP2.1_H!AL11),\"\")))))))))","v":{"$error":"#REF!"}},{"$f":"IF(#REF!=\"\",\"\",IF(#REF!=\"A\",IF(EP2.1_A!AM11=\"\",\"\",EP2.1_A!AM11),IF(#REF!=\"B\",IF(EP2.1_B!AM11=\"\",\"\",EP2.1_B!AM11),IF(#REF!=\"C\",IF(EP2.1_C!AM11=\"\",\"\",EP2.1_C!AM11),IF(#REF!=\"D\",IF(EP2.1_D!AM11=\"\",\"\",EP2.1_D!AM11),IF(#REF!=\"E\",IF(EP2.1_E!AM11=\"\",\"\",EP2.1_E!AM11),IF(#REF!=\"F\",IF(EP2.1_F!AM11=\"\",\"\",EP2.1_F!AM11),IF(#REF!=\"G\",IF(EP2.1_G!AM11=\"\",\"\",EP2.1_G!AM11),IF(#REF!=\"H\",IF(EP2.1_H!AM11=\"\",\"\",EP2.1_H!AM11),\"\")))))))))","v":{"$error":"#REF!"}},{"$f":"IF(#REF!=\"\",\"\",IF(#REF!=\"A\",IF(EP2.1_A!AN11=\"\",\"\",EP2.1_A!AN11),IF(#REF!=\"B\",IF(EP2.1_B!AN11=\"\",\"\",EP2.1_B!AN11),IF(#REF!=\"C\",IF(EP2.1_C!AN11=\"\",\"\",EP2.1_C!AN11),IF(#REF!=\"D\",IF(EP2.1_D!AN11=\"\",\"\",EP2.1_D!AN11),IF(#REF!=\"E\",IF(EP2.1_E!AN11=\"\",\"\",EP2.1_E!AN11),IF(#REF!=\"F\",IF(EP2.1_F!AN11=\"\",\"\",EP2.1_F!AN11),IF(#REF!=\"G\",IF(EP2.1_G!AN11=\"\",\"\",EP2.1_G!AN11),IF(#REF!=\"H\",IF(EP2.1_H!AN11=\"\",\"\",EP2.1_H!AN11),\"\")))))))))","v":{"$error":"#REF!"}},{"$f":"IF(#REF!=\"\",\"\",IF(#REF!=\"A\",IF(EP2.1_A!AO11=\"\",\"\",EP2.1_A!AO11),IF(#REF!=\"B\",IF(EP2.1_B!AO11=\"\",\"\",EP2.1_B!AO11),IF(#REF!=\"C\",IF(EP2.1_C!AO11=\"\",\"\",EP2.1_C!AO11),IF(#REF!=\"D\",IF(EP2.1_D!AO11=\"\",\"\",EP2.1_D!AO11),IF(#REF!=\"E\",IF(EP2.1_E!AO11=\"\",\"\",EP2.1_E!AO11),IF(#REF!=\"F\",IF(EP2.1_F!AO11=\"\",\"\",EP2.1_F!AO11),IF(#REF!=\"G\",IF(EP2.1_G!AO11=\"\",\"\",EP2.1_G!AO11),IF(#REF!=\"H\",IF(EP2.1_H!AO11=\"\",\"\",EP2.1_H!AO11),\"\")))))))))","v":{"$error":"#REF!"}},{"$f":"IF(#REF!=\"\",\"\",IF(#REF!=\"A\",IF(EP2.1_A!AP11=\"\",\"\",EP2.1_A!AP11),IF(#REF!=\"B\",IF(EP2.1_B!AP11=\"\",\"\",EP2.1_B!AP11),IF(#REF!=\"C\",IF(EP2.1_C!AP11=\"\",\"\",EP2.1_C!AP11),IF(#REF!=\"D\",IF(EP2.1_D!AP11=\"\",\"\",EP2.1_D!AP11),IF(#REF!=\"E\",IF(EP2.1_E!AP11=\"\",\"\",EP2.1_E!AP11),IF(#REF!=\"F\",IF(EP2.1_F!AP11=\"\",\"\",EP2.1_F!AP11),IF(#REF!=\"G\",IF(EP2.1_G!AP11=\"\",\"\",EP2.1_G!AP11),IF(#REF!=\"H\",IF(EP2.1_H!AP11=\"\",\"\",EP2.1_H!AP11),\"\")))))))))","v":{"$error":"#REF!"}},{"$f":"IF(#REF!=\"\",\"\",IF(#REF!=\"A\",IF(EP2.1_A!AQ11=\"\",\"\",EP2.1_A!AQ11),IF(#REF!=\"B\",IF(EP2.1_B!AQ11=\"\",\"\",EP2.1_B!AQ11),IF(#REF!=\"C\",IF(EP2.1_C!AQ11=\"\",\"\",EP2.1_C!AQ11),IF(#REF!=\"D\",IF(EP2.1_D!AQ11=\"\",\"\",EP2.1_D!AQ11),IF(#REF!=\"E\",IF(EP2.1_E!AQ11=\"\",\"\",EP2.1_E!AQ11),IF(#REF!=\"F\",IF(EP2.1_F!AQ11=\"\",\"\",EP2.1_F!AQ11),IF(#REF!=\"G\",IF(EP2.1_G!AQ11=\"\",\"\",EP2.1_G!AQ11),IF(#REF!=\"H\",IF(EP2.1_H!AQ11=\"\",\"\",EP2.1_H!AQ11),\"\")))))))))","v":{"$error":"#REF!"}},{"$f":"IF(#REF!=\"\",\"\",IF(#REF!=\"A\",IF(EP2.1_A!AR11=\"\",\"\",EP2.1_A!AR11),IF(#REF!=\"B\",IF(EP2.1_B!AR11=\"\",\"\",EP2.1_B!AR11),IF(#REF!=\"C\",IF(EP2.1_C!AR11=\"\",\"\",EP2.1_C!AR11),IF(#REF!=\"D\",IF(EP2.1_D!AR11=\"\",\"\",EP2.1_D!AR11),IF(#REF!=\"E\",IF(EP2.1_E!AR11=\"\",\"\",EP2.1_E!AR11),IF(#REF!=\"F\",IF(EP2.1_F!AR11=\"\",\"\",EP2.1_F!AR11),IF(#REF!=\"G\",IF(EP2.1_G!AR11=\"\",\"\",EP2.1_G!AR11),IF(#REF!=\"H\",IF(EP2.1_H!AR11=\"\",\"\",EP2.1_H!AR11),\"\")))))))))","v":{"$error":"#REF!"}},{"$f":"IF(#REF!=\"\",\"\",IF(#REF!=\"A\",IF(EP2.1_A!AS11=\"\",\"\",EP2.1_A!AS11),IF(#REF!=\"B\",IF(EP2.1_B!AS11=\"\",\"\",EP2.1_B!AS11),IF(#REF!=\"C\",IF(EP2.1_C!AS11=\"\",\"\",EP2.1_C!AS11),IF(#REF!=\"D\",IF(EP2.1_D!AS11=\"\",\"\",EP2.1_D!AS11),IF(#REF!=\"E\",IF(EP2.1_E!AS11=\"\",\"\",EP2.1_E!AS11),IF(#REF!=\"F\",IF(EP2.1_F!AS11=\"\",\"\",EP2.1_F!AS11),IF(#REF!=\"G\",IF(EP2.1_G!AS11=\"\",\"\",EP2.1_G!AS11),IF(#REF!=\"H\",IF(EP2.1_H!AS11=\"\",\"\",EP2.1_H!AS11),\"\")))))))))","v":{"$error":"#REF!"}},{"$f":"IF(#REF!=\"\",\"\",IF(#REF!=\"A\",IF(EP2.1_A!AT11=\"\",\"\",EP2.1_A!AT11),IF(#REF!=\"B\",IF(EP2.1_B!AT11=\"\",\"\",EP2.1_B!AT11),IF(#REF!=\"C\",IF(EP2.1_C!AT11=\"\",\"\",EP2.1_C!AT11),IF(#REF!=\"D\",IF(EP2.1_D!AT11=\"\",\"\",EP2.1_D!AT11),IF(#REF!=\"E\",IF(EP2.1_E!AT11=\"\",\"\",EP2.1_E!AT11),IF(#REF!=\"F\",IF(EP2.1_F!AT11=\"\",\"\",EP2.1_F!AT11),IF(#REF!=\"G\",IF(EP2.1_G!AT11=\"\",\"\",EP2.1_G!AT11),IF(#REF!=\"H\",IF(EP2.1_H!AT11=\"\",\"\",EP2.1_H!AT11),\"\")))))))))","v":{"$error":"#REF!"}}]
[]
["Données et condition de réalisation."]
[{"$f":"IF(AV7=\"\",\"\",IF(AV7=\"A\",IF(EP2.1_A!A14=\"\",\"\",EP2.1_A!A14),IF(AV7=\"B\",IF(EP2.1_B!A14=\"\",\"\",EP2.1_B!A14),IF(AV7=\"C\",IF(EP2.1_C!A14=\"\",\"\",EP2.1_C!A14),IF(AV7=\"D\",IF(EP2.1_D!A14=\"\",\"\",EP2.1_D!A14),IF(AV7=\"E\",IF(EP2.1_E!A14=\"\",\"\",EP2.1_E!A14),IF(AV7=\"F\",IF(EP2.1_F!A14=\"\",\"\",EP2.1_F!A14),IF(AV7=\"G\",IF(EP2.1_G!A14=\"\",\"\",EP2.1_G!A14),IF(AV7=\"H\",IF(EP2.1_H!A14=\"\",\"\",EP2.1_H!A14),\"\")))))))))","v":"X"},"Le dossier technique du bien sur supports papiers ou supports numériques",null,null,null,null,null,null,null,null,null,null,null,null,null,null,null,null,null,null,null,null,null,{"$f":"IF(AV7=\"\",\"\",IF(AV7=\"A\",IF(EP2.1_A!X14=\"\",\"\",EP2.1_A!X14),IF(AV7=\"B\",IF(EP2.1_B!X14=\"\",\"\",EP2.1_B!X14),IF(AV7=\"C\",IF(EP2.1_C!X14=\"\",\"\",EP2.1_C!X14),IF(AV7=\"D\",IF(EP2.1_D!X14=\"\",\"\",EP2.1_D!X14),IF(AV7=\"E\",IF(EP2.1_E!X14=\"\",\"\",EP2.1_E!X14),IF(AV7=\"F\",IF(EP2.1_F!X14=\"\",\"\",EP2.1_F!X14),IF(AV7=\"G\",IF(EP2.1_G!X14=\"\",\"\",EP2.1_G!X14),IF(AV7=\"H\",IF(EP2.1_H!X14=\"\",\"\",EP2.1_H!X14),\"\")))))))))","v":"X"},"L’équipement informatique"]
[{"$f":"IF(AV7=\"\",\"\",IF(AV7=\"A\",IF(EP2.1_A!A15=\"\",\"\",EP2.1_A!A15),IF(AV7=\"B\",IF(EP2.1_B!A15=\"\",\"\",EP2.1_B!A15),IF(AV7=\"C\",IF(EP2.1_C!A15=\"\",\"\",EP2.1_C!A15),IF(AV7=\"D\",IF(EP2.1_D!A15=\"\",\"\",EP2.1_D!A15),IF(AV7=\"E\",IF(EP2.1_E!A15=\"\",\"\",EP2.1_E!A15),IF(AV7=\"F\",IF(EP2.1_F!A15=\"\",\"\",EP2.1_F!A15),IF(AV7=\"G\",IF(EP2.1_G!A15=\"\",\"\",EP2.1_G!A15),IF(AV7=\"H\",IF(EP2.1_H!A15=\"\",\"\",EP2.1_H!A15),\"\")))))))))","v":"X"},"Le bien et les conditions de son environnement",null,null,null,null,null,null,null,null,null,null,null,null,null,null,null,null,null,null,null,null,null,{"$f":"IF(AV7=\"\",\"\",IF(AV7=\"A\",IF(EP2.1_A!X15=\"\",\"\",EP2.1_A!X15),IF(AV7=\"B\",IF(EP2.1_B!X15=\"\",\"\",EP2.1_B!X15),IF(AV7=\"C\",IF(EP2.1_C!X15=\"\",\"\",EP2.1_C!X15),IF(AV7=\"D\",IF(EP2.1_D!X15=\"\",\"\",EP2.1_D!X15),IF(AV7=\"E\",IF(EP2.1_E!X15=\"\",\"\",EP2.1_E!X15),IF(AV7=\"F\",IF(EP2.1_F!X15=\"\",\"\",EP2.1_F!X15),IF(AV7=\"G\",IF(EP2.1_G!X15=\"\",\"\",EP2.1_G!X15),IF(AV7=\"H\",IF(EP2.1_H!X15=\"\",\"\",EP2.1_H!X15),\"\")))))))))","v":"X"},"Les logiciels"]
[{"$f":"IF(AV7=\"\",\"\",IF(AV7=\"A\",IF(EP2.1_A!A16=\"\",\"\",EP2.1_A!A16),IF(AV7=\"B\",IF(EP2.1_B!A16=\"\",\"\",EP2.1_B!A16),IF(AV7=\"C\",IF(EP2.1_C!A16=\"\",\"\",EP2.1_C!A16),IF(AV7=\"D\",IF(EP2.1_D!A16=\"\",\"\",EP2.1_D!A16),IF(AV7=\"E\",IF(EP2.1_E!A16=\"\",\"\",EP2.1_E!A16),IF(AV7=\"F\",IF(EP2.1_F!A16=\"\",\"\",EP2.1_F!A16),IF(AV7=\"G\",IF(EP2.1_G!A16=\"\",\"\",EP2.1_G!A16),IF(AV7=\"H\",IF(EP2.1_H!A16=\"\",\"\",EP2.1_H!A16),\"\")))))))))","v":"X"},"Les normes",null,null,null,null,null,null,null,null,null,null,null,null,null,null,null,null,null,null,null,null,null,{"$f":"IF(AV7=\"\",\"\",IF(AV7=\"A\",IF(EP2.1_A!X16=\"\",\"\",EP2.1_A!X16),IF(AV7=\"B\",IF(EP2.1_B!X16=\"\",\"\",EP2.1_B!X16),IF(AV7=\"C\",IF(EP2.1_C!X16=\"\",\"\",EP2.1_C!X16),IF(AV7=\"D\",IF(EP2.1_D!X16=\"\",\"\",EP2.1_D!X16),IF(AV7=\"E\",IF(EP2.1_E!X16=\"\",\"\",EP2.1_E!X16),IF(AV7=\"F\",IF(EP2.1_F!X16=\"\",\"\",EP2.1_F!X16),IF(AV7=\"G\",IF(EP2.1_G!X16=\"\",\"\",EP2.1_G!X16),IF(AV7=\"H\",IF(EP2.1_H!X16=\"\",\"\",EP2.1_H!X16),\"\")))))))))","v":"X"},"Les outils descripteurs (grafcet, chronogramme…)"]
[{"$f":"IF(AV7=\"\",\"\",IF(AV7=\"A\",IF(EP2.1_A!A17=\"\",\"\",EP2.1_A!A17),IF(AV7=\"B\",IF(EP2.1_B!A17=\"\",\"\",EP2.1_B!A17),IF(AV7=\"C\",IF(EP2.1_C!A17=\"\",\"\",EP2.1_C!A17),IF(AV7=\"D\",IF(EP2.1_D!A17=\"\",\"\",EP2.1_D!A17),IF(AV7=\"E\",IF(EP2.1_E!A17=\"\",\"\",EP2.1_E!A17),IF(AV7=\"F\",IF(EP2.1_F!A17=\"\",\"\",EP2.1_F!A17),IF(AV7=\"G\",IF(EP2.1_G!A17=\"\",\"\",EP2.1_G!A17),IF(AV7=\"H\",IF(EP2.1_H!A17=\"\",\"\",EP2.1_H!A17),\"\")))))))))","v":"X"},"Toutes documentations techniques",null,null,null,null,null,null,null,null,null,null,null,null,null,null,null,null,null,null,null,null,null,{"$f":"IF(AV7=\"\",\"\",IF(AV7=\"A\",IF(EP2.1_A!X17=\"\",\"\",EP2.1_A!X17),IF(AV7=\"B\",IF(EP2.1_B!X17=\"\",\"\",EP2.1_B!X17),IF(AV7=\"C\",IF(EP2.1_C!X17=\"\",\"\",EP2.1_C!X17),IF(AV7=\"D\",IF(EP2.1_D!X17=\"\",\"\",EP2.1_D!X17),IF(AV7=\"E\",IF(EP2.1_E!X17=\"\",\"\",EP2.1_E!X17),IF(AV7=\"F\",IF(EP2.1_F!X17=\"\",\"\",EP2.1_F!X17),IF(AV7=\"G\",IF(EP2.1_G!X17=\"\",\"\",EP2.1_G!X17),IF(AV7=\"H\",IF(EP2.1_H!X17=\"\",\"\",EP2.1_H!X17),\"\")))))))))","v":"X"},"Tous documents nouveaux nécessaires à la compréhension de l’information : Nouvelle notice technique, compte-rendu d’intervention, documents de modification."]
[{"$f":"IF(AV7=\"\",\"\",IF(AV7=\"A\",IF(EP2.1_A!A18=\"\",\"\",EP2.1_A!A18),IF(AV7=\"B\",IF(EP2.1_B!A18=\"\",\"\",EP2.1_B!A18),IF(AV7=\"C\",IF(EP2.1_C!A18=\"\",\"\",EP2.1_C!A18),IF(AV7=\"D\",IF(EP2.1_D!A18=\"\",\"\",EP2.1_D!A18),IF(AV7=\"E\",IF(EP2.1_E!A18=\"\",\"\",EP2.1_E!A18),IF(AV7=\"F\",IF(EP2.1_F!A18=\"\",\"\",EP2.1_F!A18),IF(AV7=\"G\",IF(EP2.1_G!A18=\"\",\"\",EP2.1_G!A18),IF(AV7=\"H\",IF(EP2.1_H!A18=\"\",\"\",EP2.1_H!A18),\"\")))))))))","v":"X"},"Le document unique d’évaluation des risques",null,null,null,null,null,null,null,null,null,null,null,null,null,null,null,null,null,null,null,null,null,{"$f":"IF(AV7=\"\",\"\",IF(AV7=\"A\",IF(EP2.1_A!X18=\"\",\"\",EP2.1_A!X18),IF(AV7=\"B\",IF(EP2.1_B!X18=\"\",\"\",EP2.1_B!X18),IF(AV7=\"C\",IF(EP2.1_C!X18=\"\",\"\",EP2.1_C!X18),IF(AV7=\"D\",IF(EP2.1_D!X18=\"\",\"\",EP2.1_D!X18),IF(AV7=\"E\",IF(EP2.1_E!X18=\"\",\"\",EP2.1_E!X18),IF(AV7=\"F\",IF(EP2.1_F!X18=\"\",\"\",EP2.1_F!X18),IF(AV7=\"G\",IF(EP2.1_G!X18=\"\",\"\",EP2.1_G!X18),IF(AV7=\"H\",IF(EP2.1_H!X18=\"\",\"\",EP2.1_H!X18),\"\")))))))))","v":"X"},"Les moyens de communication"]
[{"$f":"IF(AV7=\"\",\"\",IF(AV7=\"A\",IF(EP2.1_A!A19=\"\",\"\",EP2.1_A!A19),IF(AV7=\"B\",IF(EP2.1_B!A19=\"\",\"\",EP2.1_B!A19),IF(AV7=\"C\",IF(EP2.1_C!A19=\"\",\"\",EP2.1_C!A19),IF(AV7=\"D\",IF(EP2.1_D!A19=\"\",\"\",EP2.1_D!A19),IF(AV7=\"E\",IF(EP2.1_E!A19=\"\",\"\",EP2.1_E!A19),IF(AV7=\"F\",IF(EP2.1_F!A19=\"\",\"\",EP2.1_F!A19),IF(AV7=\"G\",IF(EP2.1_G!A19=\"\",\"\",EP2.1_G!A19),IF(AV7=\"H\",IF(EP2.1_H!A19=\"\",\"\",EP2.1_H!A19),\"\")))))))))","v":"X"},"Toutes informations en provenance de l’utilisateur",null,null,null,null,null,null,null,null,null,null,null,null,null,null,null,null,null,null,null,null,null,{"$f":"IF(AV7=\"\",\"\",IF(AV7=\"A\",IF(EP2.1_A!X19=\"\",\"\",EP2.1_A!X19),IF(AV7=\"B\",IF(EP2.1_B!X19=\"\",\"\",EP2.1_B!X19),IF(AV7=\"C\",IF(EP2.1_C!X19=\"\",\"\",EP2.1_C!X19),IF(AV7=\"D\",IF(EP2.1_D!X19=\"\",\"\",EP2.1_D!X19),IF(AV7=\"E\",IF(EP2.1_E!X19=\"\",\"\",EP2.1_E!X19),IF(AV7=\"F\",IF(EP2.1_F!X19=\"\",\"\",EP2.1_F!X19),IF(AV7=\"G\",IF(EP2.1_G!X19=\"\",\"\",EP2.1_G!X19),IF(AV7=\"H\",IF(EP2.1_H!X19=\"\",\"\",EP2.1_H!X19),\"\")))))))))","v":"X"},"La demande d’intervention ou le bon de travail."]
[{"$f":"IF(AV7=\"\",\"\",IF(AV7=\"A\",IF(EP2.1_A!A20=\"\",\"\",EP2.1_A!A20),IF(AV7=\"B\",IF(EP2.1_B!A20=\"\",\"\",EP2.1_B!A20),IF(AV7=\"C\",IF(EP2.1_C!A20=\"\",\"\",EP2.1_C!A20),IF(AV7=\"D\",IF(EP2.1_D!A20=\"\",\"\",EP2.1_D!A20),IF(AV7=\"E\",IF(EP2.1_E!A20=\"\",\"\",EP2.1_E!A20),IF(AV7=\"F\",IF(EP2.1_F!A20=\"\",\"\",EP2.1_F!A20),IF(AV7=\"G\",IF(EP2.1_G!A20=\"\",\"\",EP2.1_G!A20),IF(AV7=\"H\",IF(EP2.1_H!A20=\"\",\"\",EP2.1_H!A20),\"\")))))))))","v":"X"},"Les contraintes dans l’environnement",null,null,null,null,null,null,null,null,null,null,null,null,null,null,null,null,null,null,null,null,null,{"$f":"IF(AV7=\"\",\"\",IF(AV7=\"A\",IF(EP2.1_A!X20=\"\",\"\",EP2.1_A!X20),IF(AV7=\"B\",IF(EP2.1_B!X20=\"\",\"\",EP2.1_B!X20),IF(AV7=\"C\",IF(EP2.1_C!X20=\"\",\"\",EP2.1_C!X20),IF(AV7=\"D\",IF(EP2.1_D!X20=\"\",\"\",EP2.1_D!X20),IF(AV7=\"E\",IF(EP2.1_E!X20=\"\",\"\",EP2.1_E!X20),IF(AV7=\"F\",IF(EP2.1_F!X20=\"\",\"\",EP2.1_F!X20),IF(AV7=\"G\",IF(EP2.1_G!X20=\"\",\"\",EP2.1_G!X20),IF(AV7=\"H\",IF(EP2.1_H!X20=\"\",\"\",EP2.1_H!X20),\"\")))))))))","v":"X"},"Les consignes d’exploitation"]
[{"$f":"IF(AV7=\"\",\"\",IF(AV7=\"A\",IF(EP2.1_A!A21=\"\",\"\",EP2.1_A!A21),IF(AV7=\"B\",IF(EP2.1_B!A21=\"\",\"\",EP2.1_B!A21),IF(AV7=\"C\",IF(EP2.1_C!A21=\"\",\"\",EP2.1_C!A21),IF(AV7=\"D\",IF(EP2.1_D!A21=\"\",\"\",EP2.1_D!A21),IF(AV7=\"E\",IF(EP2.1_E!A21=\"\",\"\",EP2.1_E!A21),IF(AV7=\"F\",IF(EP2.1_F!A21=\"\",\"\",EP2.1_F!A21),IF(AV7=\"G\",IF(EP2.1_G!A21=\"\",\"\",EP2.1_G!A21),IF(AV7=\"H\",IF(EP2.1_H!A21=\"\",\"\",EP2.1_H!A21),\"\")))))))))","v":"X"},"Les délais d’interventions",null,null,null,null,null,null,null,null,null,null,null,null,null,null,null,null,null,null,null,null,null,{"$f":"IF(AV7=\"\",\"\",IF(AV7=\"A\",IF(EP2.1_A!X21=\"\",\"\",EP2.1_A!X21),IF(AV7=\"B\",IF(EP2.1_B!X21=\"\",\"\",EP2.1_B!X21),IF(AV7=\"C\",IF(EP2.1_C!X21=\"\",\"\",EP2.1_C!X21),IF(AV7=\"D\",IF(EP2.1_D!X21=\"\",\"\",EP2.1_D!X21),IF(AV7=\"E\",IF(EP2.1_E!X21=\"\",\"\",EP2.1_E!X21),IF(AV7=\"F\",IF(EP2.1_F!X21=\"\",\"\",EP2.1_F!X21),IF(AV7=\"G\",IF(EP2.1_G!X21=\"\",\"\",EP2.1_G!X21),IF(AV7=\"H\",IF(EP2.1_H!X21=\"\",\"\",EP2.1_H!X21),\"\")))))))))","v":"X"},"Le bon de travail"]
[{"$f":"IF(AV7=\"\",\"\",IF(AV7=\"A\",IF(EP2.1_A!A22=\"\",\"\",EP2.1_A!A22),IF(AV7=\"B\",IF(EP2.1_B!A22=\"\",\"\",EP2.1_B!A22),IF(AV7=\"C\",IF(EP2.1_C!A22=\"\",\"\",EP2.1_C!A22),IF(AV7=\"D\",IF(EP2.1_D!A22=\"\",\"\",EP2.1_D!A22),IF(AV7=\"E\",IF(EP2.1_E!A22=\"\",\"\",EP2.1_E!A22),IF(AV7=\"F\",IF(EP2.1_F!A22=\"\",\"\",EP2.1_F!A22),IF(AV7=\"G\",IF(EP2.1_G!A22=\"\",\"\",EP2.1_G!A22),IF(AV7=\"H\",IF(EP2.1_H!A22=\"\",\"\",EP2.1_H!A22),\"\")))))))))","v":"X"},"Un groupe de travail.",null,null,null,null,null,null,null,null,null,null,null,null,null,null,null,null,null,null,null,null,null,{"$f":"IF(AV7=\"\",\"\",IF(AV7=\"A\",IF(EP2.1_A!X22=\"\",\"\",EP2.1_A!X22),IF(AV7=\"B\",IF(EP2.1_B!X22=\"\",\"\",EP2.1_B!X22),IF(AV7=\"C\",IF(EP2.1_C!X22=\"\",\"\",EP2.1_C!X22),IF(AV7=\"D\",IF(EP2.1_D!X22=\"\",\"\",EP2.1_D!X22),IF(AV7=\"E\",IF(EP2.1_E!X22=\"\",\"\",EP2.1_E!X22),IF(AV7=\"F\",IF(EP2.1_F!X22=\"\",\"\",EP2.1_F!X22),IF(AV7=\"G\",IF(EP2.1_G!X22=\"\",\"\",EP2.1_G!X22),IF(AV7=\"H\",IF(EP2.1_H!X22=\"\",\"\",EP2.1_H!X22),\"\")))))))))","v":"X"},"Le carnet de prescription de sécurité électrique"]
[{"$f":"IF(AV7=\"\",\"\",IF(AV7=\"A\",IF(EP2.1_A!A23=\"\",\"\",EP2.1_A!A23),IF(AV7=\"B\",IF(EP2.1_B!A23=\"\",\"\",EP2.1_B!A23),IF(AV7=\"C\",IF(EP2.1_C!A23=\"\",\"\",EP2.1_C!A23),IF(AV7=\"D\",IF(EP2.1_D!A23=\"\",\"\",EP2.1_D!A23),IF(AV7=\"E\",IF(EP2.1_E!A23=\"\",\"\",EP2.1_E!A23),IF(AV7=\"F\",IF(EP2.1_F!A23=\"\",\"\",EP2.1_F!A23),IF(AV7=\"G\",IF(EP2.1_G!A23=\"\",\"\",EP2.1_G!A23),IF(AV7=\"H\",IF(EP2.1_H!A23=\"\",\"\",EP2.1_H!A23),\"\")))))))))","v":"X"},"La fiche de procédures",null,null,null,null,null,null,null,null,null,null,null,null,null,null,null,null,null,null,null,null,null,{"$f":"IF(AV7=\"\",\"\",IF(AV7=\"A\",IF(EP2.1_A!X23=\"\",\"\",EP2.1_A!X23),IF(AV7=\"B\",IF(EP2.1_B!X23=\"\",\"\",EP2.1_B!X23),IF(AV7=\"C\",IF(EP2.1_C!X23=\"\",\"\",EP2.1_C!X23),IF(AV7=\"D\",IF(EP2.1_D!X23=\"\",\"\",EP2.1_D!X23),IF(AV7=\"E\",IF(EP2.1_E!X23=\"\",\"\",EP2.1_E!X23),IF(AV7=\"F\",IF(EP2.1_F!X23=\"\",\"\",EP2.1_F!X23),IF(AV7=\"G\",IF(EP2.1_G!X23=\"\",\"\",EP2.1_G!X23),IF(AV7=\"H\",IF(EP2.1_H!X23=\"\",\"\",EP2.1_H!X23),\"\")))))))))","v":"X"},"Les pièces de rechange, les consommables"]
[{"$f":"IF(AV7=\"\",\"\",IF(AV7=\"A\",IF(EP2.1_A!A24=\"\",\"\",EP2.1_A!A24),IF(AV7=\"B\",IF(EP2.1_B!A24=\"\",\"\",EP2.1_B!A24),IF(AV7=\"C\",IF(EP2.1_C!A24=\"\",\"\",EP2.1_C!A24),IF(AV7=\"D\",IF(EP2.1_D!A24=\"\",\"\",EP2.1_D!A24),IF(AV7=\"E\",IF(EP2.1_E!A24=\"\",\"\",EP2.1_E!A24),IF(AV7=\"F\",IF(EP2.1_F!A24=\"\",\"\",EP2.1_F!A24),IF(AV7=\"G\",IF(EP2.1_G!A24=\"\",\"\",EP2.1_G!A24),IF(AV7=\"H\",IF(EP2.1_H!A24=\"\",\"\",EP2.1_H!A24),\"\")))))))))","v":"X"},"Le cahier des charges fonctionnel",null,null,null,null,null,null,null,null,null,null,null,null,null,null,null,null,null,null,null,null,null,{"$f":"IF(AV7=\"\",\"\",IF(AV7=\"A\",IF(EP2.1_A!X24=\"\",\"\",EP2.1_A!X24),IF(AV7=\"B\",IF(EP2.1_B!X24=\"\",\"\",EP2.1_B!X24),IF(AV7=\"C\",IF(EP2.1_C!X24=\"\",\"\",EP2.1_C!X24),IF(AV7=\"D\",IF(EP2.1_D!X24=\"\",\"\",EP2.1_D!X24),IF(AV7=\"E\",IF(EP2.1_E!X24=\"\",\"\",EP2.1_E!X24),IF(AV7=\"F\",IF(EP2.1_F!X24=\"\",\"\",EP2.1_F!X24),IF(AV7=\"G\",IF(EP2.1_G!X24=\"\",\"\",EP2.1_G!X24),IF(AV7=\"H\",IF(EP2.1_H!X24=\"\",\"\",EP2.1_H!X24),\"\")))))))))","v":"X"},"Les équipements de protection individuels et collectifs"]
[{"$f":"IF(AV7=\"\",\"\",IF(AV7=\"A\",IF(EP2.1_A!A25=\"\",\"\",EP2.1_A!A25),IF(AV7=\"B\",IF(EP2.1_B!A25=\"\",\"\",EP2.1_B!A25),IF(AV7=\"C\",IF(EP2.1_C!A25=\"\",\"\",EP2.1_C!A25),IF(AV7=\"D\",IF(EP2.1_D!A25=\"\",\"\",EP2.1_D!A25),IF(AV7=\"E\",IF(EP2.1_E!A25=\"\",\"\",EP2.1_E!A25),IF(AV7=\"F\",IF(EP2.1_F!A25=\"\",\"\",EP2.1_F!A25),IF(AV7=\"G\",IF(EP2.1_G!A25=\"\",\"\",EP2.1_G!A25),IF(AV7=\"H\",IF(EP2.1_H!A25=\"\",\"\",EP2.1_H!A25),\"\")))))))))","v":"X"},"Le plan de prévention",null,null,null,null,null,null,null,null,null,null,null,null,null,null,null,null,null,null,null,null,null,{"$f":"IF(AV7=\"\",\"\",IF(AV7=\"A\",IF(EP2.1_A!X25=\"\",\"\",EP2.1_A!X25),IF(AV7=\"B\",IF(EP2.1_B!X25=\"\",\"\",EP2.1_B!X25),IF(AV7=\"C\",IF(EP2.1_C!X25=\"\",\"\",EP2.1_C!X25),IF(AV7=\"D\",IF(EP2.1_D!X25=\"\",\"\",EP2.1_D!X25),IF(AV7=\"E\",IF(EP2.1_E!X25=\"\",\"\",EP2.1_E!X25),IF(AV7=\"F\",IF(EP2.1_F!X25=\"\",\"\",EP2.1_F!X25),IF(AV7=\"G\",IF(EP2.1_G!X25=\"\",\"\",EP2.1_G!X25),IF(AV7=\"H\",IF(EP2.1_H!X25=\"\",\"\",EP2.1_H!X25),\"\")))))))))","v":"X"},"Les outillages, matériels de contrôle, de mesure, moyens de manutention."]
[{"$f":"IF(AV7=\"\",\"\",IF(AV7=\"A\",IF(EP2.1_A!A26=\"\",\"\",EP2.1_A!A26),IF(AV7=\"B\",IF(EP2.1_B!A26=\"\",\"\",EP2.1_B!A26),IF(AV7=\"C\",IF(EP2.1_C!A26=\"\",\"\",EP2.1_C!A26),IF(AV7=\"D\",IF(EP2.1_D!A26=\"\",\"\",EP2.1_D!A26),IF(AV7=\"E\",IF(EP2.1_E!A26=\"\",\"\",EP2.1_E!A26),IF(AV7=\"F\",IF(EP2.1_F!A26=\"\",\"\",EP2.1_F!A26),IF(AV7=\"G\",IF(EP2.1_G!A26=\"\",\"\",EP2.1_G!A26),IF(AV7=\"H\",IF(EP2.1_H!A26=\"\",\"\",EP2.1_H!A26),\"\")))))))))","v":"X"},"Le constat de défaillance.",null,null,null,null,null,null,null,null,null,null,null,null,null,null,null,null,null,null,null,null,null,{"$f":"IF(AV7=\"\",\"\",IF(AV7=\"A\",IF(EP2.1_A!X26=\"\",\"\",EP2.1_A!X26),IF(AV7=\"B\",IF(EP2.1_B!X26=\"\",\"\",EP2.1_B!X26),IF(AV7=\"C\",IF(EP2.1_C!X26=\"\",\"\",EP2.1_C!X26),IF(AV7=\"D\",IF(EP2.1_D!X26=\"\",\"\",EP2.1_D!X26),IF(AV7=\"E\",IF(EP2.1_E!X26=\"\",\"\",EP2.1_E!X26),IF(AV7=\"F\",IF(EP2.1_F!X26=\"\",\"\",EP2.1_F!X26),IF(AV7=\"G\",IF(EP2.1_G!X26=\"\",\"\",EP2.1_G!X26),IF(AV7=\"H\",IF(EP2.1_H!X26=\"\",\"\",EP2.1_H!X26),\"\")))))))))","v":"X"},"Les impératifs de production."]
["     ÇRepérer les données fournies",null,null,null,null,null,null,null,null,null,null,null,null,null,null,null,null,null,null,null,null,null,null,null,"ÇRepérer les données fournies"]
["Travail demandé"]
[{"$f":"IF(AV7=\"\",\"\",IF(AV7=\"A\",IF(EP2.1_A!A29=\"\",\"\",EP2.1_A!A29),IF(AV7=\"B\",IF(EP2.1_B!A29=\"\",\"\",EP2.1_B!A29),IF(AV7=\"C\",IF(EP2.1_C!A29=\"\",\"\",EP2.1_C!A29),IF(AV7=\"D\",IF(EP2.1_D!A29=\"\",\"\",EP2.1_D!A29),IF(AV7=\"E\",IF(EP2.1_E!A29=\"\",\"\",EP2.1_E!A29),IF(AV7=\"F\",IF(EP2.1_F!A29=\"\",\"\",EP2.1_F!A29),IF(AV7=\"G\",IF(EP2.1_G!A29=\"\",\"\",EP2.1_G!A29),IF(AV7=\"H\",IF(EP2.1_H!A29=\"\",\"\",EP2.1_H!A29),\"\")))))))))","v":"X"},"A1T1",null,"Préparer son intervention et/ou la logistique associée.",null,null,null,null,null,null,null,null,null,null,null,null,null,null,null,null,null,null,null,{"$f":"IF(AV7=\"\",\"\",IF(AV7=\"A\",IF(EP2.1_A!X29=\"\",\"\",EP2.1_A!X29),IF(AV7=\"B\",IF(EP2.1_B!X29=\"\",\"\",EP2.1_B!X29),IF(AV7=\"C\",IF(EP2.1_C!X29=\"\",\"\",EP2.1_C!X29),IF(AV7=\"D\",IF(EP2.1_D!X29=\"\",\"\",EP2.1_D!X29),IF(AV7=\"E\",IF(EP2.1_E!X29=\"\",\"\",EP2.1_E!X29),IF(AV7=\"F\",IF(EP2.1_F!X29=\"\",\"\",EP2.1_F!X29),IF(AV7=\"G\",IF(EP2.1_G!X29=\"\",\"\",EP2.1_G!X29),IF(AV7=\"H\",IF(EP2.1_H!X29=\"\",\"\",EP2.1_H!X29),\"\")))))))))","v":"X"},"A3T1",null,"Réaliser des opérations prescrites de contrôle et/ou de surveillance."]
[{"$f":"IF(AV7=\"\",\"\",IF(AV7=\"A\",IF(EP2.1_A!A30=\"\",\"\",EP2.1_A!A30),IF(AV7=\"B\",IF(EP2.1_B!A30=\"\",\"\",EP2.1_B!A30),IF(AV7=\"C\",IF(EP2.1_C!A30=\"\",\"\",EP2.1_C!A30),IF(AV7=\"D\",IF(EP2.1_D!A30=\"\",\"\",EP2.1_D!A30),IF(AV7=\"E\",IF(EP2.1_E!A30=\"\",\"\",EP2.1_E!A30),IF(AV7=\"F\",IF(EP2.1_F!A30=\"\",\"\",EP2.1_F!A30),IF(AV7=\"G\",IF(EP2.1_G!A30=\"\",\"\",EP2.1_G!A30),IF(AV7=\"H\",IF(EP2.1_H!A30=\"\",\"\",EP2.1_H!A30),\"\")))))))))","v":""},"A1T2",null,"Rendre compte de son intervention.",null,null,null,null,null,null,null,null,null,null,null,null,null,null,null,null,null,null,null,{"$f":"IF(AV7=\"\",\"\",IF(AV7=\"A\",IF(EP2.1_A!X30=\"\",\"\",EP2.1_A!X30),IF(AV7=\"B\",IF(EP2.1_B!X30=\"\",\"\",EP2.1_B!X30),IF(AV7=\"C\",IF(EP2.1_C!X30=\"\",\"\",EP2.1_C!X30),IF(AV7=\"D\",IF(EP2.1_D!X30=\"\",\"\",EP2.1_D!X30),IF(AV7=\"E\",IF(EP2.1_E!X30=\"\",\"\",EP2.1_E!X30),IF(AV7=\"F\",IF(EP2.1_F!X30=\"\",\"\",EP2.1_F!X30),IF(AV7=\"G\",IF(EP2.1_G!X30=\"\",\"\",EP2.1_G!X30),IF(AV7=\"H\",IF(EP2.1_H!X30=\"\",\"\",EP2.1_H!X30),\"\")))))))))","v":"X"},"A3T2",null,"Réaliser des opérations planifiées."]
[{"$f":"IF(AV7=\"\",\"\",IF(AV7=\"A\",IF(EP2.1_A!A31=\"\",\"\",EP2.1_A!A31),IF(AV7=\"B\",IF(EP2.1_B!A31=\"\",\"\",EP2.1_B!A31),IF(AV7=\"C\",IF(EP2.1_C!A31=\"\",\"\",EP2.1_C!A31),IF(AV7=\"D\",IF(EP2.1_D!A31=\"\",\"\",EP2.1_D!A31),IF(AV7=\"E\",IF(EP2.1_E!A31=\"\",\"\",EP2.1_E!A31),IF(AV7=\"F\",IF(EP2.1_F!A31=\"\",\"\",EP2.1_F!A31),IF(AV7=\"G\",IF(EP2.1_G!A31=\"\",\"\",EP2.1_G!A31),IF(AV7=\"H\",IF(EP2.1_H!A31=\"\",\"\",EP2.1_H!A31),\"\")))))))))","v":"X"},"A1T3",null,"Proposer des améliorations sur l’environnement de son intervention.",null,null,null,null,null,null,null,null,null,null,null,null,null,null,null,null,null,null,null,{"$f":"IF(AV7=\"\",\"\",IF(AV7=\"A\",IF(EP2.1_A!X31=\"\",\"\",EP2.1_A!X31),IF(AV7=\"B\",IF(EP2.1_B!X31=\"\",\"\",EP2.1_B!X31),IF(AV7=\"C\",IF(EP2.1_C!X31=\"\",\"\",EP2.1_C!X31),IF(AV7=\"D\",IF(EP2.1_D!X31=\"\",\"\",EP2.1_D!X31),IF(AV7=\"E\",IF(EP2.1_E!X31=\"\",\"\",EP2.1_E!X31),IF(AV7=\"F\",IF(EP2.1_F!X31=\"\",\"\",EP2.1_F!X31),IF(AV7=\"G\",IF(EP2.1_G!X31=\"\",\"\",EP2.1_G!X31),IF(AV7=\"H\",IF(EP2.1_H!X31=\"\",\"\",EP2.1_H!X31),\"\")))))))))","v":"X"},"A4T1",null,"Réaliser une amélioration validée."]
[{"$f":"IF(AV7=\"\",\"\",IF(AV7=\"A\",IF(EP2.1_A!A32=\"\",\"\",EP2.1_A!A32),IF(AV7=\"B\",IF(EP2.1_B!A32=\"\",\"\",EP2.1_B!A32),IF(AV7=\"C\",IF(EP2.1_C!A32=\"\",\"\",EP2.1_C!A32),IF(AV7=\"D\",IF(EP2.1_D!A32=\"\",\"\",EP2.1_D!A32),IF(AV7=\"E\",IF(EP2.1_E!A32=\"\",\"\",EP2.1_E!A32),IF(AV7=\"F\",IF(EP2.1_F!A32=\"\",\"\",EP2.1_F!A32),IF(AV7=\"G\",IF(EP2.1_G!A32=\"\",\"\",EP2.1_G!A32),IF(AV7=\"H\",IF(EP2.1_H!A32=\"\",\"\",EP2.1_H!A32),\"\")))))))))","v":"X"},"A2T1",null,"Réparer un bien par remplacement de composants.",null,null,null,null,null,null,null,null,null,null,null,null,null,null,null,null,null,null,null,{"$f":"IF(AV7=\"\",\"\",IF(AV7=\"A\",IF(EP2.1_A!X32=\"\",\"\",EP2.1_A!X32),IF(AV7=\"B\",IF(EP2.1_B!X32=\"\",\"\",EP2.1_B!X32),IF(AV7=\"C\",IF(EP2.1_C!X32=\"\",\"\",EP2.1_C!X32),IF(AV7=\"D\",IF(EP2.1_D!X32=\"\",\"\",EP2.1_D!X32),IF(AV7=\"E\",IF(EP2.1_E!X32=\"\",\"\",EP2.1_E!X32),IF(AV7=\"F\",IF(EP2.1_F!X32=\"\",\"\",EP2.1_F!X32),IF(AV7=\"G\",IF(EP2.1_G!X32=\"\",\"\",EP2.1_G!X32),IF(AV7=\"H\",IF(EP2.1_H!X32=\"\",\"\",EP2.1_H!X32),\"\")))))))))","v":""}]
[{"$f":"IF(AV7=\"\",\"\",IF(AV7=\"A\",IF(EP2.1_A!A33=\"\",\"\",EP2.1_A!A33),IF(AV7=\"B\",IF(EP2.1_B!A33=\"\",\"\",EP2.1_B!A33),IF(AV7=\"C\",IF(EP2.1_C!A33=\"\",\"\",EP2.1_C!A33),IF(AV7=\"D\",IF(EP2.1_D!A33=\"\",\"\",EP2.1_D!A33),IF(AV7=\"E\",IF(EP2.1_E!A33=\"\",\"\",EP2.1_E!A33),IF(AV7=\"F\",IF(EP2.1_F!A33=\"\",\"\",EP2.1_F!A33),IF(AV7=\"G\",IF(EP2.1_G!A33=\"\",\"\",EP2.1_G!A33),IF(AV7=\"H\",IF(EP2.1_H!A33=\"\",\"\",EP2.1_H!A33),\"\")))))))))","v":"X"},"A2T2",null,"Réparer un bien par adaptation d’une pièce mécanique.",null,null,null,null,null,null,null,null,null,null,null,null,null,null,null,null,null,null,null,{"$f":"IF(AV7=\"\",\"\",IF(AV7=\"A\",IF(EP2.1_A!X33=\"\",\"\",EP2.1_A!X33),IF(AV7=\"B\",IF(EP2.1_B!X33=\"\",\"\",EP2.1_B!X33),IF(AV7=\"C\",IF(EP2.1_C!X33=\"\",\"\",EP2.1_C!X33),IF(AV7=\"D\",IF(EP2.1_D!X33=\"\",\"\",EP2.1_D!X33),IF(AV7=\"E\",IF(EP2.1_E!X33=\"\",\"\",EP2.1_E!X33),IF(AV7=\"F\",IF(EP2.1_F!X33=\"\",\"\",EP2.1_F!X33),IF(AV7=\"G\",IF(EP2.1_G!X33=\"\",\"\",EP2.1_G!X33),IF(AV7=\"H\",IF(EP2.1_H!X33=\"\",\"\",EP2.1_H!X33),\"\")))))))))","v":""}]
["Consulter le référentiel des activités professionnelles pour obtenir le détail des tâches."]
["Ç Repérer les tâches demandées (ce sont celles qui correspondent à l’unité dans le référentiel de certification, à l’exclusion de toute autre)"]
["Appréciation globale et proposition de note : "]
[]
["Noms et signatures des évaluateurs :\n\n\n",null,null,null,null,null,null,null,null,null,null,null,null,null,null,null,null,null,null,null,null,null,null,null,null,null,null,null,null,null,null,null,null,null,null,"Note proposée :          ",null,null,null,null,{"$f":"IF(AI101=\"\",\"\",AI101)","v":""},null,null,"/20"]
[null,null,null,null,null,null,null,null,null,null,null,null,null,null,null,null,null,null,null,null,null,null,null,null,null,null,null,null,null,null,null,null,null,null,null,"Note affectée de son coefficient :",null,null,null,null,{"$f":"IF(AO38=\"\",\"\",AO38*3)","v":""},null,null,"/60"]
["Brevet d’Etudes Professionnelles «Maintenance des produits et équipements industriels »  – EP2.1",null,null,null,null,null,null,null,null,null,null,null,null,null,null,null,null,null,null,null,null,null,null,null,null,null,null,null,null,null,null,null,null,null,"Validé",null,null,null,"-       Synthèse    +"]
[]
["CP1.1 : Collecter des informations, exploiter des documents ",null,null,null,null,null,null,null,null,null,null,null,null,null,null,null,null,null,null,null,null,null,null,null,null,null,null,null,null,null,"Evalué",null,null,null,{"$f":"IF(AE42=\"Non Evalué\",\"NE\",IF(AE42=\"Evalué\",\"E\",\"\"))","v":"E"},{"$f":"COUNTIF(AI44:AL53,\"Validé\")","v":0},{"$f":"COUNTIF(AI44:AL53,\"Non Validé\")","v":0},{"$f":"COUNTIF(AI44:AL53,\"Non Evalué\")","v":0},null,null,null,null,null,null,null,null,null,{"$f":"IF(AE42=\"\",\"Souhaitez-vous évaluer la compétence ?\",IF(AND(AE42=\"Non Evalué\",OR(AJ42<>0,AK42<>0)),\"Vous avez choisi de ne pas évaluer la compétence. Ne rien indiquez dans la colonne Validé.\",IF(AND(AE42=\"Evalué\",OR(AI44=\"\",AI46=\"\",AI48=\"\",AI50=\"\",AI52=\"\")),\"Vous avez choisi d'évaluer la compétence. Indiquez pour chaques actions : Validé, Non Validé ou Non Evalué.\",IF(OR(AE42=\"Non Evalué\",(AJ42+AK42)=0),\"\",CONCATENATE(ROUND((100*AJ43/(AJ43+AK43)),0),\" % d'actions validées. \",AJ42,\" validée(s) sur \",AJ42+AK42,\" . Conseil: Au maximum , grisez \",ROUND((100*AJ43/(AJ43+AK43))*8/100,0),\" colonnes\")))))","v":"Vous avez choisi d'évaluer la compétence. Indiquez pour chaques actions : Validé, Non Validé ou Non Evalué."}]
[null,null,null,null,null,null,null,null,null,null,null,null,null,null,null,null,null,null,null,null,null,null,null,null,null,null,null,null,null,null,null,null,null,null,null,{"$f":"SUMPRODUCT((AI44:AL53=\"Validé\")*(Bareme!AE131:AE140))","v":0},{"$f":"SUMPRODUCT((AI44:AL53=\"Non Validé\")*(Bareme!AE131:AE140))","v":0}]
["C 111",null,null,"Prendre en compte et s’approprier un bon de travail, une consigne, une demande déclenchant une intervention.",null,null,null,null,null,null,null,null,null,"Les éléments techniques du bon, de la consigne, de la demande sont interprétés sans déformation.",null,null,null,null,null,null,null,null,null,null,null,null,null,null,null,null,null,null,null,null,null,null,null,null,null,null,null,null,null,null,null,null,null,0]
[]
["C 112",null,null,"Questionner  la hiérarchie, les membres de l’équipe de maintenance, l’exploitant du bien, pour obtenir les informations utiles à l’intervention ",null,null,null,null,null,null,null,null,null,"Les questions posées sont pertinentes par  rapport à la problématique de maintenance.",null,null,null,null,null,null,null,null,null,null,null,null,null,null,null,null,null,null,null,null,null,null,null,null,"Commentaires:\n"]
[]
[null,null,null,null,null,null,null,null,null,null,null,null,null,"Les réponses retenues sont cohérentes avec la problématique."]
[]
["C 113",null,null,"Collecter sur le bien les informations (grandeurs, états, messages...), les anomalies (bruit, vibration, odeur...)",null,null,null,null,null,null,null,null,null,"Toutes les informations sont collectées."]
[]
["C 114",null,null,"Extraire des documents et ressources informationnelles, les informations techniques (grandeurs, dérives...) utiles à l’intervention.",null,null,null,null,null,null,null,null,null,"Les informations techniques retenues sont pertinentes et exploitables en vue de l’intervention à réaliser."]
[]
["CP1.2 : Préparer son intervention et/ou la logistique associée.",null,null,null,null,null,null,null,null,null,null,null,null,null,null,null,null,null,null,null,null,null,null,null,null,null,null,null,null,null,"Evalué",null,null,null,{"$f":"IF(AE54=\"Non Evalué\",\"NE\",IF(AE54=\"Evalué\",\"E\",\"\"))","v":"E"},{"$f":"COUNTIF(AI56:AL81,\"Validé\")","v":0},{"$f":"COUNTIF(AI56:AL81,\"Non Validé\")","v":0},{"$f":"COUNTIF(AI56:AL81,\"Non Evalué\")","v":0},null,null,null,null,null,null,null,null,null,{"$f":"IF(AE54=\"\",\"Souhaitez-vous évaluer la compétence ?\",IF(AND(AE54=\"Non Evalué\",OR(AJ54<>0,AK54<>0)),\"Vous avez choisi de ne pas évaluer la compétence. Ne rien indiquez dans la colonne Validé.\",IF(AND(AE54=\"Evalué\",OR(AI56=\"\",AI58=\"\",AI60=\"\",AI62=\"\",AI64=\"\",AI66=\"\",AI68=\"\",AI70=\"\",AI72=\"\",AI74=\"\",AI76=\"\",AI78=\"\",AI80=\"\")),\"Vous avez choisi d'évaluer la compétence. Indiquez pour chaques actions : Validé, Non Validé ou Non Evalué.\",IF(OR(AE54=\"Non Evalué\",(AJ54+AK54)=0),\"\",CONCATENATE(ROUND((100*AJ55/(AJ55+AK55)),0),\" % d'actions validées. \",AJ54,\" validée(s) sur \",AJ54+AK54,\" . Conseil: Au maximum , grisez \",ROUND((100*AJ55/(AJ55+AK55))*8/100,0),\" colonnes\")))))","v":"Vous avez choisi d'évaluer la compétence. Indiquez pour chaques actions : Validé, Non Validé ou Non Evalué."}]
[null,null,null,null,null,null,null,null,null,null,null,null,null,null,null,null,null,null,null,null,null,null,null,null,null,null,null,null,null,null,null,null,null,null,null,{"$f":"SUMPRODUCT((AI56:AL81=\"Validé\")*(Bareme!AE143:AE168))","v":0},{"$f":"SUMPRODUCT((AI56:AL81=\"Non Validé\")*(Bareme!AE143:AE168))","v":0}]
["C 121",null,null,"Lire et compléter si nécessaire les documents du dossier de préparation.",null,null,null,null,null,null,null,null,null,"Sont assimilés : le bon de travail, la gamme, les consignes, les procédures de réglage, de contrôle, de mesure,…",null,null,null,null,null,null,null,null,null,null,null,null,null,null,null,null,null,null,null,null,null,null,null,null,null,null,null,null,null,null,null,null,null,0]
[]
["C 122",null,null,"Identifier, localiser sur la documentation technique les équipements concernés par son intervention.",null,null,null,null,null,null,null,null,null,"Les équipements concernés sont tous localisés."]
[]
[null,null,null,null,null,null,null,null,null,null,null,null,null,"Le fonctionnement et le rôle des équipements sont identifiés.",null,null,null,null,null,null,null,null,null,null,null,null,null,null,null,null,null,null,null,null,null,null,null,null,"Commentaires:\n"]
[]
["C 123",null,null,"Lister et vérifier les autorisations d’accès et de travail.",null,null,null,null,null,null,null,null,null,"Le périmètre d’intervention est délimité par écrit."]
[]
[null,null,null,null,null,null,null,null,null,null,null,null,null,"Les autorisations sont assimilées."]
[]
["C 124",null,null,"Apprécier la masse des charges à manutentionner\nIdentifier :\n-les points d’ancrage, de calage, \n-la position du centre de gravité,\n-l’angle d’élingage",null,null,null,null,null,null,null,null,null,"Les apparaux de levage retenus sont adaptés."]
[]
[null,null,null,null,null,null,null,null,null,null,null,null,null,"Les points d’ancrage et/ou le centre de gravité sont localisés."]
[]
[null,null,null,null,null,null,null,null,null,null,null,null,null,"L’angle d’élingage est déterminé."]
[]
["C 125",null,null,"Choisir et désigner les outillages et matériels nécessaires",null,null,null,null,null,null,null,null,null,"A partir de familles d’outillage définies dans le dossier de préparation les outils choisis et désignés sont adaptés à l’intervention."]
[]
["C 126",null,null,"S’assurer de la disponibilité des consommables, des outillages, des pièces de rechange.",null,null,null,null,null,null,null,null,null,"Les matériels indisponibles sont listés."]
[]
["C 127",null,null,"Signaler les indisponibilités.",null,null,null,null,null,null,null,null,null,"La liste des indisponibilités est transmise."]
[]
[null,null,null,null,null,null,null,null,null,null,null,null,null,"En fonction des indisponibilités le signalement d’impossibilité de réaliser de son intervention est justifié."]
[]
["C 128",null,null,"Fournir les références des éléments manquants.",null,null,null,null,null,null,null,null,null,"Les références et la quantité permettent d’établir la commande. "]
[]
["Brevet d’Etudes Professionnelles «Maintenance des produits et équipements industriels »  – EP2.1",null,null,null,null,null,null,null,null,null,null,null,null,null,null,null,null,null,null,null,null,null,null,null,null,null,null,null,null,null,null,null,null,null,"Validé",null,null,null,"-       Synthèse    +"]
[]
["CP1.3 : Identifier les risques et s’approprier les procédures prescrites.",null,null,null,null,null,null,null,null,null,null,null,null,null,null,null,null,null,null,null,null,null,null,null,null,null,null,null,null,null,"Evalué",null,null,null,{"$f":"IF(AE84=\"Non Evalué\",\"NE\",IF(AE84=\"Evalué\",\"E\",\"\"))","v":"E"},{"$f":"COUNTIF(AI86:AL95,\"Validé\")","v":0},{"$f":"COUNTIF(AI86:AL95,\"Non Validé\")","v":0},{"$f":"COUNTIF(AI86:AL95,\"Non Evalué\")","v":0},null,null,null,null,null,null,null,null,null,{"$f":"IF(AE84=\"\",\"Souhaitez-vous évaluer la compétence ?\",IF(AND(AE84=\"Non Evalué\",OR(AJ84<>0,AK84<>0)),\"Vous avez choisi de ne pas évaluer la compétence. Ne rien indiquez dans la colonne Validé.\",IF(AND(AE84=\"Evalué\",OR(AI86=\"\",AI88=\"\",AI90=\"\",AI92=\"\",AI94=\"\")),\"Vous avez choisi d'évaluer la compétence. Indiquez pour chaques actions : Validé, Non Validé ou Non Evalué.\",IF(OR(AE84=\"Non Evalué\",(AJ84+AK84)=0),\"\",CONCATENATE(ROUND((100*AJ85/(AJ85+AK85)),0),\" % d'actions validées. \",AJ84,\" validée(s) sur \",AJ84+AK84,\" . Conseil: Au maximum , grisez \",ROUND((100*AJ85/(AJ85+AK85))*8/100,0),\" colonnes\")))))","v":"Vous avez choisi d'évaluer la compétence. Indiquez pour chaques actions : Validé, Non Validé ou Non Evalué."}]
[null,null,null,null,null,null,null,null,null,null,null,null,null,null,null,null,null,null,null,null,null,null,null,null,null,null,null,null,null,null,null,null,null,null,null,{"$f":"SUMPRODUCT((AI86:AL95=\"Validé\")*(Bareme!AE171:AE180))","v":0},{"$f":"SUMPRODUCT((AI86:AL95=\"Non Validé\")*(Bareme!AE171:AE180))","v":0}]
["C 131",null,null,"Identifier les phénomènes dangereux et les situations dangereuses liés:\n- au bien et à son environnement,\n- à son activité de maintenance.",null,null,null,null,null,null,null,null,null,"Sont répertoriés les risques liés :\n-au bien (énergies présentes et résiduelles, chimiques,…),\n-à l’environnement (chimiques, thermiques, bruit, rayonnement,  projection,…)\nà l’activité (coupure, chute, écrasement....) ",null,null,null,null,null,null,null,null,null,null,null,null,null,null,null,null,null,null,null,null,null,null,null,null,null,null,null,null,null,null,null,null,null,0]
[]
["C 132",null,null,"S’approprier les mesures de prévention prescrites dans le dossier de préparation en regard des situations dangereuses identifiées.\n\nAppliquer ou respecter le protocole de sécurité  (restrictions d’accès, habilitations ou autorisations,…)",null,null,null,null,null,null,null,null,null,"La mise en œuvre des mesures de prévention définies est comprise et décrite :\n-équipements de protection individuelle (E.P.I.)*,\n-équipements individuels de sécurité (EIS)*,\n-équipements de protection collective (EPC)*,\n-consignation (énergies, accès…)."]
[]
["C 133",null,null,"Signaler les manques, les difficultés de lecture et d’appropriation des mesures de prévention définies.",null,null,null,null,null,null,null,null,null,"Les difficultés signalées sont justifiées et pertinentes.",null,null,null,null,null,null,null,null,null,null,null,null,null,null,null,null,null,null,null,null,null,null,null,null,"Commentaires:\n"]
[]
[null,null,null,null,null,null,null,null,null,null,null,null,null,"Elles permettront de faciliter l’analyse des mesures de prévention définies."]
[]
[null,null,null,null,null,null,null,null,null,null,null,null,null,"En cas d’absence de prévention par rapport à un risque, le droit de retrait est justifié."]
[]
[]
[]
[null,null,null,null,{"$f":"IF(OR(I109=\"\",AND(AE42=\"\",AE54=\"\",AE84=\"\")=0),\"\",CONCATENATE(\"PROPOSITION: \",CEILING(I109,0.5),\"/20 (\",ROUND(100*COUNTIF(U108:U110,\"E\")/(COUNTIF(U108:U110,\"E\")+COUNTIF(U108:U110,\"NE\")),0),\"% des compétences évaluées).\"))","v":"PROPOSITION: 0/20 (100% des compétences évaluées)."}]
[]
[]
[null,null,null,null,"Proposition des évaluateurs:"]
[]
[]
[]
[null,null,null,null,"Ne pas effacer"]
[null,null,null,null,null,null,null,null,null,null,null,null,null,null,{"$f":"CONCATENATE(\"Statistique EP2.1 de \",$AE$4)","v":"Statistique EP2.1 de "}]
[null,null,null,null,null,null,null,null,null,null,null,null,null,null,"Compétences",{"$f":"IF(AE4=\"\",\"\",AE4)","v":""},"Satisfaction maximale","Satisfaction moyenne",{"$f":"CONCATENATE(\"Statistique EP2.1 de \",$AE$4)","v":"Statistique EP2.1 de "},"Coefficients","Validée ou Non Validée"]
[null,null,"Somme",null,null,null,null,null,{"$f":"SUMPRODUCT((P108:P110))","v":0},null,{"$f":"SUM(Q108:Q110)","v":800},null,null,null,{"$f":"A42","v":"CP1.1 : Collecter des informations, exploiter des documents "},{"$f":"IF(OR(U108=\"NE\",U108=\"\"),\"\",S108*T108)","v":0},{"$f":"IF(OR(U108=\"NE\",U108=\"\"),\"\",T108*8)","v":180},{"$f":"IF(OR(U108=\"NE\",U108=\"\"),\"\",Q108/2)","v":90},{"$f":"IF(AV44=\"\",\"\",AV44)","v":0},{"$f":"Bareme!AE129","v":22.5},{"$f":"IF(AI42=\"\",\"\",AI42)","v":"E"}]
[null,null,"Moyenne /20",null,null,null,null,null,{"$f":"IF($K$108=0,\"\",K109*$I$108/$K$108)","v":0},null,20,null,null,null,{"$f":"A54","v":"CP1.2 : Préparer son intervention et/ou la logistique associée."},0,100,50,{"$f":"IF(AV56=\"\",\"\",AV56)","v":0},{"$f":"Bareme!AE141","v":12.5},{"$f":"IF(AI54=\"\",\"\",AI54)","v":"E"}]
[null,null,null,null,null,null,null,null,null,null,null,null,null,null,{"$f":"A84","v":"CP1.3 : Identifier les risques et s’approprier les procédures prescrites."},0,520,260,{"$f":"IF(AV86=\"\",\"\",AV86)","v":0},{"$f":"Bareme!AE169","v":65},{"$f":"IF(AI84=\"\",\"\",AI84)","v":"E"}]
[null,null,null,null,null,"Ne pas effacer"]

{"sheet":"EP2.1","index":6,"n_rows":111,"n_cols":48,"rows_kept":111,"cut":false,"hidden":true,"merged":[[45,38,52,45],[55,0,56,2],[57,0,60,2],[61,0,64,2],[65,0,70,2],[71,0,72,2],[73,0,74,2],[75,0,78,2],[79,0,80,2],[55,3,56,12],[57,3,60,12],[61,3,64,12],[65,3,70,12],[71,3,72,12],[73,3,74,12],[75,3,78,12],[79,3,80,12],[51,3,52,12],[63,13,64,33],[63,34,64,37],[65,13,66,33],[65,34,66,37],[67,13,68,33],[67,34,68,37],[69,13,70,33],[69,34,70,37],[5,47,5,48],[6,47,7,48],[30,24,30,25],[32,24,32,25],[32,26,32,45],[12,0,12,45],[13,1,13,22],[14,1,14,22],[13,24,13,45],[14,24,14,45],[20,24,20,45],[21,24,21,45],[24,24,24,45],[15,24,15,45],[16,24,16,45],[17,24,17,45],[22,1,22,22],[22,24,22,45],[23,24,23,45],[23,1,23,22],[30,1,30,2],[30,3,30,22],[31,1,31,2],[31,3,31,22],[25,1,25,22],[30,26,30,45],[31,24,31,25],[31,26,31,45],[25,24,25,45],[27,0,27,45],[28,1,28,2],[28,3,28,22],[29,1,29,2],[29,3,29,22],[28,24,28,25],[28,26,28,45],[29,24,29,25],[29,26,29,45],[32,1,32,2],[32,3,32,22],[0,0,0,45],[1,0,1,45],[3,0,5,22],[2,0,2,22],[2,23,2,29],[3,23,3,29],[4,23,4,29],[5,23,5,29],[2,30,2,45],[5,30,5,45],[3,30,4,45],[6,0,6,45],[7,0,7,45],[8,0,8,45],[15,1,15,22],[16,1,16,22],[17,1,17,22],[18,24,18,45],[19,24,19,45],[18,1,18,22],[9,0,9,45],[10,0,10,45],[24,1,24,22],[19,1,19,22],[20,1,20,22],[21,1,21,22],[105,14,105,27],[85,13,86,33],[85,34,86,37],[97,4,99,39],[100,34,102,39],[100,4,102,33],[87,13,88,33],[87,34,88,37],[89,13,90,33],[89,34,90,37],[85,3,86,12],[87,3,88,12],[89,3,94,12],[33,0,33,45],[37,43,37,45],[37,40,37,42],[35,0,35,45],[36,0,36,45],[37,35,37,39],[37,0,38,34],[61,13,62,33],[61,34,62,37],[39,34,40,37],[39,38,39,45],[40,38,40,45],[59,38,80,45],[39,0,40,33],[38,35,38,39],[38,40,38,42],[38,43,38,45],[49,13,50,33],[49,34,50,37],[47,13,48,33],[47,34,48,37],[43,0,44,2],[45,0,48,2],[49,0,50,2],[57,34,58,37],[57,13,58,33],[73,34,74,37],[75,13,76,33],[75,34,76,37],[77,13,78,33],[77,34,78,37],[83,47,84,49],[41,47,42,49],[53,0,54,29],[53,30,54,33],[53,47,54,49],[59,13,60,33],[59,34,60,37],[43,13,44,33],[43,34,44,37],[45,13,46,33],[45,34,46,37],[41,0,42,29],[41,30,42,33],[55,34,56,37],[55,13,56,33],[51,34,52,37],[51,13,52,33],[51,0,52,2],[43,3,44,12],[45,3,48,12],[49,3,50,12],[71,13,72,33],[71,34,72,37],[73,13,74,33],[89,38,94,45],[91,13,92,33],[91,34,92,37],[93,13,94,33],[93,34,94,37],[79,13,80,33],[79,34,80,37],[81,34,82,37],[81,0,82,33],[83,30,84,33],[83,0,84,29],[85,0,86,2],[87,0,88,2],[89,0,94,2],[81,38,81,45],[82,38,82,45]]}
["Brevet d’Etudes Professionnelles «Maintenance des produits et équipements industriels » "]
["EP2.1 : Préparation de son intervention"]
["Établissement : (tampon)",null,null,null,null,null,null,null,null,null,null,null,null,null,null,null,null,null,null,null,null,null,null,"Session : ",null,null,null,null,null,null,{"$f":"IF(Bilan!B2=\"\",\"\",Bilan!B2)","v":""}]
[{"$f":"IF(Bilan!B3=\"\",\"\",Bilan!B3)","v":""},null,null,null,null,null,null,null,null,null,null,null,null,null,null,null,null,null,null,null,null,null,null,"Nom du candidat:",null,null,null,null,null,null,{"$f":"IF(INDEX((Bilan!B5:B34),(MATCH(RIGHT(CELL(\"nomfichier\",A1),LEN(CELL(\"nomfichier\",A1))-FIND(\"]\",CELL(\"nomfichier\",A1))),Bilan!E5:E34,0)))=\"\",\"\",INDEX((Bilan!B5:B34),(MATCH(RIGHT(CELL(\"nomfichier\",A1),LEN(CELL(\"nomfichier\",A1))-FIND(\"]\",CELL(\"nomfichier\",A1))),Bilan!E5:E34,0))))","v":{"$error":"#N/A"}}]
[null,null,null,null,null,null,null,null,null,null,null,null,null,null,null,null,null,null,null,null,null,null,null,"Prénom : "]
[null,null,null,null,null,null,null,null,null,null,null,null,null,null,null,null,null,null,null,null,null,null,null,"Date de l'évaluation:",null,null,null,null,null,null,null,null,null,null,null,null,null,null,null,null,null,null,null,null,null,null,null,"Choisisser votre situation"]
["Lieu d’évaluation :"]
["      Etablissement"]
["      Entreprise :       "]
["Description sommaire du travail demandé :"]
[{"$f":"IF(AV7=\"\",\"\",IF(AV7=\"A\",IF(EP2.1_A!A11=\"\",\"\",EP2.1_A!A11),IF(AV7=\"B\",IF(EP2.1_B!A11=\"\",\"\",EP2.1_B!A11),IF(AV7=\"C\",IF(EP2.1_C!A11=\"\",\"\",EP2.1_C!A11),IF(AV7=\"D\",IF(EP2.1_D!A11=\"\",\"\",EP2.1_D!A11),IF(AV7=\"E\",IF(EP2.1_E!A11=\"\",\"\",EP2.1_E!A11),IF(AV7=\"F\",IF(EP2.1_F!A11=\"\",\"\",EP2.1_F!A11),IF(AV7=\"G\",IF(EP2.1_G!A11=\"\",\"\",EP2.1_G!A11),IF(AV7=\"H\",IF(EP2.1_H!A11=\"\",\"\",EP2.1_H!A11),\"\")))))))))","v":""},{"$f":"IF(#REF!=\"\",\"\",IF(#REF!=\"A\",IF(EP2.1_A!B11=\"\",\"\",EP2.1_A!B11),IF(#REF!=\"B\",IF(EP2.1_B!B11=\"\",\"\",EP2.1_B!B11),IF(#REF!=\"C\",IF(EP2.1_C!B11=\"\",\"\",EP2.1_C!B11),IF(#REF!=\"D\",IF(EP2.1_D!B11=\"\",\"\",EP2.1_D!B11),IF(#REF!=\"E\",IF(EP2.1_E!B11=\"\",\"\",EP2.1_E!B11),IF(#REF!=\"F\",IF(EP2.1_F!B11=\"\",\"\",EP2.1_F!B11),IF(#REF!=\"G\",IF(EP2.1_G!B11=\"\",\"\",EP2.1_G!B11),IF(#REF!=\"H\",IF(EP2.1_H!B11=\"\",\"\",EP2.1_H!B11),\"\")))))))))","v":{"$error":"#REF!"}},{"$f":"IF(#REF!=\"\",\"\",IF(#REF!=\"A\",IF(EP2.1_A!C11=\"\",\"\",EP2.1_A!C11),IF(#REF!=\"B\",IF(EP2.1_B!C11=\"\",\"\",EP2.1_B!C11),IF(#REF!=\"C\",IF(EP2.1_C!C11=\"\",\"\",EP2.1_C!C11),IF(#REF!=\"D\",IF(EP2.1_D!C11=\"\",\"\",EP2.1_D!C11),IF(#REF!=\"E\",IF(EP2.1_E!C11=\"\",\"\",EP2.1_E!C11),IF(#REF!=\"F\",IF(EP2.1_F!C11=\"\",\"\",EP2.1_F!C11),IF(#REF!=\"G\",IF(EP2.1_G!C11=\"\",\"\",EP2.1_G!C11),IF(#REF!=\"H\",IF(EP2.1_H!C11=\"\",\"\",EP2.1_H!C11),\"\")))))))))","v":{"$error":"#REF!"}},{"$f":"IF(#REF!=\"\",\"\",IF(#REF!=\"A\",IF(EP2.1_A!D11=\"\",\"\",EP2.1_A!D11),IF(#REF!=\"B\",IF(EP2.1_B!D11=\"\",\"\",EP2.1_B!D11),IF(#REF!=\"C\",IF(EP2.1_C!D11=\"\",\"\",EP2.1_C!D11),IF(#REF!=\"D\",IF(EP2.1_D!D11=\"\",\"\",EP2.1_D!D11),IF(#REF!=\"E\",IF(EP2.1_E!D11=\"\",\"\",EP2.1_E!D11),IF(#REF!=\"F\",IF(EP2.1_F!D11=\"\",\"\",EP2.1_F!D11),IF(#REF!=\"G\",IF(EP2.1_G!D11=\"\",\"\",EP2.1_G!D11),IF(#REF!=\"H\",IF(EP2.1_H!D11=\"\",\"\",EP2.1_H!D11),\"\")))))))))","v":{"$error":"#REF!"}},{"$f":"IF(#REF!=\"\",\"\",IF(#REF!=\"A\",IF(EP2.1_A!E11=\"\",\"\",EP2.1_A!E11),IF(#REF!=\"B\",IF(EP2.1_B!E11=\"\",\"\",EP2.1_B!E11),IF(#REF!=\"C\",IF(EP2.1_C!E11=\"\",\"\",EP2.1_C!E11),IF(#REF!=\"D\",IF(EP2.1_D!E11=\"\",\"\",EP2.1_D!E11),IF(#REF!=\"E\",IF(EP2.1_E!E11=\"\",\"\",EP2.1_E!E11),IF(#REF!=\"F\",IF(EP2.1_F!E11=\"\",\"\",EP2.1_F!E11),IF(#REF!=\"G\",IF(EP2.1_G!E11=\"\",\"\",EP2.1_G!E11),IF(#REF!=\"H\",IF(EP2.1_H!E11=\"\",\"\",EP2.1_H!E11),\"\")))))))))","v":{"$error":"#REF!"}},{"$f":"IF(#REF!=\"\",\"\",IF(#REF!=\"A\",IF(EP2.1_A!F11=\"\",\"\",EP2.1_A!F11),IF(#REF!=\"B\",IF(EP2.1_B!F11=\"\",\"\",EP2.1_B!F11),IF(#REF!=\"C\",IF(EP2.1_C!F11=\"\",\"\",EP2.1_C!F11),IF(#REF!=\"D\",IF(EP2.1_D!F11=\"\",\"\",EP2.1_D!F11),IF(#REF!=\"E\",IF(EP2.1_E!F11=\"\",\"\",EP2.1_E!F11),IF(#REF!=\"F\",IF(EP2.1_F!F11=\"\",\"\",EP2.1_F!F11),IF(#REF!=\"G\",IF(EP2.1_G!F11=\"\",\"\",EP2.1_G!F11),IF(#REF!=\"H\",IF(EP2.1_H!F11=\"\",\"\",EP2.1_H!F11),\"\")))))))))","v":{"$error":"#REF!"}},{"$f":"IF(#REF!=\"\",\"\",IF(#REF!=\"A\",IF(EP2.1_A!G11=\"\",\"\",EP2.1_A!G11),IF(#REF!=\"B\",IF(EP2.1_B!G11=\"\",\"\",EP2.1_B!G11),IF(#REF!=\"C\",IF(EP2.1_C!G11=\"\",\"\",EP2.1_C!G11),IF(#REF!=\"D\",IF(EP2.1_D!G11=\"\",\"\",EP2.1_D!G11),IF(#REF!=\"E\",IF(EP2.1_E!G11=\"\",\"\",EP2.1_E!G11),IF(#REF!=\"F\",IF(EP2.1_F!G11=\"\",\"\",EP2.1_F!G11),IF(#REF!=\"G\",IF(EP2.1_G!G11=\"\",\"\",EP2.1_G!G11),IF(#REF!=\"H\",IF(EP2.1_H!G11=\"\",\"\",EP2.1_H!G11),\"\")))))))))","v":{"$error":"#REF!"}},{"$f":"IF(#REF!=\"\",\"\",IF(#REF!=\"A\",IF(EP2.1_A!H11=\"\",\"\",EP2.1_A!H11),IF(#REF!=\"B\",IF(EP2.1_B!H11=\"\",\"\",EP2.1_B!H11),IF(#REF!=\"C\",IF(EP2.1_C!H11=\"\",\"\",EP2.1_C!H11),IF(#REF!=\"D\",IF(EP2.1_D!H11=\"\",\"\",EP2.1_D!H11),IF(#REF!=\"E\",IF(EP2.1_E!H11=\"\",\"\",EP2.1_E!H11),IF(#REF!=\"F\",IF(EP2.1_F!H11=\"\",\"\",EP2.1_F!H11),IF(#REF!=\"G\",IF(EP2.1_G!H11=\"\",\"\",EP2.1_G!H11),IF(#REF!=\"H\",IF(EP2.1_H!H11=\"\",\"\",EP2.1_H!H11),\"\")))))))))","v":{"$error":"#REF!"}},{"$f":"IF(#REF!=\"\",\"\",IF(#REF!=\"A\",IF(EP2.1_A!I11=\"\",\"\",EP2.1_A!I11),IF(#REF!=\"B\",IF(EP2.1_B!I11=\"\",\"\",EP2.1_B!I11),IF(#REF!=\"C\",IF(EP2.1_C!I11=\"\",\"\",EP2.1_C!I11),IF(#REF!=\"D\",IF(EP2.1_D!I11=\"\",\"\",EP2.1_D!I11),IF(#REF!=\"E\",IF(EP2.1_E!I11=\"\",\"\",EP2.1_E!I11),IF(#REF!=\"F\",IF(EP2.1_F!I11=\"\",\"\",EP2.1_F!I11),IF(#REF!=\"G\",IF(EP2.1_G!I11=\"\",\"\",EP2.1_G!I11),IF(#REF!=\"H\",IF(EP2.1_H!I11=\"\",\"\",EP2.1_H!I11),\"\")))))))))","v":{"$error":"#REF!"}},{"$f":"IF(#REF!=\"\",\"\",IF(#REF!=\"A\",IF(EP2.1_A!J11=\"\",\"\",EP2.1_A!J11),IF(#REF!=\"B\",IF(EP2.1_B!J11=\"\",\"\",EP2.1_B!J11),IF(#REF!=\"C\",IF(EP2.1_C!J11=\"\",\"\",EP2.1_C!J11),IF(#REF!=\"D\",IF(EP2.1_D!J11=\"\",\"\",EP2.1_D!J11),IF(#REF!=\"E\",IF(EP2.1_E!J11=\"\",\"\",EP2.1_E!J11),IF(#REF!=\"F\",IF(EP2.1_F!J11=\"\",\"\",EP2.1_F!J11),IF(#REF!=\"G\",IF(EP2.1_G!J11=\"\",\"\",EP2.1_G!J11),IF(#REF!=\"H\",IF(EP2.1_H!J11=\"\",\"\",EP2.1_H!J11),\"\")))))))))","v":{"$error":"#REF!"}},{"$f":"IF(#REF!=\"\",\"\",IF(#REF!=\"A\",IF(EP2.1_A!K11=\"\",\"\",EP2.1_A!K11),IF(#REF!=\"B\",IF(EP2.1_B!K11=\"\",\"\",EP2.1_B!K11),IF(#REF!=\"C\",IF(EP2.1_C!K11=\"\",\"\",EP2.1_C!K11),IF(#REF!=\"D\",IF(EP2.1_D!K11=\"\",\"\",EP2.1_D!K11),IF(#REF!=\"E\",IF(EP2.1_E!K11=\"\",\"\",EP2.1_E!K11),IF(#REF!=\"F\",IF(EP2.1_F!K11=\"\",\"\",EP2.1_F!K11),IF(#REF!=\"G\",IF(EP2.1_G!K11=\"\",\"\",EP2.1_G!K11),IF(#REF!=\"H\",IF(EP2.1_H!K11=\"\",\"\",EP2.1_H!K11),\"\")))))))))","v":{"$error":"#REF!"}},{"$f":"IF(#REF!=\"\",\"\",IF(#REF!=\"A\",IF(EP2.1_A!L11=\"\",\"\",EP2.1_A!L11),IF(#REF!=\"B\",IF(EP2.1_B!L11=\"\",\"\",EP2.1_B!L11),IF(#REF!=\"C\",IF(EP2.1_C!L11=\"\",\"\",EP2.1_C!L11),IF(#REF!=\"D\",IF(EP2.1_D!L11=\"\",\"\",EP2.1_D!L11),IF(#REF!=\"E\",IF(EP2.1_E!L11=\"\",\"\",EP2.1_E!L11),IF(#REF!=\"F\",IF(EP2.1_F!L11=\"\",\"\",EP2.1_F!L11),IF(#REF!=\"G\",IF(EP2.1_G!L11=\"\",\"\",EP2.1_G!L11),IF(#REF!=\"H\",IF(EP2.1_H!L11=\"\",\"\",EP2.1_H!L11),\"\")))))))))","v":{"$error":"#REF!"}},{"$f":"IF(#REF!=\"\",\"\",IF(#REF!=\"A\",IF(EP2.1_A!M11=\"\",\"\",EP2.1_A!M11),IF(#REF!=\"B\",IF(EP2.1_B!M11=\"\",\"\",EP2.1_B!M11),IF(#REF!=\"C\",IF(EP2.1_C!M11=\"\",\"\",EP2.1_C!M11),IF(#REF!=\"D\",IF(EP2.1_D!M11=\"\",\"\",EP2.1_D!M11),IF(#REF!=\"E\",IF(EP2.1_E!M11=\"\",\"\",EP2.1_E!M11),IF(#REF!=\"F\",IF(EP2.1_F!M11=\"\",\"\",EP2.1_F!M11),IF(#REF!=\"G\",IF(EP2.1_G!M11=\"\",\"\",EP2.1_G!M11),IF(#REF!=\"H\",IF(EP2.1_H!M11=\"\",\"\",EP2.1_H!M11),\"\")))))))))","v":{"$error":"#REF!"}},{"$f":"IF(#REF!=\"\",\"\",IF(#REF!=\"A\",IF(EP2.1_A!N11=\"\",\"\",EP2.1_A!N11),IF(#REF!=\"B\",IF(EP2.1_B!N11=\"\",\"\",EP2.1_B!N11),IF(#REF!=\"C\",IF(EP2.1_C!N11=\"\",\"\",EP2.1_C!N11),IF(#REF!=\"D\",IF(EP2.1_D!N11=\"\",\"\",EP2.1_D!N11),IF(#REF!=\"E\",IF(EP2.1_E!N11=\"\",\"\",EP2.1_E!N11),IF(#REF!=\"F\",IF(EP2.1_F!N11=\"\",\"\",EP2.1_F!N11),IF(#REF!=\"G\",IF(EP2.1_G!N11=\"\",\"\",EP2.1_G!N11),IF(#REF!=\"H\",IF(EP2.1_H!N11=\"\",\"\",EP2.1_H!N11),\"\")))))))))","v":{"$error":"#REF!"}},{"$f":"IF(#REF!=\"\",\"\",IF(#REF!=\"A\",IF(EP2.1_A!O11=\"\",\"\",EP2.1_A!O11),IF(#REF!=\"B\",IF(EP2.1_B!O11=\"\",\"\",EP2.1_B!O11),IF(#REF!=\"C\",IF(EP2.1_C!O11=\"\",\"\",EP2.1_C!O11),IF(#REF!=\"D\",IF(EP2.1_D!O11=\"\",\"\",EP2.1_D!O11),IF(#REF!=\"E\",IF(EP2.1_E!O11=\"\",\"\",EP2.1_E!O11),IF(#REF!=\"F\",IF(EP2.1_F!O11=\"\",\"\",EP2.1_F!O11),IF(#REF!=\"G\",IF(EP2.1_G!O11=\"\",\"\",EP2.1_G!O11),IF(#REF!=\"H\",IF(EP2.1_H!O11=\"\",\"\",EP2.1_H!O11),\"\")))))))))","v":{"$error":"#REF!"}},{"$f":"IF(#REF!=\"\",\"\",IF(#REF!=\"A\",IF(EP2.1_A!P11=\"\",\"\",EP2.1_A!P11),IF(#REF!=\"B\",IF(EP2.1_B!P11=\"\",\"\",EP2.1_B!P11),IF(#REF!=\"C\",IF(EP2.1_C!P11=\"\",\"\",EP2.1_C!P11),IF(#REF!=\"D\",IF(EP2.1_D!P11=\"\",\"\",EP2.1_D!P11),IF(#REF!=\"E\",IF(EP2.1_E!P11=\"\",\"\",EP2.1_E!P11),IF(#REF!=\"F\",IF(EP2.1_F!P11=\"\",\"\",EP2.1_F!P11),IF(#REF!=\"G\",IF(EP2.1_G!P11=\"\",\"\",EP2.1_G!P11),IF(#REF!=\"H\",IF(EP2.1_H!P11=\"\",\"\",EP2.1_H!P11),\"\")))))))))","v":{"$error":"#REF!"}},{"$f":"IF(#REF!=\"\",\"\",IF(#REF!=\"A\",IF(EP2.1_A!Q11=\"\",\"\",EP2.1_A!Q11),IF(#REF!=\"B\",IF(EP2.1_B!Q11=\"\",\"\",EP2.1_B!Q11),IF(#REF!=\"C\",IF(EP2.1_C!Q11=\"\",\"\",EP2.1_C!Q11),IF(#REF!=\"D\",IF(EP2.1_D!Q11=\"\",\"\",EP2.1_D!Q11),IF(#REF!=\"E\",IF(EP2.1_E!Q11=\"\",\"\",EP2.1_E!Q11),IF(#REF!=\"F\",IF(EP2.1_F!Q11=\"\",\"\",EP2.1_F!Q11),IF(#REF!=\"G\",IF(EP2.1_G!Q11=\"\",\"\",EP2.1_G!Q11),IF(#REF!=\"H\",IF(EP2.1_H!Q11=\"\",\"\",EP2.1_H!Q11),\"\")))))))))","v":{"$error":"#REF!"}},{"$f":"IF(#REF!=\"\",\"\",IF(#REF!=\"A\",IF(EP2.1_A!R11=\"\",\"\",EP2.1_A!R11),IF(#REF!=\"B\",IF(EP2.1_B!R11=\"\",\"\",EP2.1_B!R11),IF(#REF!=\"C\",IF(EP2.1_C!R11=\"\",\"\",EP2.1_C!R11),IF(#REF!=\"D\",IF(EP2.1_D!R11=\"\",\"\",EP2.1_D!R11),IF(#REF!=\"E\",IF(EP2.1_E!R11=\"\",\"\",EP2.1_E!R11),IF(#REF!=\"F\",IF(EP2.1_F!R11=\"\",\"\",EP2.1_F!R11),IF(#REF!=\"G\",IF(EP2.1_G!R11=\"\",\"\",EP2.1_G!R11),IF(#REF!=\"H\",IF(EP2.1_H!R11=\"\",\"\",EP2.1_H!R11),\"\")))))))))","v":{"$error":"#REF!"}},{"$f":"IF(#REF!=\"\",\"\",IF(#REF!=\"A\",IF(EP2.1_A!S11=\"\",\"\",EP2.1_A!S11),IF(#REF!=\"B\",IF(EP2.1_B!S11=\"\",\"\",EP2.1_B!S11),IF(#REF!=\"C\",IF(EP2.1_C!S11=\"\",\"\",EP2.1_C!S11),IF(#REF!=\"D\",IF(EP2.1_D!S11=\"\",\"\",EP2.1_D!S11),IF(#REF!=\"E\",IF(EP2.1_E!S11=\"\",\"\",EP2.1_E!S11),IF(#REF!=\"F\",IF(EP2.1_F!S11=\"\",\"\",EP2.1_F!S11),IF(#REF!=\"G\",IF(EP2.1_G!S11=\"\",\"\",EP2.1_G!S11),IF(#REF!=\"H\",IF(EP2.1_H!S11=\"\",\"\",EP2.1_H!S11),\"\")))))))))","v":{"$error":"#REF!"}},{"$f":"IF(#REF!=\"\",\"\",IF(#REF!=\"A\",IF(EP2.1_A!T11=\"\",\"\",EP2.1_A!T11),IF(#REF!=\"B\",IF(EP2.1_B!T11=\"\",\"\",EP2.1_B!T11),IF(#REF!=\"C\",IF(EP2.1_C!T11=\"\",\"\",EP2.1_C!T11),IF(#REF!=\"D\",IF(EP2.1_D!T11=\"\",\"\",EP2.1_D!T11),IF(#REF!=\"E\",IF(EP2.1_E!T11=\"\",\"\",EP2.1_E!T11),IF(#REF!=\"F\",IF(EP2.1_F!T11=\"\",\"\",EP2.1_F!T11),IF(#REF!=\"G\",IF(EP2.1_G!T11=\"\",\"\",EP2.1_G!T11),IF(#REF!=\"H\",IF(EP2.1_H!T11=\"\",\"\",EP2.1_H!T11),\"\")))))))))","v":{"$error":"#REF!"}},{"$f":"IF(#REF!=\"\",\"\",IF(#REF!=\"A\",IF(EP2.1_A!U11=\"\",\"\",EP2.1_A!U11),IF(#REF!=\"B\",IF(EP2.1_B!U11=\"\",\"\",EP2.1_B!U11),IF(#REF!=\"C\",IF(EP2.1_C!U11=\"\",\"\",EP2.1_C!U11),IF(#REF!=\"D\",IF(EP2.1_D!U11=\"\",\"\",EP2.1_D!U11),IF(#REF!=\"E\",IF(EP2.1_E!U11=\"\",\"\",EP2.1_E!U11),IF(#REF!=\"F\",IF(EP2.1_F!U11=\"\",\"\",EP2.1_F!U11),IF(#REF!=\"G\",IF(EP2.1_G!U11=\"\",\"\",EP2.1_G!U11),IF(#REF!=\"H\",IF(EP2.1_H!U11=\"\",\"\",EP2.1_H!U11),\"\")))))))))","v":{"$error":"#REF!"}},{"$f":"IF(#REF!=\"\",\"\",IF(#REF!=\"A\",IF(EP2.1_A!V11=\"\",\"\",EP2.1_A!V11),IF(#REF!=\"B\",IF(EP2.1_B!V11=\"\",\"\",EP2.1_B!V11),IF(#REF!=\"C\",IF(EP2.1_C!V11=\"\",\"\",EP2.1_C!V11),IF(#REF!=\"D\",IF(EP2.1_D!V11=\"\",\"\",EP2.1_D!V11),IF(#REF!=\"E\",IF(EP2.1_E!V11=\"\",\"\",EP2.1_E!V11),IF(#REF!=\"F\",IF(EP2.1_F!V11=\"\",\"\",EP2.1_F!V11),IF(#REF!=\"G\",IF(EP2.1_G!V11=\"\",\"\",EP2.1_G!V11),IF(#REF!=\"H\",IF(EP2.1_H!V11=\"\",\"\",EP2.1_H!V11),\"\")))))))))","v":{"$error":"#REF!"}},{"$f":"IF(#REF!=\"\",\"\",IF(#REF!=\"A\",IF(EP2.1_A!W11=\"\",\"\",EP2.1_A!W11),IF(#REF!=\"B\",IF(EP2.1_B!W11=\"\",\"\",EP2.1_B!W11),IF(#REF!=\"C\",IF(EP2.1_C!W11=\"\",\"\",EP2.1_C!W11),IF(#REF!=\"D\",IF(EP2.1_D!W11=\"\",\"\",EP2.1_D!W11),IF(#REF!=\"E\",IF(EP2.1_E!W11=\"\",\"\",EP2.1_E!W11),IF(#REF!=\"F\",IF(EP2.1_F!W11=\"\",\"\",EP2.1_F!W11),IF(#REF!=\"G\",IF(EP2.1_G!W11=\"\",\"\",EP2.1_G!W11),IF(#REF!=\"H\",IF(EP2.1_H!W11=\"\",\"\",EP2.1_H!W11),\"\")))))))))","v":{"$error":"#REF!"}},{"$f":"IF(#REF!=\"\",\"\",IF(#REF!=\"A\",IF(EP2.1_A!X11=\"\",\"\",EP2.1_A!X11),IF(#REF!=\"B\",IF(EP2.1_B!X11=\"\",\"\",EP2.1_B!X11),IF(#REF!=\"C\",IF(EP2.1_C!X11=\"\",\"\",EP2.1_C!X11),IF(#REF!=\"D\",IF(EP2.1_D!X11=\"\",\"\",EP2.1_D!X11),IF(#REF!=\"E\",IF(EP2.1_E!X11=\"\",\"\",EP2.1_E!X11),IF(#REF!=\"F\",IF(EP2.1_F!X11=\"\",\"\",EP2.1_F!X11),IF(#REF!=\"G\",IF(EP2.1_G!X11=\"\",\"\",EP2.1_G!X11),IF(#REF!=\"H\",IF(EP2.1_H!X11=\"\",\"\",EP2.1_H!X11),\"\")))))))))","v":{"$error":"#REF!"}},{"$f":"IF(#REF!=\"\",\"\",IF(#REF!=\"A\",IF(EP2.1_A!Y11=\"\",\"\",EP2.1_A!Y11),IF(#REF!=\"B\",IF(EP2.1_B!Y11=\"\",\"\",EP2.1_B!Y11),IF(#REF!=\"C\",IF(EP2.1_C!Y11=\"\",\"\",EP2.1_C!Y11),IF(#REF!=\"D\",IF(EP2.1_D!Y11=\"\",\"\",EP2.1_D!Y11),IF(#REF!=\"E\",IF(EP2.1_E!Y11=\"\",\"\",EP2.1_E!Y11),IF(#REF!=\"F\",IF(EP2.1_F!Y11=\"\",\"\",EP2.1_F!Y11),IF(#REF!=\"G\",IF(EP2.1_G!Y11=\"\",\"\",EP2.1_G!Y11),IF(#REF!=\"H\",IF(EP2.1_H!Y11=\"\",\"\",EP2.1_H!Y11),\"\")))))))))","v":{"$error":"#REF!"}},{"$f":"IF(#REF!=\"\",\"\",IF(#REF!=\"A\",IF(EP2.1_A!Z11=\"\",\"\",EP2.1_A!Z11),IF(#REF!=\"B\",IF(EP2.1_B!Z11=\"\",\"\",EP2.1_B!Z11),IF(#REF!=\"C\",IF(EP2.1_C!Z11=\"\",\"\",EP2.1_C!Z11),IF(#REF!=\"D\",IF(EP2.1_D!Z11=\"\",\"\",EP2.1_D!Z11),IF(#REF!=\"E\",IF(EP2.1_E!Z11=\"\",\"\",EP2.1_E!Z11),IF(#REF!=\"F\",IF(EP2.1_F!Z11=\"\",\"\",EP2.1_F!Z11),IF(#REF!=\"G\",IF(EP2.1_G!Z11=\"\",\"\",EP2.1_G!Z11),IF(#REF!=\"H\",IF(EP2.1_H!Z11=\"\",\"\",EP2.1_H!Z11),\"\")))))))))","v":{"$error":"#REF!"}},{"$f":"IF(#REF!=\"\",\"\",IF(#REF!=\"A\",IF(EP2.1_A!AA11=\"\",\"\",EP2.1_A!AA11),IF(#REF!=\"B\",IF(EP2.1_B!AA11=\"\",\"\",EP2.1_B!AA11),IF(#REF!=\"C\",IF(EP2.1_C!AA11=\"\",\"\",EP2.1_C!AA11),IF(#REF!=\"D\",IF(EP2.1_D!AA11=\"\",\"\",EP2.1_D!AA11),IF(#REF!=\"E\",IF(EP2.1_E!AA11=\"\",\"\",EP2.1_E!AA11),IF(#REF!=\"F\",IF(EP2.1_F!AA11=\"\",\"\",EP2.1_F!AA11),IF(#REF!=\"G\",IF(EP2.1_G!AA11=\"\",\"\",EP2.1_G!AA11),IF(#REF!=\"H\",IF(EP2.1_H!AA11=\"\",\"\",EP2.1_H!AA11),\"\")))))))))","v":{"$error":"#REF!"}},{"$f":"IF(#REF!=\"\",\"\",IF(#REF!=\"A\",IF(EP2.1_A!AB11=\"\",\"\",EP2.1_A!AB11),IF(#REF!=\"B\",IF(EP2.1_B!AB11=\"\",\"\",EP2.1_B!AB11),IF(#REF!=\"C\",IF(EP2.1_C!AB11=\"\",\"\",EP2.1_C!AB11),IF(#REF!=\"D\",IF(EP2.1_D!AB11=\"\",\"\",EP2.1_D!AB11),IF(#REF!=\"E\",IF(EP2.1_E!AB11=\"\",\"\",EP2.1_E!AB11),IF(#REF!=\"F\",IF(EP2.1_F!AB11=\"\",\"\",EP2.1_F!AB11),IF(#REF!=\"G\",IF(EP2.1_G!AB11=\"\",\"\",EP2.1_G!AB11),IF(#REF!=\"H\",IF(EP2.1_H!AB11=\"\",\"\",EP2.1_H!AB11),\"\")))))))))","v":{"$error":"#REF!"}},{"$f":"IF(#REF!=\"\",\"\",IF(#REF!=\"A\",IF(EP2.1_A!AC11=\"\",\"\",EP2.1_A!AC11),IF(#REF!=\"B\",IF(EP2.1_B!AC11=\"\",\"\",EP2.1_B!AC11),IF(#REF!=\"C\",IF(EP2.1_C!AC11=\"\",\"\",EP2.1_C!AC11),IF(#REF!=\"D\",IF(EP2.1_D!AC11=\"\",\"\",EP2.1_D!AC11),IF(#REF!=\"E\",IF(EP2.1_E!AC11=\"\",\"\",EP2.1_E!AC11),IF(#REF!=\"F\",IF(EP2.1_F!AC11=\"\",\"\",EP2.1_F!AC11),IF(#REF!=\"G\",IF(EP2.1_G!AC11=\"\",\"\",EP2.1_G!AC11),IF(#REF!=\"H\",IF(EP2.1_H!AC11=\"\",\"\",EP2.1_H!AC11),\"\")))))))))","v":{"$error":"#REF!"}},{"$f":"IF(#REF!=\"\",\"\",IF(#REF!=\"A\",IF(EP2.1_A!AD11=\"\",\"\",EP2.1_A!AD11),IF(#REF!=\"B\",IF(EP2.1_B!AD11=\"\",\"\",EP2.1_B!AD11),IF(#REF!=\"C\",IF(EP2.1_C!AD11=\"\",\"\",EP2.1_C!AD11),IF(#REF!=\"D\",IF(EP2.1_D!AD11=\"\",\"\",EP2.1_D!AD11),IF(#REF!=\"E\",IF(EP2.1_E!AD11=\"\",\"\",EP2.1_E!AD11),IF(#REF!=\"F\",IF(EP2.1_F!AD11=\"\",\"\",EP2.1_F!AD11),IF(#REF!=\"G\",IF(EP2.1_G!AD11=\"\",\"\",EP2.1_G!AD11),IF(#REF!=\"H\",IF(EP2.1_H!AD11=\"\",\"\",EP2.1_H!AD11),\"\")))))))))","v":{"$error":"#REF!"}},{"$f":"IF(#REF!=\"\",\"\",IF(#REF!=\"A\",IF(EP2.1_A!AE11=\"\",\"\",EP2.1_A!AE11),IF(#REF!=\"B\",IF(EP2.1_B!AE11=\"\",\"\",EP2.1_B!AE11),IF(#REF!=\"C\",IF(EP2.1_C!AE11=\"\",\"\",EP2.1_C!AE11),IF(#REF!=\"D\",IF(EP2.1_D!AE11=\"\",\"\",EP2.1_D!AE11),IF(#REF!=\"E\",IF(EP2.1_E!AE11=\"\",\"\",EP2.1_E!AE11),IF(#REF!=\"F\",IF(EP2.1_F!AE11=\"\",\"\",EP2.1_F!AE11),IF(#REF!=\"G\",IF(EP2.1_G!AE11=\"\",\"\",EP2.1_G!AE11),IF(#REF!=\"H\",IF(EP2.1_H!AE11=\"\",\"\",EP2.1_H!AE11),\"\")))))))))","v":{"$error":"#REF!"}},{"$f":"IF(#REF!=\"\",\"\",IF(#REF!=\"A\",IF(EP2.1_A!AF11=\"\",\"\",EP2.1_A!AF11),IF(#REF!=\"B\",IF(EP2.1_B!AF11=\"\",\"\",EP2.1_B!AF11),IF(#REF!=\"C\",IF(EP2.1_C!AF11=\"\",\"\",EP2.1_C!AF11),IF(#REF!=\"D\",IF(EP2.1_D!AF11=\"\",\"\",EP2.1_D!AF11),IF(#REF!=\"E\",IF(EP2.1_E!AF11=\"\",\"\",EP2.1_E!AF11),IF(#REF!=\"F\",IF(EP2.1_F!AF11=\"\",\"\",EP2.1_F!AF11),IF(#REF!=\"G\",IF(EP2.1_G!AF11=\"\",\"\",EP2.1_G!AF11),IF(#REF!=\"H\",IF(EP2.1_H!AF11=\"\",\"\",EP2.1_H!AF11),\"\")))))))))","v":{"$error":"#REF!"}},{"$f":"IF(#REF!=\"\",\"\",IF(#REF!=\"A\",IF(EP2.1_A!AG11=\"\",\"\",EP2.1_A!AG11),IF(#REF!=\"B\",IF(EP2.1_B!AG11=\"\",\"\",EP2.1_B!AG11),IF(#REF!=\"C\",IF(EP2.1_C!AG11=\"\",\"\",EP2.1_C!AG11),IF(#REF!=\"D\",IF(EP2.1_D!AG11=\"\",\"\",EP2.1_D!AG11),IF(#REF!=\"E\",IF(EP2.1_E!AG11=\"\",\"\",EP2.1_E!AG11),IF(#REF!=\"F\",IF(EP2.1_F!AG11=\"\",\"\",EP2.1_F!AG11),IF(#REF!=\"G\",IF(EP2.1_G!AG11=\"\",\"\",EP2.1_G!AG11),IF(#REF!=\"H\",IF(EP2.1_H!AG11=\"\",\"\",EP2.1_H!AG11),\"\")))))))))","v":{"$error":"#REF!"}},{"$f":"IF(#REF!=\"\",\"\",IF(#REF!=\"A\",IF(EP2.1_A!AH11=\"\",\"\",EP2.1_A!AH11),IF(#REF!=\"B\",IF(EP2.1_B!AH11=\"\",\"\",EP2.1_B!AH11),IF(#REF!=\"C\",IF(EP2.1_C!AH11=\"\",\"\",EP2.1_C!AH11),IF(#REF!=\"D\",IF(EP2.1_D!AH11=\"\",\"\",EP2.1_D!AH11),IF(#REF!=\"E\",IF(EP2.1_E!AH11=\"\",\"\",EP2.1_E!AH11),IF(#REF!=\"F\",IF(EP2.1_F!AH11=\"\",\"\",EP2.1_F!AH11),IF(#REF!=\"G\",IF(EP2.1_G!AH11=\"\",\"\",EP2.1_G!AH11),IF(#REF!=\"H\",IF(EP2.1_H!AH11=\"\",\"\",EP2.1_H!AH11),\"\")))))))))","v":{"$error":"#REF!"}},{"$f":"IF(#REF!=\"\",\"\",IF(#REF!=\"A\",IF(EP2.1_A!AI11=\"\",\"\",EP2.1_A!AI11),IF(#REF!=\"B\",IF(EP2.1_B!AI11=\"\",\"\",EP2.1_B!AI11),IF(#REF!=\"C\",IF(EP2.1_C!AI11=\"\",\"\",EP2.1_C!AI11),IF(#REF!=\"D\",IF(EP2.1_D!AI11=\"\",\"\",EP2.1_D!AI11),IF(#REF!=\"E\",IF(EP2.1_E!AI11=\"\",\"\",EP2.1_E!AI11),IF(#REF!=\"F\",IF(EP2.1_F!AI11=\"\",\"\",EP2.1_F!AI11),IF(#REF!=\"G\",IF(EP2.1_G!AI11=\"\",\"\",EP2.1_G!AI11),IF(#REF!=\"H\",IF(EP2.1_H!AI11=\"\",\"\",EP2.1_H!AI11),\"\")))))))))","v":{"$error":"#REF!"}},{"$f":"IF(#REF!=\"\",\"\",IF(#REF!=\"A\",IF(EP2.1_A!AJ11=\"\",\"\",EP2.1_A!AJ11),IF(#REF!=\"B\",IF(EP2.1_B!AJ11=\"\",\"\",EP2.1_B!AJ11),IF(#REF!=\"C\",IF(EP2.1_C!AJ11=\"\",\"\",EP2.1_C!AJ11),IF(#REF!=\"D\",IF(EP2.1_D!AJ11=\"\",\"\",EP2.1_D!AJ11),IF(#REF!=\"E\",IF(EP2.1_E!AJ11=\"\",\"\",EP2.1_E!AJ11),IF(#REF!=\"F\",IF(EP2.1_F!AJ11=\"\",\"\",EP2.1_F!AJ11),IF(#REF!=\"G\",IF(EP2.1_G!AJ11=\"\",\"\",EP2.1_G!AJ11),IF(#REF!=\"H\",IF(EP2.1_H!AJ11=\"\",\"\",EP2.1_H!AJ11),\"\")))))))))","v":{"$error":"#REF!"}},{"$f":"IF(#REF!=\"\",\"\",IF(#REF!=\"A\",IF(EP2.1_A!AK11=\"\",\"\",EP2.1_A!AK11),IF(#REF!=\"B\",IF(EP2.1_B!AK11=\"\",\"\",EP2.1_B!AK11),IF(#REF!=\"C\",IF(EP2.1_C!AK11=\"\",\"\",EP2.1_C!AK11),IF(#REF!=\"D\",IF(EP2.1_D!AK11=\"\",\"\",EP2.1_D!AK11),IF(#REF!=\"E\",IF(EP2.1_E!AK11=\"\",\"\",EP2.1_E!AK11),IF(#REF!=\"F\",IF(EP2.1_F!AK11=\"\",\"\",EP2.1_F!AK11),IF(#REF!=\"G\",IF(EP2.1_G!AK11=\"\",\"\",EP2.1_G!AK11),IF(#REF!=\"H\",IF(EP2.1_H!AK11=\"\",\"\",EP2.1_H!AK11),\"\")))))))))","v":{"$error":"#REF!"}},{"$f":"IF(#REF!=\"\",\"\",IF(#REF!=\"A\",IF(EP2.1_A!AL11=\"\",\"\",EP2.1_A!AL11),IF(#REF!=\"B\",IF(EP2.1_B!AL11=\"\",\"\",EP2.1_B!AL11),IF(#REF!=\"C\",IF(EP2.1_C!AL11=\"\",\"\",EP2.1_C!AL11),IF(#REF!=\"D\",IF(EP2.1_D!AL11=\"\",\"\",EP2.1_D!AL11),IF(#REF!=\"E\",IF(EP2.1_E!AL11=\"\",\"\",EP2.1_E!AL11),IF(#REF!=\"F\",IF(EP2.1_F!AL11=\"\",\"\",EP2.1_F!AL11),IF(#REF!=\"G\",IF(EP2.1_G!AL11=\"\",\"\",EP2.1_G!AL11),IF(#REF!=\"H\",IF(EP2.1_H!AL11=\"\",\"\",EP2.1_H!AL11),\"\")))))))))","v":{"$error":"#REF!"}},{"$f":"IF(#REF!=\"\",\"\",IF(#REF!=\"A\",IF(EP2.1_A!AM11=\"\",\"\",EP2.1_A!AM11),IF(#REF!=\"B\",IF(EP2.1_B!AM11=\"\",\"\",EP2.1_B!AM11),IF(#REF!=\"C\",IF(EP2.1_C!AM11=\"\",\"\",EP2.1_C!AM11),IF(#REF!=\"D\",IF(EP2.1_D!AM11=\"\",\"\",EP2.1_D!AM11),IF(#REF!=\"E\",IF(EP2.1_E!AM11=\"\",\"\",EP2.1_E!AM11),IF(#REF!=\"F\",IF(EP2.1_F!AM11=\"\",\"\",EP2.1_F!AM11),IF(#REF!=\"G\",IF(EP2.1_G!AM11=\"\",\"\",EP2.1_G!AM11),IF(#REF!=\"H\",IF(EP2.1_H!AM11=\"\",\"\",EP2.1_H!AM11),\"\")))))))))","v":{"$error":"#REF!"}},{"$f":"IF(#REF!=\"\",\"\",IF(#REF!=\"A\",IF(EP2.1_A!AN11=\"\",\"\",EP2.1_A!AN11),IF(#REF!=\"B\",IF(EP2.1_B!AN11=\"\",\"\",EP2.1_B!AN11),IF(#REF!=\"C\",IF(EP2.1_C!AN11=\"\",\"\",EP2.1_C!AN11),IF(#REF!=\"D\",IF(EP2.1_D!AN11=\"\",\"\",EP2.1_D!AN11),IF(#REF!=\"E\",IF(EP2.1_E!AN11=\"\",\"\",EP2.1_E!AN11),IF(#REF!=\"F\",IF(EP2.1_F!AN11=\"\",\"\",EP2.1_F!AN11),IF(#REF!=\"G\",IF(EP2.1_G!AN11=\"\",\"\",EP2.1_G!AN11),IF(#REF!=\"H\",IF(EP2.1_H!AN11=\"\",\"\",EP2.1_H!AN11),\"\")))))))))","v":{"$error":"#REF!"}},{"$f":"IF(#REF!=\"\",\"\",IF(#REF!=\"A\",IF(EP2.1_A!AO11=\"\",\"\",EP2.1_A!AO11),IF(#REF!=\"B\",IF(EP2.1_B!AO11=\"\",\"\",EP2.1_B!AO11),IF(#REF!=\"C\",IF(EP2.1_C!AO11=\"\",\"\",EP2.1_C!AO11),IF(#REF!=\"D\",IF(EP2.1_D!AO11=\"\",\"\",EP2.1_D!AO11),IF(#REF!=\"E\",IF(EP2.1_E!AO11=\"\",\"\",EP2.1_E!AO11),IF(#REF!=\"F\",IF(EP2.1_F!AO11=\"\",\"\",EP2.1_F!AO11),IF(#REF!=\"G\",IF(EP2.1_G!AO11=\"\",\"\",EP2.1_G!AO11),IF(#REF!=\"H\",IF(EP2.1_H!AO11=\"\",\"\",EP2.1_H!AO11),\"\")))))))))","v":{"$error":"#REF!"}},{"$f":"IF(#REF!=\"\",\"\",IF(#REF!=\"A\",IF(EP2.1_A!AP11=\"\",\"\",EP2.1_A!AP11),IF(#REF!=\"B\",IF(EP2.1_B!AP11=\"\",\"\",EP2.1_B!AP11),IF(#REF!=\"C\",IF(EP2.1_C!AP11=\"\",\"\",EP2.1_C!AP11),IF(#REF!=\"D\",IF(EP2.1_D!AP11=\"\",\"\",EP2.1_D!AP11),IF(#REF!=\"E\",IF(EP2.1_E!AP11=\"\",\"\",EP2.1_E!AP11),IF(#REF!=\"F\",IF(EP2.1_F!AP11=\"\",\"\",EP2.1_F!AP11),IF(#REF!=\"G\",IF(EP2.1_G!AP11=\"\",\"\",EP2.1_G!AP11),IF(#REF!=\"H\",IF(EP2.1_H!AP11=\"\",\"\",EP2.1_H!AP11),\"\")))))))))","v":{"$error":"#REF!"}},{"$f":"IF(#REF!=\"\",\"\",IF(#REF!=\"A\",IF(EP2.1_A!AQ11=\"\",\"\",EP2.1_A!AQ11),IF(#REF!=\"B\",IF(EP2.1_B!AQ11=\"\",\"\",EP2.1_B!AQ11),IF(#REF!=\"C\",IF(EP2.1_C!AQ11=\"\",\"\",EP2.1_C!AQ11),IF(#REF!=\"D\",IF(EP2.1_D!AQ11=\"\",\"\",EP2.1_D!AQ11),IF(#REF!=\"E\",IF(EP2.1_E!AQ11=\"\",\"\",EP2.1_E!AQ11),IF(#REF!=\"F\",IF(EP2.1_F!AQ11=\"\",\"\",EP2.1_F!AQ11),IF(#REF!=\"G\",IF(EP2.1_G!AQ11=\"\",\"\",EP2.1_G!AQ11),IF(#REF!=\"H\",IF(EP2.1_H!AQ11=\"\",\"\",EP2.1_H!AQ11),\"\")))))))))","v":{"$error":"#REF!"}},{"$f":"IF(#REF!=\"\",\"\",IF(#REF!=\"A\",IF(EP2.1_A!AR11=\"\",\"\",EP2.1_A!AR11),IF(#REF!=\"B\",IF(EP2.1_B!AR11=\"\",\"\",EP2.1_B!AR11),IF(#REF!=\"C\",IF(EP2.1_C!AR11=\"\",\"\",EP2.1_C!AR11),IF(#REF!=\"D\",IF(EP2.1_D!AR11=\"\",\"\",EP2.1_D!AR11),IF(#REF!=\"E\",IF(EP2.1_E!AR11=\"\",\"\",EP2.1_E!AR11),IF(#REF!=\"F\",IF(EP2.1_F!AR11=\"\",\"\",EP2.1_F!AR11),IF(#REF!=\"G\",IF(EP2.1_G!AR11=\"\",\"\",EP2.1_G!AR11),IF(#REF!=\"H\",IF(EP2.1_H!AR11=\"\",\"\",EP2.1_H!AR11),\"\")))))))))","v":{"$error":"#REF!"}},{"$f":"IF(#REF!=\"\",\"\",IF(#REF!=\"A\",IF(EP2.1_A!AS11=\"\",\"\",EP2.1_A!AS11),IF(#REF!=\"B\",IF(EP2.1_B!AS11=\"\",\"\",EP2.1_B!AS11),IF(#REF!=\"C\",IF(EP2.1_C!AS11=\"\",\"\",EP2.1_C!AS11),IF(#REF!=\"D\",IF(EP2.1_D!AS11=\"\",\"\",EP2.1_D!AS11),IF(#REF!=\"E\",IF(EP2.1_E!AS11=\"\",\"\",EP2.1_E!AS11),IF(#REF!=\"F\",IF(EP2.1_F!AS11=\"\",\"\",EP2.1_F!AS11),IF(#REF!=\"G\",IF(EP2.1_G!AS11=\"\",\"\",EP2.1_G!AS11),IF(#REF!=\"H\",IF(EP2.1_H!AS11=\"\",\"\",EP2.1_H!AS11),\"\")))))))))","v":{"$error":"#REF!"}},{"$f":"IF(#REF!=\"\",\"\",IF(#REF!=\"A\",IF(EP2.1_A!AT11=\"\",\"\",EP2.1_A!AT11),IF(#REF!=\"B\",IF(EP2.1_B!AT11=\"\",\"\",EP2.1_B!AT11),IF(#REF!=\"C\",IF(EP2.1_C!AT11=\"\",\"\",EP2.1_C!AT11),IF(#REF!=\"D\",IF(EP2.1_D!AT11=\"\",\"\",EP2.1_D!AT11),IF(#REF!=\"E\",IF(EP2.1_E!AT11=\"\",\"\",EP2.1_E!AT11),IF(#REF!=\"F\",IF(EP2.1_F!AT11=\"\",\"\",EP2.1_F!AT11),IF(#REF!=\"G\",IF(EP2.1_G!AT11=\"\",\"\",EP2.1_G!AT11),IF(#REF!=\"H\",IF(EP2.1_H!AT11=\"\",\"\",EP2.1_H!AT11),\"\")))))))))","v":{"$error":"#REF!"}}]
[]
["Données et condition de réalisation."]
[{"$f":"IF(AV7=\"\",\"\",IF(AV7=\"A\",IF(EP2.1_A!A14=\"\",\"\",EP2.1_A!A14),IF(AV7=\"B\",IF(EP2.1_B!A14=\"\",\"\",EP2.1_B!A14),IF(AV7=\"C\",IF(EP2.1_C!A14=\"\",\"\",EP2.1_C!A14),IF(AV7=\"D\",IF(EP2.1_D!A14=\"\",\"\",EP2.1_D!A14),IF(AV7=\"E\",IF(EP2.1_E!A14=\"\",\"\",EP2.1_E!A14),IF(AV7=\"F\",IF(EP2.1_F!A14=\"\",\"\",EP2.1_F!A14),IF(AV7=\"G\",IF(EP2.1_G!A14=\"\",\"\",EP2.1_G!A14),IF(AV7=\"H\",IF(EP2.1_H!A14=\"\",\"\",EP2.1_H!A14),\"\")))))))))","v":""},"Le dossier technique du bien sur supports papiers ou supports numériques",null,null,null,null,null,null,null,null,null,null,null,null,null,null,null,null,null,null,null,null,null,{"$f":"IF(AV7=\"\",\"\",IF(AV7=\"A\",IF(EP2.1_A!X14=\"\",\"\",EP2.1_A!X14),IF(AV7=\"B\",IF(EP2.1_B!X14=\"\",\"\",EP2.1_B!X14),IF(AV7=\"C\",IF(EP2.1_C!X14=\"\",\"\",EP2.1_C!X14),IF(AV7=\"D\",IF(EP2.1_D!X14=\"\",\"\",EP2.1_D!X14),IF(AV7=\"E\",IF(EP2.1_E!X14=\"\",\"\",EP2.1_E!X14),IF(AV7=\"F\",IF(EP2.1_F!X14=\"\",\"\",EP2.1_F!X14),IF(AV7=\"G\",IF(EP2.1_G!X14=\"\",\"\",EP2.1_G!X14),IF(AV7=\"H\",IF(EP2.1_H!X14=\"\",\"\",EP2.1_H!X14),\"\")))))))))","v":""},"L’équipement informatique"]
[{"$f":"IF(AV7=\"\",\"\",IF(AV7=\"A\",IF(EP2.1_A!A15=\"\",\"\",EP2.1_A!A15),IF(AV7=\"B\",IF(EP2.1_B!A15=\"\",\"\",EP2.1_B!A15),IF(AV7=\"C\",IF(EP2.1_C!A15=\"\",\"\",EP2.1_C!A15),IF(AV7=\"D\",IF(EP2.1_D!A15=\"\",\"\",EP2.1_D!A15),IF(AV7=\"E\",IF(EP2.1_E!A15=\"\",\"\",EP2.1_E!A15),IF(AV7=\"F\",IF(EP2.1_F!A15=\"\",\"\",EP2.1_F!A15),IF(AV7=\"G\",IF(EP2.1_G!A15=\"\",\"\",EP2.1_G!A15),IF(AV7=\"H\",IF(EP2.1_H!A15=\"\",\"\",EP2.1_H!A15),\"\")))))))))","v":""},"Le bien et les conditions de son environnement",null,null,null,null,null,null,null,null,null,null,null,null,null,null,null,null,null,null,null,null,null,{"$f":"IF(AV7=\"\",\"\",IF(AV7=\"A\",IF(EP2.1_A!X15=\"\",\"\",EP2.1_A!X15),IF(AV7=\"B\",IF(EP2.1_B!X15=\"\",\"\",EP2.1_B!X15),IF(AV7=\"C\",IF(EP2.1_C!X15=\"\",\"\",EP2.1_C!X15),IF(AV7=\"D\",IF(EP2.1_D!X15=\"\",\"\",EP2.1_D!X15),IF(AV7=\"E\",IF(EP2.1_E!X15=\"\",\"\",EP2.1_E!X15),IF(AV7=\"F\",IF(EP2.1_F!X15=\"\",\"\",EP2.1_F!X15),IF(AV7=\"G\",IF(EP2.1_G!X15=\"\",\"\",EP2.1_G!X15),IF(AV7=\"H\",IF(EP2.1_H!X15=\"\",\"\",EP2.1_H!X15),\"\")))))))))","v":""},"Les logiciels"]
[{"$f":"IF(AV7=\"\",\"\",IF(AV7=\"A\",IF(EP2.1_A!A16=\"\",\"\",EP2.1_A!A16),IF(AV7=\"B\",IF(EP2.1_B!A16=\"\",\"\",EP2.1_B!A16),IF(AV7=\"C\",IF(EP2.1_C!A16=\"\",\"\",EP2.1_C!A16),IF(AV7=\"D\",IF(EP2.1_D!A16=\"\",\"\",EP2.1_D!A16),IF(AV7=\"E\",IF(EP2.1_E!A16=\"\",\"\",EP2.1_E!A16),IF(AV7=\"F\",IF(EP2.1_F!A16=\"\",\"\",EP2.1_F!A16),IF(AV7=\"G\",IF(EP2.1_G!A16=\"\",\"\",EP2.1_G!A16),IF(AV7=\"H\",IF(EP2.1_H!A16=\"\",\"\",EP2.1_H!A16),\"\")))))))))","v":""},"Les normes",null,null,null,null,null,null,null,null,null,null,null,null,null,null,null,null,null,null,null,null,null,{"$f":"IF(AV7=\"\",\"\",IF(AV7=\"A\",IF(EP2.1_A!X16=\"\",\"\",EP2.1_A!X16),IF(AV7=\"B\",IF(EP2.1_B!X16=\"\",\"\",EP2.1_B!X16),IF(AV7=\"C\",IF(EP2.1_C!X16=\"\",\"\",EP2.1_C!X16),IF(AV7=\"D\",IF(EP2.1_D!X16=\"\",\"\",EP2.1_D!X16),IF(AV7=\"E\",IF(EP2.1_E!X16=\"\",\"\",EP2.1_E!X16),IF(AV7=\"F\",IF(EP2.1_F!X16=\"\",\"\",EP2.1_F!X16),IF(AV7=\"G\",IF(EP2.1_G!X16=\"\",\"\",EP2.1_G!X16),IF(AV7=\"H\",IF(EP2.1_H!X16=\"\",\"\",EP2.1_H!X16),\"\")))))))))","v":""},"Les outils descripteurs (grafcet, chronogramme…)"]
[{"$f":"IF(AV7=\"\",\"\",IF(AV7=\"A\",IF(EP2.1_A!A17=\"\",\"\",EP2.1_A!A17),IF(AV7=\"B\",IF(EP2.1_B!A17=\"\",\"\",EP2.1_B!A17),IF(AV7=\"C\",IF(EP2.1_C!A17=\"\",\"\",EP2.1_C!A17),IF(AV7=\"D\",IF(EP2.1_D!A17=\"\",\"\",EP2.1_D!A17),IF(AV7=\"E\",IF(EP2.1_E!A17=\"\",\"\",EP2.1_E!A17),IF(AV7=\"F\",IF(EP2.1_F!A17=\"\",\"\",EP2.1_F!A17),IF(AV7=\"G\",IF(EP2.1_G!A17=\"\",\"\",EP2.1_G!A17),IF(AV7=\"H\",IF(EP2.1_H!A17=\"\",\"\",EP2.1_H!A17),\"\")))))))))","v":""},"Toutes documentations techniques",null,null,null,null,null,null,null,null,null,null,null,null,null,null,null,null,null,null,null,null,null,{"$f":"IF(AV7=\"\",\"\",IF(AV7=\"A\",IF(EP2.1_A!X17=\"\",\"\",EP2.1_A!X17),IF(AV7=\"B\",IF(EP2.1_B!X17=\"\",\"\",EP2.1_B!X17),IF(AV7=\"C\",IF(EP2.1_C!X17=\"\",\"\",EP2.1_C!X17),IF(AV7=\"D\",IF(EP2.1_D!X17=\"\",\"\",EP2.1_D!X17),IF(AV7=\"E\",IF(EP2.1_E!X17=\"\",\"\",EP2.1_E!X17),IF(AV7=\"F\",IF(EP2.1_F!X17=\"\",\"\",EP2.1_F!X17),IF(AV7=\"G\",IF(EP2.1_G!X17=\"\",\"\",EP2.1_G!X17),IF(AV7=\"H\",IF(EP2.1_H!X17=\"\",\"\",EP2.1_H!X17),\"\")))))))))","v":""},"Tous documents nouveaux nécessaires à la compréhension de l’information : Nouvelle notice technique, compte-rendu d’intervention, documents de modification."]
[{"$f":"IF(AV7=\"\",\"\",IF(AV7=\"A\",IF(EP2.1_A!A18=\"\",\"\",EP2.1_A!A18),IF(AV7=\"B\",IF(EP2.1_B!A18=\"\",\"\",EP2.1_B!A18),IF(AV7=\"C\",IF(EP2.1_C!A18=\"\",\"\",EP2.1_C!A18),IF(AV7=\"D\",IF(EP2.1_D!A18=\"\",\"\",EP2.1_D!A18),IF(AV7=\"E\",IF(EP2.1_E!A18=\"\",\"\",EP2.1_E!A18),IF(AV7=\"F\",IF(EP2.1_F!A18=\"\",\"\",EP2.1_F!A18),IF(AV7=\"G\",IF(EP2.1_G!A18=\"\",\"\",EP2.1_G!A18),IF(AV7=\"H\",IF(EP2.1_H!A18=\"\",\"\",EP2.1_H!A18),\"\")))))))))","v":""},"Le document unique d’évaluation des risques",null,null,null,null,null,null,null,null,null,null,null,null,null,null,null,null,null,null,null,null,null,{"$f":"IF(AV7=\"\",\"\",IF(AV7=\"A\",IF(EP2.1_A!X18=\"\",\"\",EP2.1_A!X18),IF(AV7=\"B\",IF(EP2.1_B!X18=\"\",\"\",EP2.1_B!X18),IF(AV7=\"C\",IF(EP2.1_C!X18=\"\",\"\",EP2.1_C!X18),IF(AV7=\"D\",IF(EP2.1_D!X18=\"\",\"\",EP2.1_D!X18),IF(AV7=\"E\",IF(EP2.1_E!X18=\"\",\"\",EP2.1_E!X18),IF(AV7=\"F\",IF(EP2.1_F!X18=\"\",\"\",EP2.1_F!X18),IF(AV7=\"G\",IF(EP2.1_G!X18=\"\",\"\",EP2.1_G!X18),IF(AV7=\"H\",IF(EP2.1_H!X18=\"\",\"\",EP2.1_H!X18),\"\")))))))))","v":""},"Les moyens de communication"]
[{"$f":"IF(AV7=\"\",\"\",IF(AV7=\"A\",IF(EP2.1_A!A19=\"\",\"\",EP2.1_A!A19),IF(AV7=\"B\",IF(EP2.1_B!A19=\"\",\"\",EP2.1_B!A19),IF(AV7=\"C\",IF(EP2.1_C!A19=\"\",\"\",EP2.1_C!A19),IF(AV7=\"D\",IF(EP2.1_D!A19=\"\",\"\",EP2.1_D!A19),IF(AV7=\"E\",IF(EP2.1_E!A19=\"\",\"\",EP2.1_E!A19),IF(AV7=\"F\",IF(EP2.1_F!A19=\"\",\"\",EP2.1_F!A19),IF(AV7=\"G\",IF(EP2.1_G!A19=\"\",\"\",EP2.1_G!A19),IF(AV7=\"H\",IF(EP2.1_H!A19=\"\",\"\",EP2.1_H!A19),\"\")))))))))","v":""},"Toutes informations en provenance de l’utilisateur",null,null,null,null,null,null,null,null,null,null,null,null,null,null,null,null,null,null,null,null,null,{"$f":"IF(AV7=\"\",\"\",IF(AV7=\"A\",IF(EP2.1_A!X19=\"\",\"\",EP2.1_A!X19),IF(AV7=\"B\",IF(EP2.1_B!X19=\"\",\"\",EP2.1_B!X19),IF(AV7=\"C\",IF(EP2.1_C!X19=\"\",\"\",EP2.1_C!X19),IF(AV7=\"D\",IF(EP2.1_D!X19=\"\",\"\",EP2.1_D!X19),IF(AV7=\"E\",IF(EP2.1_E!X19=\"\",\"\",EP2.1_E!X19),IF(AV7=\"F\",IF(EP2.1_F!X19=\"\",\"\",EP2.1_F!X19),IF(AV7=\"G\",IF(EP2.1_G!X19=\"\",\"\",EP2.1_G!X19),IF(AV7=\"H\",IF(EP2.1_H!X19=\"\",\"\",EP2.1_H!X19),\"\")))))))))","v":""},"La demande d’intervention ou le bon de travail."]
[{"$f":"IF(AV7=\"\",\"\",IF(AV7=\"A\",IF(EP2.1_A!A20=\"\",\"\",EP2.1_A!A20),IF(AV7=\"B\",IF(EP2.1_B!A20=\"\",\"\",EP2.1_B!A20),IF(AV7=\"C\",IF(EP2.1_C!A20=\"\",\"\",EP2.1_C!A20),IF(AV7=\"D\",IF(EP2.1_D!A20=\"\",\"\",EP2.1_D!A20),IF(AV7=\"E\",IF(EP2.1_E!A20=\"\",\"\",EP2.1_E!A20),IF(AV7=\"F\",IF(EP2.1_F!A20=\"\",\"\",EP2.1_F!A20),IF(AV7=\"G\",IF(EP2.1_G!A20=\"\",\"\",EP2.1_G!A20),IF(AV7=\"H\",IF(EP2.1_H!A20=\"\",\"\",EP2.1_H!A20),\"\")))))))))","v":""},"Les contraintes dans l’environnement",null,null,null,null,null,null,null,null,null,null,null,null,null,null,null,null,null,null,null,null,null,{"$f":"IF(AV7=\"\",\"\",IF(AV7=\"A\",IF(EP2.1_A!X20=\"\",\"\",EP2.1_A!X20),IF(AV7=\"B\",IF(EP2.1_B!X20=\"\",\"\",EP2.1_B!X20),IF(AV7=\"C\",IF(EP2.1_C!X20=\"\",\"\",EP2.1_C!X20),IF(AV7=\"D\",IF(EP2.1_D!X20=\"\",\"\",EP2.1_D!X20),IF(AV7=\"E\",IF(EP2.1_E!X20=\"\",\"\",EP2.1_E!X20),IF(AV7=\"F\",IF(EP2.1_F!X20=\"\",\"\",EP2.1_F!X20),IF(AV7=\"G\",IF(EP2.1_G!X20=\"\",\"\",EP2.1_G!X20),IF(AV7=\"H\",IF(EP2.1_H!X20=\"\",\"\",EP2.1_H!X20),\"\")))))))))","v":""},"Les consignes d’exploitation"]
[{"$f":"IF(AV7=\"\",\"\",IF(AV7=\"A\",IF(EP2.1_A!A21=\"\",\"\",EP2.1_A!A21),IF(AV7=\"B\",IF(EP2.1_B!A21=\"\",\"\",EP2.1_B!A21),IF(AV7=\"C\",IF(EP2.1_C!A21=\"\",\"\",EP2.1_C!A21),IF(AV7=\"D\",IF(EP2.1_D!A21=\"\",\"\",EP2.1_D!A21),IF(AV7=\"E\",IF(EP2.1_E!A21=\"\",\"\",EP2.1_E!A21),IF(AV7=\"F\",IF(EP2.1_F!A21=\"\",\"\",EP2.1_F!A21),IF(AV7=\"G\",IF(EP2.1_G!A21=\"\",\"\",EP2.1_G!A21),IF(AV7=\"H\",IF(EP2.1_H!A21=\"\",\"\",EP2.1_H!A21),\"\")))))))))","v":""},"Les délais d’interventions",null,null,null,null,null,null,null,null,null,null,null,null,null,null,null,null,null,null,null,null,null,{"$f":"IF(AV7=\"\",\"\",IF(AV7=\"A\",IF(EP2.1_A!X21=\"\",\"\",EP2.1_A!X21),IF(AV7=\"B\",IF(EP2.1_B!X21=\"\",\"\",EP2.1_B!X21),IF(AV7=\"C\",IF(EP2.1_C!X21=\"\",\"\",EP2.1_C!X21),IF(AV7=\"D\",IF(EP2.1_D!X21=\"\",\"\",EP2.1_D!X21),IF(AV7=\"E\",IF(EP2.1_E!X21=\"\",\"\",EP2.1_E!X21),IF(AV7=\"F\",IF(EP2.1_F!X21=\"\",\"\",EP2.1_F!X21),IF(AV7=\"G\",IF(EP2.1_G!X21=\"\",\"\",EP2.1_G!X21),IF(AV7=\"H\",IF(EP2.1_H!X21=\"\",\"\",EP2.1_H!X21),\"\")))))))))","v":""},"Le bon de travail"]
[{"$f":"IF(AV7=\"\",\"\",IF(AV7=\"A\",IF(EP2.1_A!A22=\"\",\"\",EP2.1_A!A22),IF(AV7=\"B\",IF(EP2.1_B!A22=\"\",\"\",EP2.1_B!A22),IF(AV7=\"C\",IF(EP2.1_C!A22=\"\",\"\",EP2.1_C!A22),IF(AV7=\"D\",IF(EP2.1_D!A22=\"\",\"\",EP2.1_D!A22),IF(AV7=\"E\",IF(EP2.1_E!A22=\"\",\"\",EP2.1_E!A22),IF(AV7=\"F\",IF(EP2.1_F!A22=\"\",\"\",EP2.1_F!A22),IF(AV7=\"G\",IF(EP2.1_G!A22=\"\",\"\",EP2.1_G!A22),IF(AV7=\"H\",IF(EP2.1_H!A22=\"\",\"\",EP2.1_H!A22),\"\")))))))))","v":""},"Un groupe de travail.",null,null,null,null,null,null,null,null,null,null,null,null,null,null,null,null,null,null,null,null,null,{"$f":"IF(AV7=\"\",\"\",IF(AV7=\"A\",IF(EP2.1_A!X22=\"\",\"\",EP2.1_A!X22),IF(AV7=\"B\",IF(EP2.1_B!X22=\"\",\"\",EP2.1_B!X22),IF(AV7=\"C\",IF(EP2.1_C!X22=\"\",\"\",EP2.1_C!X22),IF(AV7=\"D\",IF(EP2.1_D!X22=\"\",\"\",EP2.1_D!X22),IF(AV7=\"E\",IF(EP2.1_E!X22=\"\",\"\",EP2.1_E!X22),IF(AV7=\"F\",IF(EP2.1_F!X22=\"\",\"\",EP2.1_F!X22),IF(AV7=\"G\",IF(EP2.1_G!X22=\"\",\"\",EP2.1_G!X22),IF(AV7=\"H\",IF(EP2.1_H!X22=\"\",\"\",EP2.1_H!X22),\"\")))))))))","v":""},"Le carnet de prescription de sécurité électrique"]
[{"$f":"IF(AV7=\"\",\"\",IF(AV7=\"A\",IF(EP2.1_A!A23=\"\",\"\",EP2.1_A!A23),IF(AV7=\"B\",IF(EP2.1_B!A23=\"\",\"\",EP2.1_B!A23),IF(AV7=\"C\",IF(EP2.1_C!A23=\"\",\"\",EP2.1_C!A23),IF(AV7=\"D\",IF(EP2.1_D!A23=\"\",\"\",EP2.1_D!A23),IF(AV7=\"E\",IF(EP2.1_E!A23=\"\",\"\",EP2.1_E!A23),IF(AV7=\"F\",IF(EP2.1_F!A23=\"\",\"\",EP2.1_F!A23),IF(AV7=\"G\",IF(EP2.1_G!A23=\"\",\"\",EP2.1_G!A23),IF(AV7=\"H\",IF(EP2.1_H!A23=\"\",\"\",EP2.1_H!A23),\"\")))))))))","v":""},"La fiche de procédures",null,null,null,null,null,null,null,null,null,null,null,null,null,null,null,null,null,null,null,null,null,{"$f":"IF(AV7=\"\",\"\",IF(AV7=\"A\",IF(EP2.1_A!X23=\"\",\"\",EP2.1_A!X23),IF(AV7=\"B\",IF(EP2.1_B!X23=\"\",\"\",EP2.1_B!X23),IF(AV7=\"C\",IF(EP2.1_C!X23=\"\",\"\",EP2.1_C!X23),IF(AV7=\"D\",IF(EP2.1_D!X23=\"\",\"\",EP2.1_D!X23),IF(AV7=\"E\",IF(EP2.1_E!X23=\"\",\"\",EP2.1_E!X23),IF(AV7=\"F\",IF(EP2.1_F!X23=\"\",\"\",EP2.1_F!X23),IF(AV7=\"G\",IF(EP2.1_G!X23=\"\",\"\",EP2.1_G!X23),IF(AV7=\"H\",IF(EP2.1_H!X23=\"\",\"\",EP2.1_H!X23),\"\")))))))))","v":""},"Les pièces de rechange, les consommables"]
[{"$f":"IF(AV7=\"\",\"\",IF(AV7=\"A\",IF(EP2.1_A!A24=\"\",\"\",EP2.1_A!A24),IF(AV7=\"B\",IF(EP2.1_B!A24=\"\",\"\",EP2.1_B!A24),IF(AV7=\"C\",IF(EP2.1_C!A24=\"\",\"\",EP2.1_C!A24),IF(AV7=\"D\",IF(EP2.1_D!A24=\"\",\"\",EP2.1_D!A24),IF(AV7=\"E\",IF(EP2.1_E!A24=\"\",\"\",EP2.1_E!A24),IF(AV7=\"F\",IF(EP2.1_F!A24=\"\",\"\",EP2.1_F!A24),IF(AV7=\"G\",IF(EP2.1_G!A24=\"\",\"\",EP2.1_G!A24),IF(AV7=\"H\",IF(EP2.1_H!A24=\"\",\"\",EP2.1_H!A24),\"\")))))))))","v":""},"Le cahier des charges fonctionnel",null,null,null,null,null,null,null,null,null,null,null,null,null,null,null,null,null,null,null,null,null,{"$f":"IF(AV7=\"\",\"\",IF(AV7=\"A\",IF(EP2.1_A!X24=\"\",\"\",EP2.1_A!X24),IF(AV7=\"B\",IF(EP2.1_B!X24=\"\",\"\",EP2.1_B!X24),IF(AV7=\"C\",IF(EP2.1_C!X24=\"\",\"\",EP2.1_C!X24),IF(AV7=\"D\",IF(EP2.1_D!X24=\"\",\"\",EP2.1_D!X24),IF(AV7=\"E\",IF(EP2.1_E!X24=\"\",\"\",EP2.1_E!X24),IF(AV7=\"F\",IF(EP2.1_F!X24=\"\",\"\",EP2.1_F!X24),IF(AV7=\"G\",IF(EP2.1_G!X24=\"\",\"\",EP2.1_G!X24),IF(AV7=\"H\",IF(EP2.1_H!X24=\"\",\"\",EP2.1_H!X24),\"\")))))))))","v":""},"Les équipements de protection individuels et collectifs"]
[{"$f":"IF(AV7=\"\",\"\",IF(AV7=\"A\",IF(EP2.1_A!A25=\"\",\"\",EP2.1_A!A25),IF(AV7=\"B\",IF(EP2.1_B!A25=\"\",\"\",EP2.1_B!A25),IF(AV7=\"C\",IF(EP2.1_C!A25=\"\",\"\",EP2.1_C!A25),IF(AV7=\"D\",IF(EP2.1_D!A25=\"\",\"\",EP2.1_D!A25),IF(AV7=\"E\",IF(EP2.1_E!A25=\"\",\"\",EP2.1_E!A25),IF(AV7=\"F\",IF(EP2.1_F!A25=\"\",\"\",EP2.1_F!A25),IF(AV7=\"G\",IF(EP2.1_G!A25=\"\",\"\",EP2.1_G!A25),IF(AV7=\"H\",IF(EP2.1_H!A25=\"\",\"\",EP2.1_H!A25),\"\")))))))))","v":""},"Le plan de prévention",null,null,null,null,null,null,null,null,null,null,null,null,null,null,null,null,null,null,null,null,null,{"$f":"IF(AV7=\"\",\"\",IF(AV7=\"A\",IF(EP2.1_A!X25=\"\",\"\",EP2.1_A!X25),IF(AV7=\"B\",IF(EP2.1_B!X25=\"\",\"\",EP2.1_B!X25),IF(AV7=\"C\",IF(EP2.1_C!X25=\"\",\"\",EP2.1_C!X25),IF(AV7=\"D\",IF(EP2.1_D!X25=\"\",\"\",EP2.1_D!X25),IF(AV7=\"E\",IF(EP2.1_E!X25=\"\",\"\",EP2.1_E!X25),IF(AV7=\"F\",IF(EP2.1_F!X25=\"\",\"\",EP2.1_F!X25),IF(AV7=\"G\",IF(EP2.1_G!X25=\"\",\"\",EP2.1_G!X25),IF(AV7=\"H\",IF(EP2.1_H!X25=\"\",\"\",EP2.1_H!X25),\"\")))))))))","v":""},"Les outillages, matériels de contrôle, de mesure, moyens de manutention."]
[{"$f":"IF(AV7=\"\",\"\",IF(AV7=\"A\",IF(EP2.1_A!A26=\"\",\"\",EP2.1_A!A26),IF(AV7=\"B\",IF(EP2.1_B!A26=\"\",\"\",EP2.1_B!A26),IF(AV7=\"C\",IF(EP2.1_C!A26=\"\",\"\",EP2.1_C!A26),IF(AV7=\"D\",IF(EP2.1_D!A26=\"\",\"\",EP2.1_D!A26),IF(AV7=\"E\",IF(EP2.1_E!A26=\"\",\"\",EP2.1_E!A26),IF(AV7=\"F\",IF(EP2.1_F!A26=\"\",\"\",EP2.1_F!A26),IF(AV7=\"G\",IF(EP2.1_G!A26=\"\",\"\",EP2.1_G!A26),IF(AV7=\"H\",IF(EP2.1_H!A26=\"\",\"\",EP2.1_H!A26),\"\")))))))))","v":""},"Le constat de défaillance.",null,null,null,null,null,null,null,null,null,null,null,null,null,null,null,null,null,null,null,null,null,{"$f":"IF(AV7=\"\",\"\",IF(AV7=\"A\",IF(EP2.1_A!X26=\"\",\"\",EP2.1_A!X26),IF(AV7=\"B\",IF(EP2.1_B!X26=\"\",\"\",EP2.1_B!X26),IF(AV7=\"C\",IF(EP2.1_C!X26=\"\",\"\",EP2.1_C!X26),IF(AV7=\"D\",IF(EP2.1_D!X26=\"\",\"\",EP2.1_D!X26),IF(AV7=\"E\",IF(EP2.1_E!X26=\"\",\"\",EP2.1_E!X26),IF(AV7=\"F\",IF(EP2.1_F!X26=\"\",\"\",EP2.1_F!X26),IF(AV7=\"G\",IF(EP2.1_G!X26=\"\",\"\",EP2.1_G!X26),IF(AV7=\"H\",IF(EP2.1_H!X26=\"\",\"\",EP2.1_H!X26),\"\")))))))))","v":""},"Les impératifs de production."]
["     ÇRepérer les données fournies",null,null,null,null,null,null,null,null,null,null,null,null,null,null,null,null,null,null,null,null,null,null,null,"ÇRepérer les données fournies"]
["Travail demandé"]
[{"$f":"IF(AV7=\"\",\"\",IF(AV7=\"A\",IF(EP2.1_A!A29=\"\",\"\",EP2.1_A!A29),IF(AV7=\"B\",IF(EP2.1_B!A29=\"\",\"\",EP2.1_B!A29),IF(AV7=\"C\",IF(EP2.1_C!A29=\"\",\"\",EP2.1_C!A29),IF(AV7=\"D\",IF(EP2.1_D!A29=\"\",\"\",EP2.1_D!A29),IF(AV7=\"E\",IF(EP2.1_E!A29=\"\",\"\",EP2.1_E!A29),IF(AV7=\"F\",IF(EP2.1_F!A29=\"\",\"\",EP2.1_F!A29),IF(AV7=\"G\",IF(EP2.1_G!A29=\"\",\"\",EP2.1_G!A29),IF(AV7=\"H\",IF(EP2.1_H!A29=\"\",\"\",EP2.1_H!A29),\"\")))))))))","v":""},"A1T1",null,"Préparer son intervention et/ou la logistique associée.",null,null,null,null,null,null,null,null,null,null,null,null,null,null,null,null,null,null,null,{"$f":"IF(AV7=\"\",\"\",IF(AV7=\"A\",IF(EP2.1_A!X29=\"\",\"\",EP2.1_A!X29),IF(AV7=\"B\",IF(EP2.1_B!X29=\"\",\"\",EP2.1_B!X29),IF(AV7=\"C\",IF(EP2.1_C!X29=\"\",\"\",EP2.1_C!X29),IF(AV7=\"D\",IF(EP2.1_D!X29=\"\",\"\",EP2.1_D!X29),IF(AV7=\"E\",IF(EP2.1_E!X29=\"\",\"\",EP2.1_E!X29),IF(AV7=\"F\",IF(EP2.1_F!X29=\"\",\"\",EP2.1_F!X29),IF(AV7=\"G\",IF(EP2.1_G!X29=\"\",\"\",EP2.1_G!X29),IF(AV7=\"H\",IF(EP2.1_H!X29=\"\",\"\",EP2.1_H!X29),\"\")))))))))","v":""},"A3T1",null,"Réaliser des opérations prescrites de contrôle et/ou de surveillance."]
[{"$f":"IF(AV7=\"\",\"\",IF(AV7=\"A\",IF(EP2.1_A!A30=\"\",\"\",EP2.1_A!A30),IF(AV7=\"B\",IF(EP2.1_B!A30=\"\",\"\",EP2.1_B!A30),IF(AV7=\"C\",IF(EP2.1_C!A30=\"\",\"\",EP2.1_C!A30),IF(AV7=\"D\",IF(EP2.1_D!A30=\"\",\"\",EP2.1_D!A30),IF(AV7=\"E\",IF(EP2.1_E!A30=\"\",\"\",EP2.1_E!A30),IF(AV7=\"F\",IF(EP2.1_F!A30=\"\",\"\",EP2.1_F!A30),IF(AV7=\"G\",IF(EP2.1_G!A30=\"\",\"\",EP2.1_G!A30),IF(AV7=\"H\",IF(EP2.1_H!A30=\"\",\"\",EP2.1_H!A30),\"\")))))))))","v":""},"A1T2",null,"Rendre compte de son intervention.",null,null,null,null,null,null,null,null,null,null,null,null,null,null,null,null,null,null,null,{"$f":"IF(AV7=\"\",\"\",IF(AV7=\"A\",IF(EP2.1_A!X30=\"\",\"\",EP2.1_A!X30),IF(AV7=\"B\",IF(EP2.1_B!X30=\"\",\"\",EP2.1_B!X30),IF(AV7=\"C\",IF(EP2.1_C!X30=\"\",\"\",EP2.1_C!X30),IF(AV7=\"D\",IF(EP2.1_D!X30=\"\",\"\",EP2.1_D!X30),IF(AV7=\"E\",IF(EP2.1_E!X30=\"\",\"\",EP2.1_E!X30),IF(AV7=\"F\",IF(EP2.1_F!X30=\"\",\"\",EP2.1_F!X30),IF(AV7=\"G\",IF(EP2.1_G!X30=\"\",\"\",EP2.1_G!X30),IF(AV7=\"H\",IF(EP2.1_H!X30=\"\",\"\",EP2.1_H!X30),\"\")))))))))","v":""},"A3T2",null,"Réaliser des opérations planifiées."]
[{"$f":"IF(AV7=\"\",\"\",IF(AV7=\"A\",IF(EP2.1_A!A31=\"\",\"\",EP2.1_A!A31),IF(AV7=\"B\",IF(EP2.1_B!A31=\"\",\"\",EP2.1_B!A31),IF(AV7=\"C\",IF(EP2.1_C!A31=\"\",\"\",EP2.1_C!A31),IF(AV7=\"D\",IF(EP2.1_D!A31=\"\",\"\",EP2.1_D!A31),IF(AV7=\"E\",IF(EP2.1_E!A31=\"\",\"\",EP2.1_E!A31),IF(AV7=\"F\",IF(EP2.1_F!A31=\"\",\"\",EP2.1_F!A31),IF(AV7=\"G\",IF(EP2.1_G!A31=\"\",\"\",EP2.1_G!A31),IF(AV7=\"H\",IF(EP2.1_H!A31=\"\",\"\",EP2.1_H!A31),\"\")))))))))","v":""},"A1T3",null,"Proposer des améliorations sur l’environnement de son intervention.",null,null,null,null,null,null,null,null,null,null,null,null,null,null,null,null,null,null,null,{"$f":"IF(AV7=\"\",\"\",IF(AV7=\"A\",IF(EP2.1_A!X31=\"\",\"\",EP2.1_A!X31),IF(AV7=\"B\",IF(EP2.1_B!X31=\"\",\"\",EP2.1_B!X31),IF(AV7=\"C\",IF(EP2.1_C!X31=\"\",\"\",EP2.1_C!X31),IF(AV7=\"D\",IF(EP2.1_D!X31=\"\",\"\",EP2.1_D!X31),IF(AV7=\"E\",IF(EP2.1_E!X31=\"\",\"\",EP2.1_E!X31),IF(AV7=\"F\",IF(EP2.1_F!X31=\"\",\"\",EP2.1_F!X31),IF(AV7=\"G\",IF(EP2.1_G!X31=\"\",\"\",EP2.1_G!X31),IF(AV7=\"H\",IF(EP2.1_H!X31=\"\",\"\",EP2.1_H!X31),\"\")))))))))","v":""},"A4T1",null,"Réaliser une amélioration validée."]
[{"$f":"IF(AV7=\"\",\"\",IF(AV7=\"A\",IF(EP2.1_A!A32=\"\",\"\",EP2.1_A!A32),IF(AV7=\"B\",IF(EP2.1_B!A32=\"\",\"\",EP2.1_B!A32),IF(AV7=\"C\",IF(EP2.1_C!A32=\"\",\"\",EP2.1_C!A32),IF(AV7=\"D\",IF(EP2.1_D!A32=\"\",\"\",EP2.1_D!A32),IF(AV7=\"E\",IF(EP2.1_E!A32=\"\",\"\",EP2.1_E!A32),IF(AV7=\"F\",IF(EP2.1_F!A32=\"\",\"\",EP2.1_F!A32),IF(AV7=\"G\",IF(EP2.1_G!A32=\"\",\"\",EP2.1_G!A32),IF(AV7=\"H\",IF(EP2.1_H!A32=\"\",\"\",EP2.1_H!A32),\"\")))))))))","v":""},"A2T1",null,"Réparer un bien par remplacement de composants.",null,null,null,null,null,null,null,null,null,null,null,null,null,null,null,null,null,null,null,{"$f":"IF(AV7=\"\",\"\",IF(AV7=\"A\",IF(EP2.1_A!X32=\"\",\"\",EP2.1_A!X32),IF(AV7=\"B\",IF(EP2.1_B!X32=\"\",\"\",EP2.1_B!X32),IF(AV7=\"C\",IF(EP2.1_C!X32=\"\",\"\",EP2.1_C!X32),IF(AV7=\"D\",IF(EP2.1_D!X32=\"\",\"\",EP2.1_D!X32),IF(AV7=\"E\",IF(EP2.1_E!X32=\"\",\"\",EP2.1_E!X32),IF(AV7=\"F\",IF(EP2.1_F!X32=\"\",\"\",EP2.1_F!X32),IF(AV7=\"G\",IF(EP2.1_G!X32=\"\",\"\",EP2.1_G!X32),IF(AV7=\"H\",IF(EP2.1_H!X32=\"\",\"\",EP2.1_H!X32),\"\")))))))))","v":""}]
[{"$f":"IF(AV7=\"\",\"\",IF(AV7=\"A\",IF(EP2.1_A!A33=\"\",\"\",EP2.1_A!A33),IF(AV7=\"B\",IF(EP2.1_B!A33=\"\",\"\",EP2.1_B!A33),IF(AV7=\"C\",IF(EP2.1_C!A33=\"\",\"\",EP2.1_C!A33),IF(AV7=\"D\",IF(EP2.1_D!A33=\"\",\"\",EP2.1_D!A33),IF(AV7=\"E\",IF(EP2.1_E!A33=\"\",\"\",EP2.1_E!A33),IF(AV7=\"F\",IF(EP2.1_F!A33=\"\",\"\",EP2.1_F!A33),IF(AV7=\"G\",IF(EP2.1_G!A33=\"\",\"\",EP2.1_G!A33),IF(AV7=\"H\",IF(EP2.1_H!A33=\"\",\"\",EP2.1_H!A33),\"\")))))))))","v":""},"A2T2",null,"Réparer un bien par adaptation d’une pièce mécanique.",null,null,null,null,null,null,null,null,null,null,null,null,null,null,null,null,null,null,null,{"$f":"IF(AV7=\"\",\"\",IF(AV7=\"A\",IF(EP2.1_A!X33=\"\",\"\",EP2.1_A!X33),IF(AV7=\"B\",IF(EP2.1_B!X33=\"\",\"\",EP2.1_B!X33),IF(AV7=\"C\",IF(EP2.1_C!X33=\"\",\"\",EP2.1_C!X33),IF(AV7=\"D\",IF(EP2.1_D!X33=\"\",\"\",EP2.1_D!X33),IF(AV7=\"E\",IF(EP2.1_E!X33=\"\",\"\",EP2.1_E!X33),IF(AV7=\"F\",IF(EP2.1_F!X33=\"\",\"\",EP2.1_F!X33),IF(AV7=\"G\",IF(EP2.1_G!X33=\"\",\"\",EP2.1_G!X33),IF(AV7=\"H\",IF(EP2.1_H!X33=\"\",\"\",EP2.1_H!X33),\"\")))))))))","v":""}]
["Consulter le référentiel des activités professionnelles pour obtenir le détail des tâches."]
["Ç Repérer les tâches demandées (ce sont celles qui correspondent à l’unité dans le référentiel de certification, à l’exclusion de toute autre)"]
["Appréciation globale et proposition de note : "]
[]
["Noms et signatures des évaluateurs :\n\n\n",null,null,null,null,null,null,null,null,null,null,null,null,null,null,null,null,null,null,null,null,null,null,null,null,null,null,null,null,null,null,null,null,null,null,"Note proposée :          ",null,null,null,null,{"$f":"IF(AI101=\"\",\"\",AI101)","v":""},null,null,"/20"]
[null,null,null,null,null,null,null,null,null,null,null,null,null,null,null,null,null,null,null,null,null,null,null,null,null,null,null,null,null,null,null,null,null,null,null,"Note affectée de son coefficient :",null,null,null,null,{"$f":"IF(AO38=\"\",\"\",AO38*3)","v":""},null,null,"/60"]
["Brevet d’Etudes Professionnelles «Maintenance des produits et équipements industriels »  – EP2.1",null,null,null,null,null,null,null,null,null,null,null,null,null,null,null,null,null,null,null,null,null,null,null,null,null,null,null,null,null,null,null,null,null,"Validé",null,null,null,"-       Synthèse    +"]
[]
["CP1.1 : Collecter des informations, exploiter des documents ",null,null,null,null,null,null,null,null,null,null,null,null,null,null,null,null,null,null,null,null,null,null,null,null,null,null,null,null,null,"Evalué",null,null,null,{"$f":"IF(AE42=\"Non Evalué\",\"NE\",IF(AE42=\"Evalué\",\"E\",\"\"))","v":"E"},{"$f":"COUNTIF(AI44:AL53,\"Validé\")","v":0},{"$f":"COUNTIF(AI44:AL53,\"Non Validé\")","v":0},{"$f":"COUNTIF(AI44:AL53,\"Non Evalué\")","v":0},null,null,null,null,null,null,null,null,null,{"$f":"IF(AE42=\"\",\"Souhaitez-vous évaluer la compétence ?\",IF(AND(AE42=\"Non Evalué\",OR(AJ42<>0,AK42<>0)),\"Vous avez choisi de ne pas évaluer la compétence. Ne rien indiquez dans la colonne Validé.\",IF(AND(AE42=\"Evalué\",OR(AI44=\"\",AI46=\"\",AI48=\"\",AI50=\"\",AI52=\"\")),\"Vous avez choisi d'évaluer la compétence. Indiquez pour chaques actions : Validé, Non Validé ou Non Evalué.\",IF(OR(AE42=\"Non Evalué\",(AJ42+AK42)=0),\"\",CONCATENATE(ROUND((100*AJ43/(AJ43+AK43)),0),\" % d'actions validées. \",AJ42,\" validée(s) sur \",AJ42+AK42,\" . Conseil: Au maximum , grisez \",ROUND((100*AJ43/(AJ43+AK43))*8/100,0),\" colonnes\")))))","v":"Vous avez choisi d'évaluer la compétence. Indiquez pour chaques actions : Validé, Non Validé ou Non Evalué."}]
[null,null,null,null,null,null,null,null,null,null,null,null,null,null,null,null,null,null,null,null,null,null,null,null,null,null,null,null,null,null,null,null,null,null,null,{"$f":"SUMPRODUCT((AI44:AL53=\"Validé\")*(Bareme!AE131:AE140))","v":0},{"$f":"SUMPRODUCT((AI44:AL53=\"Non Validé\")*(Bareme!AE131:AE140))","v":0}]
["C 111",null,null,"Prendre en compte et s’approprier un bon de travail, une consigne, une demande déclenchant une intervention.",null,null,null,null,null,null,null,null,null,"Les éléments techniques du bon, de la consigne, de la demande sont interprétés sans déformation.",null,null,null,null,null,null,null,null,null,null,null,null,null,null,null,null,null,null,null,null,null,null,null,null,null,null,null,null,null,null,null,null,null,0]
[]
["C 112",null,null,"Questionner  la hiérarchie, les membres de l’équipe de maintenance, l’exploitant du bien, pour obtenir les informations utiles à l’intervention ",null,null,null,null,null,null,null,null,null,"Les questions posées sont pertinentes par  rapport à la problématique de maintenance.",null,null,null,null,null,null,null,null,null,null,null,null,null,null,null,null,null,null,null,null,null,null,null,null,"Commentaires:\n"]
[]
[null,null,null,null,null,null,null,null,null,null,null,null,null,"Les réponses retenues sont cohérentes avec la problématique."]
[]
["C 113",null,null,"Collecter sur le bien les informations (grandeurs, états, messages...), les anomalies (bruit, vibration, odeur...)",null,null,null,null,null,null,null,null,null,"Toutes les informations sont collectées."]
[]
["C 114",null,null,"Extraire des documents et ressources informationnelles, les informations techniques (grandeurs, dérives...) utiles à l’intervention.",null,null,null,null,null,null,null,null,null,"Les informations techniques retenues sont pertinentes et exploitables en vue de l’intervention à réaliser."]
[]
["CP1.2 : Préparer son intervention et/ou la logistique associée.",null,null,null,null,null,null,null,null,null,null,null,null,null,null,null,null,null,null,null,null,null,null,null,null,null,null,null,null,null,"Evalué",null,null,null,{"$f":"IF(AE54=\"Non Evalué\",\"NE\",IF(AE54=\"Evalué\",\"E\",\"\"))","v":"E"},{"$f":"COUNTIF(AI56:AL81,\"Validé\")","v":0},{"$f":"COUNTIF(AI56:AL81,\"Non Validé\")","v":0},{"$f":"COUNTIF(AI56:AL81,\"Non Evalué\")","v":0},null,null,null,null,null,null,null,null,null,{"$f":"IF(AE54=\"\",\"Souhaitez-vous évaluer la compétence ?\",IF(AND(AE54=\"Non Evalué\",OR(AJ54<>0,AK54<>0)),\"Vous avez choisi de ne pas évaluer la compétence. Ne rien indiquez dans la colonne Validé.\",IF(AND(AE54=\"Evalué\",OR(AI56=\"\",AI58=\"\",AI60=\"\",AI62=\"\",AI64=\"\",AI66=\"\",AI68=\"\",AI70=\"\",AI72=\"\",AI74=\"\",AI76=\"\",AI78=\"\",AI80=\"\")),\"Vous avez choisi d'évaluer la compétence. Indiquez pour chaques actions : Validé, Non Validé ou Non Evalué.\",IF(OR(AE54=\"Non Evalué\",(AJ54+AK54)=0),\"\",CONCATENATE(ROUND((100*AJ55/(AJ55+AK55)),0),\" % d'actions validées. \",AJ54,\" validée(s) sur \",AJ54+AK54,\" . Conseil: Au maximum , grisez \",ROUND((100*AJ55/(AJ55+AK55))*8/100,0),\" colonnes\")))))","v":"Vous avez choisi d'évaluer la compétence. Indiquez pour chaques actions : Validé, Non Validé ou Non Evalué."}]
[null,null,null,null,null,null,null,null,null,null,null,null,null,null,null,null,null,null,null,null,null,null,null,null,null,null,null,null,null,null,null,null,null,null,null,{"$f":"SUMPRODUCT((AI56:AL81=\"Validé\")*(Bareme!AE143:AE168))","v":0},{"$f":"SUMPRODUCT((AI56:AL81=\"Non Validé\")*(Bareme!AE143:AE168))","v":0}]
["C 121",null,null,"Lire et compléter si nécessaire les documents du dossier de préparation.",null,null,null,null,null,null,null,null,null,"Sont assimilés : le bon de travail, la gamme, les consignes, les procédures de réglage, de contrôle, de mesure,…",null,null,null,null,null,null,null,null,null,null,null,null,null,null,null,null,null,null,null,null,null,null,null,null,null,null,null,null,null,null,null,null,null,0]
[]
["C 122",null,null,"Identifier, localiser sur la documentation technique les équipements concernés par son intervention.",null,null,null,null,null,null,null,null,null,"Les équipements concernés sont tous localisés."]
[]
[null,null,null,null,null,null,null,null,null,null,null,null,null,"Le fonctionnement et le rôle des équipements sont identifiés.",null,null,null,null,null,null,null,null,null,null,null,null,null,null,null,null,null,null,null,null,null,null,null,null,"Commentaires:\n"]
[]
["C 123",null,null,"Lister et vérifier les autorisations d’accès et de travail.",null,null,null,null,null,null,null,null,null,"Le périmètre d’intervention est délimité par écrit."]
[]
[null,null,null,null,null,null,null,null,null,null,null,null,null,"Les autorisations sont assimilées."]
[]
["C 124",null,null,"Apprécier la masse des charges à manutentionner\nIdentifier :\n-les points d’ancrage, de calage, \n-la position du centre de gravité,\n-l’angle d’élingage",null,null,null,null,null,null,null,null,null,"Les apparaux de levage retenus sont adaptés."]
[]
[null,null,null,null,null,null,null,null,null,null,null,null,null,"Les points d’ancrage et/ou le centre de gravité sont localisés."]
[]
[null,null,null,null,null,null,null,null,null,null,null,null,null,"L’angle d’élingage est déterminé."]
[]
["C 125",null,null,"Choisir et désigner les outillages et matériels nécessaires",null,null,null,null,null,null,null,null,null,"A partir de familles d’outillage définies dans le dossier de préparation les outils choisis et désignés sont adaptés à l’intervention."]
[]
["C 126",null,null,"S’assurer de la disponibilité des consommables, des outillages, des pièces de rechange.",null,null,null,null,null,null,null,null,null,"Les matériels indisponibles sont listés."]
[]
["C 127",null,null,"Signaler les indisponibilités.",null,null,null,null,null,null,null,null,null,"La liste des indisponibilités est transmise."]
[]
[null,null,null,null,null,null,null,null,null,null,null,null,null,"En fonction des indisponibilités le signalement d’impossibilité de réaliser de son intervention est justifié."]
[]
["C 128",null,null,"Fournir les références des éléments manquants.",null,null,null,null,null,null,null,null,null,"Les références et la quantité permettent d’établir la commande. "]
[]
["Brevet d’Etudes Professionnelles «Maintenance des produits et équipements industriels »  – EP2.1",null,null,null,null,null,null,null,null,null,null,null,null,null,null,null,null,null,null,null,null,null,null,null,null,null,null,null,null,null,null,null,null,null,"Validé",null,null,null,"-       Synthèse    +"]
[]
["CP1.3 : Identifier les risques et s’approprier les procédures prescrites.",null,null,null,null,null,null,null,null,null,null,null,null,null,null,null,null,null,null,null,null,null,null,null,null,null,null,null,null,null,"Evalué",null,null,null,{"$f":"IF(AE84=\"Non Evalué\",\"NE\",IF(AE84=\"Evalué\",\"E\",\"\"))","v":"E"},{"$f":"COUNTIF(AI86:AL95,\"Validé\")","v":0},{"$f":"COUNTIF(AI86:AL95,\"Non Validé\")","v":0},{"$f":"COUNTIF(AI86:AL95,\"Non Evalué\")","v":0},null,null,null,null,null,null,null,null,null,{"$f":"IF(AE84=\"\",\"Souhaitez-vous évaluer la compétence ?\",IF(AND(AE84=\"Non Evalué\",OR(AJ84<>0,AK84<>0)),\"Vous avez choisi de ne pas évaluer la compétence. Ne rien indiquez dans la colonne Validé.\",IF(AND(AE84=\"Evalué\",OR(AI86=\"\",AI88=\"\",AI90=\"\",AI92=\"\",AI94=\"\")),\"Vous avez choisi d'évaluer la compétence. Indiquez pour chaques actions : Validé, Non Validé ou Non Evalué.\",IF(OR(AE84=\"Non Evalué\",(AJ84+AK84)=0),\"\",CONCATENATE(ROUND((100*AJ85/(AJ85+AK85)),0),\" % d'actions validées. \",AJ84,\" validée(s) sur \",AJ84+AK84,\" . Conseil: Au maximum , grisez \",ROUND((100*AJ85/(AJ85+AK85))*8/100,0),\" colonnes\")))))","v":"Vous avez choisi d'évaluer la compétence. Indiquez pour chaques actions : Validé, Non Validé ou Non Evalué."}]
[null,null,null,null,null,null,null,null,null,null,null,null,null,null,null,null,null,null,null,null,null,null,null,null,null,null,null,null,null,null,null,null,null,null,null,{"$f":"SUMPRODUCT((AI86:AL95=\"Validé\")*(Bareme!AE171:AE180))","v":0},{"$f":"SUMPRODUCT((AI86:AL95=\"Non Validé\")*(Bareme!AE171:AE180))","v":0}]
["C 131",null,null,"Identifier les phénomènes dangereux et les situations dangereuses liés:\n- au bien et à son environnement,\n- à son activité de maintenance.",null,null,null,null,null,null,null,null,null,"Sont répertoriés les risques liés :\n-au bien (énergies présentes et résiduelles, chimiques,…),\n-à l’environnement (chimiques, thermiques, bruit, rayonnement,  projection,…)\nà l’activité (coupure, chute, écrasement....) ",null,null,null,null,null,null,null,null,null,null,null,null,null,null,null,null,null,null,null,null,null,null,null,null,null,null,null,null,null,null,null,null,null,0]
[]
["C 132",null,null,"S’approprier les mesures de prévention prescrites dans le dossier de préparation en regard des situations dangereuses identifiées.\n\nAppliquer ou respecter le protocole de sécurité  (restrictions d’accès, habilitations ou autorisations,…)",null,null,null,null,null,null,null,null,null,"La mise en œuvre des mesures de prévention définies est comprise et décrite :\n-équipements de protection individuelle (E.P.I.)*,\n-équipements individuels de sécurité (EIS)*,\n-équipements de protection collective (EPC)*,\n-consignation (énergies, accès…)."]
[]
["C 133",null,null,"Signaler les manques, les difficultés de lecture et d’appropriation des mesures de prévention définies.",null,null,null,null,null,null,null,null,null,"Les difficultés signalées sont justifiées et pertinentes.",null,null,null,null,null,null,null,null,null,null,null,null,null,null,null,null,null,null,null,null,null,null,null,null,"Commentaires:\n"]
[]
[null,null,null,null,null,null,null,null,null,null,null,null,null,"Elles permettront de faciliter l’analyse des mesures de prévention définies."]
[]
[null,null,null,null,null,null,null,null,null,null,null,null,null,"En cas d’absence de prévention par rapport à un risque, le droit de retrait est justifié."]
[]
[]
[]
[null,null,null,null,{"$f":"IF(OR(I109=\"\",AND(AE42=\"\",AE54=\"\",AE84=\"\")=0),\"\",CONCATENATE(\"PROPOSITION: \",CEILING(I109,0.5),\"/20 (\",ROUND(100*COUNTIF(U108:U110,\"E\")/(COUNTIF(U108:U110,\"E\")+COUNTIF(U108:U110,\"NE\")),0),\"% des compétences évaluées).\"))","v":"PROPOSITION: 0/20 (100% des compétences évaluées)."}]
[]
[]
[null,null,null,null,"Proposition des évaluateurs:"]
[]
[]
[]
[null,null,null,null,"Ne pas effacer"]
[null,null,null,null,null,null,null,null,null,null,null,null,null,null,{"$f":"CONCATENATE(\"Statistique EP2.1 de \",$AE$4)","v":{"$error":"#N/A"}}]
[null,null,null,null,null,null,null,null,null,null,null,null,null,null,"Compétences",{"$f":"IF(AE4=\"\",\"\",AE4)","v":{"$error":"#N/A"}},"Satisfaction maximale","Satisfaction moyenne",{"$f":"CONCATENATE(\"Statistique EP2.1 de \",$AE$4)","v":{"$error":"#N/A"}},"Coefficients","Validée ou Non Validée"]
[null,null,"Somme",null,null,null,null,null,{"$f":"SUMPRODUCT((P108:P110))","v":0},null,{"$f":"SUM(Q108:Q110)","v":800},null,null,null,{"$f":"A42","v":"CP1.1 : Collecter des informations, exploiter des documents "},{"$f":"IF(OR(U108=\"NE\",U108=\"\"),\"\",S108*T108)","v":0},{"$f":"IF(OR(U108=\"NE\",U108=\"\"),\"\",T108*8)","v":180},{"$f":"IF(OR(U108=\"NE\",U108=\"\"),\"\",Q108/2)","v":90},{"$f":"IF(AV44=\"\",\"\",AV44)","v":0},{"$f":"Bareme!AE129","v":22.5},{"$f":"IF(AI42=\"\",\"\",AI42)","v":"E"}]
[null,null,"Moyenne /20",null,null,null,null,null,{"$f":"IF($K$108=0,\"\",K109*$I$108/$K$108)","v":0},null,20,null,null,null,{"$f":"A54","v":"CP1.2 : Préparer son intervention et/ou la logistique associée."},0,100,50,{"$f":"IF(AV56=\"\",\"\",AV56)","v":0},{"$f":"Bareme!AE141","v":12.5},{"$f":"IF(AI54=\"\",\"\",AI54)","v":"E"}]
[null,null,null,null,null,null,null,null,null,null,null,null,null,null,{"$f":"A84","v":"CP1.3 : Identifier les risques et s’approprier les procédures prescrites."},0,520,260,{"$f":"IF(AV86=\"\",\"\",AV86)","v":0},{"$f":"Bareme!AE169","v":65},{"$f":"IF(AI84=\"\",\"\",AI84)","v":"E"}]
[null,null,null,null,null,"Ne pas effacer"]

{"sheet":"EP2.2","index":7,"n_rows":162,"n_cols":48,"rows_kept":162,"cut":false,"hidden":true,"merged":[[38,35,38,39],[38,40,38,42],[38,43,38,45],[31,1,31,2],[31,3,31,22],[31,24,31,25],[31,26,31,45],[32,1,32,2],[32,3,32,22],[32,24,32,25],[32,26,32,45],[19,1,19,22],[19,24,19,45],[20,1,20,22],[20,24,20,45],[21,1,21,22],[18,1,18,22],[18,24,18,45],[12,0,12,45],[13,1,13,22],[13,24,13,45],[14,1,14,22],[14,24,14,45],[15,1,15,22],[15,24,15,45],[21,24,21,45],[6,0,6,45],[7,0,7,45],[8,0,8,45],[9,0,9,45],[10,0,10,45],[16,1,16,22],[16,24,16,45],[17,1,17,22],[17,24,17,45],[0,0,0,45],[1,0,1,45],[2,0,2,22],[2,23,2,29],[2,30,2,45],[3,0,5,22],[3,23,3,29],[3,30,4,45],[4,23,4,29],[5,23,5,29],[5,30,5,45],[30,3,30,22],[30,24,30,25],[30,26,30,45],[25,1,25,22],[25,24,25,45],[27,0,27,45],[28,1,28,2],[28,3,28,22],[28,24,28,25],[28,26,28,45],[22,1,22,22],[22,24,22,45],[23,1,23,22],[23,24,23,45],[24,1,24,22],[24,24,24,45],[131,34,132,37],[117,0,118,29],[117,30,118,33],[33,0,33,45],[35,0,35,45],[36,0,36,45],[37,0,38,34],[37,35,37,39],[37,40,37,42],[37,43,37,45],[125,13,126,33],[125,34,126,37],[127,13,128,33],[29,1,29,2],[29,3,29,22],[29,24,29,25],[29,26,29,45],[30,1,30,2],[119,0,124,2],[125,0,126,2],[127,0,130,2],[131,0,136,2],[137,0,140,2],[141,0,144,2],[119,3,124,12],[125,3,126,12],[127,3,130,12],[131,3,136,12],[137,3,140,12],[141,3,144,12],[39,38,39,45],[40,38,40,45],[59,0,60,29],[59,30,60,33],[63,13,64,33],[63,34,64,37],[85,13,86,33],[85,34,86,37],[39,0,40,33],[39,34,40,37],[83,13,84,33],[83,34,84,37],[65,13,66,33],[65,34,66,37],[67,13,68,33],[67,34,68,37],[69,13,70,33],[69,34,70,37],[71,13,72,33],[71,34,72,37],[75,13,76,33],[75,34,76,37],[77,13,78,33],[77,34,78,37],[155,14,155,27],[89,13,90,33],[89,34,90,37],[127,34,128,37],[129,13,130,33],[129,34,130,37],[131,13,132,33],[95,13,96,33],[95,34,96,37],[97,13,98,33],[135,13,136,33],[135,34,136,37],[93,0,94,29],[93,30,94,33],[115,13,116,33],[115,34,116,37],[119,13,120,33],[119,34,120,37],[121,13,122,33],[121,34,122,37],[137,13,138,33],[137,34,138,37],[139,13,140,33],[139,34,140,37],[93,47,94,49],[59,47,60,49],[61,13,62,33],[61,34,62,37],[147,4,149,39],[150,4,152,33],[150,34,152,39],[117,47,118,49],[97,34,98,37],[99,13,100,33],[99,34,100,37],[101,13,102,33],[101,34,102,37],[133,13,134,33],[133,34,134,37],[123,13,124,33],[123,34,124,37],[141,13,142,33],[141,34,142,37],[143,13,144,33],[143,34,144,37],[87,34,88,37],[73,13,74,33],[73,34,74,37],[79,13,80,33],[79,34,80,37],[81,13,82,33],[81,34,82,37],[61,0,64,2],[65,0,74,2],[75,0,84,2],[85,0,90,2],[61,3,64,12],[65,3,74,12],[75,3,84,12],[85,3,90,12],[87,13,88,33],[53,34,54,37],[55,13,56,33],[113,13,114,33],[113,34,114,37],[95,0,96,2],[97,0,102,2],[103,0,106,2],[107,0,112,2],[113,0,116,2],[95,3,96,12],[97,3,102,12],[103,3,106,12],[107,3,112,12],[113,3,116,12],[105,34,106,37],[103,13,104,33],[103,34,104,37],[105,13,106,33],[107,13,108,33],[107,34,108,37],[109,13,110,33],[109,34,110,37],[111,13,112,33],[111,34,112,37],[41,0,42,29],[41,30,42,33],[41,47,42,49],[43,13,44,33],[43,34,44,37],[45,13,46,33],[45,34,46,37],[47,13,48,33],[47,34,48,37],[77,38,90,45],[47,38,58,45],[99,38,116,45],[126,38,144,45],[43,0,44,2],[45,0,50,2],[51,0,54,2],[55,0,58,2],[43,3,44,12],[45,3,50,12],[51,3,54,12],[55,3,58,12],[55,34,56,37],[57,13,58,33],[57,34,58,37],[91,0,92,33],[91,34,92,37],[91,38,91,45],[92,38,92,45],[49,13,50,33],[49,34,50,37],[51,13,52,33],[51,34,52,37],[53,13,54,33]]}
["Brevet d’Etudes Professionnelles «Maintenance des produits et équipements industriels » "]
["EP2.2 : Intervention sur un composant mécanique"]
["Établissement : (tampon)",null,null,null,null,null,null,null,null,null,null,null,null,null,null,null,null,null,null,null,null,null,null,"Session : ",null,null,null,null,null,null,{"$f":"IF(Bilan!B2=\"\",\"\",Bilan!B2)","v":""}]
[{"$f":"IF(Bilan!B3=\"\",\"\",Bilan!B3)","v":""},null,null,null,null,null,null,null,null,null,null,null,null,null,null,null,null,null,null,null,null,null,null,"Nom du candidat:",null,null,null,null,null,null,{"$f":"IF(INDEX((Bilan!B5:B34),(MATCH(RIGHT(CELL(\"nomfichier\",A1),LEN(CELL(\"nomfichier\",A1))-FIND(\"]\",CELL(\"nomfichier\",A1))),Bilan!G5:G34,0)))=\"\",\"\",INDEX((Bilan!B5:B34),(MATCH(RIGHT(CELL(\"nomfichier\",A1),LEN(CELL(\"nomfichier\",A1))-FIND(\"]\",CELL(\"nomfichier\",A1))),Bilan!G5:G34,0))))","v":{"$error":"#N/A"}}]
[null,null,null,null,null,null,null,null,null,null,null,null,null,null,null,null,null,null,null,null,null,null,null,"Prénom : "]
[null,null,null,null,null,null,null,null,null,null,null,null,null,null,null,null,null,null,null,null,null,null,null,"Date de l'évaluation:"]
["Lieu d’évaluation :"]
["      Etablissement"]
["      Entreprise :       "]
["Description sommaire du travail demandé :"]
[]
[]
["Données fournies au candidat"]
["X","Le dossier technique du bien sur supports papiers ou supports numériques",null,null,null,null,null,null,null,null,null,null,null,null,null,null,null,null,null,null,null,null,null,"X","L’équipement informatique"]
["X","Le bien et les conditions de son environnement",null,null,null,null,null,null,null,null,null,null,null,null,null,null,null,null,null,null,null,null,null,"X","Les logiciels"]
["X","Les normes",null,null,null,null,null,null,null,null,null,null,null,null,null,null,null,null,null,null,null,null,null,"X","Les outils descripteurs (grafcet, chronogramme…)"]
["X","Toutes documentations techniques",null,null,null,null,null,null,null,null,null,null,null,null,null,null,null,null,null,null,null,null,null,"X","Tous documents nouveaux nécessaires à la compréhension de l’information : Nouvelle notice technique, compte-rendu d’intervention, documents de modification."]
["X","Le document unique d’évaluation des risques",null,null,null,null,null,null,null,null,null,null,null,null,null,null,null,null,null,null,null,null,null,"X","Les moyens de communication"]
["X","Toutes informations en provenance de l’utilisateur",null,null,null,null,null,null,null,null,null,null,null,null,null,null,null,null,null,null,null,null,null,"X","La demande d’intervention ou le bon de travail."]
["X","Les contraintes dans l’environnement",null,null,null,null,null,null,null,null,null,null,null,null,null,null,null,null,null,null,null,null,null,"X","Les consignes d’exploitation"]
["X","Les délais d’interventions",null,null,null,null,null,null,null,null,null,null,null,null,null,null,null,null,null,null,null,null,null,"X","Le bon de travail"]
["X","Un groupe de travail.",null,null,null,null,null,null,null,null,null,null,null,null,null,null,null,null,null,null,null,null,null,"X","Le carnet de prescription de sécurité électrique"]
["X","La fiche de procédures",null,null,null,null,null,null,null,null,null,null,null,null,null,null,null,null,null,null,null,null,null,"X","Les pièces de rechange, les consommables"]
["X","Le cahier des charges fonctionnel",null,null,null,null,null,null,null,null,null,null,null,null,null,null,null,null,null,null,null,null,null,"X","Les équipements de protection individuels et collectifs"]
["X","Le plan de prévention",null,null,null,null,null,null,null,null,null,null,null,null,null,null,null,null,null,null,null,null,null,"X","Les outillages, matériels de contrôle, de mesure, moyens de manutention."]
["X","Le constat de défaillance.",null,null,null,null,null,null,null,null,null,null,null,null,null,null,null,null,null,null,null,null,null,"X","Les impératifs de production."]
["     ÇRepérer les données fournies",null,null,null,null,null,null,null,null,null,null,null,null,null,null,null,null,null,null,null,null,null,null,null,"ÇRepérer les données fournies"]
["Travail demandé"]
["X","A1T1",null,"Préparer son intervention et/ou la logistique associée.",null,null,null,null,null,null,null,null,null,null,null,null,null,null,null,null,null,null,null,"X","A3T1",null,"Réaliser des opérations prescrites de contrôle et/ou de surveillance."]
["X","A1T2",null,"Rendre compte de son intervention.",null,null,null,null,null,null,null,null,null,null,null,null,null,null,null,null,null,null,null,"X","A3T2",null,"Réaliser des opérations planifiées."]
["X","A1T3",null,"Proposer des améliorations sur l’environnement de son intervention.",null,null,null,null,null,null,null,null,null,null,null,null,null,null,null,null,null,null,null,"X","A4T1",null,"Réaliser une amélioration validée."]
["X","A2T1",null,"Réparer un bien par remplacement de composants."]
["X","A2T2",null,"Réparer un bien par adaptation d’une pièce mécanique."]
["Consulter le référentiel des activités professionnelles pour obtenir le détail des tâches."]
["Ç Repérer les tâches demandées (ce sont celles qui correspondent à l’unité dans le référentiel de certification, à l’exclusion de toute autre)"]
["Appréciation globale et proposition de note : "]
[]
["Noms et signatures des évaluateurs :\n\n\n",null,null,null,null,null,null,null,null,null,null,null,null,null,null,null,null,null,null,null,null,null,null,null,null,null,null,null,null,null,null,null,null,null,null,"Note proposée :          ",null,null,null,null,{"$f":"IF(AI151=\"\",\"\",AI151)","v":""},null,null,"/20"]
[null,null,null,null,null,null,null,null,null,null,null,null,null,null,null,null,null,null,null,null,null,null,null,null,null,null,null,null,null,null,null,null,null,null,null,"Note affectée de son coefficient :",null,null,null,null,{"$f":"IF(AO38=\"\",\"\",AO38*4)","v":""},null,null,"/80"]
["Brevet d’Etudes Professionnelles «Maintenance des produits et équipements industriels »  – EP2.2",null,null,null,null,null,null,null,null,null,null,null,null,null,null,null,null,null,null,null,null,null,null,null,null,null,null,null,null,null,null,null,null,null,"Validé",null,null,null,"-       Synthèse    +"]
[]
["CP2.6 : Mettre en œuvre les mesures de prévention et de protection.",null,null,null,null,null,null,null,null,null,null,null,null,null,null,null,null,null,null,null,null,null,null,null,null,null,null,null,null,null,"Evalué",null,null,null,{"$f":"IF(AE42=\"Non Evalué\",\"NE\",IF(AE42=\"Evalué\",\"E\",\"\"))","v":"E"},{"$f":"COUNTIF(AI44:AL59,\"Validé\")","v":0},{"$f":"COUNTIF(AI44:AL59,\"Non Validé\")","v":0},{"$f":"COUNTIF(AI44:AL59,\"Non Evalué\")","v":0},null,null,null,null,null,null,null,null,null,{"$f":"IF(AE42=\"\",\"Souhaitez-vous évaluer la compétence ?\",IF(AND(AE42=\"Non Evalué\",OR(AJ42<>0,AK42<>0)),\"Vous avez choisi de ne pas évaluer la compétence. Ne rien indiquez dans la colonne Validé.\",IF(AND(AE42=\"Evalué\",OR(AI44=\"\",AI46=\"\",AI48=\"\",AI50=\"\",AI52=\"\",AI54=\"\",AI56=\"\",AI58=\"\")),\"Vous avez choisi d'évaluer la compétence. Indiquez pour chaques actions : Validé, Non Validé ou Non Evalué.\",IF(OR(AE42=\"Non Evalué\",(AJ42+AK42)=0),\"\",CONCATENATE(ROUND((100*AJ43/(AJ43+AK43)),0),\" % d'actions validées. \",AJ42,\" validée(s) sur \",AJ42+AK42,\" . Conseil: Au maximum , grisez \",ROUND((100*AJ43/(AJ43+AK43))*8/100,0),\" colonnes\")))))","v":"Vous avez choisi d'évaluer la compétence. Indiquez pour chaques actions : Validé, Non Validé ou Non Evalué."}]
[null,null,null,null,null,null,null,null,null,null,null,null,null,null,null,null,null,null,null,null,null,null,null,null,null,null,null,null,null,null,null,null,null,null,null,{"$f":"SUMPRODUCT((AI44:AL59=\"Validé\")*(Bareme!AE186:AE201))","v":0},{"$f":"SUMPRODUCT((AI44:AL59=\"Non Validé\")*(Bareme!AE186:AE201))","v":0},null,null,null,null,null,null,null,null,null,null,0]
["C 261",null,null,"Choisir et rassembler les équipements de protection",null,null,null,null,null,null,null,null,null,"Tous les équipements sont choisis et rassemblés au regard du dossier de préparation",null,null,null,null,null,null,null,null,null,null,null,null,null,null,null,null,null,null,null,null,null,null,null,null,null,null,null,null,null,null,null,null,null,0]
[]
["C 262",null,null,"Vérifier le bon état :\n- des équipements de protection individuelle (E.P.I.)\n- des équipements individuels de sécurité (EIS)\n- des équipements de protection collective (EPC)",null,null,null,null,null,null,null,null,null,"L’état est vérifié."]
[]
[null,null,null,null,null,null,null,null,null,null,null,null,null,"Les défauts sont signalés.",null,null,null,null,null,null,null,null,null,null,null,null,null,null,null,null,null,null,null,null,null,null,null,null,"Commentaires:\n"]
[]
[null,null,null,null,null,null,null,null,null,null,null,null,null,"Le remplacement est demandé si nécessaire."]
[]
["C 263",null,null,"Appliquer les mesures définies :\n- mettre en œuvre des équipements de protection individuelle (E.P.I.),\n- utiliser des équipements individuels de sécurité (EIS),\n- mettre en œuvre des équipements de protection collective (EPC).",null,null,null,null,null,null,null,null,null,"Les procédures sont respectées"]
[]
[null,null,null,null,null,null,null,null,null,null,null,null,null,"La mise en œuvre est correcte."]
[]
["C 264",null,null,"Contrôler et ranger les équipements de protection.",null,null,null,null,null,null,null,null,null,"Les équipements de protection sont remis dans les étuis, mobiliers et locaux réservés à ces éléments de sécurité."]
[]
[null,null,null,null,null,null,null,null,null,null,null,null,null,"Les équipements défectueux sont triés et proposés à leur remplacement"]
[]
["CP2.2 : Réparer un sous ensemble, un composant déposé",null,null,null,null,null,null,null,null,null,null,null,null,null,null,null,null,null,null,null,null,null,null,null,null,null,null,null,null,null,"Evalué",null,null,null,{"$f":"IF(AE60=\"Non Evalué\",\"NE\",IF(AE60=\"Evalué\",\"E\",\"\"))","v":"E"},{"$f":"COUNTIF(AI62:AL91,\"Validé\")","v":0},{"$f":"COUNTIF(AI62:AL91,\"Non Validé\")","v":0},{"$f":"COUNTIF(AI62:AL91,\"Non Evalué\")","v":0},null,null,null,null,null,null,null,null,null,{"$f":"IF(AE60=\"\",\"Souhaitez-vous évaluer la compétence ?\",IF(AND(AE60=\"Non Evalué\",OR(AJ60<>0,AK60<>0)),\"Vous avez choisi de ne pas évaluer la compétence. Ne rien indiquez dans la colonne Validé.\",IF(AND(AE60=\"Evalué\",OR(AI62=\"\",AI64=\"\",AI66=\"\",AI68=\"\",AI70=\"\",AI72=\"\",AI74=\"\",AI76=\"\",AI78=\"\",AI80=\"\",AI82=\"\",AI84=\"\",AI86=\"\",AI88=\"\",AI90=\"\")),\"Vous avez choisi d'évaluer la compétence. Indiquez pour chaques actions : Validé, Non Validé ou Non Evalué.\",IF(OR(AE60=\"Non Evalué\",(AJ60+AK60)=0),\"\",CONCATENATE(ROUND((100*AJ61/(AJ61+AK61)),0),\" % d'actions validées. \",AJ60,\" validée(s) sur \",AJ60+AK60,\" . Conseil: Au maximum , grisez \",ROUND((100*AJ61/(AJ61+AK61))*8/100,0),\" colonnes\")))))","v":"Vous avez choisi d'évaluer la compétence. Indiquez pour chaques actions : Validé, Non Validé ou Non Evalué."}]
[null,null,null,null,null,null,null,null,null,null,null,null,null,null,null,null,null,null,null,null,null,null,null,null,null,null,null,null,null,null,null,null,null,null,null,{"$f":"SUMPRODUCT((AI62:AL91=\"Validé\")*(Bareme!AE204:AE233))","v":0},{"$f":"SUMPRODUCT((AI62:AL91=\"Non Validé\")*(Bareme!AE204:AE233))","v":0}]
["C 221",null,null,"Vérifier le bon état et la conformité des matériels rassemblés selon le dossier de préparation ",null,null,null,null,null,null,null,null,null,"Les outillages, les consommables, les moyens de manutention, le sous ensemble ou le composant sont rassemblés et vérifiés.",null,null,null,null,null,null,null,null,null,null,null,null,null,null,null,null,null,null,null,null,null,null,null,null,null,null,null,null,null,null,null,null,null,0]
[]
[null,null,null,null,null,null,null,null,null,null,null,null,null,"Tout défaut d’approvisionnement ou d’indisponibilité est signalé."]
[]
["C 222",null,null,"Démonter le sous ensemble, le composant afin d’accéder à l’élément à remplacer :\n- manutentionner, caler, \n- désolidariser,\n- inspecter, nettoyer, ranger.",null,null,null,null,null,null,null,null,null,"Les consignes et la gamme sont respectées."]
[]
[null,null,null,null,null,null,null,null,null,null,null,null,null,"Les outillages choisis parmi les matériels préparés et vérifiés, sont adaptés et correctement utilisés."]
[]
[null,null,null,null,null,null,null,null,null,null,null,null,null,"Les moyens de manutention sont correctement mis en œuvre."]
[]
[null,null,null,null,null,null,null,null,null,null,null,null,null,"Les éléments d’assemblage et les pièces sont : nettoyés, contrôlés, échangés si nécessaire, rangés et ordonnancés en préparation de l’activité de remontage."]
[]
[null,null,null,null,null,null,null,null,null,null,null,null,null,"Le sous-ensemble, le composant est démonté sans détérioration."]
[]
["C 223",null,null,"Remonter le sous ensemble, le composant avec les pièces de rechange (neuves ou réparées) :\n- manutentionner,\n- assembler,\n- régler.",null,null,null,null,null,null,null,null,null,"Les consignes et la gamme sont respectées."]
[]
[null,null,null,null,null,null,null,null,null,null,null,null,null,"Les outillages choisis parmi les matériels préparés et vérifiés, sont adaptés et correctement utilisés.",null,null,null,null,null,null,null,null,null,null,null,null,null,null,null,null,null,null,null,null,null,null,null,null,"Commentaires:\n"]
[]
[null,null,null,null,null,null,null,null,null,null,null,null,null,"Les moyens de manutention sont correctement mis en œuvre."]
[]
[null,null,null,null,null,null,null,null,null,null,null,null,null,"Le composant est remonté : sans erreur, sans détérioration"]
[]
[null,null,null,null,null,null,null,null,null,null,null,null,null,"Le composant est réglé selon procédures."]
[]
["C 224",null,null,"Maîtriser les risques tout au long de l’intervention.",null,null,null,null,null,null,null,null,null,"Les activités liées à l’intervention (déplacement de charges, manipulation de produits,…) n’interfèrent pas sur la sécurité des personnes et des biens."]
[]
[null,null,null,null,null,null,null,null,null,null,null,null,null,"Les risques sont identifiés et les mesures de prévention respectées."]
[]
[null,null,null,null,null,null,null,null,null,null,null,null,null,"Le plan de prévention est compris et appliqué."]
[]
["Brevet d’Etudes Professionnelles «Maintenance des produits et équipements industriels »  – EP2.2",null,null,null,null,null,null,null,null,null,null,null,null,null,null,null,null,null,null,null,null,null,null,null,null,null,null,null,null,null,null,null,null,null,"Validé",null,null,null,"-       Synthèse    +"]
[]
["CP2.4 : Adapter un composant, un sous ensemble.",null,null,null,null,null,null,null,null,null,null,null,null,null,null,null,null,null,null,null,null,null,null,null,null,null,null,null,null,null,"Evalué",null,null,null,{"$f":"IF(AE94=\"Non Evalué\",\"NE\",IF(AE94=\"Evalué\",\"E\",\"\"))","v":"E"},{"$f":"COUNTIF(AI96:AL117,\"Validé\")","v":0},{"$f":"COUNTIF(AI96:AL117,\"Non Validé\")","v":0},{"$f":"COUNTIF(AI96:AL117,\"Non Evalué\")","v":0},null,null,null,null,null,null,null,null,null,{"$f":"IF(AE94=\"\",\"Souhaitez-vous évaluer la compétence ?\",IF(AND(AE94=\"Non Evalué\",OR(AJ94<>0,AK94<>0)),\"Vous avez choisi de ne pas évaluer la compétence. Ne rien indiquez dans la colonne Validé.\",IF(AND(AE94=\"Evalué\",OR(AI96=\"\",AI98=\"\",AI100=\"\",AI102=\"\",AI104=\"\",AI106=\"\",AI108=\"\",AI110=\"\",AI112=\"\",AI114=\"\",AI116=\"\")),\"Vous avez choisi d'évaluer la compétence. Indiquez pour chaques actions : Validé, Non Validé ou Non Evalué.\",IF(OR(AE94=\"Non Evalué\",(AJ94+AK94)=0),\"\",CONCATENATE(ROUND((100*AJ95/(AJ95+AK95)),0),\" % d'actions validées. \",AJ94,\" validée(s) sur \",AJ94+AK94,\" . Conseil: Au maximum , grisez \",ROUND((100*AJ95/(AJ95+AK95))*8/100,0),\" colonnes\")))))","v":"Vous avez choisi d'évaluer la compétence. Indiquez pour chaques actions : Validé, Non Validé ou Non Evalué."}]
[null,null,null,null,null,null,null,null,null,null,null,null,null,null,null,null,null,null,null,null,null,null,null,null,null,null,null,null,null,null,null,null,null,null,null,{"$f":"SUMPRODUCT((AI96:AL117=\"Validé\")*(Bareme!AE236:AE257))","v":0},{"$f":"SUMPRODUCT((AI96:AL117=\"Non Validé\")*(Bareme!AE236:AE257))","v":0}]
["C 241",null,null,"Situer le composant, le sous ensemble.",null,null,null,null,null,null,null,null,null,"La localisation est sans erreur.",null,null,null,null,null,null,null,null,null,null,null,null,null,null,null,null,null,null,null,null,null,null,null,null,null,null,null,null,null,null,null,null,null,0]
[]
["C 242",null,null,"Rassembler et vérifier les outillages et matériels prescrits.",null,null,null,null,null,null,null,null,null,"Les outillages sont vérifiés."]
[]
[null,null,null,null,null,null,null,null,null,null,null,null,null,"Les consommables, les pièces de rechanges sont rassemblés.",null,null,null,null,null,null,null,null,null,null,null,null,null,null,null,null,null,null,null,null,null,null,null,null,"Commentaires:\n"]
[]
[null,null,null,null,null,null,null,null,null,null,null,null,null,"Les moyens de manutention sont vérifiés."]
[]
["C 243",null,null,"Analyser l’état du composant :\n- contrôle visuel,\n- contrôle dimensionnel,\n- contrôle géométrique.",null,null,null,null,null,null,null,null,null,"L’anomalie est identifiée."]
[]
[null,null,null,null,null,null,null,null,null,null,null,null,null,"Si besoin est :\n-l’opération de réparation complémentaire est proposée ou définie,\n-les limites de ses compétences sont prises en compte."]
[]
["C 244",null,null,"Réaliser les opérations élémentaires d’adaptation et d’assemblage : tracer, scier, percer, tarauder, cintrer, cisailler, meuler, ajuster, piétage, collage, soudage à plat.\nCes opérations restent simples et résolvent obligatoirement une problématique de maintenance",null,null,null,null,null,null,null,null,null,"Les pièces s’assemblent dans le respect des jeux fonctionnels."]
[]
[null,null,null,null,null,null,null,null,null,null,null,null,null,"Les opérations sont effectuées dans le respect de mise en œuvre des outillages et des moyens de production."]
[]
[null,null,null,null,null,null,null,null,null,null,null,null,null,"Les limites de ses compétences sont prises en compte."]
[]
["C 245",null,null,"Maîtriser les risques tout au long de l’intervention.",null,null,null,null,null,null,null,null,null,"Les risques sont identifiés et les mesures de prévention respectées."]
[]
[null,null,null,null,null,null,null,null,null,null,null,null,null,"Le plan de prévention est compris et appliqué."]
[]
["CP2.3 : Qualifier ses actions au sein de son intervention.",null,null,null,null,null,null,null,null,null,null,null,null,null,null,null,null,null,null,null,null,null,null,null,null,null,null,null,null,null,"Evalué",null,null,null,{"$f":"IF(AE118=\"Non Evalué\",\"NE\",IF(AE118=\"Evalué\",\"E\",\"\"))","v":"E"},{"$f":"COUNTIF(AI120:AL145,\"Validé\")","v":0},{"$f":"COUNTIF(AI120:AL145,\"Non Validé\")","v":0},{"$f":"COUNTIF(AI120:AL145,\"Non Evalué\")","v":0},null,null,null,null,null,null,null,null,null,{"$f":"IF(AE118=\"\",\"Souhaitez-vous évaluer la compétence ?\",IF(AND(AE118=\"Non Evalué\",OR(AJ118<>0,AK118<>0)),\"Vous avez choisi de ne pas évaluer la compétence. Ne rien indiquez dans la colonne Validé.\",IF(AND(AE118=\"Evalué\",OR(AI120=\"\",AI122=\"\",AI124=\"\",AI126=\"\",AI128=\"\",AI130=\"\",AI132=\"\",AI134=\"\",AI136=\"\",AI138=\"\",AI140=\"\",AI142=\"\",AI144=\"\")),\"Vous avez choisi d'évaluer la compétence. Indiquez pour chaques actions : Validé, Non Validé ou Non Evalué.\",IF(OR(AE118=\"Non Evalué\",(AJ118+AK118)=0),\"\",CONCATENATE(ROUND((100*AJ119/(AJ119+AK119)),0),\" % d'actions validées. \",AJ118,\" validée(s) sur \",AJ118+AK118,\" . Conseil: Au maximum , grisez \",ROUND((100*AJ119/(AJ119+AK119))*8/100,0),\" colonnes\")))))","v":"Vous avez choisi d'évaluer la compétence. Indiquez pour chaques actions : Validé, Non Validé ou Non Evalué."}]
[null,null,null,null,null,null,null,null,null,null,null,null,null,null,null,null,null,null,null,null,null,null,null,null,null,null,null,null,null,null,null,null,null,null,null,{"$f":"SUMPRODUCT((AI120:AL145=\"Validé\")*(Bareme!AE260:AE285))","v":0},{"$f":"SUMPRODUCT((AI120:AL145=\"Non Validé\")*(Bareme!AE260:AE285))","v":0}]
["C 231",null,null,"Identifier dans le dossier de préparation les critères d'acceptabilité de la réparation effectuée sur le composant ou le sous ensemble.",null,null,null,null,null,null,null,null,null,"Les grandeurs à vérifier sont identifiées.",null,null,null,null,null,null,null,null,null,null,null,null,null,null,null,null,null,null,null,null,null,null,null,null,null,null,null,null,null,null,null,null,null,0]
[]
[null,null,null,null,null,null,null,null,null,null,null,null,null,"Les valeurs attendues sont connues."]
[]
[null,null,null,null,null,null,null,null,null,null,null,null,null,"Leurs valeurs limites d’acceptabilité sont connues."]
[]
["C 232",null,null,"Localiser sur le composant ou le sous ensemble les points de mesure.",null,null,null,null,null,null,null,null,null,"Les points de mesure sont localisés sans erreur et  permettent de définir :\n- tension, continuité,…,\n- pression, température,\n- jeux, dimensions, couples, forces, vitesses, …,"]
[null,null,null,null,null,null,null,null,null,null,null,null,null,null,null,null,null,null,null,null,null,null,null,null,null,null,null,null,null,null,null,null,null,null,null,null,null,null,"Commentaires:\n"]
["C 233",null,null,"Vérifier le bon état et la conformité des matériels et des outillages préparés pour la qualification de l’intervention.",null,null,null,null,null,null,null,null,null,"Les outillages et les matériels, sont rassemblés et vérifiés."]
[]
[null,null,null,null,null,null,null,null,null,null,null,null,null,"Toute indisponibilité est signalée."]
[]
["C 234",null,null,"Mettre en œuvre les procédures de qualification.\n\nEffectuer la mesure des grandeurs",null,null,null,null,null,null,null,null,null,"Les appareils de mesure, de contrôle sont correctement calibrés."]
[]
[null,null,null,null,null,null,null,null,null,null,null,null,null,"Toutes les mesures des grandeurs sont effectuées dans le respect des procédures et des matériels."]
[]
[null,null,null,null,null,null,null,null,null,null,null,null,null,"Les résultats sont conformes à l’existant et exploitables."]
[]
["C 235",null,null,"Valider son intervention ou effectuer les réglages complémentaires.",null,null,null,null,null,null,null,null,null,"L’avis de qualification ou de réglage complémentaire est conforme en comparaison des résultats attendus et des mesures effectuées."]
[]
[null,null,null,null,null,null,null,null,null,null,null,null,null,"Les limites de ses compétences sont prises en compte."]
[]
["C 236",null,null,"Maîtriser les risques tout au long de l’intervention.",null,null,null,null,null,null,null,null,null,"Les risques sont identifiés et les mesures de prévention respectées."]
[]
[null,null,null,null,null,null,null,null,null,null,null,null,null,"Le plan de prévention est compris et appliqué."]
[]
[]
[]
[null,null,null,null,{"$f":"IF(OR(I159=\"\",AND(AE42=\"\",AE60=\"\",AE94=\"\",AE118=\"\",)=0),\"\",CONCATENATE(\"PROPOSITION: \",CEILING(I159,0.5),\"/20 (\",ROUND(100*COUNTIF(U158:U161,\"E\")/(COUNTIF(U158:U161,\"E\")+COUNTIF(U158:U161,\"NE\")),0),\"% des compétences évaluées).\"))","v":"PROPOSITION: 0/20 (100% des compétences évaluées)."}]
[]
[]
[null,null,null,null,"Proposition des évaluateurs:"]
[]
[]
[]
[null,null,null,null,"Ne pas effacer"]
[null,null,null,null,null,null,null,null,null,null,null,null,null,null,{"$f":"CONCATENATE(\"Statistique EP2.2 de \",$AE$4)","v":{"$error":"#N/A"}}]
[null,null,null,null,null,null,null,null,null,null,null,null,null,null,"Compétences",{"$f":"IF(AE4=\"\",\"\",AE4)","v":{"$error":"#N/A"}},"Satisfaction maximale","Satisfaction moyenne",{"$f":"CONCATENATE(\"Statistique EP2.2 de \",$AE$4)","v":{"$error":"#N/A"}},"Coefficients","Validée ou Non Validée"]
[null,null,"Somme",null,null,null,null,null,{"$f":"SUMPRODUCT((P158:P161))","v":0},null,{"$f":"SUM(Q158:Q161)","v":800},null,null,null,{"$f":"A42","v":"CP2.6 : Mettre en œuvre les mesures de prévention et de protection."},{"$f":"IF(OR(U158=\"NE\",U158=\"\"),\"\",S158*T158)","v":0},{"$f":"IF(OR(U158=\"NE\",U158=\"\"),\"\",T158*8)","v":120},{"$f":"IF(OR(U158=\"NE\",U158=\"\"),\"\",Q158/2)","v":60},{"$f":"IF(AV44=\"\",\"\",AV44)","v":0},{"$f":"Bareme!AE184","v":15},{"$f":"IF(AI42=\"\",\"\",AI42)","v":"E"}]
[null,null,"Moyenne /20",null,null,null,null,null,{"$f":"IF($K$158=0,\"\",K159*$I$158/$K$158)","v":0},null,20,null,null,null,{"$f":"A60","v":"CP2.2 : Réparer un sous ensemble, un composant déposé"},0,360,180,{"$f":"IF(AV62=\"\",\"\",AV62)","v":0},{"$f":"Bareme!AE202","v":45},{"$f":"IF(AI60=\"\",\"\",AI60)","v":"E"}]
[null,null,null,null,null,null,null,null,null,null,null,null,null,null,{"$f":"A94","v":"CP2.4 : Adapter un composant, un sous ensemble."},0,120,60,{"$f":"IF(AV96=\"\",\"\",AV96)","v":0},{"$f":"Bareme!AE234","v":15},{"$f":"IF(AI94=\"\",\"\",AI94)","v":"E"}]
[null,null,null,null,null,null,null,null,null,null,null,null,null,null,{"$f":"A118","v":"CP2.3 : Qualifier ses actions au sein de son intervention."},0,200,100,{"$f":"IF(AV120=\"\",\"\",AV120)","v":0},{"$f":"Bareme!AE258","v":25},{"$f":"IF(AI118=\"\",\"\",AI118)","v":"E"}]
[null,null,null,null,null,"Ne pas effacer"]

{"sheet":"EP1_A","index":8,"n_rows":39,"n_cols":49,"rows_kept":39,"cut":false,"hidden":true,"merged":[[25,1,25,22],[25,24,25,45],[12,0,12,45],[13,1,13,22],[13,24,13,45],[15,1,15,22],[15,24,15,45],[22,1,22,22],[22,24,22,45],[23,1,23,22],[23,24,23,45],[24,1,24,22],[24,24,24,45],[19,1,19,22],[19,24,19,45],[20,1,20,22],[0,0,0,45],[1,0,1,45],[2,0,2,22],[2,23,2,29],[2,30,2,45],[5,47,6,48],[7,47,8,47],[7,48,8,48],[14,1,14,22],[14,24,14,45],[5,30,5,45],[6,0,6,45],[7,0,7,45],[8,0,8,45],[9,0,9,45],[10,0,10,45],[3,0,5,22],[3,23,3,29],[3,30,4,45],[4,23,4,29],[5,23,5,29],[20,24,20,45],[21,1,21,22],[21,24,21,45],[16,1,16,22],[16,24,16,45],[17,1,17,22],[17,24,17,45],[18,1,18,22],[18,24,18,45],[27,0,27,45],[29,1,29,2],[29,3,29,22],[29,24,29,25],[29,26,29,45],[32,1,32,2],[32,3,32,22],[32,24,32,25],[32,26,32,45],[28,1,28,2],[28,3,28,22],[28,24,28,25],[28,26,28,45],[31,1,31,2],[31,3,31,22],[31,24,31,25],[31,26,31,45],[30,1,30,2],[30,3,30,22],[30,24,30,25],[30,26,30,45],[35,0,35,45],[37,35,37,39],[37,40,37,42],[37,43,37,45],[33,0,33,45],[36,0,36,45],[37,0,38,34],[38,35,38,39],[38,40,38,42],[38,43,38,45]]}
["Brevet d’Etudes Professionnelles «Maintenance des produits et équipements industriels » "]
["EP1 : Intervention sur un bien"]
["Établissement : (tampon)",null,null,null,null,null,null,null,null,null,null,null,null,null,null,null,null,null,null,null,null,null,null,"Session : "]
[null,null,null,null,null,null,null,null,null,null,null,null,null,null,null,null,null,null,null,null,null,null,null,"Nom du candidat:"]
[null,null,null,null,null,null,null,null,null,null,null,null,null,null,null,null,null,null,null,null,null,null,null,"Prénom : "]
[null,null,null,null,null,null,null,null,null,null,null,null,null,null,null,null,null,null,null,null,null,null,null,"Date de l'évaluation:",null,null,null,null,null,null,null,null,null,null,null,null,null,null,null,null,null,null,null,null,null,null,null,"Situation d'évaluation :"]
["Lieu d’évaluation :"]
["      Etablissement",null,null,null,null,null,null,null,null,null,null,null,null,null,null,null,null,null,null,null,null,null,null,null,null,null,null,null,null,null,null,null,null,null,null,null,null,null,null,null,null,null,null,null,null,null,null,"EP1","A"]
["      Entreprise :       "]
["Description sommaire du travail demandé :"]
[]
[]
["Données fournies au candidat"]
["X","Le dossier technique du bien sur supports papiers ou supports numériques",null,null,null,null,null,null,null,null,null,null,null,null,null,null,null,null,null,null,null,null,null,"X","L’équipement informatique"]
["X","Le bien et les conditions de son environnement",null,null,null,null,null,null,null,null,null,null,null,null,null,null,null,null,null,null,null,null,null,"X","Les logiciels"]
["X","Les normes",null,null,null,null,null,null,null,null,null,null,null,null,null,null,null,null,null,null,null,null,null,"X","Les outils descripteurs (grafcet, chronogramme…)"]
["X","Toutes documentations techniques",null,null,null,null,null,null,null,null,null,null,null,null,null,null,null,null,null,null,null,null,null,"X","Tous documents nouveaux nécessaires à la compréhension de l’information : Nouvelle notice technique, compte-rendu d’intervention, documents de modification."]
["X","Le document unique d’évaluation des risques",null,null,null,null,null,null,null,null,null,null,null,null,null,null,null,null,null,null,null,null,null,"X","Les moyens de communication"]
["X","Toutes informations en provenance de l’utilisateur",null,null,null,null,null,null,null,null,null,null,null,null,null,null,null,null,null,null,null,null,null,"X","La demande d’intervention ou le bon de travail."]
["X","Les contraintes dans l’environnement",null,null,null,null,null,null,null,null,null,null,null,null,null,null,null,null,null,null,null,null,null,"X","Les consignes d’exploitation"]
["X","Les délais d’interventions",null,null,null,null,null,null,null,null,null,null,null,null,null,null,null,null,null,null,null,null,null,"X","Le bon de travail"]
["X","Un groupe de travail.",null,null,null,null,null,null,null,null,null,null,null,null,null,null,null,null,null,null,null,null,null,"X","Le carnet de prescription de sécurité électrique"]
["X","La fiche de procédures",null,null,null,null,null,null,null,null,null,null,null,null,null,null,null,null,null,null,null,null,null,"X","Les pièces de rechange, les consommables"]
["X","Le cahier des charges fonctionnel",null,null,null,null,null,null,null,null,null,null,null,null,null,null,null,null,null,null,null,null,null,"X","Les équipements de protection individuels et collectifs"]
["X","Le plan de prévention",null,null,null,null,null,null,null,null,null,null,null,null,null,null,null,null,null,null,null,null,null,"X","Les outillages, matériels de contrôle, de mesure, moyens de manutention."]
["X","Le constat de défaillance.",null,null,null,null,null,null,null,null,null,null,null,null,null,null,null,null,null,null,null,null,null,"X","Les impératifs de production."]
["     ÇRepérer les données fournies",null,null,null,null,null,null,null,null,null,null,null,null,null,null,null,null,null,null,null,null,null,null,null,"ÇRepérer les données fournies"]
["Travail demandé"]
[null,"A1T1",null,"Préparer son intervention et/ou la logistique associée.",null,null,null,null,null,null,null,null,null,null,null,null,null,null,null,null,null,null,null,"X","A3T1",null,"Réaliser des opérations prescrites de contrôle et/ou de surveillance."]
["X","A1T2",null,"Rendre compte de son intervention.",null,null,null,null,null,null,null,null,null,null,null,null,null,null,null,null,null,null,null,"X","A3T2",null,"Réaliser des opérations planifiées."]
["X","A1T3",null,"Proposer des améliorations sur l’environnement de son intervention.",null,null,null,null,null,null,null,null,null,null,null,null,null,null,null,null,null,null,null,"X","A4T1",null,"Réaliser une amélioration validée."]
["X","A2T1",null,"Réparer un bien par remplacement de composants."]
["X","A2T2",null,"Réparer un bien par adaptation d’une pièce mécanique."]
["Consulter le référentiel des activités professionnelles pour obtenir le détail des tâches."]
["Ç Repérer les tâches demandées (ce sont celles qui correspondent à l’unité dans le référentiel de certification, à l’exclusion de toute autre)"]
["Appréciation globale et proposition de note : "]
[]
["Noms et signatures des évaluateurs :\n\n\n",null,null,null,null,null,null,null,null,null,null,null,null,null,null,null,null,null,null,null,null,null,null,null,null,null,null,null,null,null,null,null,null,null,null,"Note proposée :          ",null,null,null,null,null,null,null,"/20"]
[null,null,null,null,null,null,null,null,null,null,null,null,null,null,null,null,null,null,null,null,null,null,null,null,null,null,null,null,null,null,null,null,null,null,null,"Note affectée de son coefficient :",null,null,null,null,{"$f":"IF(AO38=\"\",\"\",AO38*4)","v":""},null,null,"/80"]

{"sheet":"EP1_B","index":9,"n_rows":39,"n_cols":49,"rows_kept":39,"cut":false,"hidden":true,"merged":[[35,0,35,45],[37,35,37,39],[37,40,37,42],[37,43,37,45],[33,0,33,45],[36,0,36,45],[37,0,38,34],[38,35,38,39],[38,40,38,42],[38,43,38,45],[32,1,32,2],[32,3,32,22],[32,24,32,25],[32,26,32,45],[29,1,29,2],[29,3,29,22],[29,24,29,25],[29,26,29,45],[30,1,30,2],[30,3,30,22],[30,24,30,25],[30,26,30,45],[28,1,28,2],[28,3,28,22],[28,24,28,25],[28,26,28,45],[31,1,31,2],[31,3,31,22],[31,24,31,25],[31,26,31,45],[24,1,24,22],[24,24,24,45],[25,1,25,22],[25,24,25,45],[27,0,27,45],[23,1,23,22],[23,24,23,45],[18,1,18,22],[18,24,18,45],[19,1,19,22],[19,24,19,45],[20,1,20,22],[20,24,20,45],[0,0,0,45],[1,0,1,45],[2,0,2,22],[2,23,2,29],[2,30,2,45],[5,47,6,48],[6,0,6,45],[7,0,7,45],[7,47,8,47],[7,48,8,48],[8,0,8,45],[3,0,5,22],[3,23,3,29],[3,30,4,45],[4,23,4,29],[5,23,5,29],[5,30,5,45],[9,0,9,45],[10,0,10,45],[12,0,12,45],[13,1,13,22],[13,24,13,45],[14,1,14,22],[14,24,14,45],[21,1,21,22],[21,24,21,45],[22,1,22,22],[22,24,22,45],[15,1,15,22],[15,24,15,45],[16,1,16,22],[16,24,16,45],[17,1,17,22],[17,24,17,45]]}
["Brevet d’Etudes Professionnelles «Maintenance des produits et équipements industriels » "]
["EP1 : Intervention sur un bien"]
["Établissement : (tampon)",null,null,null,null,null,null,null,null,null,null,null,null,null,null,null,null,null,null,null,null,null,null,"Session : "]
[null,null,null,null,null,null,null,null,null,null,null,null,null,null,null,null,null,null,null,null,null,null,null,"Nom du candidat:"]
[null,null,null,null,null,null,null,null,null,null,null,null,null,null,null,null,null,null,null,null,null,null,null,"Prénom : "]
[null,null,null,null,null,null,null,null,null,null,null,null,null,null,null,null,null,null,null,null,null,null,null,"Date de l'évaluation:",null,null,null,null,null,null,null,null,null,null,null,null,null,null,null,null,null,null,null,null,null,null,null,"Situation d'évaluation :"]
["Lieu d’évaluation :"]
["      Etablissement",null,null,null,null,null,null,null,null,null,null,null,null,null,null,null,null,null,null,null,null,null,null,null,null,null,null,null,null,null,null,null,null,null,null,null,null,null,null,null,null,null,null,null,null,null,null,"EP1","B"]
["      Entreprise :       "]
["Description sommaire du travail demandé :"]
[]
[]
["Données fournies au candidat"]
["X","Le dossier technique du bien sur supports papiers ou supports numériques",null,null,null,null,null,null,null,null,null,null,null,null,null,null,null,null,null,null,null,null,null,"X","L’équipement informatique"]
["X","Le bien et les conditions de son environnement",null,null,null,null,null,null,null,null,null,null,null,null,null,null,null,null,null,null,null,null,null,"X","Les logiciels"]
["X","Les normes",null,null,null,null,null,null,null,null,null,null,null,null,null,null,null,null,null,null,null,null,null,"X","Les outils descripteurs (grafcet, chronogramme…)"]
["X","Toutes documentations techniques",null,null,null,null,null,null,null,null,null,null,null,null,null,null,null,null,null,null,null,null,null,"X","Tous documents nouveaux nécessaires à la compréhension de l’information : Nouvelle notice technique, compte-rendu d’intervention, documents de modification."]
["X","Le document unique d’évaluation des risques",null,null,null,null,null,null,null,null,null,null,null,null,null,null,null,null,null,null,null,null,null,"X","Les moyens de communication"]
["X","Toutes informations en provenance de l’utilisateur",null,null,null,null,null,null,null,null,null,null,null,null,null,null,null,null,null,null,null,null,null,"X","La demande d’intervention ou le bon de travail."]
["X","Les contraintes dans l’environnement",null,null,null,null,null,null,null,null,null,null,null,null,null,null,null,null,null,null,null,null,null,"X","Les consignes d’exploitation"]
["X","Les délais d’interventions",null,null,null,null,null,null,null,null,null,null,null,null,null,null,null,null,null,null,null,null,null,"X","Le bon de travail"]
["X","Un groupe de travail.",null,null,null,null,null,null,null,null,null,null,null,null,null,null,null,null,null,null,null,null,null,"X","Le carnet de prescription de sécurité électrique"]
["X","La fiche de procédures",null,null,null,null,null,null,null,null,null,null,null,null,null,null,null,null,null,null,null,null,null,"X","Les pièces de rechange, les consommables"]
["X","Le cahier des charges fonctionnel",null,null,null,null,null,null,null,null,null,null,null,null,null,null,null,null,null,null,null,null,null,"X","Les équipements de protection individuels et collectifs"]
["X","Le plan de prévention",null,null,null,null,null,null,null,null,null,null,null,null,null,null,null,null,null,null,null,null,null,"X","Les outillages, matériels de contrôle, de mesure, moyens de manutention."]
["X","Le constat de défaillance.",null,null,null,null,null,null,null,null,null,null,null,null,null,null,null,null,null,null,null,null,null,"X","Les impératifs de production."]
["     ÇRepérer les données fournies",null,null,null,null,null,null,null,null,null,null,null,null,null,null,null,null,null,null,null,null,null,null,null,"ÇRepérer les données fournies"]
["Travail demandé"]
[null,"A1T1",null,"Préparer son intervention et/ou la logistique associée.",null,null,null,null,null,null,null,null,null,null,null,null,null,null,null,null,null,null,null,"X","A3T1",null,"Réaliser des opérations prescrites de contrôle et/ou de surveillance."]
["X","A1T2",null,"Rendre compte de son intervention.",null,null,null,null,null,null,null,null,null,null,null,null,null,null,null,null,null,null,null,"X","A3T2",null,"Réaliser des opérations planifiées."]
["X","A1T3",null,"Proposer des améliorations sur l’environnement de son intervention.",null,null,null,null,null,null,null,null,null,null,null,null,null,null,null,null,null,null,null,"X","A4T1",null,"Réaliser une amélioration validée."]
["X","A2T1",null,"Réparer un bien par remplacement de composants."]
["X","A2T2",null,"Réparer un bien par adaptation d’une pièce mécanique."]
["Consulter le référentiel des activités professionnelles pour obtenir le détail des tâches."]
["Ç Repérer les tâches demandées (ce sont celles qui correspondent à l’unité dans le référentiel de certification, à l’exclusion de toute autre)"]
["Appréciation globale et proposition de note : "]
[]
["Noms et signatures des évaluateurs :\n\n\n",null,null,null,null,null,null,null,null,null,null,null,null,null,null,null,null,null,null,null,null,null,null,null,null,null,null,null,null,null,null,null,null,null,null,"Note proposée :          ",null,null,null,null,null,null,null,"/20"]
[null,null,null,null,null,null,null,null,null,null,null,null,null,null,null,null,null,null,null,null,null,null,null,null,null,null,null,null,null,null,null,null,null,null,null,"Note affectée de son coefficient :",null,null,null,null,{"$f":"IF(AO38=\"\",\"\",AO38*4)","v":""},null,null,"/80"]

{"sheet":"EP1_C","index":10,"n_rows":39,"n_cols":49,"rows_kept":39,"cut":false,"hidden":true,"merged":[[35,0,35,45],[37,35,37,39],[37,40,37,42],[37,43,37,45],[33,0,33,45],[36,0,36,45],[37,0,38,34],[38,35,38,39],[38,40,38,42],[38,43,38,45],[32,1,32,2],[32,3,32,22],[32,24,32,25],[32,26,32,45],[29,1,29,2],[29,3,29,22],[29,24,29,25],[29,26,29,45],[30,1,30,2],[30,3,30,22],[30,24,30,25],[30,26,30,45],[28,1,28,2],[28,3,28,22],[28,24,28,25],[28,26,28,45],[31,1,31,2],[31,3,31,22],[31,24,31,25],[31,26,31,45],[24,1,24,22],[24,24,24,45],[25,1,25,22],[25,24,25,45],[27,0,27,45],[23,1,23,22],[23,24,23,45],[18,1,18,22],[18,24,18,45],[19,1,19,22],[19,24,19,45],[20,1,20,22],[20,24,20,45],[0,0,0,45],[1,0,1,45],[2,0,2,22],[2,23,2,29],[2,30,2,45],[5,47,6,48],[6,0,6,45],[7,0,7,45],[7,47,8,47],[7,48,8,48],[8,0,8,45],[3,0,5,22],[3,23,3,29],[3,30,4,45],[4,23,4,29],[5,23,5,29],[5,30,5,45],[9,0,9,45],[10,0,10,45],[12,0,12,45],[13,1,13,22],[13,24,13,45],[14,1,14,22],[14,24,14,45],[21,1,21,22],[21,24,21,45],[22,1,22,22],[22,24,22,45],[15,1,15,22],[15,24,15,45],[16,1,16,22],[16,24,16,45],[17,1,17,22],[17,24,17,45]]}
["Brevet d’Etudes Professionnelles «Maintenance des produits et équipements industriels » "]
["EP1 : Intervention sur un bien"]
["Établissement : (tampon)",null,null,null,null,null,null,null,null,null,null,null,null,null,null,null,null,null,null,null,null,null,null,"Session : "]
[null,null,null,null,null,null,null,null,null,null,null,null,null,null,null,null,null,null,null,null,null,null,null,"Nom du candidat:"]
[null,null,null,null,null,null,null,null,null,null,null,null,null,null,null,null,null,null,null,null,null,null,null,"Prénom : "]
[null,null,null,null,null,null,null,null,null,null,null,null,null,null,null,null,null,null,null,null,null,null,null,"Date de l'évaluation:",null,null,null,null,null,null,null,null,null,null,null,null,null,null,null,null,null,null,null,null,null,null,null,"Situation d'évaluation :"]
["Lieu d’évaluation :"]
["      Etablissement",null,null,null,null,null,null,null,null,null,null,null,null,null,null,null,null,null,null,null,null,null,null,null,null,null,null,null,null,null,null,null,null,null,null,null,null,null,null,null,null,null,null,null,null,null,null,"EP1","C"]
["      Entreprise :       "]
["Description sommaire du travail demandé :"]
[]
[]
["Données fournies au candidat"]
["X","Le dossier technique du bien sur supports papiers ou supports numériques",null,null,null,null,null,null,null,null,null,null,null,null,null,null,null,null,null,null,null,null,null,"X","L’équipement informatique"]
["X","Le bien et les conditions de son environnement",null,null,null,null,null,null,null,null,null,null,null,null,null,null,null,null,null,null,null,null,null,"X","Les logiciels"]
["X","Les normes",null,null,null,null,null,null,null,null,null,null,null,null,null,null,null,null,null,null,null,null,null,"X","Les outils descripteurs (grafcet, chronogramme…)"]
["X","Toutes documentations techniques",null,null,null,null,null,null,null,null,null,null,null,null,null,null,null,null,null,null,null,null,null,"X","Tous documents nouveaux nécessaires à la compréhension de l’information : Nouvelle notice technique, compte-rendu d’intervention, documents de modification."]
["X","Le document unique d’évaluation des risques",null,null,null,null,null,null,null,null,null,null,null,null,null,null,null,null,null,null,null,null,null,"X","Les moyens de communication"]
["X","Toutes informations en provenance de l’utilisateur",null,null,null,null,null,null,null,null,null,null,null,null,null,null,null,null,null,null,null,null,null,"X","La demande d’intervention ou le bon de travail."]
["X","Les contraintes dans l’environnement",null,null,null,null,null,null,null,null,null,null,null,null,null,null,null,null,null,null,null,null,null,"X","Les consignes d’exploitation"]
["X","Les délais d’interventions",null,null,null,null,null,null,null,null,null,null,null,null,null,null,null,null,null,null,null,null,null,"X","Le bon de travail"]
["X","Un groupe de travail.",null,null,null,null,null,null,null,null,null,null,null,null,null,null,null,null,null,null,null,null,null,"X","Le carnet de prescription de sécurité électrique"]
["X","La fiche de procédures",null,null,null,null,null,null,null,null,null,null,null,null,null,null,null,null,null,null,null,null,null,"X","Les pièces de rechange, les consommables"]
["X","Le cahier des charges fonctionnel",null,null,null,null,null,null,null,null,null,null,null,null,null,null,null,null,null,null,null,null,null,"X","Les équipements de protection individuels et collectifs"]
["X","Le plan de prévention",null,null,null,null,null,null,null,null,null,null,null,null,null,null,null,null,null,null,null,null,null,"X","Les outillages, matériels de contrôle, de mesure, moyens de manutention."]
["X","Le constat de défaillance.",null,null,null,null,null,null,null,null,null,null,null,null,null,null,null,null,null,null,null,null,null,"X","Les impératifs de production."]
["     ÇRepérer les données fournies",null,null,null,null,null,null,null,null,null,null,null,null,null,null,null,null,null,null,null,null,null,null,null,"ÇRepérer les données fournies"]
["Travail demandé"]
[null,"A1T1",null,"Préparer son intervention et/ou la logistique associée.",null,null,null,null,null,null,null,null,null,null,null,null,null,null,null,null,null,null,null,"X","A3T1",null,"Réaliser des opérations prescrites de contrôle et/ou de surveillance."]
["X","A1T2",null,"Rendre compte de son intervention.",null,null,null,null,null,null,null,null,null,null,null,null,null,null,null,null,null,null,null,"X","A3T2",null,"Réaliser des opérations planifiées."]
["X","A1T3",null,"Proposer des améliorations sur l’environnement de son intervention.",null,null,null,null,null,null,null,null,null,null,null,null,null,null,null,null,null,null,null,"X","A4T1",null,"Réaliser une amélioration validée."]
["X","A2T1",null,"Réparer un bien par remplacement de composants."]
["X","A2T2",null,"Réparer un bien par adaptation d’une pièce mécanique."]
["Consulter le référentiel des activités professionnelles pour obtenir le détail des tâches."]
["Ç Repérer les tâches demandées (ce sont celles qui correspondent à l’unité dans le référentiel de certification, à l’exclusion de toute autre)"]
["Appréciation globale et proposition de note : "]
[]
["Noms et signatures des évaluateurs :\n\n\n",null,null,null,null,null,null,null,null,null,null,null,null,null,null,null,null,null,null,null,null,null,null,null,null,null,null,null,null,null,null,null,null,null,null,"Note proposée :          ",null,null,null,null,null,null,null,"/20"]
[null,null,null,null,null,null,null,null,null,null,null,null,null,null,null,null,null,null,null,null,null,null,null,null,null,null,null,null,null,null,null,null,null,null,null,"Note affectée de son coefficient :",null,null,null,null,{"$f":"IF(AO38=\"\",\"\",AO38*4)","v":""},null,null,"/80"]

{"sheet":"EP1_D","index":11,"n_rows":39,"n_cols":49,"rows_kept":39,"cut":false,"hidden":true,"merged":[[35,0,35,45],[37,35,37,39],[37,40,37,42],[37,43,37,45],[33,0,33,45],[36,0,36,45],[37,0,38,34],[38,35,38,39],[38,40,38,42],[38,43,38,45],[32,1,32,2],[32,3,32,22],[32,24,32,25],[32,26,32,45],[29,1,29,2],[29,3,29,22],[29,24,29,25],[29,26,29,45],[30,1,30,2],[30,3,30,22],[30,24,30,25],[30,26,30,45],[28,1,28,2],[28,3,28,22],[28,24,28,25],[28,26,28,45],[31,1,31,2],[31,3,31,22],[31,24,31,25],[31,26,31,45],[24,1,24,22],[24,24,24,45],[25,1,25,22],[25,24,25,45],[27,0,27,45],[23,1,23,22],[23,24,23,45],[18,1,18,22],[18,24,18,45],[19,1,19,22],[19,24,19,45],[20,1,20,22],[20,24,20,45],[0,0,0,45],[1,0,1,45],[2,0,2,22],[2,23,2,29],[2,30,2,45],[5,47,6,48],[6,0,6,45],[7,0,7,45],[7,47,8,47],[7,48,8,48],[8,0,8,45],[3,0,5,22],[3,23,3,29],[3,30,4,45],[4,23,4,29],[5,23,5,29],[5,30,5,45],[9,0,9,45],[10,0,10,45],[12,0,12,45],[13,1,13,22],[13,24,13,45],[14,1,14,22],[14,24,14,45],[21,1,21,22],[21,24,21,45],[22,1,22,22],[22,24,22,45],[15,1,15,22],[15,24,15,45],[16,1,16,22],[16,24,16,45],[17,1,17,22],[17,24,17,45]]}
["Brevet d’Etudes Professionnelles «Maintenance des produits et équipements industriels » "]
["EP1 : Intervention sur un bien"]
["Établissement : (tampon)",null,null,null,null,null,null,null,null,null,null,null,null,null,null,null,null,null,null,null,null,null,null,"Session : "]
[null,null,null,null,null,null,null,null,null,null,null,null,null,null,null,null,null,null,null,null,null,null,null,"Nom du candidat:"]
[null,null,null,null,null,null,null,null,null,null,null,null,null,null,null,null,null,null,null,null,null,null,null,"Prénom : "]
[null,null,null,null,null,null,null,null,null,null,null,null,null,null,null,null,null,null,null,null,null,null,null,"Date de l'évaluation:",null,null,null,null,null,null,null,null,null,null,null,null,null,null,null,null,null,null,null,null,null,null,null,"Situation d'évaluation :"]
["Lieu d’évaluation :"]
["      Etablissement",null,null,null,null,null,null,null,null,null,null,null,null,null,null,null,null,null,null,null,null,null,null,null,null,null,null,null,null,null,null,null,null,null,null,null,null,null,null,null,null,null,null,null,null,null,null,"EP1","D"]
["      Entreprise :       "]
["Description sommaire du travail demandé :"]
[]
[]
["Données fournies au candidat"]
["X","Le dossier technique du bien sur supports papiers ou supports numériques",null,null,null,null,null,null,null,null,null,null,null,null,null,null,null,null,null,null,null,null,null,"X","L’équipement informatique"]
["X","Le bien et les conditions de son environnement",null,null,null,null,null,null,null,null,null,null,null,null,null,null,null,null,null,null,null,null,null,"X","Les logiciels"]
["X","Les normes",null,null,null,null,null,null,null,null,null,null,null,null,null,null,null,null,null,null,null,null,null,"X","Les outils descripteurs (grafcet, chronogramme…)"]
["X","Toutes documentations techniques",null,null,null,null,null,null,null,null,null,null,null,null,null,null,null,null,null,null,null,null,null,"X","Tous documents nouveaux nécessaires à la compréhension de l’information : Nouvelle notice technique, compte-rendu d’intervention, documents de modification."]
["X","Le document unique d’évaluation des risques",null,null,null,null,null,null,null,null,null,null,null,null,null,null,null,null,null,null,null,null,null,"X","Les moyens de communication"]
["X","Toutes informations en provenance de l’utilisateur",null,null,null,null,null,null,null,null,null,null,null,null,null,null,null,null,null,null,null,null,null,"X","La demande d’intervention ou le bon de travail."]
["X","Les contraintes dans l’environnement",null,null,null,null,null,null,null,null,null,null,null,null,null,null,null,null,null,null,null,null,null,"X","Les consignes d’exploitation"]
["X","Les délais d’interventions",null,null,null,null,null,null,null,null,null,null,null,null,null,null,null,null,null,null,null,null,null,"X","Le bon de travail"]
["X","Un groupe de travail.",null,null,null,null,null,null,null,null,null,null,null,null,null,null,null,null,null,null,null,null,null,"X","Le carnet de prescription de sécurité électrique"]
["X","La fiche de procédures",null,null,null,null,null,null,null,null,null,null,null,null,null,null,null,null,null,null,null,null,null,"X","Les pièces de rechange, les consommables"]
["X","Le cahier des charges fonctionnel",null,null,null,null,null,null,null,null,null,null,null,null,null,null,null,null,null,null,null,null,null,"X","Les équipements de protection individuels et collectifs"]
["X","Le plan de prévention",null,null,null,null,null,null,null,null,null,null,null,null,null,null,null,null,null,null,null,null,null,"X","Les outillages, matériels de contrôle, de mesure, moyens de manutention."]
["X","Le constat de défaillance.",null,null,null,null,null,null,null,null,null,null,null,null,null,null,null,null,null,null,null,null,null,"X","Les impératifs de production."]
["     ÇRepérer les données fournies",null,null,null,null,null,null,null,null,null,null,null,null,null,null,null,null,null,null,null,null,null,null,null,"ÇRepérer les données fournies"]
["Travail demandé"]
[null,"A1T1",null,"Préparer son intervention et/ou la logistique associée.",null,null,null,null,null,null,null,null,null,null,null,null,null,null,null,null,null,null,null,"X","A3T1",null,"Réaliser des opérations prescrites de contrôle et/ou de surveillance."]
["X","A1T2",null,"Rendre compte de son intervention.",null,null,null,null,null,null,null,null,null,null,null,null,null,null,null,null,null,null,null,"X","A3T2",null,"Réaliser des opérations planifiées."]
["X","A1T3",null,"Proposer des améliorations sur l’environnement de son intervention.",null,null,null,null,null,null,null,null,null,null,null,null,null,null,null,null,null,null,null,"X","A4T1",null,"Réaliser une amélioration validée."]
["X","A2T1",null,"Réparer un bien par remplacement de composants."]
["X","A2T2",null,"Réparer un bien par adaptation d’une pièce mécanique."]
["Consulter le référentiel des activités professionnelles pour obtenir le détail des tâches."]
["Ç Repérer les tâches demandées (ce sont celles qui correspondent à l’unité dans le référentiel de certification, à l’exclusion de toute autre)"]
["Appréciation globale et proposition de note : "]
[]
["Noms et signatures des évaluateurs :\n\n\n",null,null,null,null,null,null,null,null,null,null,null,null,null,null,null,null,null,null,null,null,null,null,null,null,null,null,null,null,null,null,null,null,null,null,"Note proposée :          ",null,null,null,null,null,null,null,"/20"]
[null,null,null,null,null,null,null,null,null,null,null,null,null,null,null,null,null,null,null,null,null,null,null,null,null,null,null,null,null,null,null,null,null,null,null,"Note affectée de son coefficient :",null,null,null,null,{"$f":"IF(AO38=\"\",\"\",AO38*4)","v":""},null,null,"/80"]

{"sheet":"EP1_E","index":12,"n_rows":39,"n_cols":49,"rows_kept":39,"cut":false,"hidden":true,"merged":[[35,0,35,45],[37,35,37,39],[37,40,37,42],[37,43,37,45],[33,0,33,45],[36,0,36,45],[37,0,38,34],[38,35,38,39],[38,40,38,42],[38,43,38,45],[32,1,32,2],[32,3,32,22],[32,24,32,25],[32,26,32,45],[29,1,29,2],[29,3,29,22],[29,24,29,25],[29,26,29,45],[30,1,30,2],[30,3,30,22],[30,24,30,25],[30,26,30,45],[28,1,28,2],[28,3,28,22],[28,24,28,25],[28,26,28,45],[31,1,31,2],[31,3,31,22],[31,24,31,25],[31,26,31,45],[24,1,24,22],[24,24,24,45],[25,1,25,22],[25,24,25,45],[27,0,27,45],[23,1,23,22],[23,24,23,45],[18,1,18,22],[18,24,18,45],[19,1,19,22],[19,24,19,45],[20,1,20,22],[20,24,20,45],[0,0,0,45],[1,0,1,45],[2,0,2,22],[2,23,2,29],[2,30,2,45],[5,47,6,48],[6,0,6,45],[7,0,7,45],[7,47,8,47],[7,48,8,48],[8,0,8,45],[3,0,5,22],[3,23,3,29],[3,30,4,45],[4,23,4,29],[5,23,5,29],[5,30,5,45],[9,0,9,45],[10,0,10,45],[12,0,12,45],[13,1,13,22],[13,24,13,45],[14,1,14,22],[14,24,14,45],[21,1,21,22],[21,24,21,45],[22,1,22,22],[22,24,22,45],[15,1,15,22],[15,24,15,45],[16,1,16,22],[16,24,16,45],[17,1,17,22],[17,24,17,45]]}
["Brevet d’Etudes Professionnelles «Maintenance des produits et équipements industriels » "]
["EP1 : Intervention sur un bien"]
["Établissement : (tampon)",null,null,null,null,null,null,null,null,null,null,null,null,null,null,null,null,null,null,null,null,null,null,"Session : "]
[null,null,null,null,null,null,null,null,null,null,null,null,null,null,null,null,null,null,null,null,null,null,null,"Nom du candidat:"]
[null,null,null,null,null,null,null,null,null,null,null,null,null,null,null,null,null,null,null,null,null,null,null,"Prénom : "]
[null,null,null,null,null,null,null,null,null,null,null,null,null,null,null,null,null,null,null,null,null,null,null,"Date de l'évaluation:",null,null,null,null,null,null,null,null,null,null,null,null,null,null,null,null,null,null,null,null,null,null,null,"Situation d'évaluation :"]
["Lieu d’évaluation :"]
["      Etablissement",null,null,null,null,null,null,null,null,null,null,null,null,null,null,null,null,null,null,null,null,null,null,null,null,null,null,null,null,null,null,null,null,null,null,null,null,null,null,null,null,null,null,null,null,null,null,"EP1","E"]
["      Entreprise :       "]
["Description sommaire du travail demandé :"]
[]
[]
["Données fournies au candidat"]
["X","Le dossier technique du bien sur supports papiers ou supports numériques",null,null,null,null,null,null,null,null,null,null,null,null,null,null,null,null,null,null,null,null,null,"X","L’équipement informatique"]
["X","Le bien et les conditions de son environnement",null,null,null,null,null,null,null,null,null,null,null,null,null,null,null,null,null,null,null,null,null,"X","Les logiciels"]
["X","Les normes",null,null,null,null,null,null,null,null,null,null,null,null,null,null,null,null,null,null,null,null,null,"X","Les outils descripteurs (grafcet, chronogramme…)"]
["X","Toutes documentations techniques",null,null,null,null,null,null,null,null,null,null,null,null,null,null,null,null,null,null,null,null,null,"X","Tous documents nouveaux nécessaires à la compréhension de l’information : Nouvelle notice technique, compte-rendu d’intervention, documents de modification."]
["X","Le document unique d’évaluation des risques",null,null,null,null,null,null,null,null,null,null,null,null,null,null,null,null,null,null,null,null,null,"X","Les moyens de communication"]
["X","Toutes informations en provenance de l’utilisateur",null,null,null,null,null,null,null,null,null,null,null,null,null,null,null,null,null,null,null,null,null,"X","La demande d’intervention ou le bon de travail."]
["X","Les contraintes dans l’environnement",null,null,null,null,null,null,null,null,null,null,null,null,null,null,null,null,null,null,null,null,null,"X","Les consignes d’exploitation"]
["X","Les délais d’interventions",null,null,null,null,null,null,null,null,null,null,null,null,null,null,null,null,null,null,null,null,null,"X","Le bon de travail"]
["X","Un groupe de travail.",null,null,null,null,null,null,null,null,null,null,null,null,null,null,null,null,null,null,null,null,null,"X","Le carnet de prescription de sécurité électrique"]
["X","La fiche de procédures",null,null,null,null,null,null,null,null,null,null,null,null,null,null,null,null,null,null,null,null,null,"X","Les pièces de rechange, les consommables"]
["X","Le cahier des charges fonctionnel",null,null,null,null,null,null,null,null,null,null,null,null,null,null,null,null,null,null,null,null,null,"X","Les équipements de protection individuels et collectifs"]
["X","Le plan de prévention",null,null,null,null,null,null,null,null,null,null,null,null,null,null,null,null,null,null,null,null,null,"X","Les outillages, matériels de contrôle, de mesure, moyens de manutention."]
["X","Le constat de défaillance.",null,null,null,null,null,null,null,null,null,null,null,null,null,null,null,null,null,null,null,null,null,"X","Les impératifs de production."]
["     ÇRepérer les données fournies",null,null,null,null,null,null,null,null,null,null,null,null,null,null,null,null,null,null,null,null,null,null,null,"ÇRepérer les données fournies"]
["Travail demandé"]
[null,"A1T1",null,"Préparer son intervention et/ou la logistique associée.",null,null,null,null,null,null,null,null,null,null,null,null,null,null,null,null,null,null,null,"X","A3T1",null,"Réaliser des opérations prescrites de contrôle et/ou de surveillance."]
["X","A1T2",null,"Rendre compte de son intervention.",null,null,null,null,null,null,null,null,null,null,null,null,null,null,null,null,null,null,null,"X","A3T2",null,"Réaliser des opérations planifiées."]
["X","A1T3",null,"Proposer des améliorations sur l’environnement de son intervention.",null,null,null,null,null,null,null,null,null,null,null,null,null,null,null,null,null,null,null,"X","A4T1",null,"Réaliser une amélioration validée."]
["X","A2T1",null,"Réparer un bien par remplacement de composants."]
["X","A2T2",null,"Réparer un bien par adaptation d’une pièce mécanique."]
["Consulter le référentiel des activités professionnelles pour obtenir le détail des tâches."]
["Ç Repérer les tâches demandées (ce sont celles qui correspondent à l’unité dans le référentiel de certification, à l’exclusion de toute autre)"]
["Appréciation globale et proposition de note : "]
[]
["Noms et signatures des évaluateurs :\n\n\n",null,null,null,null,null,null,null,null,null,null,null,null,null,null,null,null,null,null,null,null,null,null,null,null,null,null,null,null,null,null,null,null,null,null,"Note proposée :          ",null,null,null,null,null,null,null,"/20"]
[null,null,null,null,null,null,null,null,null,null,null,null,null,null,null,null,null,null,null,null,null,null,null,null,null,null,null,null,null,null,null,null,null,null,null,"Note affectée de son coefficient :",null,null,null,null,{"$f":"IF(AO38=\"\",\"\",AO38*4)","v":""},null,null,"/80"]

{"sheet":"EP1_F","index":13,"n_rows":39,"n_cols":49,"rows_kept":39,"cut":false,"hidden":true,"merged":[[35,0,35,45],[37,35,37,39],[37,40,37,42],[37,43,37,45],[33,0,33,45],[36,0,36,45],[37,0,38,34],[38,35,38,39],[38,40,38,42],[38,43,38,45],[32,1,32,2],[32,3,32,22],[32,24,32,25],[32,26,32,45],[29,1,29,2],[29,3,29,22],[29,24,29,25],[29,26,29,45],[30,1,30,2],[30,3,30,22],[30,24,30,25],[30,26,30,45],[28,1,28,2],[28,3,28,22],[28,24,28,25],[28,26,28,45],[31,1,31,2],[31,3,31,22],[31,24,31,25],[31,26,31,45],[24,1,24,22],[24,24,24,45],[25,1,25,22],[25,24,25,45],[27,0,27,45],[23,1,23,22],[23,24,23,45],[18,1,18,22],[18,24,18,45],[19,1,19,22],[19,24,19,45],[20,1,20,22],[20,24,20,45],[0,0,0,45],[1,0,1,45],[2,0,2,22],[2,23,2,29],[2,30,2,45],[5,47,6,48],[6,0,6,45],[7,0,7,45],[7,47,8,47],[7,48,8,48],[8,0,8,45],[3,0,5,22],[3,23,3,29],[3,30,4,45],[4,23,4,29],[5,23,5,29],[5,30,5,45],[9,0,9,45],[10,0,10,45],[12,0,12,45],[13,1,13,22],[13,24,13,45],[14,1,14,22],[14,24,14,45],[21,1,21,22],[21,24,21,45],[22,1,22,22],[22,24,22,45],[15,1,15,22],[15,24,15,45],[16,1,16,22],[16,24,16,45],[17,1,17,22],[17,24,17,45]]}
["Brevet d’Etudes Professionnelles «Maintenance des produits et équipements industriels » "]
["EP1 : Intervention sur un bien"]
["Établissement : (tampon)",null,null,null,null,null,null,null,null,null,null,null,null,null,null,null,null,null,null,null,null,null,null,"Session : "]
[null,null,null,null,null,null,null,null,null,null,null,null,null,null,null,null,null,null,null,null,null,null,null,"Nom du candidat:"]
[null,null,null,null,null,null,null,null,null,null,null,null,null,null,null,null,null,null,null,null,null,null,null,"Prénom : "]
[null,null,null,null,null,null,null,null,null,null,null,null,null,null,null,null,null,null,null,null,null,null,null,"Date de l'évaluation:",null,null,null,null,null,null,null,null,null,null,null,null,null,null,null,null,null,null,null,null,null,null,null,"Situation d'évaluation :"]
["Lieu d’évaluation :"]
["      Etablissement",null,null,null,null,null,null,null,null,null,null,null,null,null,null,null,null,null,null,null,null,null,null,null,null,null,null,null,null,null,null,null,null,null,null,null,null,null,null,null,null,null,null,null,null,null,null,"EP1","F"]
["      Entreprise :       "]
["Description sommaire du travail demandé :"]
[]
[]
["Données fournies au candidat"]
["X","Le dossier technique du bien sur supports papiers ou supports numériques",null,null,null,null,null,null,null,null,null,null,null,null,null,null,null,null,null,null,null,null,null,"X","L’équipement informatique"]
["X","Le bien et les conditions de son environnement",null,null,null,null,null,null,null,null,null,null,null,null,null,null,null,null,null,null,null,null,null,"X","Les logiciels"]
["X","Les normes",null,null,null,null,null,null,null,null,null,null,null,null,null,null,null,null,null,null,null,null,null,"X","Les outils descripteurs (grafcet, chronogramme…)"]
["X","Toutes documentations techniques",null,null,null,null,null,null,null,null,null,null,null,null,null,null,null,null,null,null,null,null,null,"X","Tous documents nouveaux nécessaires à la compréhension de l’information : Nouvelle notice technique, compte-rendu d’intervention, documents de modification."]
["X","Le document unique d’évaluation des risques",null,null,null,null,null,null,null,null,null,null,null,null,null,null,null,null,null,null,null,null,null,"X","Les moyens de communication"]
["X","Toutes informations en provenance de l’utilisateur",null,null,null,null,null,null,null,null,null,null,null,null,null,null,null,null,null,null,null,null,null,"X","La demande d’intervention ou le bon de travail."]
["X","Les contraintes dans l’environnement",null,null,null,null,null,null,null,null,null,null,null,null,null,null,null,null,null,null,null,null,null,"X","Les consignes d’exploitation"]
["X","Les délais d’interventions",null,null,null,null,null,null,null,null,null,null,null,null,null,null,null,null,null,null,null,null,null,"X","Le bon de travail"]
["X","Un groupe de travail.",null,null,null,null,null,null,null,null,null,null,null,null,null,null,null,null,null,null,null,null,null,"X","Le carnet de prescription de sécurité électrique"]
["X","La fiche de procédures",null,null,null,null,null,null,null,null,null,null,null,null,null,null,null,null,null,null,null,null,null,"X","Les pièces de rechange, les consommables"]
["X","Le cahier des charges fonctionnel",null,null,null,null,null,null,null,null,null,null,null,null,null,null,null,null,null,null,null,null,null,"X","Les équipements de protection individuels et collectifs"]
["X","Le plan de prévention",null,null,null,null,null,null,null,null,null,null,null,null,null,null,null,null,null,null,null,null,null,"X","Les outillages, matériels de contrôle, de mesure, moyens de manutention."]
["X","Le constat de défaillance.",null,null,null,null,null,null,null,null,null,null,null,null,null,null,null,null,null,null,null,null,null,"X","Les impératifs de production."]
["     ÇRepérer les données fournies",null,null,null,null,null,null,null,null,null,null,null,null,null,null,null,null,null,null,null,null,null,null,null,"ÇRepérer les données fournies"]
["Travail demandé"]
[null,"A1T1",null,"Préparer son intervention et/ou la logistique associée.",null,null,null,null,null,null,null,null,null,null,null,null,null,null,null,null,null,null,null,"X","A3T1",null,"Réaliser des opérations prescrites de contrôle et/ou de surveillance."]
["X","A1T2",null,"Rendre compte de son intervention.",null,null,null,null,null,null,null,null,null,null,null,null,null,null,null,null,null,null,null,"X","A3T2",null,"Réaliser des opérations planifiées."]
["X","A1T3",null,"Proposer des améliorations sur l’environnement de son intervention.",null,null,null,null,null,null,null,null,null,null,null,null,null,null,null,null,null,null,null,"X","A4T1",null,"Réaliser une amélioration validée."]
["X","A2T1",null,"Réparer un bien par remplacement de composants."]
["X","A2T2",null,"Réparer un bien par adaptation d’une pièce mécanique."]
["Consulter le référentiel des activités professionnelles pour obtenir le détail des tâches."]
["Ç Repérer les tâches demandées (ce sont celles qui correspondent à l’unité dans le référentiel de certification, à l’exclusion de toute autre)"]
["Appréciation globale et proposition de note : "]
[]
["Noms et signatures des évaluateurs :\n\n\n",null,null,null,null,null,null,null,null,null,null,null,null,null,null,null,null,null,null,null,null,null,null,null,null,null,null,null,null,null,null,null,null,null,null,"Note proposée :          ",null,null,null,null,null,null,null,"/20"]
[null,null,null,null,null,null,null,null,null,null,null,null,null,null,null,null,null,null,null,null,null,null,null,null,null,null,null,null,null,null,null,null,null,null,null,"Note affectée de son coefficient :",null,null,null,null,{"$f":"IF(AO38=\"\",\"\",AO38*4)","v":""},null,null,"/80"]

{"sheet":"EP1_G","index":14,"n_rows":39,"n_cols":49,"rows_kept":39,"cut":false,"hidden":true,"merged":[[35,0,35,45],[37,35,37,39],[37,40,37,42],[37,43,37,45],[33,0,33,45],[36,0,36,45],[37,0,38,34],[38,35,38,39],[38,40,38,42],[38,43,38,45],[32,1,32,2],[32,3,32,22],[32,24,32,25],[32,26,32,45],[29,1,29,2],[29,3,29,22],[29,24,29,25],[29,26,29,45],[30,1,30,2],[30,3,30,22],[30,24,30,25],[30,26,30,45],[28,1,28,2],[28,3,28,22],[28,24,28,25],[28,26,28,45],[31,1,31,2],[31,3,31,22],[31,24,31,25],[31,26,31,45],[24,1,24,22],[24,24,24,45],[25,1,25,22],[25,24,25,45],[27,0,27,45],[23,1,23,22],[23,24,23,45],[18,1,18,22],[18,24,18,45],[19,1,19,22],[19,24,19,45],[20,1,20,22],[20,24,20,45],[0,0,0,45],[1,0,1,45],[2,0,2,22],[2,23,2,29],[2,30,2,45],[5,47,6,48],[6,0,6,45],[7,0,7,45],[7,47,8,47],[7,48,8,48],[8,0,8,45],[3,0,5,22],[3,23,3,29],[3,30,4,45],[4,23,4,29],[5,23,5,29],[5,30,5,45],[9,0,9,45],[10,0,10,45],[12,0,12,45],[13,1,13,22],[13,24,13,45],[14,1,14,22],[14,24,14,45],[21,1,21,22],[21,24,21,45],[22,1,22,22],[22,24,22,45],[15,1,15,22],[15,24,15,45],[16,1,16,22],[16,24,16,45],[17,1,17,22],[17,24,17,45]]}
["Brevet d’Etudes Professionnelles «Maintenance des produits et équipements industriels » "]
["EP1 : Intervention sur un bien"]
["Établissement : (tampon)",null,null,null,null,null,null,null,null,null,null,null,null,null,null,null,null,null,null,null,null,null,null,"Session : "]
[null,null,null,null,null,null,null,null,null,null,null,null,null,null,null,null,null,null,null,null,null,null,null,"Nom du candidat:"]
[null,null,null,null,null,null,null,null,null,null,null,null,null,null,null,null,null,null,null,null,null,null,null,"Prénom : "]
[null,null,null,null,null,null,null,null,null,null,null,null,null,null,null,null,null,null,null,null,null,null,null,"Date de l'évaluation:",null,null,null,null,null,null,null,null,null,null,null,null,null,null,null,null,null,null,null,null,null,null,null,"Situation d'évaluation :"]
["Lieu d’évaluation :"]
["      Etablissement",null,null,null,null,null,null,null,null,null,null,null,null,null,null,null,null,null,null,null,null,null,null,null,null,null,null,null,null,null,null,null,null,null,null,null,null,null,null,null,null,null,null,null,null,null,null,"EP1","G"]
["      Entreprise :       "]
["Description sommaire du travail demandé :"]
[]
[]
["Données fournies au candidat"]
["X","Le dossier technique du bien sur supports papiers ou supports numériques",null,null,null,null,null,null,null,null,null,null,null,null,null,null,null,null,null,null,null,null,null,"X","L’équipement informatique"]
["X","Le bien et les conditions de son environnement",null,null,null,null,null,null,null,null,null,null,null,null,null,null,null,null,null,null,null,null,null,"X","Les logiciels"]
["X","Les normes",null,null,null,null,null,null,null,null,null,null,null,null,null,null,null,null,null,null,null,null,null,"X","Les outils descripteurs (grafcet, chronogramme…)"]
["X","Toutes documentations techniques",null,null,null,null,null,null,null,null,null,null,null,null,null,null,null,null,null,null,null,null,null,"X","Tous documents nouveaux nécessaires à la compréhension de l’information : Nouvelle notice technique, compte-rendu d’intervention, documents de modification."]
["X","Le document unique d’évaluation des risques",null,null,null,null,null,null,null,null,null,null,null,null,null,null,null,null,null,null,null,null,null,"X","Les moyens de communication"]
["X","Toutes informations en provenance de l’utilisateur",null,null,null,null,null,null,null,null,null,null,null,null,null,null,null,null,null,null,null,null,null,"X","La demande d’intervention ou le bon de travail."]
["X","Les contraintes dans l’environnement",null,null,null,null,null,null,null,null,null,null,null,null,null,null,null,null,null,null,null,null,null,"X","Les consignes d’exploitation"]
["X","Les délais d’interventions",null,null,null,null,null,null,null,null,null,null,null,null,null,null,null,null,null,null,null,null,null,"X","Le bon de travail"]
["X","Un groupe de travail.",null,null,null,null,null,null,null,null,null,null,null,null,null,null,null,null,null,null,null,null,null,"X","Le carnet de prescription de sécurité électrique"]
["X","La fiche de procédures",null,null,null,null,null,null,null,null,null,null,null,null,null,null,null,null,null,null,null,null,null,"X","Les pièces de rechange, les consommables"]
["X","Le cahier des charges fonctionnel",null,null,null,null,null,null,null,null,null,null,null,null,null,null,null,null,null,null,null,null,null,"X","Les équipements de protection individuels et collectifs"]
["X","Le plan de prévention",null,null,null,null,null,null,null,null,null,null,null,null,null,null,null,null,null,null,null,null,null,"X","Les outillages, matériels de contrôle, de mesure, moyens de manutention."]
["X","Le constat de défaillance.",null,null,null,null,null,null,null,null,null,null,null,null,null,null,null,null,null,null,null,null,null,"X","Les impératifs de production."]
["     ÇRepérer les données fournies",null,null,null,null,null,null,null,null,null,null,null,null,null,null,null,null,null,null,null,null,null,null,null,"ÇRepérer les données fournies"]
["Travail demandé"]
[null,"A1T1",null,"Préparer son intervention et/ou la logistique associée.",null,null,null,null,null,null,null,null,null,null,null,null,null,null,null,null,null,null,null,"X","A3T1",null,"Réaliser des opérations prescrites de contrôle et/ou de surveillance."]
["X","A1T2",null,"Rendre compte de son intervention.",null,null,null,null,null,null,null,null,null,null,null,null,null,null,null,null,null,null,null,"X","A3T2",null,"Réaliser des opérations planifiées."]
["X","A1T3",null,"Proposer des améliorations sur l’environnement de son intervention.",null,null,null,null,null,null,null,null,null,null,null,null,null,null,null,null,null,null,null,"X","A4T1",null,"Réaliser une amélioration validée."]
["X","A2T1",null,"Réparer un bien par remplacement de composants."]
["X","A2T2",null,"Réparer un bien par adaptation d’une pièce mécanique."]
["Consulter le référentiel des activités professionnelles pour obtenir le détail des tâches."]
["Ç Repérer les tâches demandées (ce sont celles qui correspondent à l’unité dans le référentiel de certification, à l’exclusion de toute autre)"]
["Appréciation globale et proposition de note : "]
[]
["Noms et signatures des évaluateurs :\n\n\n",null,null,null,null,null,null,null,null,null,null,null,null,null,null,null,null,null,null,null,null,null,null,null,null,null,null,null,null,null,null,null,null,null,null,"Note proposée :          ",null,null,null,null,null,null,null,"/20"]
[null,null,null,null,null,null,null,null,null,null,null,null,null,null,null,null,null,null,null,null,null,null,null,null,null,null,null,null,null,null,null,null,null,null,null,"Note affectée de son coefficient :",null,null,null,null,{"$f":"IF(AO38=\"\",\"\",AO38*4)","v":""},null,null,"/80"]

{"sheet":"EP1_H","index":15,"n_rows":39,"n_cols":49,"rows_kept":39,"cut":false,"hidden":true,"merged":[[35,0,35,45],[37,35,37,39],[37,40,37,42],[37,43,37,45],[33,0,33,45],[36,0,36,45],[37,0,38,34],[38,35,38,39],[38,40,38,42],[38,43,38,45],[32,1,32,2],[32,3,32,22],[32,24,32,25],[32,26,32,45],[29,1,29,2],[29,3,29,22],[29,24,29,25],[29,26,29,45],[30,1,30,2],[30,3,30,22],[30,24,30,25],[30,26,30,45],[28,1,28,2],[28,3,28,22],[28,24,28,25],[28,26,28,45],[31,1,31,2],[31,3,31,22],[31,24,31,25],[31,26,31,45],[24,1,24,22],[24,24,24,45],[25,1,25,22],[25,24,25,45],[27,0,27,45],[23,1,23,22],[23,24,23,45],[18,1,18,22],[18,24,18,45],[19,1,19,22],[19,24,19,45],[20,1,20,22],[20,24,20,45],[0,0,0,45],[1,0,1,45],[2,0,2,22],[2,23,2,29],[2,30,2,45],[5,47,6,48],[6,0,6,45],[7,0,7,45],[7,47,8,47],[7,48,8,48],[8,0,8,45],[3,0,5,22],[3,23,3,29],[3,30,4,45],[4,23,4,29],[5,23,5,29],[5,30,5,45],[9,0,9,45],[10,0,10,45],[12,0,12,45],[13,1,13,22],[13,24,13,45],[14,1,14,22],[14,24,14,45],[21,1,21,22],[21,24,21,45],[22,1,22,22],[22,24,22,45],[15,1,15,22],[15,24,15,45],[16,1,16,22],[16,24,16,45],[17,1,17,22],[17,24,17,45]]}
["Brevet d’Etudes Professionnelles «Maintenance des produits et équipements industriels » "]
["EP1 : Intervention sur un bien"]
["Établissement : (tampon)",null,null,null,null,null,null,null,null,null,null,null,null,null,null,null,null,null,null,null,null,null,null,"Session : "]
[null,null,null,null,null,null,null,null,null,null,null,null,null,null,null,null,null,null,null,null,null,null,null,"Nom du candidat:"]
[null,null,null,null,null,null,null,null,null,null,null,null,null,null,null,null,null,null,null,null,null,null,null,"Prénom : "]
[null,null,null,null,null,null,null,null,null,null,null,null,null,null,null,null,null,null,null,null,null,null,null,"Date de l'évaluation:",null,null,null,null,null,null,null,null,null,null,null,null,null,null,null,null,null,null,null,null,null,null,null,"Situation d'évaluation :"]
["Lieu d’évaluation :"]
["      Etablissement",null,null,null,null,null,null,null,null,null,null,null,null,null,null,null,null,null,null,null,null,null,null,null,null,null,null,null,null,null,null,null,null,null,null,null,null,null,null,null,null,null,null,null,null,null,null,"EP1","H"]
["      Entreprise :       "]
["Description sommaire du travail demandé :"]
[]
[]
["Données fournies au candidat"]
["X","Le dossier technique du bien sur supports papiers ou supports numériques",null,null,null,null,null,null,null,null,null,null,null,null,null,null,null,null,null,null,null,null,null,"X","L’équipement informatique"]
["X","Le bien et les conditions de son environnement",null,null,null,null,null,null,null,null,null,null,null,null,null,null,null,null,null,null,null,null,null,"X","Les logiciels"]
["X","Les normes",null,null,null,null,null,null,null,null,null,null,null,null,null,null,null,null,null,null,null,null,null,"X","Les outils descripteurs (grafcet, chronogramme…)"]
["X","Toutes documentations techniques",null,null,null,null,null,null,null,null,null,null,null,null,null,null,null,null,null,null,null,null,null,"X","Tous documents nouveaux nécessaires à la compréhension de l’information : Nouvelle notice technique, compte-rendu d’intervention, documents de modification."]
["X","Le document unique d’évaluation des risques",null,null,null,null,null,null,null,null,null,null,null,null,null,null,null,null,null,null,null,null,null,"X","Les moyens de communication"]
["X","Toutes informations en provenance de l’utilisateur",null,null,null,null,null,null,null,null,null,null,null,null,null,null,null,null,null,null,null,null,null,"X","La demande d’intervention ou le bon de travail."]
["X","Les contraintes dans l’environnement",null,null,null,null,null,null,null,null,null,null,null,null,null,null,null,null,null,null,null,null,null,"X","Les consignes d’exploitation"]
["X","Les délais d’interventions",null,null,null,null,null,null,null,null,null,null,null,null,null,null,null,null,null,null,null,null,null,"X","Le bon de travail"]
["X","Un groupe de travail.",null,null,null,null,null,null,null,null,null,null,null,null,null,null,null,null,null,null,null,null,null,"X","Le carnet de prescription de sécurité électrique"]
["X","La fiche de procédures",null,null,null,null,null,null,null,null,null,null,null,null,null,null,null,null,null,null,null,null,null,"X","Les pièces de rechange, les consommables"]
["X","Le cahier des charges fonctionnel",null,null,null,null,null,null,null,null,null,null,null,null,null,null,null,null,null,null,null,null,null,"X","Les équipements de protection individuels et collectifs"]
["X","Le plan de prévention",null,null,null,null,null,null,null,null,null,null,null,null,null,null,null,null,null,null,null,null,null,"X","Les outillages, matériels de contrôle, de mesure, moyens de manutention."]
["X","Le constat de défaillance.",null,null,null,null,null,null,null,null,null,null,null,null,null,null,null,null,null,null,null,null,null,"X","Les impératifs de production."]
["     ÇRepérer les données fournies",null,null,null,null,null,null,null,null,null,null,null,null,null,null,null,null,null,null,null,null,null,null,null,"ÇRepérer les données fournies"]
["Travail demandé"]
[null,"A1T1",null,"Préparer son intervention et/ou la logistique associée.",null,null,null,null,null,null,null,null,null,null,null,null,null,null,null,null,null,null,null,"X","A3T1",null,"Réaliser des opérations prescrites de contrôle et/ou de surveillance."]
["X","A1T2",null,"Rendre compte de son intervention.",null,null,null,null,null,null,null,null,null,null,null,null,null,null,null,null,null,null,null,"X","A3T2",null,"Réaliser des opérations planifiées."]
["X","A1T3",null,"Proposer des améliorations sur l’environnement de son intervention.",null,null,null,null,null,null,null,null,null,null,null,null,null,null,null,null,null,null,null,"X","A4T1",null,"Réaliser une amélioration validée."]
["X","A2T1",null,"Réparer un bien par remplacement de composants."]
["X","A2T2",null,"Réparer un bien par adaptation d’une pièce mécanique."]
["Consulter le référentiel des activités professionnelles pour obtenir le détail des tâches."]
["Ç Repérer les tâches demandées (ce sont celles qui correspondent à l’unité dans le référentiel de certification, à l’exclusion de toute autre)"]
["Appréciation globale et proposition de note : "]
[]
["Noms et signatures des évaluateurs :\n\n\n",null,null,null,null,null,null,null,null,null,null,null,null,null,null,null,null,null,null,null,null,null,null,null,null,null,null,null,null,null,null,null,null,null,null,"Note proposée :          ",null,null,null,null,null,null,null,"/20"]
[null,null,null,null,null,null,null,null,null,null,null,null,null,null,null,null,null,null,null,null,null,null,null,null,null,null,null,null,null,null,null,null,null,null,null,"Note affectée de son coefficient :",null,null,null,null,{"$f":"IF(AO38=\"\",\"\",AO38*4)","v":""},null,null,"/80"]

{"sheet":"EP2.1_A","index":16,"n_rows":39,"n_cols":49,"rows_kept":39,"cut":false,"hidden":true,"merged":[[5,47,6,48],[7,47,8,47],[7,48,8,48],[5,30,5,45],[6,0,6,45],[7,0,7,45],[8,0,8,45],[3,0,5,22],[3,23,3,29],[3,30,4,45],[4,23,4,29],[5,23,5,29],[9,0,9,45],[10,0,10,45],[16,1,16,22],[16,24,16,45],[17,1,17,22],[17,24,17,45],[18,1,18,22],[18,24,18,45],[12,0,12,45],[13,1,13,22],[13,24,13,45],[14,1,14,22],[14,24,14,45],[15,1,15,22],[15,24,15,45],[0,0,0,45],[1,0,1,45],[2,0,2,22],[2,23,2,29],[2,30,2,45],[22,1,22,22],[22,24,22,45],[23,1,23,22],[23,24,23,45],[24,1,24,22],[24,24,24,45],[19,1,19,22],[19,24,19,45],[20,1,20,22],[20,24,20,45],[21,1,21,22],[21,24,21,45],[31,1,31,2],[31,3,31,22],[31,24,31,25],[31,26,31,45],[32,1,32,2],[32,3,32,22],[32,24,32,25],[32,26,32,45],[29,1,29,2],[29,3,29,22],[29,24,29,25],[29,26,29,45],[30,1,30,2],[30,3,30,22],[30,24,30,25],[30,26,30,45],[25,1,25,22],[25,24,25,45],[27,0,27,45],[28,1,28,2],[28,3,28,22],[28,24,28,25],[28,26,28,45],[35,0,35,45],[36,0,36,45],[37,0,38,34],[33,0,33,45],[37,35,37,39],[37,40,37,42],[37,43,37,45],[38,35,38,39],[38,40,38,42],[38,43,38,45]]}
["Brevet d’Etudes Professionnelles «Maintenance des produits et équipements industriels » "]
["EP2.1 : Préparation de son intervention"]
["Établissement : (tampon)",null,null,null,null,null,null,null,null,null,null,null,null,null,null,null,null,null,null,null,null,null,null,"Session : "]
[null,null,null,null,null,null,null,null,null,null,null,null,null,null,null,null,null,null,null,null,null,null,null,"Nom du candidat:"]
[null,null,null,null,null,null,null,null,null,null,null,null,null,null,null,null,null,null,null,null,null,null,null,"Prénom : "]
[null,null,null,null,null,null,null,null,null,null,null,null,null,null,null,null,null,null,null,null,null,null,null,"Date de l'évaluation:",null,null,null,null,null,null,null,null,null,null,null,null,null,null,null,null,null,null,null,null,null,null,null,"Situation d'évaluation :"]
["Lieu d’évaluation :"]
["      Etablissement",null,null,null,null,null,null,null,null,null,null,null,null,null,null,null,null,null,null,null,null,null,null,null,null,null,null,null,null,null,null,null,null,null,null,null,null,null,null,null,null,null,null,null,null,null,null,"EP2.1","A"]
["      Entreprise :       "]
["Description sommaire du travail demandé :"]
[]
[]
["Données fournies au candidat"]
["X","Le dossier technique du bien sur supports papiers ou supports numériques",null,null,null,null,null,null,null,null,null,null,null,null,null,null,null,null,null,null,null,null,null,"X","L’équipement informatique"]
["X","Le bien et les conditions de son environnement",null,null,null,null,null,null,null,null,null,null,null,null,null,null,null,null,null,null,null,null,null,"X","Les logiciels"]
["X","Les normes",null,null,null,null,null,null,null,null,null,null,null,null,null,null,null,null,null,null,null,null,null,"X","Les outils descripteurs (grafcet, chronogramme…)"]
["X","Toutes documentations techniques",null,null,null,null,null,null,null,null,null,null,null,null,null,null,null,null,null,null,null,null,null,"X","Tous documents nouveaux nécessaires à la compréhension de l’information : Nouvelle notice technique, compte-rendu d’intervention, documents de modification."]
["X","Le document unique d’évaluation des risques",null,null,null,null,null,null,null,null,null,null,null,null,null,null,null,null,null,null,null,null,null,"X","Les moyens de communication"]
["X","Toutes informations en provenance de l’utilisateur",null,null,null,null,null,null,null,null,null,null,null,null,null,null,null,null,null,null,null,null,null,"X","La demande d’intervention ou le bon de travail."]
["X","Les contraintes dans l’environnement",null,null,null,null,null,null,null,null,null,null,null,null,null,null,null,null,null,null,null,null,null,"X","Les consignes d’exploitation"]
["X","Les délais d’interventions",null,null,null,null,null,null,null,null,null,null,null,null,null,null,null,null,null,null,null,null,null,"X","Le bon de travail"]
["X","Un groupe de travail.",null,null,null,null,null,null,null,null,null,null,null,null,null,null,null,null,null,null,null,null,null,"X","Le carnet de prescription de sécurité électrique"]
["X","La fiche de procédures",null,null,null,null,null,null,null,null,null,null,null,null,null,null,null,null,null,null,null,null,null,"X","Les pièces de rechange, les consommables"]
["X","Le cahier des charges fonctionnel",null,null,null,null,null,null,null,null,null,null,null,null,null,null,null,null,null,null,null,null,null,"X","Les équipements de protection individuels et collectifs"]
["X","Le plan de prévention",null,null,null,null,null,null,null,null,null,null,null,null,null,null,null,null,null,null,null,null,null,"X","Les outillages, matériels de contrôle, de mesure, moyens de manutention."]
["X","Le constat de défaillance.",null,null,null,null,null,null,null,null,null,null,null,null,null,null,null,null,null,null,null,null,null,"X","Les impératifs de production."]
["     ÇRepérer les données fournies",null,null,null,null,null,null,null,null,null,null,null,null,null,null,null,null,null,null,null,null,null,null,null,"ÇRepérer les données fournies"]
["Travail demandé"]
["X","A1T1",null,"Préparer son intervention et/ou la logistique associée.",null,null,null,null,null,null,null,null,null,null,null,null,null,null,null,null,null,null,null,"X","A3T1",null,"Réaliser des opérations prescrites de contrôle et/ou de surveillance."]
[null,"A1T2",null,"Rendre compte de son intervention.",null,null,null,null,null,null,null,null,null,null,null,null,null,null,null,null,null,null,null,"X","A3T2",null,"Réaliser des opérations planifiées."]
["X","A1T3",null,"Proposer des améliorations sur l’environnement de son intervention.",null,null,null,null,null,null,null,null,null,null,null,null,null,null,null,null,null,null,null,"X","A4T1",null,"Réaliser une amélioration validée."]
["X","A2T1",null,"Réparer un bien par remplacement de composants."]
["X","A2T2",null,"Réparer un bien par adaptation d’une pièce mécanique."]
["Consulter le référentiel des activités professionnelles pour obtenir le détail des tâches."]
["Ç Repérer les tâches demandées (ce sont celles qui correspondent à l’unité dans le référentiel de certification, à l’exclusion de toute autre)"]
["Appréciation globale et proposition de note : "]
[]
["Noms et signatures des évaluateurs :\n\n\n",null,null,null,null,null,null,null,null,null,null,null,null,null,null,null,null,null,null,null,null,null,null,null,null,null,null,null,null,null,null,null,null,null,null,"Note proposée :          ",null,null,null,null,null,null,null,"/20"]
[null,null,null,null,null,null,null,null,null,null,null,null,null,null,null,null,null,null,null,null,null,null,null,null,null,null,null,null,null,null,null,null,null,null,null,"Note affectée de son coefficient :",null,null,null,null,null,null,null,"/60"]

{"sheet":"EP2.1_B","index":17,"n_rows":39,"n_cols":49,"rows_kept":39,"cut":false,"hidden":true,"merged":[[38,35,38,39],[38,40,38,42],[38,43,38,45],[32,1,32,2],[32,3,32,22],[32,24,32,25],[32,26,32,45],[37,35,37,39],[37,40,37,42],[37,43,37,45],[33,0,33,45],[36,0,36,45],[37,0,38,34],[35,0,35,45],[31,1,31,2],[31,3,31,22],[31,24,31,25],[31,26,31,45],[30,1,30,2],[30,3,30,22],[30,24,30,25],[30,26,30,45],[24,1,24,22],[24,24,24,45],[25,1,25,22],[25,24,25,45],[27,0,27,45],[28,1,28,2],[28,3,28,22],[28,24,28,25],[28,26,28,45],[29,1,29,2],[29,3,29,22],[29,24,29,25],[29,26,29,45],[23,1,23,22],[23,24,23,45],[18,1,18,22],[18,24,18,45],[19,1,19,22],[19,24,19,45],[20,1,20,22],[20,24,20,45],[0,0,0,45],[1,0,1,45],[2,0,2,22],[2,23,2,29],[2,30,2,45],[5,47,6,48],[6,0,6,45],[7,0,7,45],[7,47,8,47],[7,48,8,48],[8,0,8,45],[3,0,5,22],[3,23,3,29],[3,30,4,45],[4,23,4,29],[5,23,5,29],[5,30,5,45],[9,0,9,45],[10,0,10,45],[12,0,12,45],[13,1,13,22],[13,24,13,45],[14,1,14,22],[14,24,14,45],[21,1,21,22],[21,24,21,45],[22,1,22,22],[22,24,22,45],[15,1,15,22],[15,24,15,45],[16,1,16,22],[16,24,16,45],[17,1,17,22],[17,24,17,45]]}
["Brevet d’Etudes Professionnelles «Maintenance des produits et équipements industriels » "]
["EP2.1 : Préparation de son intervention"]
["Établissement : (tampon)",null,null,null,null,null,null,null,null,null,null,null,null,null,null,null,null,null,null,null,null,null,null,"Session : "]
[null,null,null,null,null,null,null,null,null,null,null,null,null,null,null,null,null,null,null,null,null,null,null,"Nom du candidat:"]
[null,null,null,null,null,null,null,null,null,null,null,null,null,null,null,null,null,null,null,null,null,null,null,"Prénom : "]
[null,null,null,null,null,null,null,null,null,null,null,null,null,null,null,null,null,null,null,null,null,null,null,"Date de l'évaluation:",null,null,null,null,null,null,null,null,null,null,null,null,null,null,null,null,null,null,null,null,null,null,null,"Situation d'évaluation :"]
["Lieu d’évaluation :"]
["      Etablissement",null,null,null,null,null,null,null,null,null,null,null,null,null,null,null,null,null,null,null,null,null,null,null,null,null,null,null,null,null,null,null,null,null,null,null,null,null,null,null,null,null,null,null,null,null,null,"EP2.1","B"]
["      Entreprise :       "]
["Description sommaire du travail demandé :"]
[]
[]
["Données fournies au candidat"]
["X","Le dossier technique du bien sur supports papiers ou supports numériques",null,null,null,null,null,null,null,null,null,null,null,null,null,null,null,null,null,null,null,null,null,"X","L’équipement informatique"]
["X","Le bien et les conditions de son environnement",null,null,null,null,null,null,null,null,null,null,null,null,null,null,null,null,null,null,null,null,null,"X","Les logiciels"]
["X","Les normes",null,null,null,null,null,null,null,null,null,null,null,null,null,null,null,null,null,null,null,null,null,"X","Les outils descripteurs (grafcet, chronogramme…)"]
["X","Toutes documentations techniques",null,null,null,null,null,null,null,null,null,null,null,null,null,null,null,null,null,null,null,null,null,"X","Tous documents nouveaux nécessaires à la compréhension de l’information : Nouvelle notice technique, compte-rendu d’intervention, documents de modification."]
["X","Le document unique d’évaluation des risques",null,null,null,null,null,null,null,null,null,null,null,null,null,null,null,null,null,null,null,null,null,"X","Les moyens de communication"]
["X","Toutes informations en provenance de l’utilisateur",null,null,null,null,null,null,null,null,null,null,null,null,null,null,null,null,null,null,null,null,null,"X","La demande d’intervention ou le bon de travail."]
["X","Les contraintes dans l’environnement",null,null,null,null,null,null,null,null,null,null,null,null,null,null,null,null,null,null,null,null,null,"X","Les consignes d’exploitation"]
["X","Les délais d’interventions",null,null,null,null,null,null,null,null,null,null,null,null,null,null,null,null,null,null,null,null,null,"X","Le bon de travail"]
["X","Un groupe de travail.",null,null,null,null,null,null,null,null,null,null,null,null,null,null,null,null,null,null,null,null,null,"X","Le carnet de prescription de sécurité électrique"]
["X","La fiche de procédures",null,null,null,null,null,null,null,null,null,null,null,null,null,null,null,null,null,null,null,null,null,"X","Les pièces de rechange, les consommables"]
["X","Le cahier des charges fonctionnel",null,null,null,null,null,null,null,null,null,null,null,null,null,null,null,null,null,null,null,null,null,"X","Les équipements de protection individuels et collectifs"]
["X","Le plan de prévention",null,null,null,null,null,null,null,null,null,null,null,null,null,null,null,null,null,null,null,null,null,"X","Les outillages, matériels de contrôle, de mesure, moyens de manutention."]
["X","Le constat de défaillance.",null,null,null,null,null,null,null,null,null,null,null,null,null,null,null,null,null,null,null,null,null,"X","Les impératifs de production."]
["     ÇRepérer les données fournies",null,null,null,null,null,null,null,null,null,null,null,null,null,null,null,null,null,null,null,null,null,null,null,"ÇRepérer les données fournies"]
["Travail demandé"]
["X","A1T1",null,"Préparer son intervention et/ou la logistique associée.",null,null,null,null,null,null,null,null,null,null,null,null,null,null,null,null,null,null,null,"X","A3T1",null,"Réaliser des opérations prescrites de contrôle et/ou de surveillance."]
[null,"A1T2",null,"Rendre compte de son intervention.",null,null,null,null,null,null,null,null,null,null,null,null,null,null,null,null,null,null,null,"X","A3T2",null,"Réaliser des opérations planifiées."]
["X","A1T3",null,"Proposer des améliorations sur l’environnement de son intervention.",null,null,null,null,null,null,null,null,null,null,null,null,null,null,null,null,null,null,null,"X","A4T1",null,"Réaliser une amélioration validée."]
["X","A2T1",null,"Réparer un bien par remplacement de composants."]
["X","A2T2",null,"Réparer un bien par adaptation d’une pièce mécanique."]
["Consulter le référentiel des activités professionnelles pour obtenir le détail des tâches."]
["Ç Repérer les tâches demandées (ce sont celles qui correspondent à l’unité dans le référentiel de certification, à l’exclusion de toute autre)"]
["Appréciation globale et proposition de note : "]
[]
["Noms et signatures des évaluateurs :\n\n\n",null,null,null,null,null,null,null,null,null,null,null,null,null,null,null,null,null,null,null,null,null,null,null,null,null,null,null,null,null,null,null,null,null,null,"Note proposée :          ",null,null,null,null,null,null,null,"/20"]
[null,null,null,null,null,null,null,null,null,null,null,null,null,null,null,null,null,null,null,null,null,null,null,null,null,null,null,null,null,null,null,null,null,null,null,"Note affectée de son coefficient :",null,null,null,null,null,null,null,"/60"]

{"sheet":"EP2.1_C","index":18,"n_rows":39,"n_cols":49,"rows_kept":39,"cut":false,"hidden":true,"merged":[[38,40,38,42],[38,43,38,45],[31,1,31,2],[31,3,31,22],[31,24,31,25],[31,26,31,45],[32,1,32,2],[32,3,32,22],[32,24,32,25],[32,26,32,45],[33,0,33,45],[36,0,36,45],[37,0,38,34],[35,0,35,45],[37,35,37,39],[38,35,38,39],[30,1,30,2],[30,3,30,22],[30,24,30,25],[30,26,30,45],[37,43,37,45],[37,40,37,42],[24,1,24,22],[24,24,24,45],[25,1,25,22],[25,24,25,45],[27,0,27,45],[28,1,28,2],[28,3,28,22],[28,24,28,25],[28,26,28,45],[29,1,29,2],[29,3,29,22],[29,24,29,25],[29,26,29,45],[16,1,16,22],[16,24,16,45],[17,1,17,22],[17,24,17,45],[23,1,23,22],[23,24,23,45],[18,1,18,22],[18,24,18,45],[19,1,19,22],[19,24,19,45],[20,1,20,22],[20,24,20,45],[21,1,21,22],[21,24,21,45],[22,1,22,22],[22,24,22,45],[13,1,13,22],[13,24,13,45],[14,1,14,22],[14,24,14,45],[15,1,15,22],[15,24,15,45],[0,0,0,45],[1,0,1,45],[2,0,2,22],[2,23,2,29],[2,30,2,45],[9,0,9,45],[10,0,10,45],[12,0,12,45],[5,30,5,45],[5,47,6,48],[6,0,6,45],[7,0,7,45],[7,47,8,47],[7,48,8,48],[8,0,8,45],[3,0,5,22],[3,23,3,29],[3,30,4,45],[4,23,4,29],[5,23,5,29]]}
["Brevet d’Etudes Professionnelles «Maintenance des produits et équipements industriels » "]
["EP2.1 : Préparation de son intervention"]
["Établissement : (tampon)",null,null,null,null,null,null,null,null,null,null,null,null,null,null,null,null,null,null,null,null,null,null,"Session : "]
[null,null,null,null,null,null,null,null,null,null,null,null,null,null,null,null,null,null,null,null,null,null,null,"Nom du candidat:"]
[null,null,null,null,null,null,null,null,null,null,null,null,null,null,null,null,null,null,null,null,null,null,null,"Prénom : "]
[null,null,null,null,null,null,null,null,null,null,null,null,null,null,null,null,null,null,null,null,null,null,null,"Date de l'évaluation:",null,null,null,null,null,null,null,null,null,null,null,null,null,null,null,null,null,null,null,null,null,null,null,"Situation d'évaluation :"]
["Lieu d’évaluation :"]
["      Etablissement",null,null,null,null,null,null,null,null,null,null,null,null,null,null,null,null,null,null,null,null,null,null,null,null,null,null,null,null,null,null,null,null,null,null,null,null,null,null,null,null,null,null,null,null,null,null,"EP2.1","C"]
["      Entreprise :       "]
["Description sommaire du travail demandé :"]
[]
[]
["Données fournies au candidat"]
["X","Le dossier technique du bien sur supports papiers ou supports numériques",null,null,null,null,null,null,null,null,null,null,null,null,null,null,null,null,null,null,null,null,null,"X","L’équipement informatique"]
["X","Le bien et les conditions de son environnement",null,null,null,null,null,null,null,null,null,null,null,null,null,null,null,null,null,null,null,null,null,"X","Les logiciels"]
["X","Les normes",null,null,null,null,null,null,null,null,null,null,null,null,null,null,null,null,null,null,null,null,null,"X","Les outils descripteurs (grafcet, chronogramme…)"]
["X","Toutes documentations techniques",null,null,null,null,null,null,null,null,null,null,null,null,null,null,null,null,null,null,null,null,null,"X","Tous documents nouveaux nécessaires à la compréhension de l’information : Nouvelle notice technique, compte-rendu d’intervention, documents de modification."]
["X","Le document unique d’évaluation des risques",null,null,null,null,null,null,null,null,null,null,null,null,null,null,null,null,null,null,null,null,null,"X","Les moyens de communication"]
["X","Toutes informations en provenance de l’utilisateur",null,null,null,null,null,null,null,null,null,null,null,null,null,null,null,null,null,null,null,null,null,"X","La demande d’intervention ou le bon de travail."]
["X","Les contraintes dans l’environnement",null,null,null,null,null,null,null,null,null,null,null,null,null,null,null,null,null,null,null,null,null,"X","Les consignes d’exploitation"]
["X","Les délais d’interventions",null,null,null,null,null,null,null,null,null,null,null,null,null,null,null,null,null,null,null,null,null,"X","Le bon de travail"]
["X","Un groupe de travail.",null,null,null,null,null,null,null,null,null,null,null,null,null,null,null,null,null,null,null,null,null,"X","Le carnet de prescription de sécurité électrique"]
["X","La fiche de procédures",null,null,null,null,null,null,null,null,null,null,null,null,null,null,null,null,null,null,null,null,null,"X","Les pièces de rechange, les consommables"]
["X","Le cahier des charges fonctionnel",null,null,null,null,null,null,null,null,null,null,null,null,null,null,null,null,null,null,null,null,null,"X","Les équipements de protection individuels et collectifs"]
["X","Le plan de prévention",null,null,null,null,null,null,null,null,null,null,null,null,null,null,null,null,null,null,null,null,null,"X","Les outillages, matériels de contrôle, de mesure, moyens de manutention."]
["X","Le constat de défaillance.",null,null,null,null,null,null,null,null,null,null,null,null,null,null,null,null,null,null,null,null,null,"X","Les impératifs de production."]
["     ÇRepérer les données fournies",null,null,null,null,null,null,null,null,null,null,null,null,null,null,null,null,null,null,null,null,null,null,null,"ÇRepérer les données fournies"]
["Travail demandé"]
["X","A1T1",null,"Préparer son intervention et/ou la logistique associée.",null,null,null,null,null,null,null,null,null,null,null,null,null,null,null,null,null,null,null,"X","A3T1",null,"Réaliser des opérations prescrites de contrôle et/ou de surveillance."]
[null,"A1T2",null,"Rendre compte de son intervention.",null,null,null,null,null,null,null,null,null,null,null,null,null,null,null,null,null,null,null,"X","A3T2",null,"Réaliser des opérations planifiées."]
["X","A1T3",null,"Proposer des améliorations sur l’environnement de son intervention.",null,null,null,null,null,null,null,null,null,null,null,null,null,null,null,null,null,null,null,"X","A4T1",null,"Réaliser une amélioration validée."]
["X","A2T1",null,"Réparer un bien par remplacement de composants."]
["X","A2T2",null,"Réparer un bien par adaptation d’une pièce mécanique."]
["Consulter le référentiel des activités professionnelles pour obtenir le détail des tâches."]
["Ç Repérer les tâches demandées (ce sont celles qui correspondent à l’unité dans le référentiel de certification, à l’exclusion de toute autre)"]
["Appréciation globale et proposition de note : "]
[]
["Noms et signatures des évaluateurs :\n\n\n",null,null,null,null,null,null,null,null,null,null,null,null,null,null,null,null,null,null,null,null,null,null,null,null,null,null,null,null,null,null,null,null,null,null,"Note proposée :          ",null,null,null,null,null,null,null,"/20"]
[null,null,null,null,null,null,null,null,null,null,null,null,null,null,null,null,null,null,null,null,null,null,null,null,null,null,null,null,null,null,null,null,null,null,null,"Note affectée de son coefficient :",null,null,null,null,null,null,null,"/60"]

{"sheet":"EP2.1_D","index":19,"n_rows":39,"n_cols":49,"rows_kept":39,"cut":false,"hidden":true,"merged":[[38,40,38,42],[38,43,38,45],[31,1,31,2],[31,3,31,22],[31,24,31,25],[31,26,31,45],[32,1,32,2],[32,3,32,22],[32,24,32,25],[32,26,32,45],[33,0,33,45],[36,0,36,45],[37,0,38,34],[35,0,35,45],[37,35,37,39],[38,35,38,39],[30,1,30,2],[30,3,30,22],[30,24,30,25],[30,26,30,45],[37,43,37,45],[37,40,37,42],[24,1,24,22],[24,24,24,45],[25,1,25,22],[25,24,25,45],[27,0,27,45],[28,1,28,2],[28,3,28,22],[28,24,28,25],[28,26,28,45],[29,1,29,2],[29,3,29,22],[29,24,29,25],[29,26,29,45],[16,1,16,22],[16,24,16,45],[17,1,17,22],[17,24,17,45],[23,1,23,22],[23,24,23,45],[18,1,18,22],[18,24,18,45],[19,1,19,22],[19,24,19,45],[20,1,20,22],[20,24,20,45],[21,1,21,22],[21,24,21,45],[22,1,22,22],[22,24,22,45],[13,1,13,22],[13,24,13,45],[14,1,14,22],[14,24,14,45],[15,1,15,22],[15,24,15,45],[0,0,0,45],[1,0,1,45],[2,0,2,22],[2,23,2,29],[2,30,2,45],[9,0,9,45],[10,0,10,45],[12,0,12,45],[5,30,5,45],[5,47,6,48],[6,0,6,45],[7,0,7,45],[7,47,8,47],[7,48,8,48],[8,0,8,45],[3,0,5,22],[3,23,3,29],[3,30,4,45],[4,23,4,29],[5,23,5,29]]}
["Brevet d’Etudes Professionnelles «Maintenance des produits et équipements industriels » "]
["EP2.1 : Préparation de son intervention"]
["Établissement : (tampon)",null,null,null,null,null,null,null,null,null,null,null,null,null,null,null,null,null,null,null,null,null,null,"Session : "]
[null,null,null,null,null,null,null,null,null,null,null,null,null,null,null,null,null,null,null,null,null,null,null,"Nom du candidat:"]
[null,null,null,null,null,null,null,null,null,null,null,null,null,null,null,null,null,null,null,null,null,null,null,"Prénom : "]
[null,null,null,null,null,null,null,null,null,null,null,null,null,null,null,null,null,null,null,null,null,null,null,"Date de l'évaluation:",null,null,null,null,null,null,null,null,null,null,null,null,null,null,null,null,null,null,null,null,null,null,null,"Situation d'évaluation :"]
["Lieu d’évaluation :"]
["      Etablissement",null,null,null,null,null,null,null,null,null,null,null,null,null,null,null,null,null,null,null,null,null,null,null,null,null,null,null,null,null,null,null,null,null,null,null,null,null,null,null,null,null,null,null,null,null,null,"EP2.1","D"]
["      Entreprise :       "]
["Description sommaire du travail demandé :"]
[]
[]
["Données fournies au candidat"]
["X","Le dossier technique du bien sur supports papiers ou supports numériques",null,null,null,null,null,null,null,null,null,null,null,null,null,null,null,null,null,null,null,null,null,"X","L’équipement informatique"]
["X","Le bien et les conditions de son environnement",null,null,null,null,null,null,null,null,null,null,null,null,null,null,null,null,null,null,null,null,null,"X","Les logiciels"]
["X","Les normes",null,null,null,null,null,null,null,null,null,null,null,null,null,null,null,null,null,null,null,null,null,"X","Les outils descripteurs (grafcet, chronogramme…)"]
["X","Toutes documentations techniques",null,null,null,null,null,null,null,null,null,null,null,null,null,null,null,null,null,null,null,null,null,"X","Tous documents nouveaux nécessaires à la compréhension de l’information : Nouvelle notice technique, compte-rendu d’intervention, documents de modification."]
["X","Le document unique d’évaluation des risques",null,null,null,null,null,null,null,null,null,null,null,null,null,null,null,null,null,null,null,null,null,"X","Les moyens de communication"]
["X","Toutes informations en provenance de l’utilisateur",null,null,null,null,null,null,null,null,null,null,null,null,null,null,null,null,null,null,null,null,null,"X","La demande d’intervention ou le bon de travail."]
["X","Les contraintes dans l’environnement",null,null,null,null,null,null,null,null,null,null,null,null,null,null,null,null,null,null,null,null,null,"X","Les consignes d’exploitation"]
["X","Les délais d’interventions",null,null,null,null,null,null,null,null,null,null,null,null,null,null,null,null,null,null,null,null,null,"X","Le bon de travail"]
["X","Un groupe de travail.",null,null,null,null,null,null,null,null,null,null,null,null,null,null,null,null,null,null,null,null,null,"X","Le carnet de prescription de sécurité électrique"]
["X","La fiche de procédures",null,null,null,null,null,null,null,null,null,null,null,null,null,null,null,null,null,null,null,null,null,"X","Les pièces de rechange, les consommables"]
["X","Le cahier des charges fonctionnel",null,null,null,null,null,null,null,null,null,null,null,null,null,null,null,null,null,null,null,null,null,"X","Les équipements de protection individuels et collectifs"]
["X","Le plan de prévention",null,null,null,null,null,null,null,null,null,null,null,null,null,null,null,null,null,null,null,null,null,"X","Les outillages, matériels de contrôle, de mesure, moyens de manutention."]
["X","Le constat de défaillance.",null,null,null,null,null,null,null,null,null,null,null,null,null,null,null,null,null,null,null,null,null,"X","Les impératifs de production."]
["     ÇRepérer les données fournies",null,null,null,null,null,null,null,null,null,null,null,null,null,null,null,null,null,null,null,null,null,null,null,"ÇRepérer les données fournies"]
["Travail demandé"]
["X","A1T1",null,"Préparer son intervention et/ou la logistique associée.",null,null,null,null,null,null,null,null,null,null,null,null,null,null,null,null,null,null,null,"X","A3T1",null,"Réaliser des opérations prescrites de contrôle et/ou de surveillance."]
[null,"A1T2",null,"Rendre compte de son intervention.",null,null,null,null,null,null,null,null,null,null,null,null,null,null,null,null,null,null,null,"X","A3T2",null,"Réaliser des opérations planifiées."]
["X","A1T3",null,"Proposer des améliorations sur l’environnement de son intervention.",null,null,null,null,null,null,null,null,null,null,null,null,null,null,null,null,null,null,null,"X","A4T1",null,"Réaliser une amélioration validée."]
["X","A2T1",null,"Réparer un bien par remplacement de composants."]
["X","A2T2",null,"Réparer un bien par adaptation d’une pièce mécanique."]
["Consulter le référentiel des activités professionnelles pour obtenir le détail des tâches."]
["Ç Repérer les tâches demandées (ce sont celles qui correspondent à l’unité dans le référentiel de certification, à l’exclusion de toute autre)"]
["Appréciation globale et proposition de note : "]
[]
["Noms et signatures des évaluateurs :\n\n\n",null,null,null,null,null,null,null,null,null,null,null,null,null,null,null,null,null,null,null,null,null,null,null,null,null,null,null,null,null,null,null,null,null,null,"Note proposée :          ",null,null,null,null,null,null,null,"/20"]
[null,null,null,null,null,null,null,null,null,null,null,null,null,null,null,null,null,null,null,null,null,null,null,null,null,null,null,null,null,null,null,null,null,null,null,"Note affectée de son coefficient :",null,null,null,null,null,null,null,"/60"]

{"sheet":"EP2.1_E","index":20,"n_rows":39,"n_cols":49,"rows_kept":39,"cut":false,"hidden":true,"merged":[[38,40,38,42],[38,43,38,45],[31,1,31,2],[31,3,31,22],[31,24,31,25],[31,26,31,45],[32,1,32,2],[32,3,32,22],[32,24,32,25],[32,26,32,45],[33,0,33,45],[36,0,36,45],[37,0,38,34],[35,0,35,45],[37,35,37,39],[38,35,38,39],[30,1,30,2],[30,3,30,22],[30,24,30,25],[30,26,30,45],[37,43,37,45],[37,40,37,42],[24,1,24,22],[24,24,24,45],[25,1,25,22],[25,24,25,45],[27,0,27,45],[28,1,28,2],[28,3,28,22],[28,24,28,25],[28,26,28,45],[29,1,29,2],[29,3,29,22],[29,24,29,25],[29,26,29,45],[16,1,16,22],[16,24,16,45],[17,1,17,22],[17,24,17,45],[23,1,23,22],[23,24,23,45],[18,1,18,22],[18,24,18,45],[19,1,19,22],[19,24,19,45],[20,1,20,22],[20,24,20,45],[21,1,21,22],[21,24,21,45],[22,1,22,22],[22,24,22,45],[13,1,13,22],[13,24,13,45],[14,1,14,22],[14,24,14,45],[15,1,15,22],[15,24,15,45],[0,0,0,45],[1,0,1,45],[2,0,2,22],[2,23,2,29],[2,30,2,45],[9,0,9,45],[10,0,10,45],[12,0,12,45],[5,30,5,45],[5,47,6,48],[6,0,6,45],[7,0,7,45],[7,47,8,47],[7,48,8,48],[8,0,8,45],[3,0,5,22],[3,23,3,29],[3,30,4,45],[4,23,4,29],[5,23,5,29]]}
["Brevet d’Etudes Professionnelles «Maintenance des produits et équipements industriels » "]
["EP2.1 : Préparation de son intervention"]
["Établissement : (tampon)",null,null,null,null,null,null,null,null,null,null,null,null,null,null,null,null,null,null,null,null,null,null,"Session : "]
[null,null,null,null,null,null,null,null,null,null,null,null,null,null,null,null,null,null,null,null,null,null,null,"Nom du candidat:"]
[null,null,null,null,null,null,null,null,null,null,null,null,null,null,null,null,null,null,null,null,null,null,null,"Prénom : "]
[null,null,null,null,null,null,null,null,null,null,null,null,null,null,null,null,null,null,null,null,null,null,null,"Date de l'évaluation:",null,null,null,null,null,null,null,null,null,null,null,null,null,null,null,null,null,null,null,null,null,null,null,"Situation d'évaluation :"]
["Lieu d’évaluation :"]
["      Etablissement",null,null,null,null,null,null,null,null,null,null,null,null,null,null,null,null,null,null,null,null,null,null,null,null,null,null,null,null,null,null,null,null,null,null,null,null,null,null,null,null,null,null,null,null,null,null,"EP2.1","E"]
["      Entreprise :       "]
["Description sommaire du travail demandé :"]
[]
[]
["Données fournies au candidat"]
["X","Le dossier technique du bien sur supports papiers ou supports numériques",null,null,null,null,null,null,null,null,null,null,null,null,null,null,null,null,null,null,null,null,null,"X","L’équipement informatique"]
["X","Le bien et les conditions de son environnement",null,null,null,null,null,null,null,null,null,null,null,null,null,null,null,null,null,null,null,null,null,"X","Les logiciels"]
["X","Les normes",null,null,null,null,null,null,null,null,null,null,null,null,null,null,null,null,null,null,null,null,null,"X","Les outils descripteurs (grafcet, chronogramme…)"]
["X","Toutes documentations techniques",null,null,null,null,null,null,null,null,null,null,null,null,null,null,null,null,null,null,null,null,null,"X","Tous documents nouveaux nécessaires à la compréhension de l’information : Nouvelle notice technique, compte-rendu d’intervention, documents de modification."]
["X","Le document unique d’évaluation des risques",null,null,null,null,null,null,null,null,null,null,null,null,null,null,null,null,null,null,null,null,null,"X","Les moyens de communication"]
["X","Toutes informations en provenance de l’utilisateur",null,null,null,null,null,null,null,null,null,null,null,null,null,null,null,null,null,null,null,null,null,"X","La demande d’intervention ou le bon de travail."]
["X","Les contraintes dans l’environnement",null,null,null,null,null,null,null,null,null,null,null,null,null,null,null,null,null,null,null,null,null,"X","Les consignes d’exploitation"]
["X","Les délais d’interventions",null,null,null,null,null,null,null,null,null,null,null,null,null,null,null,null,null,null,null,null,null,"X","Le bon de travail"]
["X","Un groupe de travail.",null,null,null,null,null,null,null,null,null,null,null,null,null,null,null,null,null,null,null,null,null,"X","Le carnet de prescription de sécurité électrique"]
["X","La fiche de procédures",null,null,null,null,null,null,null,null,null,null,null,null,null,null,null,null,null,null,null,null,null,"X","Les pièces de rechange, les consommables"]
["X","Le cahier des charges fonctionnel",null,null,null,null,null,null,null,null,null,null,null,null,null,null,null,null,null,null,null,null,null,"X","Les équipements de protection individuels et collectifs"]
["X","Le plan de prévention",null,null,null,null,null,null,null,null,null,null,null,null,null,null,null,null,null,null,null,null,null,"X","Les outillages, matériels de contrôle, de mesure, moyens de manutention."]
["X","Le constat de défaillance.",null,null,null,null,null,null,null,null,null,null,null,null,null,null,null,null,null,null,null,null,null,"X","Les impératifs de production."]
["     ÇRepérer les données fournies",null,null,null,null,null,null,null,null,null,null,null,null,null,null,null,null,null,null,null,null,null,null,null,"ÇRepérer les données fournies"]
["Travail demandé"]
["X","A1T1",null,"Préparer son intervention et/ou la logistique associée.",null,null,null,null,null,null,null,null,null,null,null,null,null,null,null,null,null,null,null,"X","A3T1",null,"Réaliser des opérations prescrites de contrôle et/ou de surveillance."]
[null,"A1T2",null,"Rendre compte de son intervention.",null,null,null,null,null,null,null,null,null,null,null,null,null,null,null,null,null,null,null,"X","A3T2",null,"Réaliser des opérations planifiées."]
["X","A1T3",null,"Proposer des améliorations sur l’environnement de son intervention.",null,null,null,null,null,null,null,null,null,null,null,null,null,null,null,null,null,null,null,"X","A4T1",null,"Réaliser une amélioration validée."]
["X","A2T1",null,"Réparer un bien par remplacement de composants."]
["X","A2T2",null,"Réparer un bien par adaptation d’une pièce mécanique."]
["Consulter le référentiel des activités professionnelles pour obtenir le détail des tâches."]
["Ç Repérer les tâches demandées (ce sont celles qui correspondent à l’unité dans le référentiel de certification, à l’exclusion de toute autre)"]
["Appréciation globale et proposition de note : "]
[]
["Noms et signatures des évaluateurs :\n\n\n",null,null,null,null,null,null,null,null,null,null,null,null,null,null,null,null,null,null,null,null,null,null,null,null,null,null,null,null,null,null,null,null,null,null,"Note proposée :          ",null,null,null,null,null,null,null,"/20"]
[null,null,null,null,null,null,null,null,null,null,null,null,null,null,null,null,null,null,null,null,null,null,null,null,null,null,null,null,null,null,null,null,null,null,null,"Note affectée de son coefficient :",null,null,null,null,null,null,null,"/60"]

{"sheet":"EP2.1_F","index":21,"n_rows":39,"n_cols":49,"rows_kept":39,"cut":false,"hidden":true,"merged":[[38,40,38,42],[38,43,38,45],[31,1,31,2],[31,3,31,22],[31,24,31,25],[31,26,31,45],[32,1,32,2],[32,3,32,22],[32,24,32,25],[32,26,32,45],[33,0,33,45],[36,0,36,45],[37,0,38,34],[35,0,35,45],[37,35,37,39],[38,35,38,39],[30,1,30,2],[30,3,30,22],[30,24,30,25],[30,26,30,45],[37,43,37,45],[37,40,37,42],[24,1,24,22],[24,24,24,45],[25,1,25,22],[25,24,25,45],[27,0,27,45],[28,1,28,2],[28,3,28,22],[28,24,28,25],[28,26,28,45],[29,1,29,2],[29,3,29,22],[29,24,29,25],[29,26,29,45],[16,1,16,22],[16,24,16,45],[17,1,17,22],[17,24,17,45],[23,1,23,22],[23,24,23,45],[18,1,18,22],[18,24,18,45],[19,1,19,22],[19,24,19,45],[20,1,20,22],[20,24,20,45],[21,1,21,22],[21,24,21,45],[22,1,22,22],[22,24,22,45],[13,1,13,22],[13,24,13,45],[14,1,14,22],[14,24,14,45],[15,1,15,22],[15,24,15,45],[0,0,0,45],[1,0,1,45],[2,0,2,22],[2,23,2,29],[2,30,2,45],[9,0,9,45],[10,0,10,45],[12,0,12,45],[5,30,5,45],[5,47,6,48],[6,0,6,45],[7,0,7,45],[7,47,8,47],[7,48,8,48],[8,0,8,45],[3,0,5,22],[3,23,3,29],[3,30,4,45],[4,23,4,29],[5,23,5,29]]}
["Brevet d’Etudes Professionnelles «Maintenance des produits et équipements industriels » "]
["EP2.1 : Préparation de son intervention"]
["Établissement : (tampon)",null,null,null,null,null,null,null,null,null,null,null,null,null,null,null,null,null,null,null,null,null,null,"Session : "]
[null,null,null,null,null,null,null,null,null,null,null,null,null,null,null,null,null,null,null,null,null,null,null,"Nom du candidat:"]
[null,null,null,null,null,null,null,null,null,null,null,null,null,null,null,null,null,null,null,null,null,null,null,"Prénom : "]
[null,null,null,null,null,null,null,null,null,null,null,null,null,null,null,null,null,null,null,null,null,null,null,"Date de l'évaluation:",null,null,null,null,null,null,null,null,null,null,null,null,null,null,null,null,null,null,null,null,null,null,null,"Situation d'évaluation :"]
["Lieu d’évaluation :"]
["      Etablissement",null,null,null,null,null,null,null,null,null,null,null,null,null,null,null,null,null,null,null,null,null,null,null,null,null,null,null,null,null,null,null,null,null,null,null,null,null,null,null,null,null,null,null,null,null,null,"EP2.1","F"]
["      Entreprise :       "]
["Description sommaire du travail demandé :"]
[]
[]
["Données fournies au candidat"]
["X","Le dossier technique du bien sur supports papiers ou supports numériques",null,null,null,null,null,null,null,null,null,null,null,null,null,null,null,null,null,null,null,null,null,"X","L’équipement informatique"]
["X","Le bien et les conditions de son environnement",null,null,null,null,null,null,null,null,null,null,null,null,null,null,null,null,null,null,null,null,null,"X","Les logiciels"]
["X","Les normes",null,null,null,null,null,null,null,null,null,null,null,null,null,null,null,null,null,null,null,null,null,"X","Les outils descripteurs (grafcet, chronogramme…)"]
["X","Toutes documentations techniques",null,null,null,null,null,null,null,null,null,null,null,null,null,null,null,null,null,null,null,null,null,"X","Tous documents nouveaux nécessaires à la compréhension de l’information : Nouvelle notice technique, compte-rendu d’intervention, documents de modification."]
["X","Le document unique d’évaluation des risques",null,null,null,null,null,null,null,null,null,null,null,null,null,null,null,null,null,null,null,null,null,"X","Les moyens de communication"]
["X","Toutes informations en provenance de l’utilisateur",null,null,null,null,null,null,null,null,null,null,null,null,null,null,null,null,null,null,null,null,null,"X","La demande d’intervention ou le bon de travail."]
["X","Les contraintes dans l’environnement",null,null,null,null,null,null,null,null,null,null,null,null,null,null,null,null,null,null,null,null,null,"X","Les consignes d’exploitation"]
["X","Les délais d’interventions",null,null,null,null,null,null,null,null,null,null,null,null,null,null,null,null,null,null,null,null,null,"X","Le bon de travail"]
["X","Un groupe de travail.",null,null,null,null,null,null,null,null,null,null,null,null,null,null,null,null,null,null,null,null,null,"X","Le carnet de prescription de sécurité électrique"]
["X","La fiche de procédures",null,null,null,null,null,null,null,null,null,null,null,null,null,null,null,null,null,null,null,null,null,"X","Les pièces de rechange, les consommables"]
["X","Le cahier des charges fonctionnel",null,null,null,null,null,null,null,null,null,null,null,null,null,null,null,null,null,null,null,null,null,"X","Les équipements de protection individuels et collectifs"]
["X","Le plan de prévention",null,null,null,null,null,null,null,null,null,null,null,null,null,null,null,null,null,null,null,null,null,"X","Les outillages, matériels de contrôle, de mesure, moyens de manutention."]
["X","Le constat de défaillance.",null,null,null,null,null,null,null,null,null,null,null,null,null,null,null,null,null,null,null,null,null,"X","Les impératifs de production."]
["     ÇRepérer les données fournies",null,null,null,null,null,null,null,null,null,null,null,null,null,null,null,null,null,null,null,null,null,null,null,"ÇRepérer les données fournies"]
["Travail demandé"]
["X","A1T1",null,"Préparer son intervention et/ou la logistique associée.",null,null,null,null,null,null,null,null,null,null,null,null,null,null,null,null,null,null,null,"X","A3T1",null,"Réaliser des opérations prescrites de contrôle et/ou de surveillance."]
[null,"A1T2",null,"Rendre compte de son intervention.",null,null,null,null,null,null,null,null,null,null,null,null,null,null,null,null,null,null,null,"X","A3T2",null,"Réaliser des opérations planifiées."]
["X","A1T3",null,"Proposer des améliorations sur l’environnement de son intervention.",null,null,null,null,null,null,null,null,null,null,null,null,null,null,null,null,null,null,null,"X","A4T1",null,"Réaliser une amélioration validée."]
["X","A2T1",null,"Réparer un bien par remplacement de composants."]
["X","A2T2",null,"Réparer un bien par adaptation d’une pièce mécanique."]
["Consulter le référentiel des activités professionnelles pour obtenir le détail des tâches."]
["Ç Repérer les tâches demandées (ce sont celles qui correspondent à l’unité dans le référentiel de certification, à l’exclusion de toute autre)"]
["Appréciation globale et proposition de note : "]
[]
["Noms et signatures des évaluateurs :\n\n\n",null,null,null,null,null,null,null,null,null,null,null,null,null,null,null,null,null,null,null,null,null,null,null,null,null,null,null,null,null,null,null,null,null,null,"Note proposée :          ",null,null,null,null,null,null,null,"/20"]
[null,null,null,null,null,null,null,null,null,null,null,null,null,null,null,null,null,null,null,null,null,null,null,null,null,null,null,null,null,null,null,null,null,null,null,"Note affectée de son coefficient :",null,null,null,null,null,null,null,"/60"]

{"sheet":"EP2.1_G","index":22,"n_rows":39,"n_cols":49,"rows_kept":39,"cut":false,"hidden":true,"merged":[[38,40,38,42],[38,43,38,45],[31,1,31,2],[31,3,31,22],[31,24,31,25],[31,26,31,45],[32,1,32,2],[32,3,32,22],[32,24,32,25],[32,26,32,45],[33,0,33,45],[36,0,36,45],[37,0,38,34],[35,0,35,45],[37,35,37,39],[38,35,38,39],[30,1,30,2],[30,3,30,22],[30,24,30,25],[30,26,30,45],[37,43,37,45],[37,40,37,42],[24,1,24,22],[24,24,24,45],[25,1,25,22],[25,24,25,45],[27,0,27,45],[28,1,28,2],[28,3,28,22],[28,24,28,25],[28,26,28,45],[29,1,29,2],[29,3,29,22],[29,24,29,25],[29,26,29,45],[16,1,16,22],[16,24,16,45],[17,1,17,22],[17,24,17,45],[23,1,23,22],[23,24,23,45],[18,1,18,22],[18,24,18,45],[19,1,19,22],[19,24,19,45],[20,1,20,22],[20,24,20,45],[21,1,21,22],[21,24,21,45],[22,1,22,22],[22,24,22,45],[13,1,13,22],[13,24,13,45],[14,1,14,22],[14,24,14,45],[15,1,15,22],[15,24,15,45],[0,0,0,45],[1,0,1,45],[2,0,2,22],[2,23,2,29],[2,30,2,45],[9,0,9,45],[10,0,10,45],[12,0,12,45],[5,30,5,45],[5,47,6,48],[6,0,6,45],[7,0,7,45],[7,47,8,47],[7,48,8,48],[8,0,8,45],[3,0,5,22],[3,23,3,29],[3,30,4,45],[4,23,4,29],[5,23,5,29]]}
["Brevet d’Etudes Professionnelles «Maintenance des produits et équipements industriels » "]
["EP2.1 : Préparation de son intervention"]
["Établissement : (tampon)",null,null,null,null,null,null,null,null,null,null,null,null,null,null,null,null,null,null,null,null,null,null,"Session : "]
[null,null,null,null,null,null,null,null,null,null,null,null,null,null,null,null,null,null,null,null,null,null,null,"Nom du candidat:"]
[null,null,null,null,null,null,null,null,null,null,null,null,null,null,null,null,null,null,null,null,null,null,null,"Prénom : "]
[null,null,null,null,null,null,null,null,null,null,null,null,null,null,null,null,null,null,null,null,null,null,null,"Date de l'évaluation:",null,null,null,null,null,null,null,null,null,null,null,null,null,null,null,null,null,null,null,null,null,null,null,"Situation d'évaluation :"]
["Lieu d’évaluation :"]
["      Etablissement",null,null,null,null,null,null,null,null,null,null,null,null,null,null,null,null,null,null,null,null,null,null,null,null,null,null,null,null,null,null,null,null,null,null,null,null,null,null,null,null,null,null,null,null,null,null,"EP2.1","G"]
["      Entreprise :       "]
["Description sommaire du travail demandé :"]
[]
[]
["Données fournies au candidat"]
["X","Le dossier technique du bien sur supports papiers ou supports numériques",null,null,null,null,null,null,null,null,null,null,null,null,null,null,null,null,null,null,null,null,null,"X","L’équipement informatique"]
["X","Le bien et les conditions de son environnement",null,null,null,null,null,null,null,null,null,null,null,null,null,null,null,null,null,null,null,null,null,"X","Les logiciels"]
["X","Les normes",null,null,null,null,null,null,null,null,null,null,null,null,null,null,null,null,null,null,null,null,null,"X","Les outils descripteurs (grafcet, chronogramme…)"]
["X","Toutes documentations techniques",null,null,null,null,null,null,null,null,null,null,null,null,null,null,null,null,null,null,null,null,null,"X","Tous documents nouveaux nécessaires à la compréhension de l’information : Nouvelle notice technique, compte-rendu d’intervention, documents de modification."]
["X","Le document unique d’évaluation des risques",null,null,null,null,null,null,null,null,null,null,null,null,null,null,null,null,null,null,null,null,null,"X","Les moyens de communication"]
["X","Toutes informations en provenance de l’utilisateur",null,null,null,null,null,null,null,null,null,null,null,null,null,null,null,null,null,null,null,null,null,"X","La demande d’intervention ou le bon de travail."]
["X","Les contraintes dans l’environnement",null,null,null,null,null,null,null,null,null,null,null,null,null,null,null,null,null,null,null,null,null,"X","Les consignes d’exploitation"]
["X","Les délais d’interventions",null,null,null,null,null,null,null,null,null,null,null,null,null,null,null,null,null,null,null,null,null,"X","Le bon de travail"]
["X","Un groupe de travail.",null,null,null,null,null,null,null,null,null,null,null,null,null,null,null,null,null,null,null,null,null,"X","Le carnet de prescription de sécurité électrique"]
["X","La fiche de procédures",null,null,null,null,null,null,null,null,null,null,null,null,null,null,null,null,null,null,null,null,null,"X","Les pièces de rechange, les consommables"]
["X","Le cahier des charges fonctionnel",null,null,null,null,null,null,null,null,null,null,null,null,null,null,null,null,null,null,null,null,null,"X","Les équipements de protection individuels et collectifs"]
["X","Le plan de prévention",null,null,null,null,null,null,null,null,null,null,null,null,null,null,null,null,null,null,null,null,null,"X","Les outillages, matériels de contrôle, de mesure, moyens de manutention."]
["X","Le constat de défaillance.",null,null,null,null,null,null,null,null,null,null,null,null,null,null,null,null,null,null,null,null,null,"X","Les impératifs de production."]
["     ÇRepérer les données fournies",null,null,null,null,null,null,null,null,null,null,null,null,null,null,null,null,null,null,null,null,null,null,null,"ÇRepérer les données fournies"]
["Travail demandé"]
["X","A1T1",null,"Préparer son intervention et/ou la logistique associée.",null,null,null,null,null,null,null,null,null,null,null,null,null,null,null,null,null,null,null,"X","A3T1",null,"Réaliser des opérations prescrites de contrôle et/ou de surveillance."]
[null,"A1T2",null,"Rendre compte de son intervention.",null,null,null,null,null,null,null,null,null,null,null,null,null,null,null,null,null,null,null,"X","A3T2",null,"Réaliser des opérations planifiées."]
["X","A1T3",null,"Proposer des améliorations sur l’environnement de son intervention.",null,null,null,null,null,null,null,null,null,null,null,null,null,null,null,null,null,null,null,"X","A4T1",null,"Réaliser une amélioration validée."]
["X","A2T1",null,"Réparer un bien par remplacement de composants."]
["X","A2T2",null,"Réparer un bien par adaptation d’une pièce mécanique."]
["Consulter le référentiel des activités professionnelles pour obtenir le détail des tâches."]
["Ç Repérer les tâches demandées (ce sont celles qui correspondent à l’unité dans le référentiel de certification, à l’exclusion de toute autre)"]
["Appréciation globale et proposition de note : "]
[]
["Noms et signatures des évaluateurs :\n\n\n",null,null,null,null,null,null,null,null,null,null,null,null,null,null,null,null,null,null,null,null,null,null,null,null,null,null,null,null,null,null,null,null,null,null,"Note proposée :          ",null,null,null,null,null,null,null,"/20"]
[null,null,null,null,null,null,null,null,null,null,null,null,null,null,null,null,null,null,null,null,null,null,null,null,null,null,null,null,null,null,null,null,null,null,null,"Note affectée de son coefficient :",null,null,null,null,null,null,null,"/60"]

{"sheet":"EP2.1_H","index":23,"n_rows":39,"n_cols":49,"rows_kept":39,"cut":false,"hidden":true,"merged":[[38,40,38,42],[38,43,38,45],[31,1,31,2],[31,3,31,22],[31,24,31,25],[31,26,31,45],[32,1,32,2],[32,3,32,22],[32,24,32,25],[32,26,32,45],[33,0,33,45],[36,0,36,45],[37,0,38,34],[35,0,35,45],[37,35,37,39],[38,35,38,39],[30,1,30,2],[30,3,30,22],[30,24,30,25],[30,26,30,45],[37,43,37,45],[37,40,37,42],[24,1,24,22],[24,24,24,45],[25,1,25,22],[25,24,25,45],[27,0,27,45],[28,1,28,2],[28,3,28,22],[28,24,28,25],[28,26,28,45],[29,1,29,2],[29,3,29,22],[29,24,29,25],[29,26,29,45],[16,1,16,22],[16,24,16,45],[17,1,17,22],[17,24,17,45],[23,1,23,22],[23,24,23,45],[18,1,18,22],[18,24,18,45],[19,1,19,22],[19,24,19,45],[20,1,20,22],[20,24,20,45],[21,1,21,22],[21,24,21,45],[22,1,22,22],[22,24,22,45],[13,1,13,22],[13,24,13,45],[14,1,14,22],[14,24,14,45],[15,1,15,22],[15,24,15,45],[0,0,0,45],[1,0,1,45],[2,0,2,22],[2,23,2,29],[2,30,2,45],[9,0,9,45],[10,0,10,45],[12,0,12,45],[5,30,5,45],[5,47,6,48],[6,0,6,45],[7,0,7,45],[7,47,8,47],[7,48,8,48],[8,0,8,45],[3,0,5,22],[3,23,3,29],[3,30,4,45],[4,23,4,29],[5,23,5,29]]}
["Brevet d’Etudes Professionnelles «Maintenance des produits et équipements industriels » "]
["EP2.1 : Préparation de son intervention"]
["Établissement : (tampon)",null,null,null,null,null,null,null,null,null,null,null,null,null,null,null,null,null,null,null,null,null,null,"Session : "]
[null,null,null,null,null,null,null,null,null,null,null,null,null,null,null,null,null,null,null,null,null,null,null,"Nom du candidat:"]
[null,null,null,null,null,null,null,null,null,null,null,null,null,null,null,null,null,null,null,null,null,null,null,"Prénom : "]
[null,null,null,null,null,null,null,null,null,null,null,null,null,null,null,null,null,null,null,null,null,null,null,"Date de l'évaluation:",null,null,null,null,null,null,null,null,null,null,null,null,null,null,null,null,null,null,null,null,null,null,null,"Situation d'évaluation :"]
["Lieu d’évaluation :"]
["      Etablissement",null,null,null,null,null,null,null,null,null,null,null,null,null,null,null,null,null,null,null,null,null,null,null,null,null,null,null,null,null,null,null,null,null,null,null,null,null,null,null,null,null,null,null,null,null,null,"EP2.1","H"]
["      Entreprise :       "]
["Description sommaire du travail demandé :"]
[]
[]
["Données fournies au candidat"]
["X","Le dossier technique du bien sur supports papiers ou supports numériques",null,null,null,null,null,null,null,null,null,null,null,null,null,null,null,null,null,null,null,null,null,"X","L’équipement informatique"]
["X","Le bien et les conditions de son environnement",null,null,null,null,null,null,null,null,null,null,null,null,null,null,null,null,null,null,null,null,null,"X","Les logiciels"]
["X","Les normes",null,null,null,null,null,null,null,null,null,null,null,null,null,null,null,null,null,null,null,null,null,"X","Les outils descripteurs (grafcet, chronogramme…)"]
["X","Toutes documentations techniques",null,null,null,null,null,null,null,null,null,null,null,null,null,null,null,null,null,null,null,null,null,"X","Tous documents nouveaux nécessaires à la compréhension de l’information : Nouvelle notice technique, compte-rendu d’intervention, documents de modification."]
["X","Le document unique d’évaluation des risques",null,null,null,null,null,null,null,null,null,null,null,null,null,null,null,null,null,null,null,null,null,"X","Les moyens de communication"]
["X","Toutes informations en provenance de l’utilisateur",null,null,null,null,null,null,null,null,null,null,null,null,null,null,null,null,null,null,null,null,null,"X","La demande d’intervention ou le bon de travail."]
["X","Les contraintes dans l’environnement",null,null,null,null,null,null,null,null,null,null,null,null,null,null,null,null,null,null,null,null,null,"X","Les consignes d’exploitation"]
["X","Les délais d’interventions",null,null,null,null,null,null,null,null,null,null,null,null,null,null,null,null,null,null,null,null,null,"X","Le bon de travail"]
["X","Un groupe de travail.",null,null,null,null,null,null,null,null,null,null,null,null,null,null,null,null,null,null,null,null,null,"X","Le carnet de prescription de sécurité électrique"]
["X","La fiche de procédures",null,null,null,null,null,null,null,null,null,null,null,null,null,null,null,null,null,null,null,null,null,"X","Les pièces de rechange, les consommables"]
["X","Le cahier des charges fonctionnel",null,null,null,null,null,null,null,null,null,null,null,null,null,null,null,null,null,null,null,null,null,"X","Les équipements de protection individuels et collectifs"]
["X","Le plan de prévention",null,null,null,null,null,null,null,null,null,null,null,null,null,null,null,null,null,null,null,null,null,"X","Les outillages, matériels de contrôle, de mesure, moyens de manutention."]
["X","Le constat de défaillance.",null,null,null,null,null,null,null,null,null,null,null,null,null,null,null,null,null,null,null,null,null,"X","Les impératifs de production."]
["     ÇRepérer les données fournies",null,null,null,null,null,null,null,null,null,null,null,null,null,null,null,null,null,null,null,null,null,null,null,"ÇRepérer les données fournies"]
["Travail demandé"]
["X","A1T1",null,"Préparer son intervention et/ou la logistique associée.",null,null,null,null,null,null,null,null,null,null,null,null,null,null,null,null,null,null,null,"X","A3T1",null,"Réaliser des opérations prescrites de contrôle et/ou de surveillance."]
[null,"A1T2",null,"Rendre compte de son intervention.",null,null,null,null,null,null,null,null,null,null,null,null,null,null,null,null,null,null,null,"X","A3T2",null,"Réaliser des opérations planifiées."]
["X","A1T3",null,"Proposer des améliorations sur l’environnement de son intervention.",null,null,null,null,null,null,null,null,null,null,null,null,null,null,null,null,null,null,null,"X","A4T1",null,"Réaliser une amélioration validée."]
["X","A2T1",null,"Réparer un bien par remplacement de composants."]
["X","A2T2",null,"Réparer un bien par adaptation d’une pièce mécanique."]
["Consulter le référentiel des activités professionnelles pour obtenir le détail des tâches."]
["Ç Repérer les tâches demandées (ce sont celles qui correspondent à l’unité dans le référentiel de certification, à l’exclusion de toute autre)"]
["Appréciation globale et proposition de note : "]
[]
["Noms et signatures des évaluateurs :\n\n\n",null,null,null,null,null,null,null,null,null,null,null,null,null,null,null,null,null,null,null,null,null,null,null,null,null,null,null,null,null,null,null,null,null,null,"Note proposée :          ",null,null,null,null,null,null,null,"/20"]
[null,null,null,null,null,null,null,null,null,null,null,null,null,null,null,null,null,null,null,null,null,null,null,null,null,null,null,null,null,null,null,null,null,null,null,"Note affectée de son coefficient :",null,null,null,null,null,null,null,"/60"]